Workbook

Sheet INDICE
E1: NEPAL
E2: Trocas comerciais com Portugal (PT) 2017-2021 Setores agrícola e agroalimentar, do mar e das florestas
C3: Fonte
D4: Estatísticas do Comércio Internacional | E4: Nepal - Síntese
D5: dados: 2020 provisórios; 2021 preliminares | E5: 1. Evolução da balança comercial
E6: 2. Posição de Nepal entre os parceiros comerciais de PT
C7: Data | D7: 2023-01-23T14:01:56.680 | E7: 3. Principais produtos transacionados (NC a 2 e 4 dígitos)
E8: 3A Principais produtos transacionados (sem mar nem florestas)
E9: 4. Evolução da balança comercial por produto
E10: 5. Trocas comerciais por produto (NC 2 dígitos)

Sheet Sintese
A1: Nepal - Síntese (2017-2021)
A3: • As trocas comerciais de bens transacionáveis (excluindo serviços) entre Portugal e Nepal representam um total de 0,5 milhões de € (M€) em exportações e 0,3 M€ em importações, na média do período 2017-2021, correspondendo a um saldo positivo da balança comercial de cerca de 0,2 M€.
A4: • No que respeita aos produtos dos setores agrícola e agroalimentar, mar e florestas, Portugal exportou para Nepal 0,1 M€ em média anual, no mesmo período (este país ocupa assim a 178ª posição em relação ao total dos países), enquanto as importações totalizaram 9 mil € (165ª posição), com um saldo positivo de 0,1 M€. Estes setores representam perto de 15,1% do total de exportações de bens transacionáveis e 3% das correspondentes importações.
A5: • Se nos referirmos apenas ao setor agrícola e agroalimentar, as exportações representam, em média, 75 mil € (166ª posição) e as importações 2 milhares (155ª posição), ou seja, Portugal tem um saldo positivo de 0,1 M€. Estes valores representam, respetivamente, cerca de 92,3% das exportações do setor agroflorestal e mar e 26,9% das importações.
A6: • As principais exportações agrícolas e agroalimentares (NC 4 dígitos) neste período são Outras preparações alimentícias (51%), Óleos de azeitonas obtidos por outros processos (16%) e Leveduras, vivas ou mortas, etc. (10%). As importações agrícolas e agroalimentares mais relevantes referem-se a Gengibre, açafrão, tomilho, louro, etc. (20%), Chá (18%) e Massas alimentícias (exc. NC 1902 20 10) (a) (17%). Se considerarmos também os produtos do mar e da floresta, merecem particular destaque, em termos de exportações, Outras preparações alimentícias (47%), Óleos de azeitonas obtidos por outros processos (15%) e Leveduras, vivas ou mortas, etc. (10%). Nas importações destes setores, destacam-se Ferramentas de madeira; etc. (52%), Outras obras de madeira (10%) e Madeira marchetada e incrustada; etc. (6%).
A9: Saldo da Balança Comercial | B9: 2019 | C9: 2020 | D9: 2021 | E9: média 2017-2021 | H9: Posição entre os parceiros comerciais de Portugal (milhares de euros)
A10: Total de Bens Transacionáveis* | B10: 1023.838 | C10: -53.605 | D10: 1900-01-24T19:59:31.200 | E10: 236.3118 | H10: AA + M + F | I10: Posição | J10: média 2017-2021 | K10: % do total | L10: TVMA* 2017-2021 | M10: TVT* 2017-2021
A11: Agrícola e Agroalimentar (AA) | B11: 115.814 | C11: 47.464 | D11: 1900-05-20T05:38:24 | E11: 72.5304 | H11: Exportações | I11: 178ª | J11: 81.2736 | K11: 6.822905653e-06 | L11: 0.2125697803 | M11: 1.621402461
A12: Mar (M) | B12: 0 | C12: 0.062 | D12: -0.019 | E12: 0.0086 | H12: Importações | I12: 165ª | J12: 9.1538 | K12: 6.692406165e-07 | L12: 0.3463983962 | M12: 3.424537988
A13: Florestas (F) | B13: -13.316 | C13: -7.164 | D13: -8.565 | E13: -0.4192 | H13: AA
A14: AA + M + F | B14: 102.498 | C14: 40.362 | D14: 1900-05-11T15:37:26.400 | E14: 72.1198 | H14: Exportações | I14: 166ª | J14: 74.9902 | K14: 1.158776251e-05 | L14: 0.4099259392 | M14: 4.571620182
H15: Importações | I15: 155ª | J15: 2.4598 | K15: 2.644626697e-07 | L15: -1 | M15: -1
A16: milhares de euros *exclui serviços | I16: *TVMA - Taxa de variação média anual; TVT - Taxa de variação total
A18: Evolução das trocas comerciais Portugal-Nepal em milhares de euros (2017-2021)
E27: Exportações | G27: Importações | I27: Saldo
A28: Principais produtos agrícolas e agroalimentares, do mar e da floresta transacionados (NC 2 dígitos)
A47: Principais produtos agrícolas e agroalimentares transacionados (NC 2 dígitos)
A81: Fonte: GPP a partir de dados INE/Comércio Internacional (2020 provisórios; 2021 preliminares) | L81: 2023-01-23T14:01:56.680

Sheet 1
A1: Evolução da balança comercial Portugal-Nepal 2017-2021 em milhares de euros
A3: Total de Bens Transacionáveis (BT)(1) | B3: 2017 | C3: 2018 | D3: 2019 | E3: 2020 | F3: 2021 | G3: média quinquénio | H3: var. 17/18 | I3: var. 18/19 | J3: var. 19/20 | K3: var. 20/21 | L3: TVMA* 2017-2021 | M3: TVT* 2017-2021
A4: Exportações | B4: 618.843 | C4: 199.835 | D4: 1426.729 | E4: 190.336 | F4: 260.046 | G4: 539.1578 | H4: -0.6770828789 | I4: 6.139535116 | J4: -0.8665927447 | K4: 0.3662470578 | L4: -0.1948673776 | M4: -0.5797867957
A5: Importações | B5: 257.497 | C5: 374.688 | D5: 402.891 | E5: 243.941 | F5: 235.213 | G5: 302.846 | H5: 10:55:22.021 | I5: 0.07527062516 | J5: -0.3945235808 | K5: -0.03577914332 | L5: -0.02237502706 | M5: -0.08654081407
A6: Saldo (exp-imp) | B6: 361.346 | C6: -174.853 | D6: 1023.838 | E6: -53.605 | F6: 24.833 | G6: 236.3118
A7: Cobertura (exp/imp) | B7: 2.403301786 | C7: 0.5333370698 | D7: 3.541228273 | E7: 0.7802542418 | F7: 1.105576648 | G7: 1.780303521
A8: Exp BT Nepal / Exp BT Mundo | B8: 1.124608284e-05 | C8: 3.454017601e-06 | D8: 2.381585001e-05 | E8: 3.539083328e-06 | F8: 4.085628025e-06 | G8: 9.288775371e-06 | L8: Exportações
A9: Imp BT Nepal / Imp BT Mundo | B9: 3.694967767e-06 | C9: 4.966751636e-06 | D9: 5.037577722e-06 | E9: 3.57970349e-06 | F9: 2.828925105e-06 | G9: 4.022967899e-06 | L9: Importações
A10: Exp BT Nepal / Exp TE Mundo | B10: 7.392082144e-06 | C10: 2.241717134e-06 | D10: 1.529659579e-05 | E10: 2.568745551e-06 | F10: 2.930232596e-06 | G10: 6.28426451e-06
A11: Imp BT Nepal / Imp TE Mundo | B11: 3.150229195e-06 | C11: 4.248434067e-06 | D11: 4.364932547e-06 | E11: 3.114543845e-06 | F11: 2.474019732e-06 | G11: 3.475940976e-06
A12: (1) Todos os produtos transacionados entre PT e Nepal (exclui serviços) | D12: TE - Total da Economia (bens e serviços) Fonte: INE/Contas Nacionais | H12: *TVMA - Taxa de variação média anual; TVT - Taxa de variação total
A24: Agro(1) + Mar + Florestas (AMF) | B24: 2017 | C24: 2018 | D24: 2019 | E24: 2020 | F24: 2021 | G24: média quinquénio | H24: var. 17/18 | I24: var. 18/19 | J24: var. 19/20 | K24: var. 20/21 | L24: TVMA* 2017-2021 | M24: TVT* 2017-2021
A25: Exportações | B25: 53.891 | C25: 35.799 | D25: 115.814 | E25: 59.594 | F25: 141.27 | G25: 81.2736 | H25: -0.3357146833 | I25: 2.235118299 | J25: -0.48543354 | K25: 1.370540658 | L25: 0.2724286106 | M25: 1.621402461
A26: Importações | B26: 1.948 | C26: 2.654 | D26: 13.316 | E26: 19.232 | F26: 8.619 | G26: 9.1538 | H26: 08:41:53.347 | I26: 4.017332329 | J26: 0.4442775608 | K26: -0.5518406822 | L26: 0.4503305063 | M26: 3.424537988
A27: Saldo (exp-imp) | B27: 51.943 | C27: 33.145 | D27: 102.498 | E27: 40.362 | F27: 132.651 | G27: 72.1198
A28: Cobertura (exp/imp) | B28: 27.66478439 | C28: 13.48869631 | D28: 8.697356564 | E28: 3.098689684 | F28: 16.39053254 | G28: 8.878673338
A29: Exp AMF Nepal / Exp BT Nepal | B29: 0.08708347675 | C29: 0.1791427928 | D29: 0.08117449074 | E29: 0.3130989408 | F29: 0.5432500404 | G29: 0.150741768 | L29: Exportações
A30: Imp AMF Nepal / Imp BT Nepal | B30: 0.007565136681 | C30: 0.007083226578 | D30: 0.03305112301 | E30: 0.0788387356 | F30: 0.03664338281 | G30: 0.03022592341 | L30: Importações
A31: Exp AMF Nepal / Exp AMF Mundo | B31: 4.833917358e-06 | C31: 3.072193851e-06 | D31: 9.791198687e-06 | E31: 5.166153684e-06 | F31: 1.05469217e-05 | G31: 6.822905653e-06
A32: Imp AMF Nepal / Imp AMF Mundo | B32: 1.494628106e-07 | C32: 1.947090095e-07 | D32: 9.626032832e-07 | E32: 1.474241555e-06 | F32: 5.805275183e-07 | G32: 6.692406165e-07
A33: (1) Produtos agrícolas e agroalimentares | B33: BT - Total de Bens Transacionáveis (exclui serviços) | H33: *TVMA - Taxa de variação média anual; TVT - Taxa de variação total
A45: Agroalimentar (AA)(1) | B45: 2017 | C45: 2018 | D45: 2019 | E45: 2020 | F45: 2021 | G45: média quinquénio | H45: var. 17/18 | I45: var. 18/19 | J45: var. 19/20 | K45: var. 20/21 | L45: TVMA* 2017-2021 | M45: TVT* 2017-2021
A46: Exportações | B46: 25.349 | C46: 33.06 | D46: 115.814 | E46: 59.493 | F46: 141.235 | G46: 74.9902 | H46: 07:18:02.315 | I46: 2.503145796 | J46: -0.486305628 | K46: 1.37397677 | L46: 0.5363684343 | M46: 4.571620182
A47: Importações | B47: 0.27 | C47: 0 | D47: 0 | E47: 12.029 | F47: 0 | G47: 2.4598 | H47: -1 | K47: -1 | L47: -1 | M47: -1
A48: Saldo (exp-imp) | B48: 25.079 | C48: 33.06 | D48: 115.814 | E48: 47.464 | F48: 141.235 | G48: 72.5304
A49: Cobertura (exp/imp) | B49: 93.88518519 | E49: 4.945797656 | G49: 30.4862997
A50: Exp AA Nepal / Exp AMF Nepal | B50: 0.4703753874 | C50: 0.9234894829 | D50: 1 | E50: 0.9983051985 | F50: 0.9997522475 | G50: 0.9226883022 | L50: Exportações
A51: Imp AA Nepal / Imp AMF Nepal | B51: 0.1386036961 | C51: 0 | D51: 0 | E51: 0.62546797 | F51: 0 | G51: 0.2687190019 | L51: Importações
A52: Exp AA Nepal / Exp BT Nepal | B52: 0.04096192411 | C52: 0.1654364851 | D52: 0.08117449074 | E52: 0.3125683003 | F52: 0.5431154488 | G52: 0.139087666
A53: Imp AA Nepal / Imp BT Nepal | B53: 0.001048555906 | C53: 0 | D53: 0 | E53: 0.04931110391 | F53: 0 | G53: 0.008122279971
A54: Exp AA Nepal / Exp AA Mundo | B54: 4.304378711e-06 | C54: 5.412949199e-06 | D54: 1.840680305e-05 | E54: 8.990817114e-06 | F54: 1.895312738e-05 | G54: 1.158776251e-05
A55: Imp AA Nepal / Imp AA Mundo | B55: 3.090173315e-08 | C55: 0 | D55: 0 | E55: 1.324130623e-06 | F55: 0 | G55: 2.644626697e-07
A56: (1) Produtos agrícolas e agroalimentares | B56: AMF - Agroalimentar, Mar e Florestas; BT - Total de Bens Transacionáveis (exclui serviços) | H56: *TVMA - Taxa de variação média anual; TVT - Taxa de variação total
A67: Mar (M) | B67: 2017 | C67: 2018 | D67: 2019 | E67: 2020 | F67: 2021 | G67: média quinquénio | H67: var. 17/18 | I67: var. 18/19 | J67: var. 19/20 | K67: var. 20/21 | L67: TVMA* 2017-2021 | M67: TVT* 2017-2021
A68: Exportações | B68: 0 | C68: 0 | D68: 0 | E68: 0.089 | F68: 0 | G68: 0.0178 | K68: -1
A69: Importações | B69: 0 | C69: 0 | D69: 0 | E69: 0.027 | F69: 0.019 | G69: 0.0092 | K69: -0.2962962963
A70: Saldo (exp-imp) | B70: 0 | C70: 0 | D70: 0 | E70: 0.062 | F70: -0.019 | G70: 0.0086
A71: Cobertura (exp/imp) | E71: 3.296296296 | F71: 0 | G71: 1.934782609
A72: Exp M Nepal / Exp AMF Nepal | B72: 0 | C72: 0 | D72: 0 | E72: 0.001493438937 | F72: 0 | G72: 0.0002190133081 | L72: Exportações
A73: Imp M Nepal / Imp AMF Nepal | B73: 0 | C73: 0 | D73: 0 | E73: 0.00140391015 | F73: 0.002204432069 | G73: 0.001005047084 | L73: Importações
A74: Exp M Nepal / Exp BT Nepal | B74: 0 | C74: 0 | D74: 0 | E74: 0.0004675941493 | F74: 0 | G74: 3.301445328e-05
A75: Imp M Nepal / Imp BT Nepal | B75: 0 | C75: 0 | D75: 0 | E75: 0.0001106825011 | F75: 8.077784816e-05 | G75: 3.037847619e-05
A76: Exp M Nepal / Exp M Mundo | B76: 0 | C76: 0 | D76: 0 | E76: 9.892237972e-08 | F76: 0 | G76: 1.705889158e-08
A77: Imp M Nepal / Imp M Mundo | B77: 0 | C77: 0 | D77: 0 | E77: 1.402720496e-08 | F77: 9.083909912e-09 | G77: 4.365603486e-09
A78: AMF - Agroalimentar, Mar e Florestas; BT - Total de Bens Transacionáveis (exclui serviços) | H78: *TVMA - Taxa de variação média anual; TVT - Taxa de variação total
A90: Florestas (F) | B90: 2017 | C90: 2018 | D90: 2019 | E90: 2020 | F90: 2021 | G90: média quinquénio | H90: var. 17/18 | I90: var. 18/19 | J90: var. 19/20 | K90: var. 20/21 | L90: TVMA* 2017-2021 | M90: TVT* 2017-2021
A91: Exportações | B91: 28.542 | C91: 2.739 | D91: 0 | E91: 0.012 | F91: 0.035 | G91: 6.2656 | H91: -0.9040361572 | I91: -1 | K91: 1.916666667 | L91: -0.8128689258 | M91: -0.9987737369
A92: Importações | B92: 1.678 | C92: 2.654 | D92: 13.316 | E92: 7.176 | F92: 8.6 | G92: 6.6848 | H92: 13:57:34.112 | I92: 4.017332329 | J92: -0.4610994293 | K92: 0.1984392419 | L92: 0.5046192841 | M92: 4.125148987
A93: Saldo (exp-imp) | B93: 26.864 | C93: 0.085 | D93: -13.316 | E93: -7.164 | F93: -8.565 | G93: -0.4192
A94: Cobertura (exp/imp) | B94: 17.00953516 | C94: 1.032027129 | D94: 0 | E94: 0.001672240803 | F94: 0.004069767442 | G94: 0.9372905697
A95: Exp F Nepal / Exp AMF Nepal | B95: 0.5296246126 | C95: 0.07651051705 | D95: 0 | E95: 0.0002013625533 | F95: 0.0002477525306 | G95: 0.07709268446 | L95: Exportações
A96: Imp F Nepal / Imp AMF Nepal | B96: 0.8613963039 | C96: 1 | D96: 1 | E96: 0.3731281198 | F96: 0.9977955679 | G96: 0.730275951 | L96: Importações
A97: Exp F Nepal / Exp BT Nepal | B97: 0.04612155264 | C97: 0.0137063077 | D97: 0 | E97: 6.304640215e-05 | F97: 0.0001345915723 | G97: 0.01162108756
A98: Imp F Nepal / Imp BT Nepal | B98: 0.006516580776 | C98: 0.007083226578 | D98: 0.03305112301 | E98: 0.02941694918 | F98: 0.03656260496 | G98: 0.02207326496
A99: Exp F Nepal / Exp F Mundo | B99: 6.799126115e-06 | C99: 6.15087401e-07 | D99: 0 | E99: 2.986049385e-09 | F99: 7.220555792e-09 | G99: 1.424993794e-06
A100: Imp F Nepal / Imp F Mundo | B100: 7.772024576e-07 | C100: 1.138818569e-06 | D100: 5.698024797e-06 | E100: 3.524437243e-06 | F100: 3.461617714e-06 | G100: 2.945645572e-06
A101: AMF - Agroalimentar, Mar e Florestas; BT - Total de Bens Transacionáveis (exclui serviços) | H101: *TVMA - Taxa de variação média anual; TVT - Taxa de variação total
A111: Fonte: GPP a partir de dados INE/Comércio Internacional (2020 provisórios; 2021 preliminares) | K111: 2023-01-23T14:01:56.680

Sheet 2
A1: Posição de Nepal entre os parceiros comerciais de Portugal (média 2017-2021 em milhares de euros) produtos agrícolas e agroalimentares, do mar e da floresta
A2: Exportações | F2: Importações | K2: Trocas comerciais (total e saldo)
A3: P | B3: País | C3: média quinquénio | D3: % do Total | F3: P | G3: País | H3: média quinquénio | I3: % do Total | K3: P | L3: País | M3: Total (exp+imp) | N3: % do Total | O3: Saldo (exp-imp)
A4: 1 | B4: Espanha | C4: 3712952.758 | D4: 0.311701787 | F4: 1 | G4: Espanha | H4: 6340785.676 | I4: 0.4635792037 | K4: 1 | L4: Espanha | M4: 10053738.43 | N4: 0.392881221 | O4: -2627832.918
A5: 2 | B5: França | C5: 1257747.558 | D5: 0.1055877052 | F5: 2 | G5: França | H5: 912253.5718 | I5: 0.06669548633 | K5: 2 | L5: França | M5: 2170001.129 | N5: 0.08479956973 | O5: 345493.9858
A6: 3 | B6: Itália | C6: 792429.7222 | D6: 0.06652434777 | F6: 3 | G6: Alemanha | H6: 835931.852 | I6: 0.06111555288 | K6: 3 | L6: Alemanha | M6: 1424196 | N6: 0.0556549056 | O6: -247667.7042
A7: 4 | B7: Alemanha | C7: 588264.1478 | D7: 0.04938468063 | F7: 4 | G7: Países Baixos | H7: 758175.283 | I7: 0.05543071662 | K7: 4 | L7: Países Baixos | M7: 1298233.416 | N7: 0.05073252431 | O7: -218117.1504
A8: 5 | B8: Países Baixos | C8: 540058.1326 | D8: 0.0453377934 | F8: 5 | G8: Brasil | H8: 505995.8872 | I8: 0.03699370748 | K8: 5 | L8: Itália | M8: 1195120.886 | N8: 0.04670308028 | O8: 389738.558
A9: 6 | B9: Estados Unidos | C9: 510106.9878 | D9: 0.04282339961 | F9: 6 | G9: Itália | H9: 402691.1642 | I9: 0.0294410281 | K9: 6 | L9: Brasil | M9: 935462.583 | N9: 0.03655612132 | O9: -76529.1914 | P9: Nota: Nesta listagem, o Reino Unido passa a ser constituído por três componentes: Reino Unido [até 2020] ; Reino Unido (sem Irlanda do Norte) pós-2020 e Reino Unido (Irlanda do Norte) pós-2020. Estas componentes são calculadas igualmente como média do quinquénio, embora a primeira corresponda a 2017-2020 e as duas últimas apenas ao ano de 2021.
A10: 7 | B10: Reino Unido | C10: 496829.5194 | D10: 0.04170875827 | F10: 7 | G10: Suécia | H10: 321231.924 | I10: 0.023485487 | K10: 7 | L10: Estados Unidos | M10: 773204.8386 | N10: 0.03021539332 | O10: 247009.137
A11: 8 | B11: Brasil | C11: 429466.6958 | D11: 0.03605366006 | F11: 8 | G11: Estados Unidos | H11: 263097.8508 | I11: 0.0192352649 | K11: 8 | L11: Reino Unido | M11: 683852.0118 | N11: 0.02672365262 | O11: 309807.027
A12: 9 | B12: Angola | C12: 368599.8612 | D12: 0.03094389908 | F12: 9 | G12: Bélgica | H12: 262325.903 | I12: 0.01917882727 | K12: 9 | L12: Bélgica | M12: 488410.1148 | N12: 0.01908615025 | O12: -36241.6912
A13: 10 | B13: Polónia | C13: 230382.6176 | D13: 0.01934058371 | F13: 10 | G13: Ucrânia | H13: 192157.0364 | I13: 0.01404873315 | K13: 10 | L13: Suécia | M13: 409250.0544 | N13: 0.01599272372 | O13: -233213.7936
A14: 11 | B14: Bélgica | C14: 226084.2118 | D14: 0.01897973323 | F14: 11 | G14: Reino Unido | H14: 187022.4924 | I14: 0.01367334311 | K14: 11 | L14: Polónia | M14: 408269.7832 | N14: 0.01595441656 | O14: 52495.452
A15: 12 | B15: China, República Popular da | C15: 203912.8938 | D15: 0.01711845465 | F15: 12 | G15: Polónia | H15: 177887.1656 | I15: 0.01300545308 | K15: 12 | L15: Angola | M15: 382175.2168 | N15: 0.0149346899 | O15: 355024.5056
A16: 13 | B16: Israel | C16: 171669.9616 | D16: 0.01441166567 | F16: 13 | G16: China, República Popular da | H16: 163862.9836 | I16: 0.01198013548 | K16: 13 | L16: China, República Popular da | M16: 367775.8774 | N16: 0.01437199075 | O16: 40049.9102
A17: 14 | B17: Turquia | C17: 149012.0402 | D17: 0.01250953682 | F17: 14 | G17: África do Sul | H17: 136601.1892 | I17: 0.009987006934 | K17: 14 | L17: Dinamarca | M17: 217993.069 | N17: 0.008518759832 | O17: -52342.8402
A18: 15 | B18: Reino Unido (sem Irlanda do Norte) pós 2020 | C18: 135715.584 | D18: 0.01139330146 | F18: 15 | G18: Dinamarca | H18: 135167.9546 | I18: 0.009882222167 | K18: 15 | L18: Ucrânia | M18: 204319.698 | N18: 0.007984430166 | O18: -179994.3748
A19: 16 | B19: Suíça | C19: 134613.0582 | D19: 0.01130074459 | F19: 16 | G19: Roménia | H19: 111433.0268 | I19: 0.008146945264 | K19: 16 | L19: Turquia | M19: 199731.2272 | N19: 0.007805121343 | O19: 98292.8532
A20: 17 | B20: Canadá | C20: 93779.724 | D20: 0.007872792752 | F20: 17 | G20: Irlanda | H20: 111240.9116 | I20: 0.008132899589 | K20: 17 | L20: Canadá | M20: 187292.0168 | N20: 0.007319020356 | O20: 267.4312
A21: 18 | B21: Marrocos | C21: 93732.2638 | D21: 0.007868808476 | F21: 18 | G21: Rússia, Federação da | H21: 96925.468 | I21: 0.007086287658 | K21: 18 | L21: Rússia, Federação da | M21: 184732.0384 | N21: 0.007218981207 | O21: -9118.8976
A22: 19 | B22: Cabo Verde | C22: 92769.444 | D22: 0.007787979908 | F22: 19 | G22: Canadá | H22: 93512.2928 | I22: 0.00683674807 | K22: 19 | L22: Israel | M22: 180686.728 | N22: 0.007060898072 | O22: 162653.1952
A23: 20 | B23: Suécia | C23: 88018.1304 | D23: 0.007389107895 | F23: 20 | G23: Argentina | H23: 83567.9568 | I23: 0.006109710823 | K23: 20 | L23: África do Sul | M23: 171496.6366 | N23: 0.006701766555 | O23: -101705.7418
A24: 21 | B24: Rússia, Federação da | C24: 87806.5704 | D24: 0.007371347467 | F24: 21 | G24: Uruguai | H24: 78952.7844 | I24: 0.005772292393 | K24: 21 | L24: Irlanda | M24: 165426.8782 | N24: 0.006464571794 | O24: -57054.945
A25: 22 | B25: Dinamarca | C25: 82825.1144 | D25: 0.006953155037 | F25: 22 | G25: Índia | H25: 72538.3748 | I25: 0.005303330494 | K25: 22 | L25: Reino Unido (sem Irlanda do Norte) pós 2020 | M25: 163715.212 | N25: 0.006397683093 | O25: 107715.956
A26: 23 | B26: Egito | C26: 78451.7374 | D26: 0.006586010741 | F26: 23 | G26: Finlândia | H26: 67056.1438 | I26: 0.004902520813 | K26: 23 | L26: Suíça | M26: 139836.4204 | N26: 0.005464544752 | O26: 129389.696
A27: 24 | B27: Argélia | C27: 65936.296 | D27: 0.005535341448 | F27: 24 | G27: Vietname | H27: 66915.0104 | I27: 0.004892202453 | K27: 24 | L27: Marrocos | M27: 138283.7508 | N27: 0.005403869339 | O27: 49180.7768
A28: 25 | B28: Japão | C28: 61401.0422 | D28: 0.005154607621 | F28: 25 | G28: Costa Rica | H28: 65624.6362 | I28: 0.004797862307 | K28: 25 | L28: Roménia | M28: 137558.9598 | N28: 0.005375545868 | O28: -85307.0938
A29: 26 | B29: México | C29: 60015.9294 | D29: 0.005038327624 | F29: 26 | G29: Grécia | H29: 63454.8578 | I29: 0.004639228316 | K29: 26 | L29: Grécia | M29: 110276.6844 | N29: 0.00430940577 | O29: -16633.0312
A30: 27 | B30: Irlanda | C30: 54185.9666 | D30: 0.004548903184 | F30: 27 | G30: Áustria | H30: 56631.204 | I30: 0.004140346291 | K30: 27 | L30: Argentina | M30: 100100.1506 | N30: 0.003911725937 | O30: -67035.763
A31: 28 | B31: Luxemburgo | C31: 51187.7974 | D31: 0.004297207362 | F31: 28 | G31: Bulgária | H31: 54262.4568 | I31: 0.003967165553 | K31: 28 | L31: Cabo Verde | M31: 94014.8568 | N31: 0.003673924081 | O31: 91524.0312
A32: 29 | B32: Grécia | C32: 46821.8266 | D32: 0.003930684815 | F32: 29 | G32: Turquia | H32: 50719.187 | I32: 0.00370811466 | K32: 29 | L32: Finlândia | M32: 93599.6694 | N32: 0.003657699337 | O32: -40512.6182
A33: 30 | B33: Chile | C33: 38049.2754 | D33: 0.003194230552 | F33: 30 | G33: Chile | H33: 48171.6854 | I33: 0.003521865065 | K33: 30 | L33: Índia | M33: 92627.9288 | N33: 0.003619725539 | O33: -52448.8208
A34: 31 | B34: Austrália | C34: 35103.186 | D34: 0.002946906821 | F34: 31 | G34: Marrocos | H34: 44551.487 | I34: 0.003257189869 | K34: 31 | L34: Áustria | M34: 90878.9184 | N34: 0.003551377496 | O34: -22383.4896
A35: 32 | B35: África do Sul | C35: 34895.4474 | D35: 0.002929467199 | F35: 32 | G35: Cuba | H35: 37575.1428 | I35: 0.002747144545 | K35: 32 | L35: Egito | M35: 86803.5794 | N35: 0.0033921209 | O35: 70099.8954
A36: 33 | B36: Moçambique | C36: 34675.04 | D36: 0.002910964033 | F36: 33 | G36: Moçambique | H36: 37505.178 | I36: 0.00274202937 | K36: 33 | L36: Chile | M36: 86220.9608 | N36: 0.003369353259 | O36: -10122.41
A37: 34 | B37: Áustria | C37: 34247.7144 | D37: 0.002875090117 | F37: 34 | G37: Equador | H37: 36773.6226 | I37: 0.002688544851 | K37: 34 | L37: Uruguai | M37: 81803.1506 | N37: 0.003196713531 | O37: -76102.4182
A38: 35 | B38: Arábia Saudita | C38: 33882.483 | D38: 0.002844429 | F38: 35 | G38: Paraguai | H38: 33971.2844 | I38: 0.002483663977 | K38: 35 | L38: México | M38: 78999.4278 | N38: 0.003087149309 | O38: 41032.431
A39: 36 | B39: Emirados Árabes Unidos | C39: 30317.71 | D39: 0.00254516688 | F39: 36 | G39: Checa, República | H39: 32236.7792 | I39: 0.002356853109 | K39: 36 | L39: Japão | M39: 76588.134 | N39: 0.002992920475 | O39: 46213.9504
A40: 37 | B40: Guiné-Bissau | C40: 28498.4742 | D40: 0.002392442327 | F40: 37 | G40: Reino Unido (sem Irlanda do Norte) pós 2020 | H40: 27999.628 | I40: 0.002047072069 | K40: 37 | L40: Vietname | M40: 72394.511 | N40: 0.002829041562 | O40: -61435.5098
A41: 38 | B41: Checa, República | C41: 26637.1626 | D41: 0.002236185517 | F41: 38 | G41: Indonésia | H41: 27213.4654 | I41: 0.00198959518 | K41: 38 | L41: Moçambique | M41: 72180.218 | N41: 0.002820667394 | O41: -2830.138
A42: 39 | B42: Finlândia | C42: 26543.5256 | D42: 0.002228324706 | F42: 39 | G42: Colômbia | H42: 27053.9976 | I42: 0.00197793638 | K42: 39 | L42: Argélia | M42: 69559.0188 | N42: 0.00271823585 | O42: 62313.5732
A43: 40 | B43: Roménia | C43: 26125.933 | D43: 0.002193267875 | F43: 40 | G43: Guiana | H43: 26314.8304 | I43: 0.001923895357 | K43: 40 | L43: Costa Rica | M43: 69133.0088 | N43: 0.002701588179 | O43: -62116.2636
A44: 41 | B44: São Tomé e Príncipe | C44: 25600.0838 | D44: 0.002149122919 | F44: 41 | G44: Namíbia | H44: 22951.0874 | I44: 0.001677969792 | K44: 41 | L44: Bulgária | M44: 65614.0898 | N44: 0.002564075432 | O44: -42910.8238
A45: 42 | B45: Tunísia | C45: 22328.4166 | D45: 0.001874466984 | F45: 42 | G45: Uganda | H45: 21937.9234 | I45: 0.001603896675 | K45: 42 | L45: Luxemburgo | M45: 59259.727 | N45: 0.002315758865 | O45: 43115.8678
A46: 43 | B46: Jordânia | C46: 22280.5828 | D46: 0.001870451344 | F46: 43 | G46: Hungria | H46: 21251.8398 | I46: 0.001553736631 | K46: 43 | L46: Checa, República | M46: 58873.9418 | N46: 0.002300683104 | O46: -5599.6166
A47: 44 | B47: Noruega | C47: 20947.463 | D47: 0.001758536151 | F47: 44 | G47: Costa do Marfim | H47: 19064.0016 | I47: 0.001393782274 | K47: 44 | L47: Austrália | M47: 48856.0826 | N47: 0.001909203976 | O47: 21350.2894
A48: 45 | B48: Índia | C48: 20089.554 | D48: 0.001686514828 | F48: 45 | G48: México | H48: 18983.4984 | I48: 0.00138789663 | K48: 45 | L48: Cuba | M48: 42448.6858 | N48: 0.001658814939 | O48: -32701.5998
A49: 46 | B49: Argentina | C49: 16532.1938 | D49: 0.001387875011 | F49: 46 | G49: Peru | H49: 17829.556 | I49: 0.001303531107 | K49: 46 | L49: Equador | M49: 39708.8152 | N49: 0.001551745941 | O49: -33838.43
A50: 47 | B50: Hungria | C50: 16344.9468 | D50: 0.001372155656 | F50: 47 | G50: Senegal | H50: 17800.6942 | I50: 0.001301421001 | K50: 47 | L50: Hungria | M50: 37596.7866 | N50: 0.001469211828 | O50: -4906.893
A51: 48 | B51: Coreia, República da | C51: 15411.4712 | D51: 0.001293790529 | F51: 48 | G51: Nova Zelânda | H51: 17277.3966 | I51: 0.001263162354 | K51: 48 | L51: Paraguai | M51: 35498.9604 | N51: 0.001387232719 | O51: -32443.6084
A52: 49 | B52: Síria, República Árabe da | C52: 14814.5936 | D52: 0.001243682751 | F52: 49 | G52: Mauritânia | H52: 15880.134 | I52: 0.001161007523 | K52: 49 | L52: Colômbia | M52: 34419.8644 | N52: 0.001345063674 | O52: -19688.1308
A53: 50 | B53: Macau | C53: 14414.76 | D53: 0.001210116784 | F53: 50 | G53: Japão | H53: 15187.0918 | I53: 0.001110338731 | K53: 50 | L53: Arábia Saudita | M53: 33903.6678 | N53: 0.00132489168 | O53: 33861.2982
A54: 51 | B54: Nigéria | C54: 13908.9392 | D54: 0.00116765321 | F54: 51 | G54: Tanzânia, República Unida da | H54: 14827.4052 | I54: 0.001084041797 | K54: 51 | L54: Noruega | M54: 33045.5384 | N54: 0.001291357594 | O54: 8849.3876
A55: 52 | B55: HongKong | C55: 13477.7464 | D55: 0.001131454643 | F55: 52 | G55: Lituânia | H55: 13753.3696 | I55: 0.001005518315 | K55: 52 | L55: Tunísia | M55: 31534.6278 | N55: 0.001232314045 | O55: 13122.2054
A56: 53 | B56: Eslováquia | C56: 12649.128 | D56: 0.001061892262 | F56: 53 | G56: Austrália | H56: 13752.8966 | I56: 0.001005483733 | K56: 53 | L56: Emirados Árabes Unidos | M56: 30860.608 | N56: 0.001205974617 | O56: 29774.812
A57: 54 | B57: Iraque | C57: 12344.5656 | D57: 0.001036324297 | F57: 54 | G57: Angola | H57: 13575.3556 | I57: 0.0009925035888 | K57: 54 | L57: Indonésia | M57: 30008.2082 | N57: 0.001172664433 | O57: -24418.7226
A58: 55 | B58: Lituânia | C58: 12198.2122 | D58: 0.001024037953 | F58: 55 | G58: Tailândia | H58: 12778.7386 | I58: 0.0009342623718 | K58: 55 | L58: Guiné-Bissau | M58: 28890.5244 | N58: 0.001128987449 | O58: 28106.424
A59: 56 | B59: Ucrânia | C59: 12162.6616 | D59: 0.001021053486 | F59: 56 | G59: Estónia | H59: 12703.317 | I59: 0.0009287482467 | K59: 56 | L59: Costa do Marfim | M59: 27913.8062 | N59: 0.001090819135 | O59: -10214.197
A60: 57 | B60: Bulgária | C60: 11351.633 | D60: 0.0009529677652 | F60: 57 | G60: Camarões | H60: 12569.7866 | I60: 0.0009189857473 | K60: 57 | L60: Senegal | M60: 26948.4168 | N60: 0.00105309353 | O60: -8652.9716
A61: 58 | B61: Líbano | C61: 10687.9884 | D61: 0.0008972549077 | F61: 58 | G61: Suazilândia | H61: 12224.135 | I61: 0.000893714921 | K61: 58 | L61: Coreia, República da | M61: 26710.5172 | N61: 0.00104379686 | O61: 4112.4252
A62: 59 | B62: Letónia | C62: 9800.1392 | D62: 0.0008227201102 | F62: 59 | G62: Noruega | H62: 12098.0754 | I62: 0.0008844986169 | K62: 59 | L62: Guiana | M62: 26493.575 | N62: 0.001035319167 | O62: -26136.0858
A63: 60 | B63: Dominicana, República | C63: 9601.4676 | D63: 0.0008060416613 | F63: 60 | G63: Maurícias | H63: 11950.882 | I63: 0.0008737372061 | K63: 60 | L63: São Tomé e Príncipe | M63: 26291.8336 | N63: 0.001027435491 | O63: 24908.334
A64: 61 | B64: Eslovénia | C64: 9379.3856 | D64: 0.0007873979131 | F64: 61 | G64: Sérvia | H64: 11340.9218 | I64: 0.0008291425962 | K64: 61 | L64: Lituânia | M64: 25951.5818 | N64: 0.00101413909 | O64: -1555.1574
A65: 62 | B65: Senegal | C65: 9147.7226 | D65: 0.0007679498415 | F65: 62 | G65: Coreia, República da | H65: 11299.046 | I65: 0.0008260810277 | K65: 62 | L65: Peru | M65: 24507.7194 | N65: 0.0009577156584 | O65: -11151.3926
A66: 63 | B66: Croácia | C66: 9135.6852 | D66: 0.0007669393037 | F66: 63 | G66: Eslovénia | H66: 11257.2122 | I66: 0.0008230225298 | K66: 63 | L66: Namíbia | M66: 23596.387 | N66: 0.0009221024993 | O66: -22305.7878
A67: 64 | B67: Líbia, Jamahira Árabe da | C67: 8920.7068 | D67: 0.0007488919016 | F67: 64 | G67: Islândia | H67: 9607.7332 | I67: 0.0007024279851 | K67: 64 | L67: Uganda | M67: 22758.7568 | N67: 0.0008893694838 | O67: -21117.09
A68: 65 | B68: Costa do Marfim | C68: 8849.8046 | D68: 0.0007429396733 | F68: 65 | G68: Belize | H68: 9508.505 | I68: 0.0006951733431 | K68: 65 | L68: Jordânia | M68: 22439.695 | N68: 0.0008769011477 | O68: 22121.4706
A69: 66 | B69: Chipre | C69: 8526.1004 | D69: 0.0007157647577 | F69: 66 | G69: Tunísia | H69: 9206.2112 | I69: 0.0006730724354 | K69: 66 | L69: Nova Zelânda | M69: 21055.049 | N69: 0.0008227917819 | O69: -13499.7442
A70: 67 | B70: Malta | C70: 8505.7752 | D70: 0.0007140584605 | F70: 67 | G70: Israel | H70: 9016.7664 | I70: 0.0006592219957 | K70: 67 | L70: Tailândia | M70: 20786.9 | N70: 0.0008123130224 | O70: -4770.5772
A71: 68 | B71: Gibraltar | C71: 8275.2764 | D71: 0.0006947081233 | F71: 68 | G71: Filipinas | H71: 8922.7232 | I71: 0.0006523464327 | K71: 68 | L71: Eslovénia | M71: 20636.5978 | N71: 0.0008064394947 | O71: -1877.8266
A72: 69 | B72: Tailândia | C72: 8008.1614 | D72: 0.000672283862 | F72: 69 | G72: Paquistão | H72: 8369.2532 | I72: 0.0006118818601 | K72: 69 | L72: Estónia | M72: 20353.1678 | N72: 0.0007953635824 | O72: -5053.4662
A73: 70 | B73: Estónia | C73: 7649.8508 | D73: 0.0006422037447 | F73: 70 | G73: Egito | H73: 8351.842 | I73: 0.0006106089153 | K73: 70 | L73: Camarões | M73: 19928.2108 | N73: 0.0007787570608 | O73: -5211.3624
A74: 71 | B74: Colômbia | C74: 7365.8668 | D74: 0.0006183633336 | F74: 71 | G74: Guatemala | H74: 8344.9592 | I74: 0.0006101057091 | K74: 71 | L74: Nigéria | M74: 18647.3464 | N74: 0.000728703285 | O74: 9170.532
A75: 72 | B75: Camarões | C75: 7358.4242 | D75: 0.0006177385285 | F75: 72 | G75: Luxemburgo | H75: 8071.9296 | I75: 0.0005901443272 | K75: 72 | L75: Mauritânia | M75: 18289.693 | N75: 0.0007147268616 | O75: -13470.575
A76: 73 | B76: Território Palestiniano Ocupado | C76: 7214.1248 | D76: 0.0006056246171 | F76: 73 | G76: Bangladesh | H76: 7873.7222 | I76: 0.0005756532478 | K76: 73 | L76: Eslováquia | M76: 16870.1714 | N76: 0.0006592546228 | O76: 8428.0846
A77: 74 | B77: Geórgia | C77: 6993.0806 | D77: 0.000587067992 | F77: 74 | G77: Moldava, República de | H77: 7870.6254 | I77: 0.0005754268386 | K77: 74 | L77: Maurícias | M77: 16714.972 | N77: 0.0006531897217 | O77: -7186.792
A78: 75 | B78: Peru | C78: 6678.1634 | D78: 0.0005606307437 | F78: 75 | G78: Panamá | H78: 7322.8628 | I78: 0.000535379538 | K78: 75 | L78: Síria, República Árabe da | M78: 15864.7872 | N78: 0.000619966096 | O78: 13764.4
A79: 76 | B79: Kuwait | C79: 6233.815 | D79: 0.000523327767 | F79: 76 | G79: Malásia | H79: 7168.9562 | I79: 0.0005241273206 | K79: 76 | L79: Letónia | M79: 15780.7222 | N79: 0.0006166809936 | O79: 3819.5562
A80: 77 | B80: Taiwan | C80: 5977.9468 | D80: 0.0005018476727 | F80: 77 | G80: Honduras | H80: 6887.2594 | I80: 0.0005035322737 | K80: 77 | L80: HongKong | M80: 15643.2774 | N80: 0.0006113099089 | O80: 11312.2154
A81: 78 | B81: Gana | C81: 5824.3976 | D81: 0.0004889572421 | F81: 78 | G81: Suriname | H81: 6334.9824 | I81: 0.0004631549222 | K81: 78 | L81: Sérvia | M81: 15357.0258 | N81: 0.0006001237338 | O81: -7324.8178
A82: 79 | B82: Belarus | C82: 5736.8652 | D82: 0.0004816089112 | F82: 79 | G82: Gana | H82: 6241.166 | I82: 0.0004562959407 | K82: 79 | L82: Tanzânia, República Unida da | M82: 15245.8276 | N82: 0.000595778317 | O82: -14408.9828
A83: 80 | B83: Vietname | C83: 5479.5006 | D83: 0.0004600031944 | F83: 80 | G83: Quénia | H83: 6167.4786 | I83: 0.0004509086041 | K83: 80 | L83: Macau | M83: 14427.1036 | N83: 0.0005637841203 | O83: 14402.4164
A84: 81 | B84: Guatemala | C84: 5397.603 | D84: 0.000453127904 | F84: 81 | G84: Letónia | H84: 5980.583 | I84: 0.0004372445382 | K84: 81 | L84: Suazilândia | M84: 14006.9532 | N84: 0.0005473654315 | O84: -10441.3168
A85: 82 | B85: Irão, República Islâmica do | C85: 5106.6698 | D85: 0.0004287041086 | F85: 82 | G85: Zimbabwe | H85: 5829.5594 | I85: 0.0004262030989 | K85: 82 | L85: Guatemala | M85: 13742.5622 | N85: 0.0005370335277 | O85: -2947.3562
A86: 83 | B86: Cuba | C86: 4873.543 | D86: 0.0004091331513 | F86: 83 | G86: Etiópia | H86: 5803.221 | I86: 0.0004242774804 | K86: 83 | L86: Croácia | M86: 13661.654 | N86: 0.0005338717871 | O86: 4609.7164
A87: 84 | B87: Maurícias | C87: 4764.09 | D87: 0.0003999445895 | F87: 84 | G87: Suíça | H87: 5223.3622 | I87: 0.0003818836045 | K87: 84 | L87: Iraque | M87: 12346.4052 | N87: 0.0004824743336 | O87: 12342.726
A88: 85 | B88: Andorra | C88: 4423.9826 | D88: 0.000371392628 | F88: 85 | G88: Malavi | H88: 4793.2686 | I88: 0.0003504391655 | K88: 85 | L88: Líbano | M88: 12070.5288 | N88: 0.0004716936018 | O88: 9305.448
A89: 86 | B89: Sudão | C89: 4410.8422 | D89: 0.0003702894935 | F89: 86 | G89: Congo | H89: 4791.522 | I89: 0.0003503114704 | K89: 86 | L89: Gana | M89: 12065.5636 | N89: 0.0004714995711 | O89: -416.7684
A90: 87 | B90: Singapura | C90: 4119.5518 | D90: 0.0003458357113 | F90: 87 | G90: Nigéria | H90: 4738.4072 | I90: 0.0003464282108 | K90: 87 | L90: Filipinas | M90: 11983.2312 | N90: 0.0004682821755 | O90: -5862.2152
A91: 88 | B91: Catar | C91: 4025.621 | D91: 0.0003379502357 | F91: 88 | G91: Croácia | H91: 4525.9688 | I91: 0.0003308966932 | K91: 88 | L91: Paquistão | M91: 11793.1836 | N91: 0.0004608554722 | O91: -4945.3228
A92: 89 | B92: Sérvia | C92: 4016.104 | D92: 0.0003371512851 | F92: 89 | G92: Camboja | H92: 4265.0612 | I92: 0.000311821559 | K92: 89 | L92: Islândia | M92: 11279.933 | N92: 0.0004407986024 | O92: -7935.5334
A93: 90 | B93: Omã | C93: 3949.3182 | D93: 0.0003315446279 | F93: 90 | G93: Eslováquia | H93: 4221.0434 | I93: 0.0003086033874 | K93: 90 | L93: Malásia | M93: 10825.2456 | N93: 0.0004230302725 | O93: -3512.6668
A94: 91 | B94: Nova Zelânda | C94: 3777.6524 | D94: 0.0003171333116 | F94: 91 | G94: Laos, República Democrática Popular do | H94: 4211.0264 | I94: 0.0003078710376 | K94: 91 | L94: Dominicana, República | M94: 10788.496 | N94: 0.0004215941672 | O94: 8414.4392
A95: 92 | B95: Malásia | C95: 3656.2894 | D95: 0.0003069449073 | F95: 92 | G95: Macedónia, Antiga República jugoslava da | H95: 4200.1808 | I95: 0.0003070781083 | K95: 92 | L95: Moldava, República de | M95: 10779.412 | N95: 0.0004212391815 | O95: -4961.8388
A96: 93 | B96: Costa Rica | C96: 3508.3726 | D96: 0.0002945273157 | F96: 93 | G96: Madagáscar | H96: 4084.4922 | I96: 0.0002986200352 | K96: 93 | L96: Panamá | M96: 10665.4504 | N96: 0.0004167857761 | O96: -3980.2752
A97: 94 | B97: Paquistão | C97: 3423.9304 | D97: 0.0002874384066 | F97: 94 | G97: Mali | H97: 4003.5872 | I97: 0.000292705015 | K97: 94 | L97: Chipre | M97: 10365.2266 | N97: 0.0004050535937 | O97: 6686.9742
A98: 95 | B98: Panamá | C98: 3342.5876 | D98: 0.0002806096916 | F98: 95 | G98: Sri Lanca | H98: 3938.0898 | I98: 0.000287916455 | K98: 95 | L98: Taiwan | M98: 9765.4912 | N98: 0.0003816170604 | O98: 2190.4024
A99: 96 | B99: Quénia | C99: 3100.3966 | D99: 0.0002602777961 | F99: 96 | G99: Fiji, Ilhas | H99: 3840.3568 | I99: 0.0002807711281 | K99: 96 | L99: Belize | M99: 9511.2382 | N99: 0.0003716813305 | O99: -9505.7718
A100: 97 | B100: Filipinas | C100: 3060.508 | D100: 0.0002569291545 | F100: 97 | G100: Taiwan | H100: 3787.5444 | I100: 0.0002769099772 | K100: 97 | L100: Quénia | M100: 9267.8752 | N100: 0.0003621711614 | O100: -3067.082
A101: 98 | B101: Burquina Faso | C101: 3000.44 | D101: 0.0002518864556 | F101: 98 | G101: Argélia | H101: 3622.7228 | I101: 0.0002648597566 | K101: 98 | L101: Bangladesh | M101: 9211.7084 | N101: 0.0003599762683 | O101: -6535.736
A102: 99 | B102: Equador | C102: 2935.1926 | D102: 0.0002464089468 | F102: 99 | G102: Congo, República Democrática do | H102: 3603.5678 | I102: 0.0002634593214 | K102: 99 | L102: Malta | M102: 9133.8702 | N102: 0.0003569344976 | O102: 7877.6802
A103: 100 | B103: Moldava, República de | C103: 2908.7866 | D103: 0.0002441921674 | F103: 100 | G103: Myanmar | H103: 3537.2152 | I103: 0.0002586082371 | K103: 100 | L103: Líbia, Jamahira Árabe da | M103: 8926.703 | N103: 0.0003488387924 | O103: 8914.7106
A104: 101 | B104: Uruguai | C104: 2850.3662 | D104: 0.0002392877842 | F104: 101 | G104: Nicarágua | H104: 3329.3202 | I104: 0.0002434088906 | K104: 101 | L104: Etiópia | M104: 8473.4994 | N104: 0.0003311284467 | O104: -3132.9426
A105: 102 | B105: Albânia | C105: 2833.3982 | D105: 0.0002378633233 | F105: 102 | G105: Papuásia-Nova Guiné | H105: 2870.9216 | I105: 0.0002098950536 | K105: 102 | L105: Honduras | M105: 8442.7258 | N105: 0.0003299258722 | O105: -5331.793
A106: 103 | B106: Timor-Leste | C106: 2808.1798 | D106: 0.0002357462427 | F106: 103 | G106: Gabão | H106: 2514.3086 | I106: 0.0001838228318 | K106: 103 | L106: Gibraltar | M106: 8282.946 | N106: 0.0003236819776 | O106: 8267.6068
A107: 104 | B107: Indonésia | C107: 2794.7428 | D107: 0.0002346182087 | F107: 104 | G107: El Salvador | H107: 2496.9572 | I107: 0.000182554259 | K107: 104 | L107: Território Palestiniano Ocupado | M107: 7214.61 | N107: 0.0002819334126 | O107: 7213.6396
A108: 105 | B108: Etiópia | C108: 2670.2784 | D108: 0.0002241694423 | F108: 105 | G108: HongKong | H108: 2165.531 | I108: 0.0001583234615 | K108: 105 | L108: Geórgia | M108: 7121.1156 | N108: 0.000278279827 | O108: 6865.0456
A109: 106 | B109: Venezuela | C109: 2626.622 | D109: 0.0002205044946 | F109: 106 | G109: Reino Unido (Irlanda do Norte) pós-2020 | H109: 2029.1752 | I109: 0.0001483543951 | K109: 106 | L109: Kuwait | M109: 7042.6458 | N109: 0.0002752133746 | O109: 5424.9842
A110: 107 | B110: Mauritânia | C110: 2409.559 | D110: 0.0002022820906 | F110: 107 | G110: Centro-Africana, República | H110: 2021.7964 | I110: 0.000147814926 | K110: 107 | L110: Congo | M110: 6827.2468 | N110: 0.0002667959861 | O110: -2755.7972
A111: 108 | B111: Arménia | C111: 2340.1142 | D111: 0.0001964522108 | F111: 108 | G111: Chade | H111: 1938.2016 | I111: 0.0001417032526 | K111: 108 | L111: Suriname | M111: 6797.4636 | N111: 0.0002656321145 | O111: -5872.5012
A112: 109 | B112: Gabão | C112: 2315.897 | D112: 0.0001944191808 | F112: 109 | G112: Chipre | H112: 1839.1262 | I112: 0.0001344597819 | K112: 109 | L112: Belarus | M112: 6087.2906 | N112: 0.0002378798871 | O112: 5386.4398
A113: 110 | B113: Guiné | C113: 2125.2368 | D113: 0.0001784132877 | F113: 110 | G113: Togo | H113: 1729.6156 | I113: 0.0001264533866 | K113: 110 | L113: Zimbabwe | M113: 5903.9106 | N113: 0.000230713741 | O113: -5755.2082
A114: 111 | B114: Congo | C114: 2035.7248 | D114: 0.0001708987697 | F114: 111 | G114: Benim | H114: 1530.5358 | I114: 0.0001118985255 | K114: 111 | L114: Mali | M114: 5640.4516 | N114: 0.000220418258 | O114: -2366.7228
A115: 112 | B115: Seychelles | C115: 1828.658 | D115: 0.0001535155451 | F115: 112 | G115: Líbano | H115: 1382.5404 | I115: 0.0001010784799 | K115: 112 | L115: Singapura | M115: 5318.2332 | N115: 0.0002078265679 | O115: 2920.8704
A116: 113 | B116: Suazilândia | C116: 1782.8182 | D116: 0.0001496673012 | F116: 113 | G116: Cabo Verde | H116: 1245.4128 | I116: 9.105298675e-05 | K116: 113 | L116: Irão, República Islâmica do | M116: 5298.0708 | N116: 0.0002070386592 | O116: 4915.2688
A117: 114 | B117: Islândia | C117: 1672.1998 | D117: 0.0001403809044 | F117: 114 | G117: Singapura | H117: 1198.6814 | I117: 8.763642194e-05 | K117: 114 | L117: Camboja | M117: 5155.2654 | N117: 0.0002014580923 | O117: -3374.857
A118: 115 | B118: Bolívia | C118: 1661.4018 | D118: 0.000139474414 | F118: 115 | G118: Dominicana, República | H118: 1187.0284 | I118: 8.678446309e-05 | K118: 115 | L118: Sri Lanca | M118: 5084.7884 | N118: 0.0001987039835 | O118: -2791.3912
A119: 116 | B119: Mali | C119: 1636.8644 | D119: 0.0001374145032 | F119: 116 | G119: Seychelles | H119: 1094.6802 | I119: 8.003282265e-05 | K119: 116 | L119: Macedónia, Antiga República jugoslava da | M119: 4978.3928 | N119: 0.0001945462432 | O119: -3421.9688
A120: 117 | B120: Honduras | C120: 1555.4664 | D120: 0.0001305811542 | F120: 117 | G120: Serra Leoa | H120: 1070.5168 | I120: 7.826621985e-05 | K120: 117 | L120: Congo, República Democrática do | M120: 4969.0272 | N120: 0.0001941802531 | O120: -2238.1084
A121: 118 | B121: Paraguai | C121: 1527.676 | D121: 0.0001282481546 | F121: 118 | G121: Síria, República Árabe da | H121: 1050.1936 | I121: 7.678037671e-05 | K121: 118 | L121: Gabão | M121: 4830.2056 | N121: 0.0001887553656 | O121: -198.4116
A122: 119 | B122: Cazaquistão | C122: 1442.6386 | D122: 0.0001211092785 | F122: 119 | G122: Burquina Faso | H122: 994.137 | I122: 7.268204011e-05 | K122: 119 | L122: Malavi | M122: 4801.497 | N122: 0.0001876334874 | O122: -4785.0402
A123: 120 | B123: Benim | C123: 1404.4874 | D123: 0.0001179064914 | F123: 120 | G123: Venezuela | H123: 938.253 | I123: 6.859632242e-05 | K123: 120 | L123: Nicarágua | M123: 4535.666 | N123: 0.0001772453111 | O123: -2122.9744
A124: 121 | B124: São Bartolomeu | C124: 1395.5314 | D124: 0.0001171546367 | F124: 121 | G124: Faroé, Ilhas | H124: 873.6002 | I124: 6.386951173e-05 | K124: 121 | L124: Andorra | M124: 4453.7392 | N124: 0.0001740437656 | O124: 4394.226
A125: 122 | B125: Guiné Equatorial | C125: 1393.2284 | D125: 0.0001169613002 | F125: 122 | G125: Kuwait | H125: 808.8308 | I125: 5.913417633e-05 | K125: 122 | L125: Sudão | M125: 4431.3248 | N125: 0.0001731678529 | O125: 4390.3596
A126: 123 | B126: Iémen | C126: 1386.267 | D126: 0.0001163768918 | F126: 123 | G126: Turquemenistão | H126: 804.7756 | I126: 5.883769786e-05 | K126: 123 | L126: Madagáscar | M126: 4362.5368 | N126: 0.000170479747 | O126: -3806.4476
A127: 124 | B127: Congo, República Democrática do | C127: 1365.4594 | D127: 0.0001146300971 | F127: 124 | G127: Gâmbia | H127: 751.3528 | I127: 5.49319202e-05 | K127: 124 | L127: Omã | M127: 4347.6534 | N127: 0.0001698981317 | O127: 3550.983
A128: 125 | B128: Bangladesh | C128: 1337.9862 | D128: 0.0001123237264 | F128: 125 | G128: Iémen | H128: 726.202 | I128: 5.30931279e-05 | K128: 125 | L128: Laos, República Democrática Popular do | M128: 4227.021 | N128: 0.000165184044 | O128: -4195.0318
A129: 126 | B129: Jamaica | C129: 1333.1998 | D129: 0.0001119219089 | F129: 126 | G129: Zâmbia | H129: 694.9132 | I129: 5.080558221e-05 | K129: 126 | L129: Catar | M129: 4043.8844 | N129: 0.0001580274095 | O129: 4007.3576
A130: 127 | B130: Reino Unido (Irlanda do Norte) pós-2020 | C130: 1278.7264 | D130: 0.0001073488757 | F130: 127 | G130: São Tomé e Príncipe | H130: 691.7498 | I130: 5.057430385e-05 | K130: 127 | L130: Burquina Faso | M130: 3994.577 | N130: 0.0001561005689 | O130: 2006.303
A131: 128 | B131: Nicarágua | C131: 1206.3458 | D131: 0.000101272536 | F131: 128 | G131: Malta | H131: 628.095 | I131: 4.592045763e-05 | K131: 128 | L131: Myanmar | M131: 3973.7446 | N131: 0.0001552864778 | O131: -3100.6858
A132: 129 | B132: El Salvador | C132: 1197.894 | D132: 0.0001005630087 | F132: 129 | G132: Emirados Árabes Unidos | H132: 542.898 | I132: 3.969164634e-05 | K132: 129 | L132: Fiji, Ilhas | M132: 3851.1788 | N132: 0.0001504968365 | O132: -3829.5348
A133: 130 | B133: Togo | C133: 1176.1502 | D133: 9.873762019e-05 | F133: 130 | G133: Bolívia | H133: 526.4276 | I133: 3.848748406e-05 | K133: 130 | L133: El Salvador | M133: 3694.8512 | N133: 0.0001443878474 | O133: -1299.0632
A134: 131 | B134: Sri Lanca | C134: 1146.6986 | D134: 9.62651631e-05 | F134: 131 | G134: Timor-Leste | H134: 508.2238 | I134: 3.715659171e-05 | K134: 131 | L134: Venezuela | M134: 3564.875 | N134: 0.0001393086216 | O134: 1688.369
A135: 132 | B135: Azerbaijão | C135: 1033.3848 | D135: 8.675248781e-05 | F135: 132 | G135: Bósnia-Herzegovina | H135: 500.896 | I135: 3.662085121e-05 | K135: 132 | L135: Timor-Leste | M135: 3316.4036 | N135: 0.0001295988258 | O135: 2299.956
A136: 133 | B136: Burundi | C136: 904.8058 | D136: 7.595830143e-05 | F136: 133 | G136: Gronelândia | H136: 495.2564 | I136: 3.620853618e-05 | K136: 133 | L136: Reino Unido (Irlanda do Norte) pós-2020 | M136: 3307.9016 | N136: 0.0001292665836 | O136: -750.4488
A137: 134 | B137: Camboja | C137: 890.2042 | D137: 7.473249946e-05 | F137: 134 | G137: Samoa Americana | H137: 410.8046 | I137: 3.003420697e-05 | K137: 134 | L137: Benim | M137: 2935.0232 | N137: 0.0001146951958 | O137: -126.0484
A138: 135 | B138: Montenegro | C138: 856.4244 | D138: 7.189669068e-05 | F138: 135 | G138: Omã | H138: 398.3352 | I138: 2.912256056e-05 | K138: 135 | L138: Albânia | M138: 2930.0998 | N138: 0.0001145027986 | O138: 2736.6966
A139: 136 | B139: Bermudas | C139: 850.8556 | D139: 7.142919082e-05 | F139: 136 | G139: Guiné-Bissau | H139: 392.0502 | I139: 2.866305988e-05 | K139: 136 | L139: Seychelles | M139: 2923.3382 | N139: 0.000114238568 | O139: 733.9778
A140: 137 | B140: Ruanda | C140: 829.087 | D140: 6.960172035e-05 | F140: 137 | G140: Belarus | H140: 350.4254 | I140: 2.561984211e-05 | K140: 137 | L140: Togo | M140: 2905.7658 | N140: 0.0001135518716 | O140: -553.4654
A141: 138 | B141: Ceuta | C141: 826.6862 | D141: 6.940017357e-05 | F141: 138 | G141: Usbequistão | H141: 287.6646 | I141: 2.103135684e-05 | K141: 138 | L141: Papuásia-Nova Guiné | M141: 2874.66 | N141: 0.0001123363153 | O141: -2867.1832
A142: 139 | B142: Ceuta e Melilha | C142: 826.6862 | D142: 6.940017357e-05 | F142: 139 | G142: Irão, República Islâmica do | H142: 191.401 | I142: 1.399345881e-05 | K142: 139 | L142: Arménia | M142: 2359.5112 | N142: 9.220526747e-05 | O142: 2320.7172
A143: 140 | B143: Uganda | C143: 820.8334 | D143: 6.890883195e-05 | F143: 140 | G143: Jordânia | H143: 159.1122 | I143: 1.163280242e-05 | K143: 140 | L143: Guiné | M143: 2190.9582 | N143: 8.56185327e-05 | O143: 2059.5154
A144: 141 | B144: Barbados | C144: 786.448 | D144: 6.602218315e-05 | F144: 141 | G144: São Pedro e Miquelon | H144: 147.7212 | I144: 1.079999858e-05 | K144: 141 | L144: Bolívia | M144: 2187.8294 | N144: 8.549626507e-05 | O144: 1134.9742
A145: 142 | B145: Macedónia, Antiga República jugoslava da | C145: 778.212 | D145: 6.533077228e-05 | F145: 142 | G145: Geórgia | H145: 128.035 | I145: 9.360726948e-06 | K145: 142 | L145: Iémen | M145: 2112.469 | N145: 8.255132214e-05 | O145: 660.065
A146: 143 | B146: Niger | C146: 763.8452 | D146: 6.412468173e-05 | F146: 143 | G146: Albânia | H146: 96.7016 | I146: 7.069920514e-06 | K146: 143 | L146: Centro-Africana, República | M146: 2110.6384 | N146: 8.247978573e-05 | O146: -1932.9544
A147: 144 | B147: Barém | C147: 752.9698 | D147: 6.321169365e-05 | F147: 144 | G147: Azerbaijão | H147: 96.2476 | I147: 7.036728262e-06 | K147: 144 | L147: Chade | M147: 1947.8506 | N147: 7.611834416e-05 | O147: -1928.5526
A148: 145 | B148: Turquemenistão | C148: 739.3476 | D148: 6.206811215e-05 | F148: 145 | G148: Maldivas | H148: 81.5646 | I148: 5.963244029e-06 | K148: 145 | L148: Serra Leoa | M148: 1558.8604 | N148: 6.091733751e-05 | O148: -582.1732
A149: 146 | B149: Namíbia | C149: 645.2996 | D149: 5.417279767e-05 | F149: 146 | G149: Afeganistão | H149: 81.3718 | I149: 5.949148288e-06 | K149: 146 | L149: Turquemenistão | M149: 1544.1232 | N149: 6.03414354e-05 | O149: -65.428
A150: 147 | B150: Trindade e Tobago | C150: 631.2306 | D150: 5.299170738e-05 | F150: 147 | G150: Santa Helena | H150: 66.474 | I150: 4.859959879e-06 | K150: 147 | L150: Cazaquistão | M150: 1448.6582 | N150: 5.661084245e-05 | O150: 1436.619
A151: 148 | B151: Aruba | C151: 527.4078 | D151: 4.427580001e-05 | F151: 148 | G151: Guiné | H151: 65.7214 | I151: 4.804936775e-06 | K151: 148 | L151: Guiné Equatorial | M151: 1399.2148 | N151: 5.467868721e-05 | O151: 1387.242
A152: 149 | B152: São Martinho (parte holandesa) | C152: 508.4474 | D152: 4.268407748e-05 | F152: 149 | G152: Tajiquistão | H152: 53.4888 | I152: 3.910602972e-06 | K152: 149 | L152: São Bartolomeu | M152: 1395.5314 | N152: 5.453474686e-05 | O152: 1395.5314
A153: 150 | B153: Serra Leoa | C153: 488.3436 | D153: 4.09963667e-05 | F153: 150 | G153: Ruanda | H153: 47.1688 | I153: 3.448543424e-06 | K153: 150 | L153: Jamaica | M153: 1338.002 | N153: 5.228660592e-05 | O153: 1328.3976
A154: 151 | B154: Bósnia-Herzegovina | C154: 478.3422 | D154: 4.015675078e-05 | F154: 151 | G154: São Marino | H154: 41.3718 | I154: 3.024720765e-06 | K154: 151 | L154: Gâmbia | M154: 1198.5586 | N154: 4.683741967e-05 | O154: -304.147
A155: 152 | B155: Suriname | C155: 462.4812 | D155: 3.882522238e-05 | F155: 152 | G155: Falkland Ilhas (Malvinas) | H155: 38.0622 | I155: 2.782753632e-06 | K155: 152 | L155: Azerbaijão | M155: 1129.6324 | N155: 4.414391319e-05 | O155: 937.1372
A156: 153 | B156: Curaçau | C156: 451.6598 | D156: 3.791676759e-05 | F156: 153 | G156: Andorra | H156: 29.7566 | I156: 2.175525501e-06 | K156: 153 | L156: Bósnia-Herzegovina | M156: 979.2382 | N156: 3.826679023e-05 | O156: -22.5538
A157: 154 | B157: Gâmbia | C157: 447.2058 | D157: 3.754285501e-05 | F157: 154 | G157: Kiribati | H157: 28.0754 | I157: 2.052611812e-06 | K157: 154 | L157: Burundi | M157: 904.9198 | N157: 3.53625667e-05 | O157: 904.6918
A158: 155 | B158: Myanmar | C158: 436.5294 | D158: 3.664657294e-05 | F158: 155 | G158: Arábia Saudita | H158: 21.1848 | I158: 1.548835305e-06 | K158: 155 | L158: Ruanda | M158: 876.2558 | N158: 3.42424314e-05 | O158: 781.9182
A159: 156 | B159: Polinésia Francesa | C159: 421.137 | D159: 3.535438344e-05 | F159: 156 | G159: Sudão | H159: 20.4826 | I159: 1.49749698e-06 | K159: 156 | L159: Faroé, Ilhas | M159: 874.2746 | N159: 3.416500983e-05 | O159: -872.9258
A160: 157 | B160: Tanzânia, República Unida da | C160: 418.4224 | D160: 3.512649321e-05 | F160: 157 | G160: Arménia | H160: 19.397 | I160: 1.418128017e-06 | K160: 157 | L160: Montenegro | M160: 869.9738 | N160: 3.399694264e-05 | O160: 842.875
A161: 158 | B161: Libéria | C161: 375.6416 | D161: 3.153505192e-05 | F161: 158 | G161: Catar | H161: 18.2634 | I161: 1.335249741e-06 | K161: 158 | L161: Bermudas | M161: 851.214 | N161: 3.326384488e-05 | O161: 850.4972
A162: 159 | B162: Nova Caledónia | C162: 352.4566 | D162: 2.95886749e-05 | F162: 159 | G162: Quirguizistão | H162: 17.4752 | I162: 1.277623896e-06 | K162: 159 | L162: Ceuta | M162: 826.6862 | N162: 3.230534451e-05 | O162: 826.6862
A163: 160 | B163: Haiti | C163: 311.6872 | D163: 2.616609033e-05 | F163: 160 | G163: Montenegro | H163: 13.5494 | I163: 9.90605957e-07 | K163: 160 | L163: Ceuta e Melilha | M163: 826.6862 | N163: 3.230534451e-05 | O163: 826.6862
A164: 161 | B164: Antígua e Barbuda | C164: 297.9746 | D164: 2.501491976e-05 | F164: 161 | G164: Macau | H164: 12.3436 | I164: 9.024490893e-07 | K164: 161 | L164: Barbados | M164: 796.8214 | N164: 3.11382842e-05 | O164: 776.0746
A165: 162 | B165: Comores | C165: 290.0546 | D165: 2.435003703e-05 | F165: 162 | G165: Barbados | H165: 10.3734 | I165: 7.584064117e-07 | K165: 162 | L165: Zâmbia | M165: 773.6308 | N165: 3.023203909e-05 | O165: -616.1956
A166: 163 | B166: Madagáscar | C166: 278.0446 | D166: 2.334179947e-05 | F166: 163 | G166: Jibuti | H166: 9.3722 | I166: 6.852079908e-07 | K166: 163 | L166: Niger | M166: 763.9392 | N166: 2.985330956e-05 | O166: 763.7512
A167: 164 | B167: Somália | C167: 236.5634 | D167: 1.985945939e-05 | F167: 164 | G167: Antígua e Barbuda | H167: 9.2304 | I167: 6.748408952e-07 | K167: 164 | L167: Barém | M167: 757.6016 | N167: 2.960564805e-05 | O167: 748.338
A168: 165 | B168: Bahamas | C168: 201.3742 | D168: 1.690533171e-05 | F168: 165 | G168: Nepal | H168: 9.1538 | I168: 6.692406165e-07 | K168: 165 | L168: Trindade e Tobago | M168: 631.2306 | N168: 2.466730665e-05 | O168: 631.2306
A169: 166 | B169: Usbequistão | C169: 183.3836 | D169: 1.539502374e-05 | F169: 166 | G169: Kosovo | H169: 8.3722 | I169: 6.120973027e-07 | K169: 166 | L169: Aruba | M169: 527.5884 | N169: 2.061716407e-05 | O169: 527.2272
A170: 167 | B170: Guiana | C170: 178.7446 | D170: 1.500558043e-05 | F170: 167 | G170: Gibraltar | H170: 7.6696 | I170: 5.607297333e-07 | K170: 167 | L170: São Martinho (parte holandesa) | M170: 508.4502 | N170: 1.986927915e-05 | O170: 508.4446
A171: 168 | B171: São Marino | C171: 178.664 | D171: 1.499881407e-05 | F171: 168 | G171: Cazaquistão | H171: 6.0196 | I171: 4.400970979e-07 | K171: 168 | L171: Gronelândia | M171: 495.5014 | N171: 1.936326436e-05 | O171: -495.0114
A172: 169 | B172: Bonaire, Santo Eustáquio e Saba | C172: 134.0798 | D172: 1.125597765e-05 | F172: 169 | G172: Líbia, Jamahira Árabe da | H172: 5.9962 | I172: 4.383863078e-07 | K172: 169 | L172: Usbequistão | M172: 471.0482 | N172: 1.840767921e-05 | O172: -104.281
A173: 170 | B173: Maldivas | C173: 129.4228 | D173: 1.086502325e-05 | F173: 170 | G173: Guiné Equatorial | H173: 5.9864 | I173: 4.376698231e-07 | K173: 170 | L173: Curaçau | M173: 451.6598 | N173: 1.765001695e-05 | O173: 451.6598
A174: 171 | B174: Kosovo | C174: 127.1114 | D174: 1.067098159e-05 | F174: 171 | G174: Marshall, Ilhas | H174: 4.9928 | I174: 3.650270434e-07 | K174: 171 | L174: Polinésia Francesa | M174: 421.5208 | N174: 1.647224141e-05 | O174: 420.7532
A175: 172 | B175: Quirguizistão | C175: 118.0478 | D175: 9.91009383e-06 | F175: 172 | G175: Jamaica | H175: 4.8022 | I175: 3.510921463e-07 | K175: 172 | L175: Samoa Americana | M175: 410.8046 | N175: 1.605347244e-05 | O175: -410.8046
A176: 173 | B176: Santa Lúcia | C176: 114.8238 | D176: 9.639439548e-06 | F176: 173 | G176: Barém | H176: 4.6318 | I176: 3.38634085e-07 | K176: 173 | L176: Libéria | M176: 376.6062 | N176: 1.471706318e-05 | O176: 374.677
A177: 174 | B177: Afeganistão | C177: 109.4274 | D177: 9.186412636e-06 | F177: 174 | G177: São Cristovão e Nevis | H177: 4.4378 | I177: 3.244506115e-07 | K177: 174 | L177: Nova Caledónia | M177: 352.6114 | N177: 1.377939145e-05 | O177: 352.3018
A178: 175 | B178: Liechtenstein | C178: 96.538 | D178: 8.104349578e-06 | F178: 175 | G178: Iraque | H178: 1.8396 | I178: 1.344944218e-07 | K178: 175 | L178: Haiti | M178: 311.9356 | N178: 1.218985756e-05 | O178: 311.4388
A179: 176 | B179: Centro-Africana, República | C179: 88.842 | D179: 7.458271616e-06 | F179: 176 | G179: Lesoto | H179: 1.7136 | I179: 1.252824751e-07 | K179: 176 | L179: Antígua e Barbuda | M179: 307.205 | N179: 1.200499459e-05 | O179: 288.7442
A180: 177 | B180: Botswana | C180: 82.1538 | D180: 6.896798301e-06 | F180: 177 | G180: Liechtenstein | H180: 1.2268 | I180: 8.969219213e-08 | K180: 177 | L180: Comores | M180: 290.0546 | N180: 1.133478916e-05 | O180: 290.0546
A181: 178 | B181: Nepal | C181: 81.2736 | D181: 6.822905653e-06 | F181: 178 | G181: Butão | H181: 1.2178 | I181: 8.903419594e-08 | K181: 178 | L181: Somália | M181: 236.5634 | N181: 9.2444535e-06 | O181: 236.5634
A182: 179 | B182: Zâmbia | C182: 78.7176 | D182: 6.608329864e-06 | F182: 179 | G182: Libéria | H182: 0.9646 | I182: 7.052256972e-08 | K182: 179 | L182: São Marino | M182: 220.0358 | N182: 8.598585924e-06 | O182: 137.2922
A183: 180 | B183: Virgens Britânicas, Ilhas | C183: 76.305 | D183: 6.405792482e-06 | F183: 180 | G183: Território Palestiniano Ocupado | H183: 0.4852 | I183: 3.547330585e-08 | K183: 180 | L183: Maldivas | M183: 210.9874 | N183: 8.244991441e-06 | O183: 47.8582
A184: 181 | B184: Zimbabwe | C184: 74.3512 | D184: 6.241771286e-06 | F184: 181 | G184: Polinésia Francesa | H184: 0.3838 | I184: 2.805988208e-08 | K184: 181 | L184: Bahamas | M184: 201.3742 | N184: 7.869325635e-06 | O184: 201.3742
A185: 182 | B185: Jibuti | C185: 58.3202 | D185: 4.895971413e-06 | F185: 182 | G185: Bermudas | H185: 0.3584 | I185: 2.620287061e-08 | K185: 182 | L185: Afeganistão | M185: 190.7992 | N185: 7.456074491e-06 | O185: 28.0556
A186: 183 | B186: Caimão, Ilhas | C186: 38.9392 | D186: 3.268939579e-06 | F186: 183 | G186: Haiti | H186: 0.2484 | I186: 1.816069492e-08 | K186: 183 | L186: São Pedro e Miquelon | M186: 148.037 | N186: 5.785008005e-06 | O186: -147.4054
A187: 184 | B187: Melilha | C187: 35.4978 | D187: 2.980034603e-06 | F187: 184 | G187: Aruba | H187: 0.1806 | I187: 1.320379027e-08 | K187: 184 | L187: Quirguizistão | M187: 135.523 | N187: 5.295984381e-06 | O187: 100.5726
A188: 185 | B188: Mongólia | C188: 29.5782 | D188: 2.483085134e-06 | F188: 185 | G188: Nova Caledónia | H188: 0.1548 | I188: 1.131753451e-08 | K188: 185 | L188: Kosovo | M188: 135.4836 | N188: 5.294444703e-06 | O188: 118.7392
A189: 186 | B189: Laos, República Democrática Popular do | C189: 15.9946 | D189: 1.342744098e-06 | F189: 186 | G189: Burundi | H189: 0.114 | I189: 8.334618441e-09 | K189: 186 | L189: Bonaire, Santo Eustáquio e Saba | M189: 134.0798 | N189: 5.239586835e-06 | O189: 134.0798
A190: 187 | B190: Turcas e Caicos, Ilhas | C190: 13.9152 | D190: 1.168178803e-06 | F190: 187 | G190: Niger | H190: 0.094 | I190: 6.872404679e-09 | K190: 187 | L190: Santa Lúcia | M190: 114.8238 | N190: 4.48709851e-06 | O190: 114.8238
A191: 188 | B191: Fiji, Ilhas | C191: 10.822 | D191: 9.0850516e-07 | F191: 188 | G191: Vanuatu | H191: 0.0546 | I191: 3.991843569e-09 | K191: 188 | L191: Liechtenstein | M191: 97.7648 | N191: 3.82046482e-06 | O191: 95.3112
A192: 189 | B192: Chade | C192: 9.649 | D192: 8.100319986e-07 | F192: 189 | G192: Micronésia, Estados Federados da | H192: 0.039 | I192: 2.851316835e-09 | K192: 189 | L192: Nepal | M192: 90.4274 | N192: 3.533733005e-06 | O192: 72.1198
A193: 190 | B193: Malavi | C193: 8.2284 | D193: 6.90772857e-07 | F193: 190 | G193: Mongólia | H193: 0.0112 | I193: 8.188397065e-10 | K193: 190 | L193: Botswana | M193: 82.1538 | N193: 3.210416252e-06 | O193: 82.1538
A194: 191 | B194: São Vicente e Granadinas | C194: 6.7852 | D194: 5.696164491e-07 | F194: 191 | G194: São Martinho (parte holandesa) | H194: 0.0028 | I194: 2.047099266e-10 | K194: 191 | L194: Virgens Britânicas, Ilhas | M194: 76.305 | N194: 2.981856129e-06 | O194: 76.305
A195: 192 | B195: Brunei Darussalam | C195: 6.6326 | D195: 5.568057036e-07 | F195: 192 | G195: Anguila | H195: 0 | I195: 0 | K195: 192 | L195: Jibuti | M195: 67.6924 | N195: 2.645291892e-06 | O195: 48.948
A196: 193 | B196: Territórios Franceses do Sul | C196: 6.3102 | D196: 5.297402754e-07 | F196: 193 | G196: Antárctica | H196: 0 | I196: 0 | K196: 193 | L196: Santa Helena | M196: 66.474 | N196: 2.597679108e-06 | O196: -66.474
A197: 194 | B197: Guam | C197: 5.125 | D197: 4.30242926e-07 | F197: 194 | G197: Antilhas Holandesas | H197: 0 | I197: 0 | K197: 194 | L197: Tajiquistão | M197: 53.4888 | N197: 2.090241873e-06 | O197: -53.4888
A198: 195 | B198: Menores distantes dos Estados Unidos, lhas | C198: 4.5544 | D198: 3.823411477e-07 | F198: 195 | G198: Bahamas | H198: 0 | I198: 0 | K198: 195 | L198: Caimão, Ilhas | M198: 38.9392 | N198: 1.521670824e-06 | O198: 38.9392
A199: 196 | B199: Sudão do Sul | C199: 3.771 | D199: 3.165748437e-07 | F199: 196 | G199: Bonaire, Santo Eustáquio e Saba | H199: 0 | I199: 0 | K199: 196 | L199: Falkland Ilhas (Malvinas) | M199: 38.0622 | N199: 1.48739931e-06 | O199: -38.0622
A200: 197 | B200: Papuásia-Nova Guiné | C200: 3.7384 | D200: 3.138380789e-07 | F200: 197 | G200: Botswana | H200: 0 | I200: 0 | K200: 197 | L200: Melilha | M200: 35.4978 | N200: 1.387187373e-06 | O200: 35.4978
... 59 more rows

Sheet 2AA
A1: Posição de Nepal entre os parceiros comerciais de Portugal (média 2017-2021 em milhares de euros) produtos agrícolas e agroalimentares
A2: Exportações | F2: Importações | K2: Trocas comerciais (total e saldo)
A3: P | B3: País | C3: média quinquénio | D3: % do Total | F3: P | G3: País | H3: média quinquénio | I3: % do Total | K3: P | L3: País | M3: Total (exp+imp) | N3: % do Total | O3: Saldo (exp-imp)
A4: 1 | B4: Espanha | C4: 2132708.658 | D4: =C4/$C$254 -> 0.329554014 | F4: 1 | G4: Espanha | H4: 4310047.061 | I4: =H4/$H$254 -> 0.463389931 | K4: 1 | L4: Espanha | M4: 6442755.719 | N4: =M4/$M$254 -> 0.4084771201 | O4: -2177338.404
A5: 2 | B5: França | C5: 628840.8284 | D5: 0.09717080597 | F5: 2 | G5: França | H5: 739562.8406 | I5: 0.07951327882 | K5: 2 | L5: França | M5: 1368403.669 | N5: 0.08675815353 | O5: -110722.0122
A6: 3 | B6: Itália | C6: 393607.2152 | D6: 0.06082163977 | F6: 3 | G6: Alemanha | H6: 654962.6328 | I6: 0.07041758128 | K6: 3 | L6: Alemanha | M6: 889621.0856 | N6: 0.05640286158 | O6: -420304.18
A7: 4 | B7: Brasil | C7: 347616.4512 | D7: 0.05371497716 | F7: 4 | G7: Países Baixos | H7: 539588.8818 | I7: 0.05801330036 | K7: 4 | L7: Países Baixos | M7: 847697.4566 | N7: 0.05374486181 | O7: -231480.307
A8: 5 | B8: Países Baixos | C8: 308108.5748 | D8: 0.04761007426 | F8: 5 | G8: Brasil | H8: 420108.8366 | I8: 0.04516753577 | K8: 5 | L8: Brasil | M8: 767725.2878 | N8: 0.04867454677 | O8: -72492.3854
A9: 6 | B9: Angola | C9: 305800.3558 | D9: 0.04725339974 | F9: 6 | G9: Itália | H9: 287014.2148 | I9: 0.03085801508 | K9: 6 | L9: Itália | M9: 680621.43 | N9: 0.04315207556 | O9: 106593.0004 | P9: Nota: Nesta listagem, o Reino Unido passa a ser constituído por três componentes: Reino Unido [até 2020] ; Reino Unido (sem Irlanda do Norte) pós-2020 e Reino Unido (Irlanda do Norte) pós-2020. Estas componentes são calculadas igualmente como média do quinquénio, embora a primeira corresponda a 2017-2020 e as duas últimas apenas ao ano de 2021.
A10: 7 | B10: Reino Unido | C10: 264080.8596 | D10: 0.0408067492 | F10: 7 | G10: Bélgica | H10: 232826.4462 | I10: 0.02503207722 | K10: 7 | L10: Reino Unido | M10: 407760.4688 | N10: 0.02585241925 | O10: 120401.2504
A11: 8 | B11: Alemanha | C11: 234658.4528 | D11: 0.0362602903 | F11: 8 | G11: Estados Unidos | H11: 201285.3676 | I11: 0.02164097312 | K11: 8 | L11: Bélgica | M11: 391513.6878 | N11: 0.02482235718 | O11: -74139.2046
A12: 9 | B12: Estados Unidos | C12: 165410.4342 | D12: 0.02555983085 | F12: 9 | G12: Ucrânia | H12: 189308.4964 | I12: 0.02035329309 | K12: 9 | L12: Estados Unidos | M12: 366695.8018 | N12: 0.02324887852 | O12: -35874.9334
A13: 10 | B13: Bélgica | C13: 158687.2416 | D13: 0.02452093832 | F13: 10 | G13: Polónia | H13: 153991.513 | I13: 0.01655622678 | K13: 10 | L13: Angola | M13: 311178.2958 | N13: 0.01972901343 | O13: 300422.4158
A14: 11 | B14: Israel | C14: 134690.714 | D14: 0.0208129063 | F14: 11 | G14: Reino Unido | H14: 143679.6092 | I14: 0.01544755388 | K14: 11 | L14: Polónia | M14: 283940.7932 | N14: 0.01800212868 | O14: -24042.2328
A15: 12 | B15: Polónia | C15: 129949.2802 | D15: 0.02008024244 | F15: 12 | G15: Roménia | H15: 108032.8402 | I15: 0.01161503103 | K15: 12 | L15: Ucrânia | M15: 194602.5998 | N15: 0.01233799836 | O15: -184014.393
A16: 13 | B16: Suíça | C16: 85386.4834 | D16: 0.01319423459 | F16: 13 | G16: Irlanda | H16: 104798.4326 | I16: 0.01126728729 | K16: 13 | L16: Canadá | M16: 158940.903 | N16: 0.01007701132 | O16: -17383.7134
A17: 14 | B17: China, República Popular da | C17: 80710.6188 | D17: 0.01247170274 | F17: 14 | G17: África do Sul | H17: 102091.422 | I17: 0.01097624604 | K17: 14 | L17: Israel | M17: 140147.9712 | N17: 0.008885520755 | O17: 129233.4568
A18: 15 | B18: Cabo Verde | C18: 78261.8008 | D18: 0.01209330234 | F18: 15 | G18: Canadá | H18: 88162.3082 | I18: 0.009478672816 | K18: 15 | L18: Irlanda | M18: 129653.5346 | N18: 0.008220163038 | O18: -79943.3306
A19: 16 | B19: Reino Unido (sem Irlanda do Norte) pós 2020 | C19: 74508.6124 | D19: 0.01151334581 | F19: 16 | G19: Costa Rica | H19: 65622.4046 | I19: 0.007055320072 | K19: 16 | L19: China, República Popular da | M19: 127036.949 | N19: 0.008054268908 | O19: 34384.2886
A20: 17 | B20: Canadá | C20: 70778.5948 | D20: 0.01093696973 | F20: 17 | G20: Dinamarca | H20: 64136.4974 | I20: 0.006895564407 | K20: 17 | L20: Roménia | M20: 123822.978 | N20: 0.00785049995 | O20: -92242.7024
A21: 18 | B21: Rússia, Federação da | C21: 51314.5444 | D21: 0.007929312812 | F21: 18 | G21: Argentina | H21: 62413.2046 | I21: 0.006710286492 | K21: 18 | L21: África do Sul | M21: 122943.1742 | N21: 0.007794719515 | O21: -81239.6698
A22: 19 | B22: Japão | C22: 50761.4396 | D22: 0.007843845017 | F22: 19 | G22: Bulgária | H22: 51981.5864 | I22: 0.005588742627 | K22: 19 | L22: Dinamarca | M22: 109048.8246 | N22: 0.006913803932 | O22: -19224.1702
A23: 20 | B23: Suécia | C23: 45869.839 | D23: 0.007087976837 | F23: 20 | G23: China, República Popular da | H23: 46326.3302 | I23: 0.004980724027 | K23: 20 | L23: Reino Unido (sem Irlanda do Norte) pós 2020 | M23: 96911.0926 | N23: 0.006144259651 | O23: 52106.1322
A24: 21 | B24: Dinamarca | C24: 44912.3272 | D24: 0.006940018579 | F24: 21 | G24: Paraguai | H24: 33692.2904 | I24: 0.003622389246 | K24: 21 | L24: Suíça | M24: 88912.5994 | N24: 0.005637147228 | O24: 81860.3674
A25: 22 | B25: Luxemburgo | C25: 41942.4042 | D25: 0.006481095114 | F25: 22 | G25: Cuba | H25: 31194.4962 | I25: 0.003353841672 | K25: 22 | L25: Cabo Verde | M25: 78398.1466 | N25: 0.004970520463 | O25: 78125.455
A26: 23 | B26: Marrocos | C26: 33617.4276 | D26: 0.005194689001 | F26: 23 | G26: Vietname | H26: 27756.1656 | I26: 0.00298417337 | K26: 23 | L26: Costa Rica | M26: 66713.8002 | N26: 0.004229721281 | O26: -64531.009
A27: 24 | B27: Guiné-Bissau | C27: 26564.525 | D27: 0.004104848458 | F27: 24 | G27: Guiana | H27: 26314.8304 | I27: 0.002829209814 | K27: 24 | L27: Japão | M27: 64171.8402 | N27: 0.004068558489 | O27: 37351.039
A28: 25 | B28: Irlanda | C28: 24855.102 | D28: 0.003840702106 | F28: 25 | G28: Colômbia | H28: 26176.1718 | I28: 0.002814302088 | K28: 25 | L28: Argentina | M28: 62616.2766 | N28: 0.00396993421 | O28: -62210.1326
A29: 26 | B29: Arábia Saudita | C29: 24433.3002 | D29: 0.003775523735 | F29: 26 | G29: Chile | H29: 25781.2356 | I29: 0.002771840961 | K29: 26 | L29: Suécia | M29: 59855.9354 | N29: 0.003794925833 | O29: 31883.7426
A30: 27 | B30: São Tomé e Príncipe | C30: 24019.4944 | D30: 0.003711580935 | F30: 27 | G30: Grécia | H30: 25224.1444 | I30: 0.002711945918 | K30: 27 | L30: Rússia, Federação da | M30: 59420.816 | N30: 0.00376733883 | O30: 43208.2728
A31: 28 | B31: Moçambique | C31: 22608.3762 | D31: 0.003493529742 | F31: 28 | G31: Reino Unido (sem Irlanda do Norte) pós 2020 | H31: 22402.4802 | I31: 0.00240857782 | K31: 28 | L31: Bulgária | M31: 58680.2136 | N31: 0.003720383901 | O31: -45282.9592
A32: 29 | B32: África do Sul | C32: 20851.7522 | D32: 0.003222089718 | F32: 29 | G32: Checa, República | H32: 20758.0564 | I32: 0.002231779418 | K32: 29 | L32: Luxemburgo | M32: 49623.8202 | N32: 0.003146199553 | O32: 34260.9882
A33: 30 | B33: Grécia | C33: 20226.656 | D33: 0.003125497546 | F33: 30 | G33: Índia | H33: 20739.8178 | I33: 0.002229818515 | K33: 30 | L33: Grécia | M33: 45450.8004 | N33: 0.002881625947 | O33: -4997.4884
A34: 31 | B34: Finlândia | C34: 17202.4322 | D34: 0.002658183321 | F34: 31 | G34: Áustria | H34: 20051.851 | I34: 0.002155852528 | K34: 31 | L34: Marrocos | M34: 43368.6576 | N34: 0.002749616023 | O34: 23866.1976
A35: 32 | B35: Checa, República | C35: 16920.1832 | D35: 0.002614569164 | F35: 32 | G35: Costa do Marfim | H35: 18028.0392 | I35: 0.001938264646 | K35: 32 | L35: Checa, República | M35: 37678.2396 | N35: 0.002388837863 | O35: -3837.8732
A36: 33 | B36: Noruega | C36: 16036.7366 | D36: 0.002478055734 | F36: 33 | G36: Turquia | H36: 16272.3134 | I36: 0.001749499733 | K36: 33 | L36: Paraguai | M36: 34345.2216 | N36: 0.002177521207 | O36: -33039.3592
A37: 34 | B37: Roménia | C37: 15790.1378 | D37: 0.002439950377 | F37: 34 | G37: Uruguai | H37: 16261.8928 | I37: 0.001748379374 | K37: 34 | L37: Cuba | M37: 33461.904 | N37: 0.002121517992 | O37: -28927.0884
A38: 35 | B38: Argélia | C38: 14208.38 | D38: 0.002195531323 | F38: 35 | G38: Uganda | H38: 15938.826 | I38: 0.001713645205 | K38: 35 | L38: Áustria | M38: 33090.073 | N38: 0.002097943537 | O38: -7013.629
A39: 36 | B39: Áustria | C39: 13038.222 | D39: 0.00201471419 | F39: 36 | G39: Hungria | H39: 15406.2894 | I39: 0.001656390123 | K39: 36 | L39: Colômbia | M39: 31755.152 | N39: 0.002013308218 | O39: -20597.1916
A40: 37 | B40: Austrália | C40: 12232.4712 | D40: 0.001890206602 | F40: 37 | G40: Suécia | H40: 13986.0964 | I40: 0.001503699647 | K40: 37 | L40: Moçambique | M40: 31283.3128 | N40: 0.001983393144 | O40: 13933.4396
A41: 38 | B41: Emirados Árabes Unidos | C41: 12155.837 | D41: 0.001878364803 | F41: 38 | G41: Indonésia | H41: 13530.7286 | I41: 0.001454741283 | K41: 38 | L41: Chile | M41: 31089.865 | N41: 0.001971128361 | O41: -20472.6062
A42: 39 | B42: Jordânia | C42: 11847.4364 | D42: 0.001830709604 | F42: 39 | G42: Japão | H42: 13410.4006 | I42: 0.001441804352 | K42: 39 | L42: Vietname | M42: 29515.3246 | N42: 0.001871300933 | O42: -25997.0066
A43: 40 | B43: Macau | C43: 11447.0268 | D43: 0.001768836834 | F43: 40 | G43: Austrália | H43: 12903.5646 | I43: 0.001387312441 | K43: 40 | L43: Guiné-Bissau | M43: 26954.1234 | N43: 0.00170891823 | O43: 26174.9266
A44: 41 | B44: Iraque | C44: 11145.8556 | D44: 0.001722298749 | F44: 41 | G44: Suazilândia | H44: 12224.135 | I44: 0.001314264321 | K44: 41 | L44: Guiana | M44: 26340.1504 | N44: 0.001669991731 | O44: -26289.5104
A45: 42 | B45: Coreia, República da | C45: 10065.5564 | D45: 0.001555366929 | F45: 42 | G45: México | H45: 11261.9162 | I45: 0.001210812434 | K45: 42 | L45: Hungria | M45: 25235.623 | N45: 0.001599963596 | O45: -5576.9558
A46: 43 | B46: Hungria | C46: 9829.3336 | D46: 0.00151886491 | F46: 43 | G46: Lituânia | H46: 10723.9816 | I46: 0.001152976992 | K46: 43 | L46: Austrália | M46: 25136.0358 | N46: 0.001593649668 | O46: -671.0934
A47: 44 | B47: Eslováquia | C47: 9414.4124 | D47: 0.001454749754 | F47: 44 | G47: Tailândia | H47: 10089.888 | I47: 0.001084803121 | K47: 44 | L47: São Tomé e Príncipe | M47: 24711.1366 | N47: 0.001566710636 | O47: 23327.8522
A48: 45 | B48: Nigéria | C48: 8671.4586 | D48: 0.001339945791 | F48: 45 | G48: Peru | H48: 10018.3958 | I48: 0.001077116717 | K48: 45 | L48: Turquia | M48: 24546.8484 | N48: 0.001556294601 | O48: -7997.7784
A49: 46 | B49: Turquia | C49: 8274.535 | D49: 0.001278611691 | F49: 46 | G49: Marrocos | H49: 9751.23 | I49: 0.001048392682 | K49: 46 | L49: Arábia Saudita | M49: 24445.2166 | N49: 0.001549851044 | O49: 24421.3838
A50: 47 | B50: Gibraltar | C50: 7935.4334 | D50: 0.00122621246 | F50: 47 | G50: Sérvia | H50: 8835.276 | I50: 0.000949914903 | K50: 47 | L50: Finlândia | M50: 23511.2862 | N50: 0.001490638928 | O50: 10893.5782
A51: 48 | B51: HongKong | C51: 7420.6672 | D51: 0.001146668887 | F51: 48 | G51: Moçambique | H51: 8674.9366 | I51: 0.0009326761902 | K51: 48 | L51: Índia | M51: 23328.6478 | N51: 0.001479059471 | O51: -18150.9878
A52: 49 | B52: Território Palestiniano Ocupado | C52: 7028.6564 | D52: 0.001086093931 | F52: 49 | G52: Paquistão | H52: 8301.466 | I52: 0.0008925229127 | K52: 49 | L52: Costa do Marfim | M52: 21812.0564 | N52: 0.001382906068 | O52: -14244.022
A53: 50 | B53: Bulgária | C53: 6698.6272 | D53: 0.001035096601 | F53: 50 | G53: Guatemala | H53: 8152.4304 | I53: 0.0008764995154 | K53: 50 | L53: Uruguai | M53: 17858.6832 | N53: 0.001132258276 | O53: -14665.1024
A54: 51 | B54: Senegal | C54: 6480.7152 | D54: 0.001001424034 | F54: 51 | G54: Rússia, Federação da | H54: 8106.2716 | I54: 0.0008715368032 | K54: 51 | L54: Noruega | M54: 16867.5732 | N54: 0.001069420916 | O54: 15205.9
A55: 52 | B55: Líbia, Jamahira Árabe da | C55: 6355.946 | D55: 0.0009821442369 | F55: 52 | G55: Egito | H55: 7873.3812 | I55: 0.0008464978501 | K55: 52 | L55: Uganda | M55: 16334.5752 | N55: 0.001035628313 | O55: -15543.0768
A56: 53 | B56: Colômbia | C56: 5578.9802 | D56: 0.0008620846136 | F56: 53 | G56: Moldava, República de | H56: 7860.829 | I56: 0.0008451483142 | K56: 53 | L56: México | M56: 16136.5314 | N56: 0.001023072139 | O56: -6387.301
A57: 54 | B57: Chile | C57: 5308.6294 | D57: 0.00082030901 | F57: 54 | G57: Nova Zelânda | H57: 7839.4344 | I57: 0.0008428480975 | K57: 54 | L57: Lituânia | M57: 15067.3156 | N57: 0.0009552827939 | O57: -6380.6476
A58: 55 | B58: Ucrânia | C58: 5294.1034 | D58: 0.0008180643989 | F58: 55 | G58: Luxemburgo | H58: 7681.416 | I58: 0.0008258589245 | K58: 55 | L58: Indonésia | M58: 14399.1354 | N58: 0.0009129195047 | O58: -12662.3218
A59: 56 | B59: México | C59: 4874.6152 | D59: 0.0007532435338 | F59: 56 | G59: Belize | H59: 7019.7864 | I59: 0.0007547245516 | K59: 56 | L59: Argélia | M59: 14326.0018 | N59: 0.0009082827617 | O59: 14090.7582
A60: 57 | B60: Síria, República Árabe da | C60: 4794.0906 | D60: 0.0007408005754 | F60: 57 | G60: Equador | H60: 6999.5002 | I60: 0.0007525435033 | K60: 57 | L60: Suazilândia | M60: 14006.578 | N60: 0.0008880309751 | O60: -10441.692
A61: 58 | B61: Letónia | C61: 4657.3754 | D61: 0.0007196748381 | F61: 58 | G61: Honduras | H61: 6872.3582 | I61: 0.0007388739721 | K61: 58 | L61: Emirados Árabes Unidos | M61: 12552.6332 | N61: 0.0007958494288 | O61: 11759.0408
A62: 59 | B62: Maurícias | C62: 4588.6266 | D62: 0.0007090515197 | F62: 59 | G62: Camarões | H62: 6510.3296 | I62: 0.0006999508686 | K62: 59 | L62: Tailândia | M62: 12435.2218 | N62: 0.0007884054293 | O62: -7744.5542
A63: 60 | B63: Kuwait | C63: 4454.2644 | D63: 0.0006882893766 | F63: 60 | G63: Malásia | H63: 6467.6522 | I63: 0.0006953624553 | K63: 60 | L63: Eslováquia | M63: 12211.5142 | N63: 0.000774222145 | O63: 6617.3106
A64: 61 | B64: Estónia | C64: 4448.2886 | D64: 0.0006873659739 | F64: 61 | G64: Finlândia | H64: 6308.854 | I64: 0.0006782894429 | K64: 61 | L64: Jordânia | M64: 12005.6676 | N64: 0.0007611712658 | O64: 11689.2052
A65: 62 | B65: Lituânia | C65: 4343.334 | D65: 0.0006711480017 | F65: 62 | G65: Zimbabwe | H65: 5829.3134 | I65: 0.0006267321669 | K65: 62 | L65: Peru | M65: 11727.5724 | N65: 0.0007435397535 | O65: -8309.2192
A66: 63 | B66: Andorra | C66: 4291.4996 | D66: 0.0006631383589 | F66: 63 | G66: Etiópia | H66: 5803.221 | I66: 0.0006239268715 | K66: 63 | L66: Macau | M66: 11457.847 | N66: 0.0007264388949 | O66: 11436.2066
A67: 64 | B67: Malta | C67: 3964.6644 | D67: 0.0006126345774 | F67: 64 | G67: Israel | H67: 5457.2572 | I67: 0.0005867309571 | K67: 64 | L67: Iraque | M67: 11147.6952 | N67: 0.0007067749624 | O67: 11144.016
A68: 65 | B68: Costa do Marfim | C68: 3784.0172 | D68: =C68/$C$254 -> 0.0005847203053 | F68: 65 | G68: Estónia | H68: 5434.222 | I68: =H68/$H$254 -> 0.0005842543531 | K68: 65 | L68: Coreia, República da | M68: 10895.576 | N68: =M68/$M$254 -> 0.0006907903543 | O68: 9235.5368
A69: 66 | B69: Eslovénia | C69: 3568.3148 | D69: 0.0005513891742 | F69: 66 | G69: Angola | H69: 5377.94 | I69: 0.0005782032563 | K69: 66 | L69: Sérvia | M69: 10225.3274 | N69: 0.0006482959265 | O69: -7445.2246
A70: 67 | B70: Chipre | C70: 3507.4966 | D70: 0.0005419913215 | F70: 67 | G70: Filipinas | H70: 5297.3104 | I70: 0.0005695344543 | K70: 67 | L70: Estónia | M70: 9882.5106 | N70: 0.0006265610005 | O70: -985.9334
A71: 68 | B71: Omã | C71: 3446.2538 | D71: 0.0005325278579 | F71: 68 | G71: Suriname | H71: 4821.0978 | I71: 0.0005183349846 | K71: 68 | L71: Nova Zelânda | M71: 9865.0626 | N71: 0.0006254547799 | O71: -5813.8062
A72: 69 | B72: Líbano | C72: 3427.1012 | D72: 0.0005295683275 | F72: 69 | G72: Malavi | H72: 4790.7576 | I72: 0.0005150729916 | K72: 69 | L72: Nigéria | M72: 9204.7544 | N72: 0.0005835905833 | O72: 8138.1628
A73: 70 | B73: Belarus | C73: 2848.8268 | D73: 0.0004402112327 | F73: 70 | G73: Tanzânia, República Unida da | H73: 4616.1628 | I73: 0.0004963016253 | K73: 70 | L73: Egito | M73: 8985.0144 | N73: 0.0005696588488 | O73: -6761.748
A74: 71 | B74: Singapura | C74: 2596.2968 | D74: 0.000401189365 | F74: 71 | G74: Camboja | H74: 4263.9608 | I74: 0.0004584350177 | K74: 71 | L74: Letónia | M74: 8762.301 | N74: 0.0005555385977 | O74: 552.4498
A75: 72 | B75: Índia | C75: 2588.83 | D75: 0.0004000355675 | F75: 72 | G75: Laos, República Democrática Popular do | H75: 4211.0264 | I75: 0.0004527438344 | K75: 72 | L75: Paquistão | M75: 8654.2718 | N75: 0.000548689439 | O75: -7948.6602
A76: 73 | B76: Timor-Leste | C76: 2534.6392 | D76: 0.000391661805 | F76: 73 | G76: Tunísia | H76: 4168.1884 | I76: 0.0004481381543 | K76: 73 | L76: Guatemala | M76: 8537.9704 | N76: 0.0005413158146 | O76: -7766.8904
A77: 74 | B77: Taiwan | C77: 2522.246 | D77: 0.000389746762 | F77: 74 | G77: Letónia | H77: 4104.9256 | I77: 0.0004413365245 | K77: 74 | L77: Camarões | M77: 8397.1486 | N77: 0.0005323875724 | O77: -4623.5106
A78: 75 | B78: Irão, República Islâmica do | C78: 2438.8444 | D78: 0.0003768592389 | F78: 75 | G78: Mali | H78: 4001.9918 | I78: 0.0004302697112 | K78: 75 | L78: HongKong | M78: 8034.4336 | N78: 0.0005093910807 | O78: 6806.9008
A79: 76 | B79: Tailândia | C79: 2345.3338 | D79: 0.0003624096358 | F79: 76 | G79: Macedónia, Antiga República jugoslava da | H79: 3918.6146 | I79: 0.000421305504 | K79: 76 | L79: Moldava, República de | M79: 8013.6214 | N79: 0.0005080715665 | O79: -7708.0366
A80: 77 | B80: Cuba | C80: 2267.4078 | D80: 0.0003503682227 | F80: 77 | G80: Fiji, Ilhas | H80: 3681.2192 | I80: 0.0003957822007 | K80: 77 | L80: Gibraltar | M80: 7935.4334 | N80: 0.0005031143696 | O80: 7935.4334
A81: 78 | B81: Gana | C81: 2226.2462 | D81: 0.0003440077803 | F81: 78 | G81: Suíça | H81: 3526.116 | I81: 0.0003791064522 | K81: 78 | L81: Malásia | M81: 7872.9664 | N81: 0.0004991538996 | O81: -5062.338
A82: 79 | B82: Nova Zelânda | C82: 2025.6282 | D82: 0.0003130075464 | F82: 79 | G82: Myanmar | H82: 3388.3164 | I82: 0.0003642910809 | K82: 79 | L82: Honduras | M82: 7728.4804 | N82: 0.0004899933435 | O82: -6016.236
A83: 80 | B83: Guiné | C83: 1916.1704 | D83: 0.0002960937232 | F83: 80 | G83: Eslovénia | H83: 3300.8044 | I83: 0.0003548823253 | K83: 80 | L83: Equador | M83: 7668.9648 | N83: 0.0004862199953 | O83: -6330.0356
A84: 81 | B84: Gabão | C84: 1895.5268 | D84: 0.0002929037979 | F84: 81 | G84: Nicarágua | H84: 3031.3188 | I84: 0.0003259088798 | K84: 81 | L84: Filipinas | M84: 7157.8964 | N84: 0.0004538177505 | O84: -3436.7244
A85: 82 | B85: Albânia | C85: 1893.9118 | D85: 0.0002926542421 | F85: 82 | G85: Taiwan | H85: 2927.2102 | I85: 0.0003147157591 | K85: 82 | L85: Etiópia | M85: 7148.2198 | N85: 0.0004532042444 | O85: -4458.2222
A86: 83 | B86: Camarões | C86: 1886.819 | D86: 0.0002915582365 | F86: 83 | G86: Sri Lanca | H86: 2919.2236 | I86: 0.0003138570887 | K86: 83 | L86: Território Palestiniano Ocupado | M86: 7029.1416 | N86: 0.0004456545681 | O86: 7028.1712
A87: 84 | B87: Filipinas | C87: 1860.586 | D87: 0.0002875046165 | F87: 84 | G87: Eslováquia | H87: 2797.1018 | I87: 0.0003007272987 | K87: 84 | L87: Belize | M87: 7022.5196 | N87: 0.0004452347267 | O87: -7017.0532
A88: 85 | B88: Sudão | C88: 1846.0972 | D88: 0.0002852657536 | F88: 85 | G88: Quénia | H88: 2618.7064 | I88: 0.0002815473151 | K88: 85 | L88: Senegal | M88: 6960.0264 | N88: 0.0004412725957 | O88: 6001.404
A89: 86 | B89: Congo | C89: 1807.7984 | D89: 0.0002793476817 | F89: 86 | G89: Chade | H89: 1938.2016 | I89: 0.000208383596 | K89: 86 | L89: Eslovénia | M89: 6869.1192 | N89: 0.0004355089888 | O89: 267.5104
A90: 87 | B90: Suazilândia | C90: 1782.443 | D90: 0.0002754296717 | F90: 87 | G90: Togo | H90: 1729.6156 | I90: 0.0001859577035 | K90: 87 | L90: Líbia, Jamahira Árabe da | M90: 6361.896 | N90: 0.0004033505335 | O90: 6349.996
A91: 88 | B91: Vietname | C91: 1759.159 | D91: 0.0002718317421 | F91: 88 | G91: Panamá | H91: 1602.5284 | I91: 0.0001722940641 | K91: 88 | L91: Zimbabwe | M91: 5903.1368 | N91: 0.0003742647439 | O91: -5755.49
A92: 89 | B92: Peru | C92: 1709.1766 | D92: 0.0002641082771 | F92: 89 | G92: Benim | H92: 1530.532 | I92: 0.000164553451 | K92: 89 | L92: Síria, República Árabe da | M92: 5844.2842 | N92: 0.0003705334306 | O92: 3743.897
A93: 90 | B93: Seychelles | C93: 1690.5274 | D93: 0.0002612265339 | F93: 90 | G93: Madagáscar | H93: 1483.9058 | I93: 0.0001595404868 | K93: 90 | L93: Maurícias | M93: 5710.2392 | N93: 0.0003620348443 | O93: 3467.014
A94: 91 | B94: Venezuela | C94: 1662.7172 | D94: 0.0002569291991 | F94: 91 | G94: Chipre | H94: 1432.1794 | I94: 0.0001539791803 | K94: 91 | L94: Taiwan | M94: 5449.4562 | N94: 0.0003455009427 | O94: -404.9642
A95: 92 | B95: Uruguai | C95: 1596.7904 | D95: 0.0002467419467 | F95: 92 | G95: Líbano | H95: 1376.8024 | I95: 0.0001480253835 | K95: 92 | L95: Mali | M95: 5271.3696 | N95: 0.0003342100752 | O95: -2732.614
A96: 93 | B96: Catar | C96: 1419.0288 | D96: 0.0002192735681 | F96: 93 | G96: Croácia | H96: 1338.3438 | I96: 0.0001438905498 | K96: 93 | L96: Kuwait | M96: 5262.8358 | N96: 0.0003336690237 | O96: 3645.693
A97: 94 | B97: Malásia | C97: 1405.3142 | D97: 0.0002171543375 | F97: 94 | G97: Dominicana, República | H97: 1171.981 | I97: 0.0001260042378 | K97: 94 | L97: Tunísia | M97: 4989.2782 | N97: 0.0003163251998 | O97: -3347.0986
A98: 95 | B98: Dominicana, República | C98: 1394.4666 | D98: 0.0002154781263 | F98: 95 | G98: Congo, República Democrática do | H98: 1154.8582 | I98: 0.0001241632989 | K98: 95 | L98: Chipre | M98: 4939.676 | N98: 0.000313180371 | O98: 2075.3172
A99: 96 | B99: Sérvia | C99: 1390.0514 | D99: 0.0002147958733 | F99: 96 | G99: Gana | H99: 1128.6604 | I99: 0.0001213466715 | K99: 96 | L99: Suriname | M99: 4923.3426 | N99: 0.0003121448172 | O99: -4718.853
A100: 97 | B100: Croácia | C100: 1362.1944 | D100: 0.0002104913068 | F100: 97 | G100: Maurícias | H100: 1121.6126 | I100: 0.0001205889351 | K100: 97 | L100: Tanzânia, República Unida da | M100: 4890.9292 | N100: 0.0003100897754 | O100: -4341.3964
A101: 98 | B101: Etiópia | C101: 1344.9988 | D101: 0.0002078341792 | F101: 98 | G101: Serra Leoa | H101: 1070.5168 | I101: 0.0001150954268 | K101: 98 | L101: Líbano | M101: 4803.9036 | N101: 0.0003045722658 | O101: 2050.2988
A102: 99 | B102: Mali | C102: 1269.3778 | D102: 0.0001961489432 | F102: 99 | G102: Síria, República Árabe da | H102: 1050.1936 | I102: 0.0001129104005 | K102: 99 | L102: Malavi | M102: 4796.7766 | N102: 0.000304120407 | O102: -4784.7386
A103: 100 | B103: Benim | C103: 1145.602 | D103: 0.0001770226497 | F103: 100 | G103: Reino Unido (Irlanda do Norte) pós-2020 | H103: 1031.5734 | I103: 0.0001109084703 | K103: 100 | L103: Camboja | M103: 4638.605 | N103: 0.0002940921702 | O103: -3889.3166
A104: 101 | B104: Egito | C104: 1111.6332 | D104: 0.0001717736653 | F104: 101 | G104: Burquina Faso | H104: 994.137 | I104: 0.0001068835373 | K104: 101 | L104: Malta | M104: 4422.5156 | N104: 0.0002803918873 | O104: 3506.8132
A105: 102 | B105: Costa Rica | C105: 1091.3956 | D105: 0.0001686464767 | F105: 102 | G105: Singapura | H105: 908.2824 | I105: 9.765297518e-05 | K105: 102 | L105: Andorra | M105: 4296.175 | N105: 0.0002723817677 | O105: 4286.8242
A106: 103 | B106: Bangladesh | C106: 1078.7874 | D106: 0.0001666982111 | F106: 103 | G106: Noruega | H106: 830.8366 | I106: 8.932647586e-05 | K106: 103 | L106: Laos, República Democrática Popular do | M106: 4225.5086 | N106: 0.0002679014476 | O106: -4196.5442
A107: 104 | B107: Guiné Equatorial | C107: 1069.1446 | D107: 0.00016520817 | F107: 104 | G107: Coreia, República da | H107: 830.0196 | I107: 8.923863701e-05 | K107: 104 | L107: Macedónia, Antiga República jugoslava da | M107: 4129.6478 | N107: 0.0002618237776 | O107: -3707.5814
A108: 105 | B108: Burquina Faso | C108: 1038.9106 | D108: 0.0001605363007 | F108: 105 | G108: Kuwait | H108: 808.5714 | I108: 8.693265757e-05 | K108: 105 | L108: Omã | M108: 3815.2552 | N108: 0.0002418909741 | O108: 3077.2524
A109: 106 | B109: Islândia | C109: 968.286 | D109: 0.0001496231268 | F109: 106 | G109: Turquemenistão | H109: 804.7756 | I109: 8.652455634e-05 | K109: 106 | L109: Myanmar | M109: 3788.6072 | N109: 0.0002402014644 | O109: -2988.0256
A110: 107 | B110: Congo, República Democrática do | C110: 936.534 | D110: 0.0001447166906 | F110: 107 | G110: El Salvador | H110: 749.2022 | I110: 8.054964385e-05 | K110: 107 | L110: Fiji, Ilhas | M110: 3684.8548 | N110: 0.000233623459 | O110: -3677.5836
A111: 108 | B111: Burundi | C111: 904.8 | D111: 0.0001398130358 | F111: 108 | G111: Zâmbia | H111: 694.808 | I111: 7.470151175e-05 | K111: 108 | L111: Singapura | M111: 3504.5792 | N111: 0.0002221938067 | O111: 1688.0144
A112: 109 | B112: Iémen | C112: 893.6956 | D112: 0.0001380971429 | F112: 109 | G112: São Tomé e Príncipe | H112: 691.6422 | I112: 7.436114427e-05 | K112: 109 | L112: Nicarágua | M112: 3409.5386 | N112: 0.0002161681381 | O112: -2653.099
A113: 110 | B113: Indonésia | C113: 868.4068 | D113: 0.0001341894242 | F113: 110 | G113: HongKong | H113: 613.7664 | I113: 6.598841398e-05 | K113: 110 | L113: Gana | M113: 3354.9066 | N113: 0.000212704415 | O113: 1097.5858
A114: 111 | B114: Honduras | C114: 856.1222 | D114: 0.0001322911625 | F114: 111 | G114: Nigéria | H114: 533.2958 | I114: 5.733670664e-05 | K114: 111 | L114: Sri Lanca | M114: 3283.9142 | N114: 0.0002082034262 | O114: -2554.533
A115: 112 | B115: Tunísia | C115: 821.0898 | D115: 0.0001268778267 | F115: 112 | G115: Timor-Leste | H115: 507.9458 | I115: 5.46112295e-05 | K115: 112 | L115: Belarus | M115: 3086.6094 | N115: 0.0001956941057 | O115: 2611.0442
A116: 113 | B116: Reino Unido (Irlanda do Norte) pós-2020 | C116: 772.5636 | D116: 0.0001193793791 | F116: 113 | G116: Senegal | H116: 479.3112 | I116: 5.153261223e-05 | K116: 113 | L116: Timor-Leste | M116: 3042.585 | N116: 0.0001929029149 | O116: 2026.6934
A117: 114 | B117: Bermudas | C117: 761.096 | D117: 0.0001176073633 | F117: 114 | G117: Malta | H117: 457.8512 | I117: 4.922536413e-05 | K117: 114 | L117: Quénia | M117: 2961.0274 | N117: 0.000187732082 | O117: -2276.3854
A118: 115 | B118: Ruanda | C118: 731.3606 | D118: 0.0001130125395 | F118: 115 | G118: Emirados Árabes Unidos | H118: 396.7962 | I118: 4.266110349e-05 | K118: 115 | L118: Croácia | M118: 2700.5382 | N118: 0.0001712168076 | O118: 23.8506
A119: 116 | B119: Geórgia | C119: 726.893 | D119: 0.0001123221895 | F119: 116 | G119: Guiné-Bissau | H119: 389.5984 | I119: 4.188724001e-05 | K119: 116 | L119: Benim | M119: 2676.134 | N119: 0.0001696695571 | O119: -384.93
A120: 117 | B120: Equador | C120: 669.4646 | D120: 0.0001034481411 | F120: 117 | G120: Omã | H120: 369.0014 | I120: 3.967277639e-05 | K120: 117 | L120: Irão, República Islâmica do | M120: 2611.4938 | N120: 0.0001655713041 | O120: 2266.195
A121: 118 | B121: Paraguai | C121: 652.9312 | D121: 0.0001008933391 | F121: 118 | G121: Usbequistão | H121: 287.6288 | I121: 3.092409152e-05 | K121: 118 | L121: Dominicana, República | M121: 2566.4476 | N121: 0.0001627153302 | O121: 222.4856
A122: 119 | B122: Arménia | C122: 652.7818 | D122: 0.0001008702533 | F122: 119 | G122: Bangladesh | H122: 250.5676 | I122: 2.69394977e-05 | K122: 119 | L122: Togo | M122: 2271.6694 | N122: 0.0001440260992 | O122: -1187.5618
A123: 120 | B123: Panamá | C123: 645.572 | D123: 9.975616837e-05 | F123: 120 | G123: Belarus | H123: 237.7826 | I123: 2.55649326e-05 | K123: 120 | L123: Panamá | M123: 2248.1004 | N123: 0.0001425318012 | O123: -956.9564
A124: 121 | B124: Namíbia | C124: 565.5642 | D124: 8.739306779e-05 | F124: 121 | G124: Islândia | H124: 218.7436 | I124: 2.351797562e-05 | K124: 121 | L124: Congo, República Democrática do | M124: 2091.3922 | N124: 0.0001325963454 | O124: -218.3242
A125: 122 | B125: Togo | C125: 542.0538 | D125: 8.3760154e-05 | F125: 122 | G125: Congo | H125: 217.135 | I125: 2.334502878e-05 | K125: 122 | L125: Burquina Faso | M125: 2033.0476 | N125: 0.0001288972398 | O125: 44.7736
A126: 123 | B126: Azerbaijão | C126: 507.9702 | D126: 7.849343032e-05 | F126: 123 | G126: Irão, República Islâmica do | H126: 172.6494 | I126: 1.856220882e-05 | K126: 123 | L126: Congo | M126: 2024.9334 | N126: 0.0001283827914 | O126: 1590.6634
A127: 124 | B127: São Bartolomeu | C127: 491.0894 | D127: 7.588494679e-05 | F127: 124 | G127: Jordânia | H127: 158.2312 | I127: 1.701205203e-05 | K127: 124 | L127: Albânia | M127: 1989.9004 | N127: 0.0001261616644 | O127: 1797.9232
A128: 125 | B128: Serra Leoa | C128: 488.1254 | D128: 7.542693857e-05 | F128: 125 | G128: Cabo Verde | H128: 136.3458 | I128: 1.465906751e-05 | K128: 125 | L128: Guiné | M128: 1981.2014 | N128: 0.0001256101391 | O128: 1851.1394
A129: 126 | B129: Barém | C129: 487.7034 | D129: 7.536172957e-05 | F129: 126 | G129: Venezuela | H129: 124.9776 | I129: 1.34368281e-05 | K129: 126 | L129: Chade | M129: 1938.2056 | N129: 0.0001228841626 | O129: -1938.1976
A130: 127 | B130: Mauritânia | C130: 434.0934 | D130: 6.707771449e-05 | F130: 127 | G130: Bolívia | H130: 118.6962 | I130: 1.276149034e-05 | K130: 127 | L130: Gabão | M130: 1895.7768 | N130: 0.0001201941345 | O130: 1895.2768
A131: 128 | B131: Bolívia | C131: 433.0954 | D131: 6.692349984e-05 | F131: 128 | G131: Argélia | H131: 117.6218 | I131: 1.264597741e-05 | K131: 128 | L131: Sudão | M131: 1862.6298 | N131: 0.0001180925818 | O131: 1829.5646
A132: 129 | B132: Cazaquistão | C132: 431.263 | D132: =C132/$C$254 -> 6.664035063e-05 | F132: 129 | G132: Geórgia | H132: 112.496 | I132: =H132/$H$254 -> 1.209488271e-05 | K132: 129 | L132: Reino Unido (Irlanda do Norte) pós-2020 | M132: 1804.137 | N132: =M132/$M$254 -> 0.0001143840801 | O132: -259.0098
A133: 130 | B133: Gâmbia | C133: 419.4628 | D133: 6.481694017e-05 | F133: 130 | G133: Albânia | H133: 95.9886 | I133: 1.03201079e-05 | K133: 130 | L133: Venezuela | M133: 1787.6948 | N133: 0.0001133416282 | O133: 1537.7396
A134: 131 | B134: Aruba | C134: 414.572 | D134: 6.40611957e-05 | F134: 131 | G134: Azerbaijão | H134: 95.1774 | I134: 1.023289263e-05 | K134: 131 | L134: Seychelles | M134: 1690.5274 | N134: 0.0001071811184 | O134: 1690.5274
A135: 132 | B135: Myanmar | C135: 400.2908 | D135: 6.185441196e-05 | F135: 132 | G135: Afeganistão | H135: 81.3718 | I135: 8.748598856e-06 | K135: 132 | L135: Madagáscar | M135: 1614.2262 | N135: 0.0001023435465 | O135: -1353.5854
A136: 133 | B136: Uganda | C136: 395.7492 | D136: 6.115262717e-05 | F136: 133 | G136: Namíbia | H136: 72.0918 | I136: 7.750869945e-06 | K136: 133 | L136: Serra Leoa | M136: 1558.6422 | N136: 9.881946559e-05 | O136: -582.3914
A137: 134 | B137: Guatemala | C137: 385.54 | D137: 5.95750639e-05 | F137: 134 | G137: Guiné | H137: 65.031 | I137: 6.991735862e-06 | K137: 134 | L137: Catar | M137: 1436.7008 | N137: 9.108825956e-05 | O137: 1401.3568
A138: 135 | B138: Nicarágua | C138: 378.2198 | D138: 5.844391958e-05 | F138: 135 | G138: Tajiquistão | H138: 53.4888 | I138: 5.750789026e-06 | K138: 135 | L138: Bangladesh | M138: 1329.355 | N138: 8.428242908e-05 | O138: 828.2198
A139: 136 | B139: Camboja | C139: 374.6442 | D139: 5.789140467e-05 | F139: 136 | G139: Ruanda | H139: 47.028 | I139: 5.056163278e-06 | K139: 136 | L139: Islândia | M139: 1187.0296 | N139: 7.525885717e-05 | O139: 749.5424
A140: 137 | B140: Sri Lanca | C140: 364.6906 | D140: 5.635333765e-05 | F140: 137 | G140: Papuásia-Nova Guiné | H140: 41.0468 | I140: 4.413101191e-06 | K140: 137 | L140: Guiné Equatorial | M140: 1069.1446 | N140: 6.778483093e-05 | O140: 1069.1446
A141: 138 | B141: Libéria | C141: 359.9706 | D141: 5.562398583e-05 | F141: 138 | G141: Bósnia-Herzegovina | H141: 30.1646 | I141: 3.243113524e-06 | K141: 138 | L141: El Salvador | M141: 944.8538 | N141: 5.99046706e-05 | O141: -553.5506
A142: 139 | B142: Paquistão | C142: 352.8058 | D142: 5.451685449e-05 | F142: 139 | G142: São Marino | H142: 29.5592 | I142: 3.178024614e-06 | K142: 139 | L142: Burundi | M142: 904.914 | N142: 5.737244756e-05 | O142: 904.686
A143: 140 | B143: São Martinho (parte holandesa) | C143: 349.9042 | D143: 5.406848855e-05 | F143: 140 | G143: Kiribati | H143: 28.0754 | I143: 3.018495502e-06 | K143: 140 | L143: Iémen | M143: 893.6956 | N143: 5.666118984e-05 | O143: 893.6956
A144: 141 | B144: Quénia | C144: 342.321 | D144: 5.289670449e-05 | F144: 141 | G144: Catar | H144: 17.672 | I144: 1.899985486e-06 | K144: 141 | L144: Geórgia | M144: 839.389 | N144: 5.321809739e-05 | O144: 614.397
A145: 142 | B145: Comores | C145: 290.0546 | D145: 4.482030744e-05 | F145: 142 | G145: Quirguizistão | H145: 17.4752 | I145: 1.878826752e-06 | K145: 142 | L145: Turquemenistão | M145: 816.6154 | N145: 5.177422851e-05 | O145: -792.9358
A146: 143 | B146: Tanzânia, República Unida da | C146: 274.7664 | D146: 4.245791834e-05 | F146: 143 | G146: Sudão | H146: 16.5326 | I146: 1.777484158e-06 | K146: 143 | L146: Ruanda | M146: 778.3886 | N146: 4.935061137e-05 | O146: 684.3326
A147: 144 | B147: Somália | C147: 236.563 | D147: 3.655458796e-05 | F147: 144 | G147: Arménia | H147: 15.3184 | I147: 1.646940792e-06 | K147: 144 | L147: Zâmbia | M147: 772.5982 | N147: 4.898349425e-05 | O147: -617.0178
A148: 145 | B148: Ceuta | C148: 218.2844 | D148: 3.373011122e-05 | F148: 145 | G148: Arábia Saudita | H148: 11.9164 | I148: 1.281178534e-06 | K148: 145 | L148: Bermudas | M148: 761.4182 | N148: 4.827467113e-05 | O148: 760.7738
A149: 146 | B149: Ceuta e Melilha | C149: 218.2844 | D149: 3.373011122e-05 | F149: 146 | G149: Macau | H149: 10.8202 | I149: 1.163321806e-06 | K149: 146 | L149: Arménia | M149: 668.1002 | N149: 4.235821712e-05 | O149: 637.4634
A150: 147 | B150: Macedónia, Antiga República jugoslava da | C150: 211.0332 | D150: 3.260962903e-05 | F150: 147 | G150: Kosovo | H150: 8.3722 | I150: 9.001278003e-07 | K150: 147 | L150: Namíbia | M150: 637.656 | N150: 4.042802457e-05 | O150: 493.4724
A151: 148 | B151: Antígua e Barbuda | C151: 210.131 | D151: 3.247021775e-05 | F151: 148 | G151: Líbia, Jamahira Árabe da | H151: 5.95 | I151: 6.397076529e-07 | K151: 148 | L151: Azerbaijão | M151: 603.1476 | N151: 3.824015769e-05 | O151: 412.7928
A152: 149 | B152: Curaçau | C152: 209.9818 | D152: 3.244716282e-05 | F152: 149 | G152: Cazaquistão | H152: 5.7394 | I152: 6.170652274e-07 | K152: 149 | L152: Bolívia | M152: 551.7916 | N152: 3.498413621e-05 | O152: 314.3992
A153: 150 | B153: Jamaica | C153: 203.435 | D153: 3.143552712e-05 | F153: 150 | G153: Jamaica | H153: 4.8022 | I153: 5.163032086e-07 | K153: 150 | L153: Barém | M153: 492.041 | N153: 3.119588875e-05 | O153: 483.3658
A154: 151 | B154: Argentina | C154: 203.072 | D154: 3.137943502e-05 | F154: 151 | G154: Andorra | H154: 4.6754 | I154: 5.026704471e-07 | K154: 151 | L154: São Bartolomeu | M154: 491.0894 | N154: 3.113555636e-05 | O154: 491.0894
A155: 152 | B155: El Salvador | C155: 195.6516 | D155: 3.023280742e-05 | F155: 152 | G155: São Cristovão e Nevis | H155: 4.4378 | I155: 4.771251466e-07 | K155: 152 | L155: Cazaquistão | M155: 437.0024 | N155: 2.770638677e-05 | O155: 425.5236
A156: 153 | B156: Haiti | C156: 165.8866 | D156: 2.563340975e-05 | F156: 153 | G156: Barém | H156: 4.3376 | I156: 4.663522547e-07 | K156: 153 | L156: Mauritânia | M156: 435.6674 | N156: 2.762174644e-05 | O156: 432.5194
A157: 154 | B157: Moldava, República de | C157: 152.7924 | D157: 2.361004563e-05 | F157: 154 | G157: Jibuti | H157: 4.0592 | I157: 4.364203874e-07 | K157: 154 | L157: Gâmbia | M157: 419.5722 | N157: 2.660129476e-05 | O157: 419.3534
A158: 155 | B158: Polinésia Francesa | C158: 150.2304 | D158: 2.321415594e-05 | F158: 155 | G158: Nepal | H158: 2.4598 | I158: 2.644626697e-07 | K158: 155 | L158: Aruba | M158: 414.7526 | N158: 2.629572732e-05 | O158: 414.3914
A159: 156 | B159: Nova Caledónia | C159: 143.105 | D159: 2.211311283e-05 | F159: 156 | G159: Iraque | H159: 1.8396 | I159: 1.977825543e-07 | K159: 156 | L159: Libéria | M159: 360.9352 | N159: 2.288365064e-05 | O159: 359.006
A160: 157 | B160: Madagáscar | C160: 130.3204 | D160: 2.013758925e-05 | F160: 157 | G160: Lesoto | H160: 1.7136 | I160: 1.84235804e-07 | K160: 157 | L160: São Martinho (parte holandesa) | M160: 349.9042 | N160: 2.218427427e-05 | O160: 349.9042
A161: 158 | B161: Maldivas | C161: 128.5284 | D161: 1.986068279e-05 | F161: 158 | G161: Mauritânia | H161: 1.574 | I161: 1.692268648e-07 | K161: 158 | L161: Usbequistão | M161: 318.4112 | N161: 2.018758675e-05 | O161: -256.8464
A162: 159 | B162: Trindade e Tobago | C162: 121.2186 | D162: 1.873114551e-05 | F162: 159 | G162: Liechtenstein | H162: 1.1774 | I162: 1.265868556e-07 | K162: 159 | L162: Comores | M162: 290.0546 | N162: 1.838975011e-05 | O162: 290.0546
A163: 160 | B163: Suriname | C163: 102.2448 | D163: 1.57992439e-05 | F163: 160 | G163: Libéria | H163: 0.9646 | I163: 1.037078995e-07 | K163: 160 | L163: Somália | M163: 236.563 | N163: 1.499832947e-05 | O163: 236.563
A164: 161 | B164: Kosovo | C164: 94.1708 | D164: 1.455161962e-05 | F164: 161 | G164: Território Palestiniano Ocupado | H164: 0.4852 | I164: 5.216574003e-08 | K164: 161 | L164: Ceuta | M164: 218.2844 | N164: 1.383944805e-05 | O164: 218.2844
A165: 162 | B165: Niger | C165: 94.1142 | D165: 1.454287358e-05 | F165: 162 | G165: Bermudas | H165: 0.3222 | I165: 3.464097576e-08 | K165: 162 | L165: Ceuta e Melilha | M165: 218.2844 | N165: 1.383944805e-05 | O165: 218.2844
A166: 163 | B166: Liechtenstein | C166: 84.0422 | D166: 1.298651096e-05 | F166: 163 | G166: Montenegro | H166: 0.3086 | I166: 3.317878684e-08 | K166: 163 | L166: Antígua e Barbuda | M166: 210.1506 | N166: 1.332375704e-05 | O166: 210.1114
A167: 164 | B167: Zâmbia | C167: 77.7902 | D167: 1.202042884e-05 | F167: 164 | G167: Gabão | H167: 0.25 | I167: 2.687847281e-08 | K167: 164 | L167: Curaçau | M167: 209.9818 | N167: 1.331305495e-05 | O167: 209.9818
A168: 165 | B168: Centro-Africana, República | C168: 75.2292 | D168: 1.162469367e-05 | F168: 165 | G168: Aruba | H168: 0.1806 | I168: 1.941700876e-08 | K168: 165 | L168: Jamaica | M168: 208.2372 | N168: 1.320244558e-05 | O168: 198.6328
A169: 166 | B169: Nepal | C169: 74.9902 | D169: 1.158776251e-05 | F169: 166 | G169: Burundi | H169: 0.114 | I169: 1.22565836e-08 | K169: 166 | L169: Haiti | M169: 165.8866 | N169: 1.051737542e-05 | O169: 165.8866
A170: 167 | B170: Zimbabwe | C170: 73.8234 | D170: 1.140746426e-05 | F170: 167 | G170: Gâmbia | H170: 0.1094 | I170: 1.17620197e-08 | K170: 167 | L170: Polinésia Francesa | M170: 150.2304 | N170: 9.524756768e-06 | O170: 150.2304
A171: 168 | B171: Bósnia-Herzegovina | C171: 42.5866 | D171: 6.580638627e-06 | F171: 168 | G171: Niger | H171: 0.094 | I171: 1.010630578e-08 | K171: 168 | L171: Nova Caledónia | M171: 143.105 | N171: 9.072999322e-06 | O171: 143.105
A172: 169 | B172: Jibuti | C172: 39.2514 | D172: 6.065271212e-06 | F172: 169 | G172: Antígua e Barbuda | H172: 0.0196 | I172: 2.107272268e-09 | K172: 169 | L172: Maldivas | M172: 128.532 | N172: 8.149056628e-06 | O172: 128.5248
A173: 170 | B173: Caimão, Ilhas | C173: 38.7778 | D173: 5.992088792e-06 | F173: 170 | G173: Mongólia | H173: 0.0112 | I173: 1.204155582e-09 | K173: 170 | L173: Trindade e Tobago | M173: 121.2186 | N173: 7.685379795e-06 | O173: 121.2186
A174: 171 | B174: Bahamas | C174: 37.4034 | D174: 5.779711431e-06 | F174: 171 | G174: Maldivas | H174: 0.0036 | I174: 3.870500085e-10 | K174: 171 | L174: Kosovo | M174: 102.543 | N174: 6.501328182e-06 | O174: 85.7986
A175: 172 | B175: Montenegro | C175: 32.3216 | D175: 4.994452937e-06 | F175: 172 | G175: Anguila | H175: 0 | I175: 0 | K175: 172 | L175: Afeganistão | M175: 100.3202 | N175: 6.360400451e-06 | O175: -62.4234
A176: 173 | B176: Usbequistão | C176: 30.7824 | D176: 4.756610072e-06 | F176: 173 | G176: Antárctica | H176: 0 | I176: 0 | K176: 173 | L176: Niger | M176: 94.2082 | N176: 5.972893573e-06 | O176: 94.0202
A177: 174 | B177: Melilha | C177: 27.4002 | D177: 4.233980043e-06 | F177: 174 | G177: Antilhas Holandesas | H177: 0 | I177: 0 | K177: 174 | L177: Liechtenstein | M177: 85.2196 | N177: 5.403007393e-06 | O177: 82.8648
A178: 175 | B178: Guiana | C178: 25.32 | D178: 3.912539861e-06 | F178: 175 | G178: Bahamas | H178: 0 | I178: 0 | K178: 175 | L178: Nepal | M178: 77.45 | N178: 4.910407026e-06 | O178: 72.5304
A179: 176 | B179: Mongólia | C179: 22.5308 | D179: 3.481542381e-06 | F179: 176 | G179: Barbados | H179: 0 | I179: 0 | K179: 176 | L179: Centro-Africana, República | M179: 75.2292 | N179: 4.769606097e-06 | O179: 75.2292
A180: 177 | B180: Afeganistão | C180: 18.9484 | D180: 2.92797671e-06 | F180: 177 | G180: Bonaire, Santo Eustáquio e Saba | H180: 0 | I180: 0 | K180: 177 | L180: Bósnia-Herzegovina | M180: 72.7512 | N180: 4.612498433e-06 | O180: 12.422
A181: 178 | B181: Laos, República Democrática Popular do | C181: 14.4822 | D181: 2.237843001e-06 | F181: 178 | G181: Botswana | H181: 0 | I181: 0 | K181: 178 | L181: Tajiquistão | M181: 53.4888 | N181: 3.391243116e-06 | O181: -53.4888
A182: 179 | B182: Turcas e Caicos, Ilhas | C182: 13.8882 | D182: 2.146055928e-06 | F182: 179 | G182: Bouvet, Ilha | H182: 0 | I182: 0 | K182: 179 | L182: Papuásia-Nova Guiné | M182: 43.9324 | N182: 2.785357852e-06 | O182: -38.1612
A183: 180 | B183: Turquemenistão | C183: 11.8398 | D183: 1.829529599e-06 | F183: 180 | G183: Brunei Darussalam | H183: 0 | I183: 0 | K183: 180 | L183: Jibuti | M183: 43.3106 | N183: 2.745935114e-06 | O183: 35.1922
A184: 181 | B184: Santa Lúcia | C184: 7.138 | D184: 1.102990108e-06 | F184: 181 | G184: Butão | H184: 0 | I184: 0 | K184: 181 | L184: Caimão, Ilhas | M184: 38.7778 | N184: 2.458551086e-06 | O184: 38.7778
A185: 182 | B185: São Marino | C185: 7.0982 | D185: 1.096840065e-06 | F185: 182 | G185: Caimão, Ilhas | H185: 0 | I185: 0 | K185: 182 | L185: Bahamas | M185: 37.4034 | N185: 2.371412759e-06 | O185: 37.4034
A186: 183 | B186: Malavi | C186: 6.019 | D186: 9.300780973e-07 | F186: 183 | G186: Centro-Africana, República | H186: 0 | I186: 0 | K186: 183 | L186: São Marino | M186: 36.6574 | N186: 2.324115617e-06 | O186: -22.461
A187: 184 | B187: Brunei Darussalam | C187: 5.9044 | D187: 9.123696823e-07 | F187: 184 | G187: Ceuta | H187: 0 | I187: 0 | K187: 184 | L187: Montenegro | M187: 32.6302 | N187: 2.068787132e-06 | O187: 32.013
A188: 185 | B188: Guam | C188: 5.0388 | D188: 7.786139752e-07 | F188: 185 | G188: Ceuta e Melilha | H188: 0 | I188: 0 | K188: 185 | L188: Kiribati | M188: 28.0754 | N188: 1.780008282e-06 | O188: -28.0754
A189: 186 | B189: São Vicente e Granadinas | C189: 4.8472 | D189: 7.490072359e-07 | F189: 186 | G189: Christmas, Ilha | H189: 0 | I189: 0 | K189: 186 | L189: Melilha | M189: 27.4002 | N189: 1.73719993e-06 | O189: 27.4002
A190: 187 | B190: Menores distantes dos Estados Unidos, lhas | C190: 4.5542 | D190: 7.037317944e-07 | F190: 187 | G190: Cocos (Keeling), Ilhas | H190: 0 | I190: 0 | K190: 187 | L190: Mongólia | M190: 22.542 | N190: 1.429185219e-06 | O190: 22.5196
A191: 188 | B191: Barbados | C191: 4.2816 | D191: 6.616086362e-07 | F191: 188 | G191: Comores | H191: 0 | I191: 0 | K191: 188 | L191: Quirguizistão | M191: 21.3092 | N191: 1.351024473e-06 | O191: -13.6412
A192: 189 | B192: Virgens Britânicas, Ilhas | C192: 4.2198 | D192: 6.520590721e-07 | F192: 189 | G192: Cook, Ilhas | H192: 0 | I192: 0 | K192: 189 | L192: Turcas e Caicos, Ilhas | M192: 13.8882 | N192: 8.805256922e-07 | O192: 13.8882
A193: 190 | B193: Quirguizistão | C193: 3.834 | D193: 5.92443832e-07 | F193: 190 | G193: Coreia, República Popular Democrática da | H193: 0 | I193: 0 | K193: 190 | L193: Santa Lúcia | M193: 7.138 | N193: 4.525562989e-07 | O193: 7.138
A194: 191 | B194: Sudão do Sul | C194: 3.771 | D194: 5.827088395e-07 | F194: 191 | G194: Curaçau | H194: 0 | I194: 0 | K194: 191 | L194: Brunei Darussalam | M194: 5.9044 | N194: 3.743448321e-07 | O194: 5.9044
A195: 192 | B195: Marianas do Norte, Ilhas | C195: 3.715 | D195: 5.740555128e-07 | F195: 192 | G195: Domínica | H195: 0 | I195: 0 | K195: 192 | L195: Guam | M195: 5.0388 | N195: 3.194649312e-07 | O195: 5.0388
A196: 193 | B196: Fiji, Ilhas | C196: 3.6356 | D196: =C196/$C$254 -> 5.617863317e-07 | F196: 193 | G196: Eritreia | H196: 0 | I196: =H196/$H$254 -> 0 | K196: 193 | L196: São Vicente e Granadinas | M196: 4.8472 | N196: =M196/$M$254 -> 3.073173007e-07 | O196: 4.8472
A197: 194 | B197: Papuásia-Nova Guiné | C197: 2.8856 | D197: 4.458935633e-07 | F197: 194 | G197: Falkland Ilhas (Malvinas) | H197: 0 | I197: 0 | K197: 194 | L197: Menores distantes dos Estados Unidos, lhas | M197: 4.5542 | N197: 2.887408093e-07 | O197: 4.5542
A198: 195 | B198: Belize | C198: 2.7332 | D198: 4.223441528e-07 | F198: 195 | G198: Faroé, Ilhas | H198: 0 | I198: 0 | K198: 195 | L198: São Cristovão e Nevis | M198: 4.4378 | N198: 2.813609335e-07 | O198: -4.4378
A199: 196 | B199: Botswana | C199: 1.85 | D199: 2.858688287e-07 | F199: 196 | G199: Geórgia do Sul e Ilhas Sandwich do Sul | H199: 0 | I199: 0 | K199: 196 | L199: Barbados | M199: 4.2816 | N199: 2.714576982e-07 | O199: 4.2816
A200: 197 | B200: Granada | C200: 1.1268 | D200: 1.741172952e-07 | F200: 197 | G200: Gibraltar | H200: 0 | I200: 0 | K200: 197 | L200: Virgens Britânicas, Ilhas | M200: 4.2198 | N200: 2.675395167e-07 | O200: 4.2198
... 59 more rows

Sheet 3
A1: Principais produtos agrícolas e agroalimentares, do mar e da floresta transacionados entre Portugal e Nepal em 2017-2021 (NC a 2 e 4 dígitos) em milhares de euros
AC4: P | AE4: Cód.NC | AF4: Descritivo | AG4: Média export quinquénio | AH4: % do total | AI4: % acumulada | AN4: P | AO4: NC | AP4: Exportações | AQ4: 2017 | AR4: 2018 | AS4: 2019 | AT4: 2020 | AU4: 2021 | AV4: média 2017-2021
AC5: 1 | AD5: º | AE5: 21 | AF5: Preparações alimentícias diversas | AG5: 46.369 | AH5: 0.5705296677 | AN5: 1º | AO5: 21 | AP5: Preparações alimentícias diversas | AQ5: 0 | AR5: 33.06 | AS5: 57.123 | AT5: 33.021 | AU5: 108.641 | AV5: 46.369
AC6: 2 | AD6: º | AE6: 15 | AF6: Gorduras e óleos animais ou vegetais | AG6: 19.506 | AH6: 0.2400041342 | AN6: 2º | AO6: 15 | AP6: Gorduras e óleos animais ou vegetais | AQ6: 0 | AR6: 0 | AS6: 38.474 | AT6: 26.462 | AU6: 32.594 | AV6: 19.506
AC7: 3 | AD7: º | AE7: 44 | AF7: Madeira e suas obras | AG7: 5.7084 | AH7: 0.07023682967 | AI7: 0.8807706315 | AN7: 3º | AO7: 44 | AP7: Madeira e suas obras | AQ7: 28.542 | AR7: 0 | AS7: 0 | AT7: 0 | AU7: 0 | AV7: 5.7084
AC8: 4 | AD8: º | AE8: 22 | AF8: Bebidas, líquidos alcoólicos e vinagres | AG8: 5.0698 | AH8: 0.06237941964 | AO8: - | AP8: Outros | AQ8: 25.349 | AR8: 2.739 | AS8: 20.217 | AT8: 0.111 | AU8: 0.035 | AV8: 9.6902
AC9: 5 | AD9: º | AE9: 20 | AF9: Preparações de produtos vegetais | AG9: 4.0434 | AH9: 0.04975047248 | AP9: Total | AQ9: 53.891 | AR9: 35.799 | AS9: 115.814 | AT9: 59.594 | AU9: 141.27 | AV9: 81.2736
AC10: 6 | AD10: º | AE10: 45 | AF10: Cortiça e suas obras | AG10: 0.5572 | AH10: 0.006855854792
AC11: 7 | AD11: º | AE11: 16p | AF11: Preparações e conservas de peixes ou crustáceos (NC 1604-05) (p) | AG11: 0.0178 | AH11: 0.0002190133081
AC12: 8 | AD12: º | AE12: 23a | AF12: Resíduos indústrias alimentares; alimentos p/ animais (exc. NC 230120) (a) | AG12: 0.002 | AH12: 2.460823687e-05
AC13: 9 | AD13: º | AG13: 0 | AH13: 0
AC14: 10 | AD14: º | AG14: 0 | AH14: 0 | AI14: 1
AG15: 0 | AH15: 0
AE16: Total | AG16: 81.2736 | AH16: 1
AC38: P | AE38: Cód.NC | AF38: Descritivo | AG38: Média import quinquénio | AH38: % do total | AI38: % acumulada | AN38: P | AO38: NC | AP38: Importações | AQ38: 2017 | AR38: 2018 | AS38: 2019 | AT38: 2020 | AU38: 2021 | AV38: média 2017-2021
AC39: 1 | AD39: º | AE39: 44 | AF39: Madeira e suas obras | AG39: 6.5656 | AH39: 0.7172540366 | AN39: 1º | AO39: 44 | AP39: Madeira e suas obras | AQ39: 1.416 | AR39: 2.647 | AS39: 13.131 | AT39: 7.131 | AU39: 8.503 | AV39: 6.5656
AC40: 2 | AD40: º | AE40: 09 | AF40: Café, chá, mate e especiarias | AG40: 1.2394 | AH40: 0.1353973213 | AN40: 2º | AO40: 09 | AP40: Café, chá, mate e especiarias | AQ40: 0 | AR40: 0 | AS40: 0 | AT40: 6.197 | AU40: 0 | AV40: 1.2394
AC41: 3 | AD41: º | AE41: 19a | AF41: Preparações à base de cereais (exc. NC 19022010) (a) | AG41: 0.5236 | AH41: 0.0572002884 | AI41: 0.9098516463 | AN41: 3º | AO41: 19a | AP41: Preparações à base de cereais (exc. NC 19022010) (a) | AQ41: 0 | AR41: 0 | AS41: 0 | AT41: 2.618 | AU41: 0 | AV41: 0.5236
AC42: 4 | AD42: º | AE42: 07 | AF42: Produtos hortícolas | AG42: 0.2536 | AH42: 0.02770434137 | AO42: - | AP42: Outros | AQ42: 0.532 | AR42: 0.007 | AS42: 0.185 | AT42: 3.286 | AU42: 0.116 | AV42: 0.8252
AC43: 5 | AD43: º | AE43: 11 | AF43: Produtos da indústria de moagem e outros | AG43: 0.1722 | AH43: 0.01881185956 | AP43: Total | AQ43: 1.948 | AR43: 2.654 | AS43: 13.316 | AT43: 19.232 | AU43: 8.619 | AV43: 9.1538
AC44: 6 | AD44: º | AE44: 20 | AF44: Preparações de produtos vegetais | AG44: 0.1538 | AH44: 0.01680176539
AC45: 7 | AD45: º | AE45: 48 | AF45: Papel e cartão | AG45: 0.0758 | AH45: 0.00828071402
AC46: 8 | AD46: º | AE46: 12 | AF46: Sementes e frutos oleaginosos | AG46: 0.0632 | AH46: 0.006904236492
AC47: 9 | AD47: º | AE47: 53 | AF47: Linho e cânhamo em bruto (NC 5301-5302) | AG47: 0.054 | AH47: 0.005899189408
AC48: 10 | AD48: º | AE48: 13f | AF48: Gomas e resinas (NC 1301) (f) | AG48: 0.0344 | AH48: 0.003758002141 | AI48: 0.9980117547
AE49: - | AF49: Outros | AG49: 0.0182 | AH49: 0.001988245319
AE50: Total | AG50: 9.1538 | AH50: 1
AC62: DESAGREGAÇÃO A 4 DÍGITOS | AN62: DESAGREGAÇÃO A 4 DÍGITOS
AC64: P | AE64: Cód.NC | AF64: Descritivo | AG64: Média export quinquénio | AH64: % do total | AI64: % acumulada | AN64: P | AO64: NC | AP64: Exportações | AQ64: 2017 | AR64: 2018 | AS64: 2019 | AT64: 2020 | AU64: 2021 | AV64: média 2017-2021
AC65: 1 | AD65: º | AE65: 2106 | AF65: Outras preparações alimentícias | AG65: 38.525 | AH65: 0.4740161627 | AN65: 1º | AO65: 2106 | AP65: Outras preparações alimentícias | AQ65: 0 | AR65: 33.06 | AS65: 57.123 | AT65: 33.021 | AU65: 69.421 | AV65: 38.525
AC66: 2 | AD66: º | AE66: 1510 | AF66: Óleos de azeitonas obtidos por outros processos | AG66: 11.8046 | AH66: 0.1452451965 | AN66: 2º | AO66: 1510 | AP66: Óleos de azeitonas obtidos por outros processos | AQ66: 0 | AR66: 0 | AS66: 29.876 | AT66: 15.695 | AU66: 13.452 | AV66: 11.8046
AC67: 3 | AD67: º | AE67: 2102 | AF67: Leveduras, vivas ou mortas, etc. | AG67: 7.844 | AH67: 0.096513505 | AI67: 0.7157748642 | AN67: 3º | AO67: 2102 | AP67: Leveduras, vivas ou mortas, etc. | AQ67: 0 | AR67: 0 | AS67: 0 | AT67: 0 | AU67: 39.22 | AV67: 7.844
AC68: 4 | AD68: º | AE68: 1509 | AF68: Azeite (processos mecânicos ou físicos) | AG68: 7.7014 | AH68: 0.09475893771 | AN68: - | AO68: - | AP68: Outros | AQ68: 53.891 | AR68: 2.739 | AS68: 28.815 | AT68: 10.878 | AU68: 19.177 | AV68: 23.1
AC69: 5 | AD69: º | AE69: 2204 | AF69: Vinhos de uvas frescas | AG69: 5.0698 | AH69: 0.06237941964 | AP69: Total | AQ69: 53.891 | AR69: 35.799 | AS69: 115.814 | AT69: 59.594 | AU69: 141.27 | AV69: 81.2736
AC70: 6 | AD70: º | AE70: 4407 | AF70: Madeira serrada, etc. | AG70: 4.9938 | AH70: 0.06144430664
AC71: 7 | AD71: º | AE71: 2005 | AF71: Produtos hortícolas preparados, não congelados | AG71: 4.0434 | AH71: 0.04975047248
AC72: 8 | AD72: º | AE72: 4409 | AF72: Madeira em tacos e frisos | AG72: 0.7146 | AH72: 0.008792523033
AC73: 9 | AD73: º | AE73: 4504 | AF73: Cortiça aglomerada e suas obras | AG73: 0.5478 | AH73: 0.006740196078
AC74: 10 | AD74: º | AE74: 1604 | AF74: Preparações e conservas de peixes, etc. | AG74: 0.0178 | AH74: 0.0002190133081 | AI74: 0.999859733
AE75: - | AF75: Outros | AG75: 0.0114 | AH75: 0.0001402669502
AE76: Total | AG76: 81.2736 | AH76: 1
AC89: DESAGREGAÇÃO A 4 DÍGITOS | AN89: DESAGREGAÇÃO A 4 DÍGITOS
G91: média 2017-2021 em milhares de euros | I91: Cód. NC | J91: Descritivo | K91: Export | L91: Import | M91: Saldo | AC91: P | AE91: Cód.NC | AF91: Descritivo | AG91: Média import quinquénio | AH91: % do total | AI91: % acumulada | AN91: P | AO91: NC | AP91: Importações | AQ91: 2017 | AR91: 2018 | AS91: 2019 | AT91: 2020 | AU91: 2021 | AV91: média 2017-2021
I92: 2106 | J92: Outras preparações alimentícias | K92: 38.525 | L92: 0 | M92: 38.525 | AC92: 1 | AD92: º | AE92: 4417 | AF92: Ferramentas de madeira; etc. | AG92: 4.7426 | AH92: 0.5181017719 | AN92: 1º | AO92: 4417 | AP92: Ferramentas de madeira; etc. | AQ92: 0 | AR92: 0.715 | AS92: 9.914 | AT92: 4.839 | AU92: 8.245 | AV92: 4.7426
I93: 1510 | J93: Óleos de azeitonas obtidos por outros processos | K93: 11.8046 | L93: 0 | M93: 11.8046 | AC93: 2 | AD93: º | AE93: 4421 | AF93: Outras obras de madeira | AG93: 0.9464 | AH93: 0.1033887566 | AN93: 2º | AO93: 4421 | AP93: Outras obras de madeira | AQ93: 0.073 | AR93: 1.184 | AS93: 1.25 | AT93: 2.225 | AU93: 0 | AV93: 0.9464
I94: 2102 | J94: Leveduras, vivas ou mortas, etc. | K94: 7.844 | L94: 0 | M94: 7.844 | AC94: 3 | AD94: º | AE94: 4420 | AF94: Madeira marchetada e incrustada; etc. | AG94: 0.5948 | AH94: 0.06497847888 | AI94: 0.6864690074 | AN94: 3º | AO94: 4420 | AP94: Madeira marchetada e incrustada; etc. | AQ94: 1.343 | AR94: 0.658 | AS94: 0.648 | AT94: 0.067 | AU94: 0.258 | AV94: 0.5948
I95: 1509 | J95: Azeite (processos mecânicos ou físicos) | K95: 7.7014 | L95: 0 | M95: 7.7014 | AC95: 4 | AD95: º | AE95: 0910 | AF95: Gengibre, açafrão, tomilho, louro, etc. | AG95: 0.4914 | AH95: 0.05368262361 | AN95: - | AO95: - | AP95: Outros | AQ95: 0.532 | AR95: 0.097 | AS95: 1.504 | AT95: 12.101 | AU95: 0.116 | AV95: 2.87
I96: 2204 | J96: Vinhos de uvas frescas | K96: 5.0698 | L96: 0 | M96: 5.0698 | AC96: 5 | AD96: º | AE96: 0902 | AF96: Chá | AG96: 0.4418 | AH96: 0.04826410889 | AP96: Total | AQ96: 1.948 | AR96: 2.654 | AS96: 13.316 | AT96: 19.232 | AU96: 8.619 | AV96: 9.1538
I97: 4407 | J97: Madeira serrada, etc. | K97: 4.9938 | L97: 0 | M97: 4.9938 | AC97: 6 | AD97: º | AE97: 1902 | AF97: Massas alimentícias (exc. NC 1902 20 10) (a) | AG97: 0.4274 | AH97: 0.04669099172
I98: 2005 | J98: Produtos hortícolas preparados, não congelados | K98: 4.0434 | L98: 0.1538 | M98: 3.8896 | AC98: 7 | AD98: º | AE98: 0904 | AF98: Pimenta | AG98: 0.3062 | AH98: 0.03345058883
I99: 4409 | J99: Madeira em tacos e frisos | K99: 0.7146 | L99: 0 | M99: 0.7146 | AC99: 8 | AD99: º | AE99: 4418 | AF99: Obras de marcenaria ou carpintaria | AG99: 0.2818 | AH99: 0.03078502917
I100: 4504 | J100: Cortiça aglomerada e suas obras | K100: 0.5478 | L100: 0 | M100: 0.5478 | AC100: 9 | AD100: º | AE100: 0713 | AF100: Legumes de vagem, secos, em grão | AG100: 0.2536 | AH100: 0.02770434137
I101: 1604 | J101: Preparações e conservas de peixes, etc. | K101: 0.0178 | L101: 0 | M101: 0.0178 | AC101: 10 | AD101: º | AE101: 2005 | AF101: Produtos hortícolas preparados, não congelados | AG101: 0.1538 | AH101: 0.01680176539 | AI101: 0.9438484564
I102: - | J102: Outros | K102: 0.0114 | L102: 0.4018 | M102: -0.3904 | AE102: - | AF102: Outros | AG102: 0.514 | AH102: 0.05615154362
I103: 1102 | J103: Outras farinhas de cereais | K103: 0 | L103: 0.1122 | M103: -0.1122 | AE103: Total | AG103: 9.1538 | AH103: 1
I104: 0713 | J104: Legumes de vagem, secos, em grão | K104: 0 | L104: 0.2536 | M104: -0.2536
I105: 4418 | J105: Obras de marcenaria ou carpintaria | K105: 0 | L105: 0.2818 | M105: -0.2818
I106: 0904 | J106: Pimenta | K106: 0 | L106: 0.3062 | M106: -0.3062
I107: 1902 | J107: Massas alimentícias (exc. NC 1902 20 10) (a) | K107: 0 | L107: 0.4274 | M107: -0.4274
I108: 0902 | J108: Chá | K108: 0 | L108: 0.4418 | M108: -0.4418
I109: 0910 | J109: Gengibre, açafrão, tomilho, louro, etc. | K109: 0 | L109: 0.4914 | M109: -0.4914
I110: 4420 | J110: Madeira marchetada e incrustada; etc. | K110: 0 | L110: 0.5948 | M110: -0.5948
I111: 4421 | J111: Outras obras de madeira | K111: 0 | L111: 0.9464 | M111: -0.9464
I112: 4417 | J112: Ferramentas de madeira; etc. | K112: 0 | L112: 4.7426 | M112: -4.7426
I113: Total | K113: 81.2736 | L113: 9.1538 | M113: 72.1198
A116: Fonte: GPP a partir de dados INE/Comércio Internacional (2020 provisórios; 2021 preliminares) | Y116: 2023-01-23T14:01:56.680

Sheet 3A
A1: Principais produtos agrícolas e agroalimentares transacionados entre Portugal e Nepal em 2017-2021 (NC a 2 e 4 dígitos) em milhares de euros
AC4: P | AE4: Cód.NC | AF4: Descritivo | AG4: Média export quinquénio | AH4: % do total | AI4: % acumulada | AN4: P | AO4: NC | AP4: Exportações | AQ4: 2017 | AR4: 2018 | AS4: 2019 | AT4: 2020 | AU4: 2021 | AV4: média 2017-2021
AC5: 1 | AD5: º | AE5: 21 | AF5: Preparações alimentícias diversas | AG5: 46.369 | AH5: 0.618334129 | AN5: 1º | AO5: 21 | AP5: Preparações alimentícias diversas | AQ5: 0 | AR5: 33.06 | AS5: 57.123 | AT5: 33.021 | AU5: 108.641 | AV5: 46.369
AC6: 2 | AD6: º | AE6: 15 | AF6: Gorduras e óleos animais ou vegetais | AG6: 19.506 | AH6: 0.2601139882 | AN6: 2º | AO6: 15 | AP6: Gorduras e óleos animais ou vegetais | AQ6: 0 | AR6: 0 | AS6: 38.474 | AT6: 26.462 | AU6: 32.594 | AV6: 19.506
AC7: 3 | AD7: º | AE7: 22 | AF7: Bebidas, líquidos alcoólicos e vinagres | AG7: 5.0698 | AH7: 0.06760616721 | AI7: 0.9460542844 | AN7: 3º | AO7: 22 | AP7: Bebidas, líquidos alcoólicos e vinagres | AQ7: 25.349 | AR7: 0 | AS7: 0 | AT7: 0 | AU7: 0 | AV7: 5.0698
AC8: 4 | AD8: º | AE8: 20 | AF8: Preparações de produtos vegetais | AG8: 4.0434 | AH8: 0.05391904542 | AO8: - | AP8: Outros | AQ8: 0 | AR8: 0 | AS8: 20.217 | AT8: 0.01 | AU8: 0 | AV8: 4.0454
AC9: 5 | AD9: º | AE9: 23a | AF9: Resíduos indústrias alimentares; alimentos p/ animais (exc. NC 230120) (a) | AG9: 0.002 | AH9: 2.667015157e-05 | AP9: Total | AQ9: 25.349 | AR9: 33.06 | AS9: 115.814 | AT9: 59.493 | AU9: 141.235 | AV9: 74.9902
AC10: 6 | AD10: º | AG10: 0 | AH10: 0
AC11: 7 | AD11: º | AG11: 0 | AH11: 0
AC12: 8 | AD12: º | AG12: 0 | AH12: 0
AC13: 9 | AD13: º | AG13: 0 | AH13: 0
AC14: 10 | AD14: º | AG14: 0 | AH14: 0 | AI14: 1
AG15: 0 | AH15: 0
AE16: Total | AG16: 74.9902 | AH16: 1
AC38: P | AE38: Cód.NC | AF38: Descritivo | AG38: Média import quinquénio | AH38: % do total | AI38: % acumulada | AN38: P | AO38: NC | AP38: Importações | AQ38: 2017 | AR38: 2018 | AS38: 2019 | AT38: 2020 | AU38: 2021 | AV38: média 2017-2021
AC39: 1 | AD39: º | AE39: 09 | AF39: Café, chá, mate e especiarias | AG39: 1.2394 | AH39: 0.5038621026 | AN39: 1º | AO39: 09 | AP39: Café, chá, mate e especiarias | AQ39: 0 | AR39: 0 | AS39: 0 | AT39: 6.197 | AU39: 0 | AV39: 1.2394
AC40: 2 | AD40: º | AE40: 19a | AF40: Preparações à base de cereais (exc. NC 19022010) (a) | AG40: 0.5236 | AH40: 0.2128628344 | AN40: 2º | AO40: 19a | AP40: Preparações à base de cereais (exc. NC 19022010) (a) | AQ40: 0 | AR40: 0 | AS40: 0 | AT40: 2.618 | AU40: 0 | AV40: 0.5236
AC41: 3 | AD41: º | AE41: 07 | AF41: Produtos hortícolas | AG41: 0.2536 | AH41: 0.1030978128 | AI41: 0.8198227498 | AN41: 3º | AO41: 07 | AP41: Produtos hortícolas | AQ41: 0 | AR41: 0 | AS41: 0 | AT41: 1.268 | AU41: 0 | AV41: 0.2536
AC42: 4 | AD42: º | AE42: 11 | AF42: Produtos da indústria de moagem e outros | AG42: 0.1722 | AH42: 0.07000569152 | AO42: - | AP42: Outros | AQ42: 0.27 | AR42: 0 | AS42: 0 | AT42: 1.946 | AU42: 0 | AV42: 0.4432
AC43: 5 | AD43: º | AE43: 20 | AF43: Preparações de produtos vegetais | AG43: 0.1538 | AH43: 0.06252540857 | AP43: Total | AQ43: 0.27 | AR43: 0 | AS43: 0 | AT43: 12.029 | AU43: 0 | AV43: 2.4598
AC44: 6 | AD44: º | AE44: 12 | AF44: Sementes e frutos oleaginosos | AG44: 0.0632 | AH44: 0.02569314578
AC45: 7 | AD45: º | AE45: 53 | AF45: Linho e cânhamo em bruto (NC 5301-5302) | AG45: 0.054 | AH45: 0.02195300431
AC46: 8 | AD46: º | AG46: 0 | AH46: 0
AC47: 9 | AD47: º | AG47: 0 | AH47: 0
AC48: 10 | AD48: º | AG48: 0 | AH48: 0 | AI48: 1
AG49: 0 | AH49: 0
AE50: Total | AG50: 2.4598 | AH50: 1
AC62: DESAGREGAÇÃO A 4 DÍGITOS | AN62: DESAGREGAÇÃO A 4 DÍGITOS
AC64: P | AE64: Cód.NC | AF64: Descritivo | AG64: Média export quinquénio | AH64: % do total | AI64: % acumulada | AN64: P | AO64: NC | AP64: Exportações | AQ64: 2017 | AR64: 2018 | AS64: 2019 | AT64: 2020 | AU64: 2021 | AV64: média 2017-2021
AC65: 1 | AD65: º | AE65: 2106 | AF65: Outras preparações alimentícias | AG65: 38.525 | AH65: 0.5137337945 | AN65: 1º | AO65: 2106 | AP65: Outras preparações alimentícias | AQ65: 0 | AR65: 33.06 | AS65: 57.123 | AT65: 33.021 | AU65: 69.421 | AV65: 38.525
AC66: 2 | AD66: º | AE66: 1510 | AF66: Óleos de azeitonas obtidos por outros processos | AG66: 11.8046 | AH66: 0.1574152356 | AN66: 2º | AO66: 1510 | AP66: Óleos de azeitonas obtidos por outros processos | AQ66: 0 | AR66: 0 | AS66: 29.876 | AT66: 15.695 | AU66: 13.452 | AV66: 11.8046
AC67: 3 | AD67: º | AE67: 2102 | AF67: Leveduras, vivas ou mortas, etc. | AG67: 7.844 | AH67: 0.1046003344 | AI67: 0.7757493646 | AN67: 3º | AO67: 2102 | AP67: Leveduras, vivas ou mortas, etc. | AQ67: 0 | AR67: 0 | AS67: 0 | AT67: 0 | AU67: 39.22 | AV67: 7.844
AC68: 4 | AD68: º | AE68: 1509 | AF68: Azeite (processos mecânicos ou físicos) | AG68: 7.7014 | AH68: 0.1026987526 | AN68: - | AO68: - | AP68: Outros | AQ68: 25.349 | AR68: 0 | AS68: 28.815 | AT68: 10.777 | AU68: 19.142 | AV68: 16.8166
AC69: 5 | AD69: º | AE69: 2204 | AF69: Vinhos de uvas frescas | AG69: 5.0698 | AH69: 0.06760616721 | AP69: Total | AQ69: 25.349 | AR69: 33.06 | AS69: 115.814 | AT69: 59.493 | AU69: 141.235 | AV69: 74.9902
AC70: 6 | AD70: º | AE70: 2005 | AF70: Produtos hortícolas preparados, não congelados | AG70: 4.0434 | AH70: 0.05391904542
AC71: 7 | AD71: º | AE71: 2309 | AF71: Preparações p/ alimentação animal | AG71: 0.002 | AH71: 2.667015157e-05
AC72: 8 | AD72: º | AG72: 0 | AH72: 0
AC73: 9 | AD73: º | AG73: 0 | AH73: 0
AC74: 10 | AD74: º | AG74: 0 | AH74: 0 | AI74: 1
AG75: 0 | AH75: 0
AE76: Total | AG76: 74.9902 | AH76: 1
AC89: DESAGREGAÇÃO A 4 DÍGITOS | AN89: DESAGREGAÇÃO A 4 DÍGITOS
G91: média 2017-2021 em milhares de euros | I91: Cód. NC | J91: Descritivo | K91: Export | L91: Import | M91: Saldo | AC91: P | AE91: Cód.NC | AF91: Descritivo | AG91: Média import quinquénio | AH91: % do total | AI91: % acumulada | AN91: P | AO91: NC | AP91: Importações | AQ91: 2017 | AR91: 2018 | AS91: 2019 | AT91: 2020 | AU91: 2021 | AV91: média 2017-2021
I92: 2106 | J92: Outras preparações alimentícias | K92: 38.525 | L92: 0 | M92: 38.525 | AC92: 1 | AD92: º | AE92: 0910 | AF92: Gengibre, açafrão, tomilho, louro, etc. | AG92: 0.4914 | AH92: 0.1997723392 | AN92: 1º | AO92: 0910 | AP92: Gengibre, açafrão, tomilho, louro, etc. | AQ92: 0 | AR92: 0 | AS92: 0 | AT92: 2.457 | AU92: 0 | AV92: 0.4914
I93: 1510 | J93: Óleos de azeitonas obtidos por outros processos | K93: 11.8046 | L93: 0 | M93: 11.8046 | AC93: 2 | AD93: º | AE93: 0902 | AF93: Chá | AG93: 0.4418 | AH93: 0.1796080982 | AN93: 2º | AO93: 0902 | AP93: Chá | AQ93: 0 | AR93: 0 | AS93: 0 | AT93: 2.209 | AU93: 0 | AV93: 0.4418
I94: 2102 | J94: Leveduras, vivas ou mortas, etc. | K94: 7.844 | L94: 0 | M94: 7.844 | AC94: 3 | AD94: º | AE94: 1902 | AF94: Massas alimentícias (exc. NC 1902 20 10) (a) | AG94: 0.4274 | AH94: 0.1737539637 | AI94: 0.5531344012 | AN94: 3º | AO94: 1902 | AP94: Massas alimentícias (exc. NC 1902 20 10) (a) | AQ94: 0 | AR94: 0 | AS94: 0 | AT94: 2.137 | AU94: 0 | AV94: 0.4274
I95: 1509 | J95: Azeite (processos mecânicos ou físicos) | K95: 7.7014 | L95: 0 | M95: 7.7014 | AC95: 4 | AD95: º | AE95: 0904 | AF95: Pimenta | AG95: 0.3062 | AH95: 0.1244816652 | AN95: - | AO95: - | AP95: Outros | AQ95: 0.27 | AR95: 0 | AS95: 0 | AT95: 5.226 | AU95: 0 | AV95: 1.0992
I96: 2204 | J96: Vinhos de uvas frescas | K96: 5.0698 | L96: 0 | M96: 5.0698 | AC96: 5 | AD96: º | AE96: 0713 | AF96: Legumes de vagem, secos, em grão | AG96: 0.2536 | AH96: 0.1030978128 | AP96: Total | AQ96: 0.27 | AR96: 0 | AS96: 0 | AT96: 12.029 | AU96: 0 | AV96: 2.4598
I97: 2005 | J97: Produtos hortícolas preparados, não congelados | K97: 4.0434 | L97: 0.1538 | M97: 3.8896 | AC97: 6 | AD97: º | AE97: 2005 | AF97: Produtos hortícolas preparados, não congelados | AG97: 0.1538 | AH97: 0.06252540857
I98: 2309 | J98: Preparações p/ alimentação animal | K98: 0.002 | L98: 0 | M98: 0.002 | AC98: 7 | AD98: º | AE98: 1102 | AF98: Outras farinhas de cereais | AG98: 0.1122 | AH98: 0.04561346451
K99: 0 | L99: 0 | M99: 0 | AC99: 8 | AD99: º | AE99: 1904 | AF99: Produtos à base de cereais | AG99: 0.0962 | AH99: 0.03910887064
K100: 0 | L100: 0 | M100: 0 | AC100: 9 | AD100: º | AE100: 1201 | AF100: Soja, mesmo triturada | AG100: 0.0632 | AH100: 0.02569314578
K101: 0 | L101: 0 | M101: 0 | AC101: 10 | AD101: º | AE101: 1101 | AF101: Farinhas de trigo ou trigo/centeio | AG101: 0.06 | AH101: 0.02439222701 | AI101: 0.9780469957
I102: - | J102: Outros | K102: 0 | L102: 0 | M102: 3.108624469e-14 | AE102: - | AF102: Outros | AG102: 0.054 | AH102: 0.02195300431
I103: 5302 | J103: Cânhamo em bruto; desperdícios de cânhamo | K103: 0 | L103: 0.054 | M103: -0.054 | AE103: Total | AG103: 2.4598 | AH103: 1
I104: 1101 | J104: Farinhas de trigo ou trigo/centeio | K104: 0 | L104: 0.06 | M104: -0.06
I105: 1201 | J105: Soja, mesmo triturada | K105: 0 | L105: 0.0632 | M105: -0.0632
I106: 1904 | J106: Produtos à base de cereais | K106: 0 | L106: 0.0962 | M106: -0.0962
I107: 1102 | J107: Outras farinhas de cereais | K107: 0 | L107: 0.1122 | M107: -0.1122
I108: 0713 | J108: Legumes de vagem, secos, em grão | K108: 0 | L108: 0.2536 | M108: -0.2536
I109: 0904 | J109: Pimenta | K109: 0 | L109: 0.3062 | M109: -0.3062
I110: 1902 | J110: Massas alimentícias (exc. NC 1902 20 10) (a) | K110: 0 | L110: 0.4274 | M110: -0.4274
I111: 0902 | J111: Chá | K111: 0 | L111: 0.4418 | M111: -0.4418
I112: 0910 | J112: Gengibre, açafrão, tomilho, louro, etc. | K112: 0 | L112: 0.4914 | M112: -0.4914
I113: Total | K113: 74.9902 | L113: 2.4598 | M113: 72.5304
A116: Fonte: GPP a partir de dados INE/Comércio Internacional (2020 provisórios; 2021 preliminares) | Y116: 2023-01-23T14:01:56.680

Sheet 4
A1: Evolução da balança comercial Portugal-Nepal 2017-2021 por produto em euros (NC 2 dígitos)
A3: =+aux!A31 -> Evolução da balança comercial Portugal-Nepal para Preparações alimentícias diversas
A5: Selecione o produto:
Q7: Para obter uma maior desagregação deste produto, clique no botão respetivo:
A20: =+aux!A43 -> Evolução da balança comercial Portugal-Nepal para Café, chá, mate e especiarias
A22: Selecione o produto:
A38: Fonte: GPP a partir de dados INE/Comércio Internacional (2020 provisórios; 2021 preliminares) | M38: 2023-01-23T14:01:56.680

Sheet 5
A1: Trocas comerciais Portugal-Nepal 2017-2021 em euros (NC 2 dígitos) | C1: Produtos agrícolas e agroalimentares, do mar e da floresta (em destaque, produto mais transacionado - importação e exportação)
A2: Cód. NC | B2: Descritivo | C2: Importações | K2: Exportações | S2: Saldo quinquénio (exp-imp) | T2: Evolução das importações | U2: =+"Variação das Importações " & INDEX(K3:N3,1,aux!AL1) & "-"& '5'!O3 &"" -> Variação das Importações 2017-2021 | Z2: Evolução das exportações | AA2: ="Variação das Exportações " & INDEX(K3:N3,1,aux!AL1) & "-"& '5'!O3 &"" -> Variação das Exportações 2017-2021
C3: 2017 | D3: 2018 | E3: 2019 | F3: 2020 | G3: 2021 | H3: média quinquénio | I3: % Subtot | J3: % Total | K3: 2017 | L3: 2018 | M3: 2019 | N3: 2020 | O3: 2021 | P3: média quinquénio | Q3: % Subtot | R3: % Total | U3: variação total em valor | V3: % no subtotal de variação | W3: % no total de variação | X3: taxa de variação média anual | Y3: taxa de variação total | AA3: variação total em valor | AB3: % no subtotal de variação | AC3: % no total de variação | AD3: taxa de variação média anual | AE3: taxa de variação total
A4: 01 | B4: Animais vivos | C4: 0 | D4: 0 | E4: 0 | F4: 0 | G4: 0 | H4: 0 | I4: 0 | J4: 0 | K4: 0 | L4: 0 | M4: 0 | N4: 0 | O4: 0 | P4: 0 | Q4: 0 | R4: 0 | S4: 0 | U4: =G4-INDEX($C4:$G4,1,aux!$AL$1) -> 0 | V4: =IF($U$37<>0,U4/$U$37, "n.d.") -> 0 | W4: =IF($U$53<>0,U4/$U$53, "n.d.") -> 0 | X4: =+IF(INDEX($C4:$G4,1,aux!$AL$1)>0,(G4/INDEX($C4:$G4,1,aux!$AL$1))^(1/($G$3-INDEX($C$3:$G$3,1,aux!$AL$1)))-1,"n.d.") -> n.d. | Y4: =IF(INDEX($C4:$G4,1,aux!$AL$1)>0,(G4-INDEX($C4:$G4,1,aux!$AL$1))/INDEX($C4:$G4,1,aux!$AL$1),"n.d.") -> n.d. | AA4: =O4-INDEX($K4:$O4,1,aux!$AL$1) -> 0 | AB4: =IF($AA$37<>0,AA4/$AA$37, "n.d.") -> 0 | AC4: =IF($AA$53<>0,AA4/$AA$53, "n.d.") -> 0 | AD4: =+IF(INDEX($K4:$O4,1,aux!$AL$1)>0,(O4/INDEX($K4:$O4,1,aux!$AL$1))^(1/($O$3-INDEX($K$3:$O$3,1,aux!$AL$1)))-1,"n.d.") -> n.d. | AE4: =IF(INDEX($K4:$O4,1,aux!$AL$1)>0,(O4-INDEX($K4:$O4,1,aux!$AL$1))/INDEX($K4:$O4,1,aux!$AL$1),"n.d.") -> n.d.
A5: 02 | B5: Carnes e miudezas | C5: 0 | D5: 0 | E5: 0 | F5: 0 | G5: 0 | H5: 0 | I5: 0 | J5: 0 | K5: 0 | L5: 0 | M5: 0 | N5: 0 | O5: 0 | P5: 0 | Q5: 0 | R5: 0 | S5: 0 | U5: =G5-INDEX($C5:$G5,1,aux!$AL$1) -> 0 | V5: 0 | W5: 0 | X5: =+IF(INDEX($C5:$G5,1,aux!$AL$1)>0,(G5/INDEX($C5:$G5,1,aux!$AL$1))^(1/($G$3-INDEX($C$3:$G$3,1,aux!$AL$1)))-1,"n.d.") -> n.d. | Y5: =IF(INDEX($C5:$G5,1,aux!$AL$1)>0,(G5-INDEX($C5:$G5,1,aux!$AL$1))/INDEX($C5:$G5,1,aux!$AL$1),"n.d.") -> n.d. | AA5: =O5-INDEX($K5:$O5,1,aux!$AL$1) -> 0 | AB5: 0 | AC5: 0 | AD5: =+IF(INDEX($K5:$O5,1,aux!$AL$1)>0,(O5/INDEX($K5:$O5,1,aux!$AL$1))^(1/($O$3-INDEX($K$3:$O$3,1,aux!$AL$1)))-1,"n.d.") -> n.d. | AE5: =IF(INDEX($K5:$O5,1,aux!$AL$1)>0,(O5-INDEX($K5:$O5,1,aux!$AL$1))/INDEX($K5:$O5,1,aux!$AL$1),"n.d.") -> n.d.
A6: 04 | B6: Leite e laticínios; ovos; mel, etc. | C6: 0 | D6: 0 | E6: 0 | F6: 0 | G6: 0 | H6: 0 | I6: 0 | J6: 0 | K6: 0 | L6: 0 | M6: 0 | N6: 0 | O6: 0 | P6: 0 | Q6: 0 | R6: 0 | S6: 0 | U6: =G6-INDEX($C6:$G6,1,aux!$AL$1) -> 0 | V6: 0 | W6: 0 | X6: =+IF(INDEX($C6:$G6,1,aux!$AL$1)>0,(G6/INDEX($C6:$G6,1,aux!$AL$1))^(1/($G$3-INDEX($C$3:$G$3,1,aux!$AL$1)))-1,"n.d.") -> n.d. | Y6: =IF(INDEX($C6:$G6,1,aux!$AL$1)>0,(G6-INDEX($C6:$G6,1,aux!$AL$1))/INDEX($C6:$G6,1,aux!$AL$1),"n.d.") -> n.d. | AA6: =O6-INDEX($K6:$O6,1,aux!$AL$1) -> 0 | AB6: 0 | AC6: 0 | AD6: =+IF(INDEX($K6:$O6,1,aux!$AL$1)>0,(O6/INDEX($K6:$O6,1,aux!$AL$1))^(1/($O$3-INDEX($K$3:$O$3,1,aux!$AL$1)))-1,"n.d.") -> n.d. | AE6: =IF(INDEX($K6:$O6,1,aux!$AL$1)>0,(O6-INDEX($K6:$O6,1,aux!$AL$1))/INDEX($K6:$O6,1,aux!$AL$1),"n.d.") -> n.d.
A7: 05a | B7: Outros produtos de origem animal (exc. NC 0508, 051191) (a) | C7: 0 | D7: 0 | E7: 0 | F7: 0 | G7: 0 | H7: 0 | I7: 0 | J7: 0 | K7: 0 | L7: 0 | M7: 0 | N7: 0 | O7: 0 | P7: 0 | Q7: 0 | R7: 0 | S7: 0 | U7: =G7-INDEX($C7:$G7,1,aux!$AL$1) -> 0 | V7: 0 | W7: 0 | X7: =+IF(INDEX($C7:$G7,1,aux!$AL$1)>0,(G7/INDEX($C7:$G7,1,aux!$AL$1))^(1/($G$3-INDEX($C$3:$G$3,1,aux!$AL$1)))-1,"n.d.") -> n.d. | Y7: =IF(INDEX($C7:$G7,1,aux!$AL$1)>0,(G7-INDEX($C7:$G7,1,aux!$AL$1))/INDEX($C7:$G7,1,aux!$AL$1),"n.d.") -> n.d. | AA7: =O7-INDEX($K7:$O7,1,aux!$AL$1) -> 0 | AB7: 0 | AC7: 0 | AD7: =+IF(INDEX($K7:$O7,1,aux!$AL$1)>0,(O7/INDEX($K7:$O7,1,aux!$AL$1))^(1/($O$3-INDEX($K$3:$O$3,1,aux!$AL$1)))-1,"n.d.") -> n.d. | AE7: =IF(INDEX($K7:$O7,1,aux!$AL$1)>0,(O7-INDEX($K7:$O7,1,aux!$AL$1))/INDEX($K7:$O7,1,aux!$AL$1),"n.d.") -> n.d.
A8: 06 | B8: Plantas vivas e produtos de floricultura | C8: 0 | D8: 0 | E8: 0 | F8: 0 | G8: 0 | H8: 0 | I8: 0 | J8: 0 | K8: 0 | L8: 0 | M8: 0 | N8: 0 | O8: 0 | P8: 0 | Q8: 0 | R8: 0 | S8: 0 | U8: =G8-INDEX($C8:$G8,1,aux!$AL$1) -> 0 | V8: 0 | W8: 0 | X8: =+IF(INDEX($C8:$G8,1,aux!$AL$1)>0,(G8/INDEX($C8:$G8,1,aux!$AL$1))^(1/($G$3-INDEX($C$3:$G$3,1,aux!$AL$1)))-1,"n.d.") -> n.d. | Y8: =IF(INDEX($C8:$G8,1,aux!$AL$1)>0,(G8-INDEX($C8:$G8,1,aux!$AL$1))/INDEX($C8:$G8,1,aux!$AL$1),"n.d.") -> n.d. | AA8: =O8-INDEX($K8:$O8,1,aux!$AL$1) -> 0 | AB8: 0 | AC8: 0 | AD8: =+IF(INDEX($K8:$O8,1,aux!$AL$1)>0,(O8/INDEX($K8:$O8,1,aux!$AL$1))^(1/($O$3-INDEX($K$3:$O$3,1,aux!$AL$1)))-1,"n.d.") -> n.d. | AE8: =IF(INDEX($K8:$O8,1,aux!$AL$1)>0,(O8-INDEX($K8:$O8,1,aux!$AL$1))/INDEX($K8:$O8,1,aux!$AL$1),"n.d.") -> n.d.
A9: 07 | B9: Produtos hortícolas | C9: 0 | D9: 0 | E9: 0 | F9: 1268 | G9: 0 | H9: 253.6 | I9: 0.1030978128 | J9: 0.02770434137 | K9: 0 | L9: 0 | M9: 0 | N9: 0 | O9: 0 | P9: 0 | Q9: 0 | R9: 0 | S9: -253.6 | U9: =G9-INDEX($C9:$G9,1,aux!$AL$1) -> 0 | V9: 0 | W9: 0 | X9: =+IF(INDEX($C9:$G9,1,aux!$AL$1)>0,(G9/INDEX($C9:$G9,1,aux!$AL$1))^(1/($G$3-INDEX($C$3:$G$3,1,aux!$AL$1)))-1,"n.d.") -> n.d. | Y9: =IF(INDEX($C9:$G9,1,aux!$AL$1)>0,(G9-INDEX($C9:$G9,1,aux!$AL$1))/INDEX($C9:$G9,1,aux!$AL$1),"n.d.") -> n.d. | AA9: =O9-INDEX($K9:$O9,1,aux!$AL$1) -> 0 | AB9: 0 | AC9: 0 | AD9: =+IF(INDEX($K9:$O9,1,aux!$AL$1)>0,(O9/INDEX($K9:$O9,1,aux!$AL$1))^(1/($O$3-INDEX($K$3:$O$3,1,aux!$AL$1)))-1,"n.d.") -> n.d. | AE9: =IF(INDEX($K9:$O9,1,aux!$AL$1)>0,(O9-INDEX($K9:$O9,1,aux!$AL$1))/INDEX($K9:$O9,1,aux!$AL$1),"n.d.") -> n.d.
A10: 08 | B10: Frutas | C10: 0 | D10: 0 | E10: 0 | F10: 0 | G10: 0 | H10: 0 | I10: 0 | J10: 0 | K10: 0 | L10: 0 | M10: 0 | N10: 0 | O10: 0 | P10: 0 | Q10: 0 | R10: 0 | S10: 0 | U10: =G10-INDEX($C10:$G10,1,aux!$AL$1) -> 0 | V10: 0 | W10: 0 | X10: =+IF(INDEX($C10:$G10,1,aux!$AL$1)>0,(G10/INDEX($C10:$G10,1,aux!$AL$1))^(1/($G$3-INDEX($C$3:$G$3,1,aux!$AL$1)))-1,"n.d.") -> n.d. | Y10: =IF(INDEX($C10:$G10,1,aux!$AL$1)>0,(G10-INDEX($C10:$G10,1,aux!$AL$1))/INDEX($C10:$G10,1,aux!$AL$1),"n.d.") -> n.d. | AA10: =O10-INDEX($K10:$O10,1,aux!$AL$1) -> 0 | AB10: 0 | AC10: 0 | AD10: =+IF(INDEX($K10:$O10,1,aux!$AL$1)>0,(O10/INDEX($K10:$O10,1,aux!$AL$1))^(1/($O$3-INDEX($K$3:$O$3,1,aux!$AL$1)))-1,"n.d.") -> n.d. | AE10: =IF(INDEX($K10:$O10,1,aux!$AL$1)>0,(O10-INDEX($K10:$O10,1,aux!$AL$1))/INDEX($K10:$O10,1,aux!$AL$1),"n.d.") -> n.d.
A11: 09 | B11: Café, chá, mate e especiarias | C11: 0 | D11: 0 | E11: 0 | F11: 6197 | G11: 0 | H11: 1239.4 | I11: 0.5038621026 | J11: 0.1353973213 | K11: 0 | L11: 0 | M11: 0 | N11: 0 | O11: 0 | P11: 0 | Q11: 0 | R11: 0 | S11: -1239.4 | U11: =G11-INDEX($C11:$G11,1,aux!$AL$1) -> 0 | V11: 0 | W11: 0 | X11: =+IF(INDEX($C11:$G11,1,aux!$AL$1)>0,(G11/INDEX($C11:$G11,1,aux!$AL$1))^(1/($G$3-INDEX($C$3:$G$3,1,aux!$AL$1)))-1,"n.d.") -> n.d. | Y11: =IF(INDEX($C11:$G11,1,aux!$AL$1)>0,(G11-INDEX($C11:$G11,1,aux!$AL$1))/INDEX($C11:$G11,1,aux!$AL$1),"n.d.") -> n.d. | AA11: =O11-INDEX($K11:$O11,1,aux!$AL$1) -> 0 | AB11: 0 | AC11: 0 | AD11: =+IF(INDEX($K11:$O11,1,aux!$AL$1)>0,(O11/INDEX($K11:$O11,1,aux!$AL$1))^(1/($O$3-INDEX($K$3:$O$3,1,aux!$AL$1)))-1,"n.d.") -> n.d. | AE11: =IF(INDEX($K11:$O11,1,aux!$AL$1)>0,(O11-INDEX($K11:$O11,1,aux!$AL$1))/INDEX($K11:$O11,1,aux!$AL$1),"n.d.") -> n.d.
A12: 10 | B12: Cereais | C12: 0 | D12: 0 | E12: 0 | F12: 0 | G12: 0 | H12: 0 | I12: 0 | J12: 0 | K12: 0 | L12: 0 | M12: 0 | N12: 0 | O12: 0 | P12: 0 | Q12: 0 | R12: 0 | S12: 0 | U12: =G12-INDEX($C12:$G12,1,aux!$AL$1) -> 0 | V12: 0 | W12: 0 | X12: =+IF(INDEX($C12:$G12,1,aux!$AL$1)>0,(G12/INDEX($C12:$G12,1,aux!$AL$1))^(1/($G$3-INDEX($C$3:$G$3,1,aux!$AL$1)))-1,"n.d.") -> n.d. | Y12: =IF(INDEX($C12:$G12,1,aux!$AL$1)>0,(G12-INDEX($C12:$G12,1,aux!$AL$1))/INDEX($C12:$G12,1,aux!$AL$1),"n.d.") -> n.d. | AA12: =O12-INDEX($K12:$O12,1,aux!$AL$1) -> 0 | AB12: 0 | AC12: 0 | AD12: =+IF(INDEX($K12:$O12,1,aux!$AL$1)>0,(O12/INDEX($K12:$O12,1,aux!$AL$1))^(1/($O$3-INDEX($K$3:$O$3,1,aux!$AL$1)))-1,"n.d.") -> n.d. | AE12: =IF(INDEX($K12:$O12,1,aux!$AL$1)>0,(O12-INDEX($K12:$O12,1,aux!$AL$1))/INDEX($K12:$O12,1,aux!$AL$1),"n.d.") -> n.d.
A13: 11 | B13: Produtos da indústria de moagem e outros | C13: 0 | D13: 0 | E13: 0 | F13: 861 | G13: 0 | H13: 172.2 | I13: 0.07000569152 | J13: 0.01881185956 | K13: 0 | L13: 0 | M13: 0 | N13: 0 | O13: 0 | P13: 0 | Q13: 0 | R13: 0 | S13: -172.2 | U13: =G13-INDEX($C13:$G13,1,aux!$AL$1) -> 0 | V13: 0 | W13: 0 | X13: =+IF(INDEX($C13:$G13,1,aux!$AL$1)>0,(G13/INDEX($C13:$G13,1,aux!$AL$1))^(1/($G$3-INDEX($C$3:$G$3,1,aux!$AL$1)))-1,"n.d.") -> n.d. | Y13: =IF(INDEX($C13:$G13,1,aux!$AL$1)>0,(G13-INDEX($C13:$G13,1,aux!$AL$1))/INDEX($C13:$G13,1,aux!$AL$1),"n.d.") -> n.d. | AA13: =O13-INDEX($K13:$O13,1,aux!$AL$1) -> 0 | AB13: 0 | AC13: 0 | AD13: =+IF(INDEX($K13:$O13,1,aux!$AL$1)>0,(O13/INDEX($K13:$O13,1,aux!$AL$1))^(1/($O$3-INDEX($K$3:$O$3,1,aux!$AL$1)))-1,"n.d.") -> n.d. | AE13: =IF(INDEX($K13:$O13,1,aux!$AL$1)>0,(O13-INDEX($K13:$O13,1,aux!$AL$1))/INDEX($K13:$O13,1,aux!$AL$1),"n.d.") -> n.d.
A14: 12 | B14: Sementes e frutos oleaginosos | C14: 0 | D14: 0 | E14: 0 | F14: 316 | G14: 0 | H14: 63.2 | I14: 0.02569314578 | J14: 0.006904236492 | K14: 0 | L14: 0 | M14: 0 | N14: 0 | O14: 0 | P14: 0 | Q14: 0 | R14: 0 | S14: -63.2 | U14: =G14-INDEX($C14:$G14,1,aux!$AL$1) -> 0 | V14: 0 | W14: 0 | X14: =+IF(INDEX($C14:$G14,1,aux!$AL$1)>0,(G14/INDEX($C14:$G14,1,aux!$AL$1))^(1/($G$3-INDEX($C$3:$G$3,1,aux!$AL$1)))-1,"n.d.") -> n.d. | Y14: =IF(INDEX($C14:$G14,1,aux!$AL$1)>0,(G14-INDEX($C14:$G14,1,aux!$AL$1))/INDEX($C14:$G14,1,aux!$AL$1),"n.d.") -> n.d. | AA14: =O14-INDEX($K14:$O14,1,aux!$AL$1) -> 0 | AB14: 0 | AC14: 0 | AD14: =+IF(INDEX($K14:$O14,1,aux!$AL$1)>0,(O14/INDEX($K14:$O14,1,aux!$AL$1))^(1/($O$3-INDEX($K$3:$O$3,1,aux!$AL$1)))-1,"n.d.") -> n.d. | AE14: =IF(INDEX($K14:$O14,1,aux!$AL$1)>0,(O14-INDEX($K14:$O14,1,aux!$AL$1))/INDEX($K14:$O14,1,aux!$AL$1),"n.d.") -> n.d.
A15: 13a | B15: Sucos e extratos vegetais (exc. NC 1301) (a) | C15: 0 | D15: 0 | E15: 0 | F15: 0 | G15: 0 | H15: 0 | I15: 0 | J15: 0 | K15: 0 | L15: 0 | M15: 0 | N15: 0 | O15: 0 | P15: 0 | Q15: 0 | R15: 0 | S15: 0 | U15: =G15-INDEX($C15:$G15,1,aux!$AL$1) -> 0 | V15: 0 | W15: 0 | X15: =+IF(INDEX($C15:$G15,1,aux!$AL$1)>0,(G15/INDEX($C15:$G15,1,aux!$AL$1))^(1/($G$3-INDEX($C$3:$G$3,1,aux!$AL$1)))-1,"n.d.") -> n.d. | Y15: =IF(INDEX($C15:$G15,1,aux!$AL$1)>0,(G15-INDEX($C15:$G15,1,aux!$AL$1))/INDEX($C15:$G15,1,aux!$AL$1),"n.d.") -> n.d. | AA15: =O15-INDEX($K15:$O15,1,aux!$AL$1) -> 0 | AB15: 0 | AC15: 0 | AD15: =+IF(INDEX($K15:$O15,1,aux!$AL$1)>0,(O15/INDEX($K15:$O15,1,aux!$AL$1))^(1/($O$3-INDEX($K$3:$O$3,1,aux!$AL$1)))-1,"n.d.") -> n.d. | AE15: =IF(INDEX($K15:$O15,1,aux!$AL$1)>0,(O15-INDEX($K15:$O15,1,aux!$AL$1))/INDEX($K15:$O15,1,aux!$AL$1),"n.d.") -> n.d.
A16: 14 | B16: Matérias para entrançar e outros | C16: 0 | D16: 0 | E16: 0 | F16: 0 | G16: 0 | H16: 0 | I16: 0 | J16: 0 | K16: 0 | L16: 0 | M16: 0 | N16: 0 | O16: 0 | P16: 0 | Q16: 0 | R16: 0 | S16: 0 | U16: =G16-INDEX($C16:$G16,1,aux!$AL$1) -> 0 | V16: 0 | W16: 0 | X16: =+IF(INDEX($C16:$G16,1,aux!$AL$1)>0,(G16/INDEX($C16:$G16,1,aux!$AL$1))^(1/($G$3-INDEX($C$3:$G$3,1,aux!$AL$1)))-1,"n.d.") -> n.d. | Y16: =IF(INDEX($C16:$G16,1,aux!$AL$1)>0,(G16-INDEX($C16:$G16,1,aux!$AL$1))/INDEX($C16:$G16,1,aux!$AL$1),"n.d.") -> n.d. | AA16: =O16-INDEX($K16:$O16,1,aux!$AL$1) -> 0 | AB16: 0 | AC16: 0 | AD16: =+IF(INDEX($K16:$O16,1,aux!$AL$1)>0,(O16/INDEX($K16:$O16,1,aux!$AL$1))^(1/($O$3-INDEX($K$3:$O$3,1,aux!$AL$1)))-1,"n.d.") -> n.d. | AE16: =IF(INDEX($K16:$O16,1,aux!$AL$1)>0,(O16-INDEX($K16:$O16,1,aux!$AL$1))/INDEX($K16:$O16,1,aux!$AL$1),"n.d.") -> n.d.
A17: 15 | B17: Gorduras e óleos animais ou vegetais | C17: 0 | D17: 0 | E17: 0 | F17: 0 | G17: 0 | H17: 0 | I17: 0 | J17: 0 | K17: 0 | L17: 0 | M17: 38474 | N17: 26462 | O17: 32594 | P17: 19506 | Q17: 0.2601139882 | R17: 0.2400041342 | S17: 19506 | U17: =G17-INDEX($C17:$G17,1,aux!$AL$1) -> 0 | V17: 0 | W17: 0 | X17: =+IF(INDEX($C17:$G17,1,aux!$AL$1)>0,(G17/INDEX($C17:$G17,1,aux!$AL$1))^(1/($G$3-INDEX($C$3:$G$3,1,aux!$AL$1)))-1,"n.d.") -> n.d. | Y17: =IF(INDEX($C17:$G17,1,aux!$AL$1)>0,(G17-INDEX($C17:$G17,1,aux!$AL$1))/INDEX($C17:$G17,1,aux!$AL$1),"n.d.") -> n.d. | AA17: =O17-INDEX($K17:$O17,1,aux!$AL$1) -> 32594 | AB17: 0.2812591685 | AC17: 0.3730186887 | AD17: =+IF(INDEX($K17:$O17,1,aux!$AL$1)>0,(O17/INDEX($K17:$O17,1,aux!$AL$1))^(1/($O$3-INDEX($K$3:$O$3,1,aux!$AL$1)))-1,"n.d.") -> n.d. | AE17: =IF(INDEX($K17:$O17,1,aux!$AL$1)>0,(O17-INDEX($K17:$O17,1,aux!$AL$1))/INDEX($K17:$O17,1,aux!$AL$1),"n.d.") -> n.d.
A18: 16a | B18: Preparações de carnes (exc. NC 1604-05) (a) | C18: 0 | D18: 0 | E18: 0 | F18: 0 | G18: 0 | H18: 0 | I18: 0 | J18: 0 | K18: 0 | L18: 0 | M18: 0 | N18: 0 | O18: 0 | P18: 0 | Q18: 0 | R18: 0 | S18: 0 | U18: =G18-INDEX($C18:$G18,1,aux!$AL$1) -> 0 | V18: 0 | W18: 0 | X18: =+IF(INDEX($C18:$G18,1,aux!$AL$1)>0,(G18/INDEX($C18:$G18,1,aux!$AL$1))^(1/($G$3-INDEX($C$3:$G$3,1,aux!$AL$1)))-1,"n.d.") -> n.d. | Y18: =IF(INDEX($C18:$G18,1,aux!$AL$1)>0,(G18-INDEX($C18:$G18,1,aux!$AL$1))/INDEX($C18:$G18,1,aux!$AL$1),"n.d.") -> n.d. | AA18: =O18-INDEX($K18:$O18,1,aux!$AL$1) -> 0 | AB18: 0 | AC18: 0 | AD18: =+IF(INDEX($K18:$O18,1,aux!$AL$1)>0,(O18/INDEX($K18:$O18,1,aux!$AL$1))^(1/($O$3-INDEX($K$3:$O$3,1,aux!$AL$1)))-1,"n.d.") -> n.d. | AE18: =IF(INDEX($K18:$O18,1,aux!$AL$1)>0,(O18-INDEX($K18:$O18,1,aux!$AL$1))/INDEX($K18:$O18,1,aux!$AL$1),"n.d.") -> n.d.
A19: 17 | B19: Açúcares e produtos de confeitaria | C19: 0 | D19: 0 | E19: 0 | F19: 0 | G19: 0 | H19: 0 | I19: 0 | J19: 0 | K19: 0 | L19: 0 | M19: 0 | N19: 0 | O19: 0 | P19: 0 | Q19: 0 | R19: 0 | S19: 0 | U19: =G19-INDEX($C19:$G19,1,aux!$AL$1) -> 0 | V19: 0 | W19: 0 | X19: =+IF(INDEX($C19:$G19,1,aux!$AL$1)>0,(G19/INDEX($C19:$G19,1,aux!$AL$1))^(1/($G$3-INDEX($C$3:$G$3,1,aux!$AL$1)))-1,"n.d.") -> n.d. | Y19: =IF(INDEX($C19:$G19,1,aux!$AL$1)>0,(G19-INDEX($C19:$G19,1,aux!$AL$1))/INDEX($C19:$G19,1,aux!$AL$1),"n.d.") -> n.d. | AA19: =O19-INDEX($K19:$O19,1,aux!$AL$1) -> 0 | AB19: 0 | AC19: 0 | AD19: =+IF(INDEX($K19:$O19,1,aux!$AL$1)>0,(O19/INDEX($K19:$O19,1,aux!$AL$1))^(1/($O$3-INDEX($K$3:$O$3,1,aux!$AL$1)))-1,"n.d.") -> n.d. | AE19: =IF(INDEX($K19:$O19,1,aux!$AL$1)>0,(O19-INDEX($K19:$O19,1,aux!$AL$1))/INDEX($K19:$O19,1,aux!$AL$1),"n.d.") -> n.d.
A20: 18 | B20: Cacau e suas preparações | C20: 0 | D20: 0 | E20: 0 | F20: 0 | G20: 0 | H20: 0 | I20: 0 | J20: 0 | K20: 0 | L20: 0 | M20: 0 | N20: 0 | O20: 0 | P20: 0 | Q20: 0 | R20: 0 | S20: 0 | U20: =G20-INDEX($C20:$G20,1,aux!$AL$1) -> 0 | V20: 0 | W20: 0 | X20: =+IF(INDEX($C20:$G20,1,aux!$AL$1)>0,(G20/INDEX($C20:$G20,1,aux!$AL$1))^(1/($G$3-INDEX($C$3:$G$3,1,aux!$AL$1)))-1,"n.d.") -> n.d. | Y20: =IF(INDEX($C20:$G20,1,aux!$AL$1)>0,(G20-INDEX($C20:$G20,1,aux!$AL$1))/INDEX($C20:$G20,1,aux!$AL$1),"n.d.") -> n.d. | AA20: =O20-INDEX($K20:$O20,1,aux!$AL$1) -> 0 | AB20: 0 | AC20: 0 | AD20: =+IF(INDEX($K20:$O20,1,aux!$AL$1)>0,(O20/INDEX($K20:$O20,1,aux!$AL$1))^(1/($O$3-INDEX($K$3:$O$3,1,aux!$AL$1)))-1,"n.d.") -> n.d. | AE20: =IF(INDEX($K20:$O20,1,aux!$AL$1)>0,(O20-INDEX($K20:$O20,1,aux!$AL$1))/INDEX($K20:$O20,1,aux!$AL$1),"n.d.") -> n.d.
A21: 19a | B21: Preparações à base de cereais (exc. NC 19022010) (a) | C21: 0 | D21: 0 | E21: 0 | F21: 2618 | G21: 0 | H21: 523.6 | I21: 0.2128628344 | J21: 0.0572002884 | K21: 0 | L21: 0 | M21: 0 | N21: 0 | O21: 0 | P21: 0 | Q21: 0 | R21: 0 | S21: -523.6 | U21: =G21-INDEX($C21:$G21,1,aux!$AL$1) -> 0 | V21: 0 | W21: 0 | X21: =+IF(INDEX($C21:$G21,1,aux!$AL$1)>0,(G21/INDEX($C21:$G21,1,aux!$AL$1))^(1/($G$3-INDEX($C$3:$G$3,1,aux!$AL$1)))-1,"n.d.") -> n.d. | Y21: =IF(INDEX($C21:$G21,1,aux!$AL$1)>0,(G21-INDEX($C21:$G21,1,aux!$AL$1))/INDEX($C21:$G21,1,aux!$AL$1),"n.d.") -> n.d. | AA21: =O21-INDEX($K21:$O21,1,aux!$AL$1) -> 0 | AB21: 0 | AC21: 0 | AD21: =+IF(INDEX($K21:$O21,1,aux!$AL$1)>0,(O21/INDEX($K21:$O21,1,aux!$AL$1))^(1/($O$3-INDEX($K$3:$O$3,1,aux!$AL$1)))-1,"n.d.") -> n.d. | AE21: =IF(INDEX($K21:$O21,1,aux!$AL$1)>0,(O21-INDEX($K21:$O21,1,aux!$AL$1))/INDEX($K21:$O21,1,aux!$AL$1),"n.d.") -> n.d.
A22: 20 | B22: Preparações de produtos vegetais | C22: 0 | D22: 0 | E22: 0 | F22: 769 | G22: 0 | H22: 153.8 | I22: 0.06252540857 | J22: 0.01680176539 | K22: 0 | L22: 0 | M22: 20217 | N22: 0 | O22: 0 | P22: 4043.4 | Q22: 0.05391904542 | R22: 0.04975047248 | S22: 3889.6 | U22: =G22-INDEX($C22:$G22,1,aux!$AL$1) -> 0 | V22: 0 | W22: 0 | X22: =+IF(INDEX($C22:$G22,1,aux!$AL$1)>0,(G22/INDEX($C22:$G22,1,aux!$AL$1))^(1/($G$3-INDEX($C$3:$G$3,1,aux!$AL$1)))-1,"n.d.") -> n.d. | Y22: =IF(INDEX($C22:$G22,1,aux!$AL$1)>0,(G22-INDEX($C22:$G22,1,aux!$AL$1))/INDEX($C22:$G22,1,aux!$AL$1),"n.d.") -> n.d. | AA22: =O22-INDEX($K22:$O22,1,aux!$AL$1) -> 0 | AB22: 0 | AC22: 0 | AD22: =+IF(INDEX($K22:$O22,1,aux!$AL$1)>0,(O22/INDEX($K22:$O22,1,aux!$AL$1))^(1/($O$3-INDEX($K$3:$O$3,1,aux!$AL$1)))-1,"n.d.") -> n.d. | AE22: =IF(INDEX($K22:$O22,1,aux!$AL$1)>0,(O22-INDEX($K22:$O22,1,aux!$AL$1))/INDEX($K22:$O22,1,aux!$AL$1),"n.d.") -> n.d.
A23: 21 | B23: Preparações alimentícias diversas | C23: 0 | D23: 0 | E23: 0 | F23: 0 | G23: 0 | H23: 0 | I23: 0 | J23: 0 | K23: 0 | L23: 33060 | M23: 57123 | N23: 33021 | O23: 108641 | P23: 46369 | Q23: 0.618334129 | R23: 0.5705296677 | S23: 46369 | U23: =G23-INDEX($C23:$G23,1,aux!$AL$1) -> 0 | V23: 0 | W23: 0 | X23: =+IF(INDEX($C23:$G23,1,aux!$AL$1)>0,(G23/INDEX($C23:$G23,1,aux!$AL$1))^(1/($G$3-INDEX($C$3:$G$3,1,aux!$AL$1)))-1,"n.d.") -> n.d. | Y23: =IF(INDEX($C23:$G23,1,aux!$AL$1)>0,(G23-INDEX($C23:$G23,1,aux!$AL$1))/INDEX($C23:$G23,1,aux!$AL$1),"n.d.") -> n.d. | AA23: =O23-INDEX($K23:$O23,1,aux!$AL$1) -> 108641 | AB23: 0.937481663 | AC23: 1.243330777 | AD23: =+IF(INDEX($K23:$O23,1,aux!$AL$1)>0,(O23/INDEX($K23:$O23,1,aux!$AL$1))^(1/($O$3-INDEX($K$3:$O$3,1,aux!$AL$1)))-1,"n.d.") -> n.d. | AE23: =IF(INDEX($K23:$O23,1,aux!$AL$1)>0,(O23-INDEX($K23:$O23,1,aux!$AL$1))/INDEX($K23:$O23,1,aux!$AL$1),"n.d.") -> n.d.
A24: 22 | B24: Bebidas, líquidos alcoólicos e vinagres | C24: 0 | D24: 0 | E24: 0 | F24: 0 | G24: 0 | H24: 0 | I24: 0 | J24: 0 | K24: 25349 | L24: 0 | M24: 0 | N24: 0 | O24: 0 | P24: 5069.8 | Q24: 0.06760616721 | R24: 0.06237941964 | S24: 5069.8 | U24: =G24-INDEX($C24:$G24,1,aux!$AL$1) -> 0 | V24: 0 | W24: 0 | X24: =+IF(INDEX($C24:$G24,1,aux!$AL$1)>0,(G24/INDEX($C24:$G24,1,aux!$AL$1))^(1/($G$3-INDEX($C$3:$G$3,1,aux!$AL$1)))-1,"n.d.") -> n.d. | Y24: =IF(INDEX($C24:$G24,1,aux!$AL$1)>0,(G24-INDEX($C24:$G24,1,aux!$AL$1))/INDEX($C24:$G24,1,aux!$AL$1),"n.d.") -> n.d. | AA24: =O24-INDEX($K24:$O24,1,aux!$AL$1) -> -25349 | AB24: -0.2187408315 | AC24: -0.2901040296 | AD24: =+IF(INDEX($K24:$O24,1,aux!$AL$1)>0,(O24/INDEX($K24:$O24,1,aux!$AL$1))^(1/($O$3-INDEX($K$3:$O$3,1,aux!$AL$1)))-1,"n.d.") -> -1 | AE24: =IF(INDEX($K24:$O24,1,aux!$AL$1)>0,(O24-INDEX($K24:$O24,1,aux!$AL$1))/INDEX($K24:$O24,1,aux!$AL$1),"n.d.") -> -1
A25: 23a | B25: Resíduos indústrias alimentares; alimentos p/ animais (exc. NC 230120) (a) | C25: 0 | D25: 0 | E25: 0 | F25: 0 | G25: 0 | H25: 0 | I25: 0 | J25: 0 | K25: 0 | L25: 0 | M25: 0 | N25: 10 | O25: 0 | P25: 2 | Q25: 2.667015157e-05 | R25: 2.460823687e-05 | S25: 2 | U25: =G25-INDEX($C25:$G25,1,aux!$AL$1) -> 0 | V25: 0 | W25: 0 | X25: =+IF(INDEX($C25:$G25,1,aux!$AL$1)>0,(G25/INDEX($C25:$G25,1,aux!$AL$1))^(1/($G$3-INDEX($C$3:$G$3,1,aux!$AL$1)))-1,"n.d.") -> n.d. | Y25: =IF(INDEX($C25:$G25,1,aux!$AL$1)>0,(G25-INDEX($C25:$G25,1,aux!$AL$1))/INDEX($C25:$G25,1,aux!$AL$1),"n.d.") -> n.d. | AA25: =O25-INDEX($K25:$O25,1,aux!$AL$1) -> 0 | AB25: 0 | AC25: 0 | AD25: =+IF(INDEX($K25:$O25,1,aux!$AL$1)>0,(O25/INDEX($K25:$O25,1,aux!$AL$1))^(1/($O$3-INDEX($K$3:$O$3,1,aux!$AL$1)))-1,"n.d.") -> n.d. | AE25: =IF(INDEX($K25:$O25,1,aux!$AL$1)>0,(O25-INDEX($K25:$O25,1,aux!$AL$1))/INDEX($K25:$O25,1,aux!$AL$1),"n.d.") -> n.d.
A26: 24 | B26: Tabaco | C26: 0 | D26: 0 | E26: 0 | F26: 0 | G26: 0 | H26: 0 | I26: 0 | J26: 0 | K26: 0 | L26: 0 | M26: 0 | N26: 0 | O26: 0 | P26: 0 | Q26: 0 | R26: 0 | S26: 0 | U26: =G26-INDEX($C26:$G26,1,aux!$AL$1) -> 0 | V26: 0 | W26: 0 | X26: =+IF(INDEX($C26:$G26,1,aux!$AL$1)>0,(G26/INDEX($C26:$G26,1,aux!$AL$1))^(1/($G$3-INDEX($C$3:$G$3,1,aux!$AL$1)))-1,"n.d.") -> n.d. | Y26: =IF(INDEX($C26:$G26,1,aux!$AL$1)>0,(G26-INDEX($C26:$G26,1,aux!$AL$1))/INDEX($C26:$G26,1,aux!$AL$1),"n.d.") -> n.d. | AA26: =O26-INDEX($K26:$O26,1,aux!$AL$1) -> 0 | AB26: 0 | AC26: 0 | AD26: =+IF(INDEX($K26:$O26,1,aux!$AL$1)>0,(O26/INDEX($K26:$O26,1,aux!$AL$1))^(1/($O$3-INDEX($K$3:$O$3,1,aux!$AL$1)))-1,"n.d.") -> n.d. | AE26: =IF(INDEX($K26:$O26,1,aux!$AL$1)>0,(O26-INDEX($K26:$O26,1,aux!$AL$1))/INDEX($K26:$O26,1,aux!$AL$1),"n.d.") -> n.d.
A27: 29 | B27: Manitol e sorbitol (NC 290543; 290544) | C27: 0 | D27: 0 | E27: 0 | F27: 0 | G27: 0 | H27: 0 | I27: 0 | J27: 0 | K27: 0 | L27: 0 | M27: 0 | N27: 0 | O27: 0 | P27: 0 | Q27: 0 | R27: 0 | S27: 0 | U27: =G27-INDEX($C27:$G27,1,aux!$AL$1) -> 0 | V27: 0 | W27: 0 | X27: =+IF(INDEX($C27:$G27,1,aux!$AL$1)>0,(G27/INDEX($C27:$G27,1,aux!$AL$1))^(1/($G$3-INDEX($C$3:$G$3,1,aux!$AL$1)))-1,"n.d.") -> n.d. | Y27: =IF(INDEX($C27:$G27,1,aux!$AL$1)>0,(G27-INDEX($C27:$G27,1,aux!$AL$1))/INDEX($C27:$G27,1,aux!$AL$1),"n.d.") -> n.d. | AA27: =O27-INDEX($K27:$O27,1,aux!$AL$1) -> 0 | AB27: 0 | AC27: 0 | AD27: =+IF(INDEX($K27:$O27,1,aux!$AL$1)>0,(O27/INDEX($K27:$O27,1,aux!$AL$1))^(1/($O$3-INDEX($K$3:$O$3,1,aux!$AL$1)))-1,"n.d.") -> n.d. | AE27: =IF(INDEX($K27:$O27,1,aux!$AL$1)>0,(O27-INDEX($K27:$O27,1,aux!$AL$1))/INDEX($K27:$O27,1,aux!$AL$1),"n.d.") -> n.d.
A28: 33 | B28: Óleos essenciais e resinóides (NC 3301) | C28: 0 | D28: 0 | E28: 0 | F28: 0 | G28: 0 | H28: 0 | I28: 0 | J28: 0 | K28: 0 | L28: 0 | M28: 0 | N28: 0 | O28: 0 | P28: 0 | Q28: 0 | R28: 0 | S28: 0 | U28: =G28-INDEX($C28:$G28,1,aux!$AL$1) -> 0 | V28: 0 | W28: 0 | X28: =+IF(INDEX($C28:$G28,1,aux!$AL$1)>0,(G28/INDEX($C28:$G28,1,aux!$AL$1))^(1/($G$3-INDEX($C$3:$G$3,1,aux!$AL$1)))-1,"n.d.") -> n.d. | Y28: =IF(INDEX($C28:$G28,1,aux!$AL$1)>0,(G28-INDEX($C28:$G28,1,aux!$AL$1))/INDEX($C28:$G28,1,aux!$AL$1),"n.d.") -> n.d. | AA28: =O28-INDEX($K28:$O28,1,aux!$AL$1) -> 0 | AB28: 0 | AC28: 0 | AD28: =+IF(INDEX($K28:$O28,1,aux!$AL$1)>0,(O28/INDEX($K28:$O28,1,aux!$AL$1))^(1/($O$3-INDEX($K$3:$O$3,1,aux!$AL$1)))-1,"n.d.") -> n.d. | AE28: =IF(INDEX($K28:$O28,1,aux!$AL$1)>0,(O28-INDEX($K28:$O28,1,aux!$AL$1))/INDEX($K28:$O28,1,aux!$AL$1),"n.d.") -> n.d.
A29: 35 | B29: Caseínas, albuminas, gelatinas, peptonas, dextrinas (NC 3501 a 3505) | C29: 0 | D29: 0 | E29: 0 | F29: 0 | G29: 0 | H29: 0 | I29: 0 | J29: 0 | K29: 0 | L29: 0 | M29: 0 | N29: 0 | O29: 0 | P29: 0 | Q29: 0 | R29: 0 | S29: 0 | U29: =G29-INDEX($C29:$G29,1,aux!$AL$1) -> 0 | V29: 0 | W29: 0 | X29: =+IF(INDEX($C29:$G29,1,aux!$AL$1)>0,(G29/INDEX($C29:$G29,1,aux!$AL$1))^(1/($G$3-INDEX($C$3:$G$3,1,aux!$AL$1)))-1,"n.d.") -> n.d. | Y29: =IF(INDEX($C29:$G29,1,aux!$AL$1)>0,(G29-INDEX($C29:$G29,1,aux!$AL$1))/INDEX($C29:$G29,1,aux!$AL$1),"n.d.") -> n.d. | AA29: =O29-INDEX($K29:$O29,1,aux!$AL$1) -> 0 | AB29: 0 | AC29: 0 | AD29: =+IF(INDEX($K29:$O29,1,aux!$AL$1)>0,(O29/INDEX($K29:$O29,1,aux!$AL$1))^(1/($O$3-INDEX($K$3:$O$3,1,aux!$AL$1)))-1,"n.d.") -> n.d. | AE29: =IF(INDEX($K29:$O29,1,aux!$AL$1)>0,(O29-INDEX($K29:$O29,1,aux!$AL$1))/INDEX($K29:$O29,1,aux!$AL$1),"n.d.") -> n.d.
A30: 38a | B30: Agentes de acabamento, ácidos gordos, sorbitol (NC 380910, 382311-12-13-19-70, 382460) (a) | C30: 0 | D30: 0 | E30: 0 | F30: 0 | G30: 0 | H30: 0 | I30: 0 | J30: 0 | K30: 0 | L30: 0 | M30: 0 | N30: 0 | O30: 0 | P30: 0 | Q30: 0 | R30: 0 | S30: 0 | U30: =G30-INDEX($C30:$G30,1,aux!$AL$1) -> 0 | V30: 0 | W30: 0 | X30: =+IF(INDEX($C30:$G30,1,aux!$AL$1)>0,(G30/INDEX($C30:$G30,1,aux!$AL$1))^(1/($G$3-INDEX($C$3:$G$3,1,aux!$AL$1)))-1,"n.d.") -> n.d. | Y30: =IF(INDEX($C30:$G30,1,aux!$AL$1)>0,(G30-INDEX($C30:$G30,1,aux!$AL$1))/INDEX($C30:$G30,1,aux!$AL$1),"n.d.") -> n.d. | AA30: =O30-INDEX($K30:$O30,1,aux!$AL$1) -> 0 | AB30: 0 | AC30: 0 | AD30: =+IF(INDEX($K30:$O30,1,aux!$AL$1)>0,(O30/INDEX($K30:$O30,1,aux!$AL$1))^(1/($O$3-INDEX($K$3:$O$3,1,aux!$AL$1)))-1,"n.d.") -> n.d. | AE30: =IF(INDEX($K30:$O30,1,aux!$AL$1)>0,(O30-INDEX($K30:$O30,1,aux!$AL$1))/INDEX($K30:$O30,1,aux!$AL$1),"n.d.") -> n.d.
A31: 41 | B31: Couro e peles em bruto (NC 4101 a 4103) | C31: 0 | D31: 0 | E31: 0 | F31: 0 | G31: 0 | H31: 0 | I31: 0 | J31: 0 | K31: 0 | L31: 0 | M31: 0 | N31: 0 | O31: 0 | P31: 0 | Q31: 0 | R31: 0 | S31: 0 | U31: =G31-INDEX($C31:$G31,1,aux!$AL$1) -> 0 | V31: 0 | W31: 0 | X31: =+IF(INDEX($C31:$G31,1,aux!$AL$1)>0,(G31/INDEX($C31:$G31,1,aux!$AL$1))^(1/($G$3-INDEX($C$3:$G$3,1,aux!$AL$1)))-1,"n.d.") -> n.d. | Y31: =IF(INDEX($C31:$G31,1,aux!$AL$1)>0,(G31-INDEX($C31:$G31,1,aux!$AL$1))/INDEX($C31:$G31,1,aux!$AL$1),"n.d.") -> n.d. | AA31: =O31-INDEX($K31:$O31,1,aux!$AL$1) -> 0 | AB31: 0 | AC31: 0 | AD31: =+IF(INDEX($K31:$O31,1,aux!$AL$1)>0,(O31/INDEX($K31:$O31,1,aux!$AL$1))^(1/($O$3-INDEX($K$3:$O$3,1,aux!$AL$1)))-1,"n.d.") -> n.d. | AE31: =IF(INDEX($K31:$O31,1,aux!$AL$1)>0,(O31-INDEX($K31:$O31,1,aux!$AL$1))/INDEX($K31:$O31,1,aux!$AL$1),"n.d.") -> n.d.
A32: 43 | B32: Peles com pelo em bruto (NC 4301) | C32: 0 | D32: 0 | E32: 0 | F32: 0 | G32: 0 | H32: 0 | I32: 0 | J32: 0 | K32: 0 | L32: 0 | M32: 0 | N32: 0 | O32: 0 | P32: 0 | Q32: 0 | R32: 0 | S32: 0 | U32: =G32-INDEX($C32:$G32,1,aux!$AL$1) -> 0 | V32: 0 | W32: 0 | X32: =+IF(INDEX($C32:$G32,1,aux!$AL$1)>0,(G32/INDEX($C32:$G32,1,aux!$AL$1))^(1/($G$3-INDEX($C$3:$G$3,1,aux!$AL$1)))-1,"n.d.") -> n.d. | Y32: =IF(INDEX($C32:$G32,1,aux!$AL$1)>0,(G32-INDEX($C32:$G32,1,aux!$AL$1))/INDEX($C32:$G32,1,aux!$AL$1),"n.d.") -> n.d. | AA32: =O32-INDEX($K32:$O32,1,aux!$AL$1) -> 0 | AB32: 0 | AC32: 0 | AD32: =+IF(INDEX($K32:$O32,1,aux!$AL$1)>0,(O32/INDEX($K32:$O32,1,aux!$AL$1))^(1/($O$3-INDEX($K$3:$O$3,1,aux!$AL$1)))-1,"n.d.") -> n.d. | AE32: =IF(INDEX($K32:$O32,1,aux!$AL$1)>0,(O32-INDEX($K32:$O32,1,aux!$AL$1))/INDEX($K32:$O32,1,aux!$AL$1),"n.d.") -> n.d.
A33: 50 | B33: Seda crua (NC 5001-5003) | C33: 0 | D33: 0 | E33: 0 | F33: 0 | G33: 0 | H33: 0 | I33: 0 | J33: 0 | K33: 0 | L33: 0 | M33: 0 | N33: 0 | O33: 0 | P33: 0 | Q33: 0 | R33: 0 | S33: 0 | U33: =G33-INDEX($C33:$G33,1,aux!$AL$1) -> 0 | V33: 0 | W33: 0 | X33: =+IF(INDEX($C33:$G33,1,aux!$AL$1)>0,(G33/INDEX($C33:$G33,1,aux!$AL$1))^(1/($G$3-INDEX($C$3:$G$3,1,aux!$AL$1)))-1,"n.d.") -> n.d. | Y33: =IF(INDEX($C33:$G33,1,aux!$AL$1)>0,(G33-INDEX($C33:$G33,1,aux!$AL$1))/INDEX($C33:$G33,1,aux!$AL$1),"n.d.") -> n.d. | AA33: =O33-INDEX($K33:$O33,1,aux!$AL$1) -> 0 | AB33: 0 | AC33: 0 | AD33: =+IF(INDEX($K33:$O33,1,aux!$AL$1)>0,(O33/INDEX($K33:$O33,1,aux!$AL$1))^(1/($O$3-INDEX($K$3:$O$3,1,aux!$AL$1)))-1,"n.d.") -> n.d. | AE33: =IF(INDEX($K33:$O33,1,aux!$AL$1)>0,(O33-INDEX($K33:$O33,1,aux!$AL$1))/INDEX($K33:$O33,1,aux!$AL$1),"n.d.") -> n.d.
A34: 51 | B34: Lã não cardada (NC 5101-5103) | C34: 0 | D34: 0 | E34: 0 | F34: 0 | G34: 0 | H34: 0 | I34: 0 | J34: 0 | K34: 0 | L34: 0 | M34: 0 | N34: 0 | O34: 0 | P34: 0 | Q34: 0 | R34: 0 | S34: 0 | U34: =G34-INDEX($C34:$G34,1,aux!$AL$1) -> 0 | V34: 0 | W34: 0 | X34: =+IF(INDEX($C34:$G34,1,aux!$AL$1)>0,(G34/INDEX($C34:$G34,1,aux!$AL$1))^(1/($G$3-INDEX($C$3:$G$3,1,aux!$AL$1)))-1,"n.d.") -> n.d. | Y34: =IF(INDEX($C34:$G34,1,aux!$AL$1)>0,(G34-INDEX($C34:$G34,1,aux!$AL$1))/INDEX($C34:$G34,1,aux!$AL$1),"n.d.") -> n.d. | AA34: =O34-INDEX($K34:$O34,1,aux!$AL$1) -> 0 | AB34: 0 | AC34: 0 | AD34: =+IF(INDEX($K34:$O34,1,aux!$AL$1)>0,(O34/INDEX($K34:$O34,1,aux!$AL$1))^(1/($O$3-INDEX($K$3:$O$3,1,aux!$AL$1)))-1,"n.d.") -> n.d. | AE34: =IF(INDEX($K34:$O34,1,aux!$AL$1)>0,(O34-INDEX($K34:$O34,1,aux!$AL$1))/INDEX($K34:$O34,1,aux!$AL$1),"n.d.") -> n.d.
A35: 52 | B35: Algodão (NC 5201-5203) | C35: 0 | D35: 0 | E35: 0 | F35: 0 | G35: 0 | H35: 0 | I35: 0 | J35: 0 | K35: 0 | L35: 0 | M35: 0 | N35: 0 | O35: 0 | P35: 0 | Q35: 0 | R35: 0 | S35: 0 | U35: =G35-INDEX($C35:$G35,1,aux!$AL$1) -> 0 | V35: 0 | W35: 0 | X35: =+IF(INDEX($C35:$G35,1,aux!$AL$1)>0,(G35/INDEX($C35:$G35,1,aux!$AL$1))^(1/($G$3-INDEX($C$3:$G$3,1,aux!$AL$1)))-1,"n.d.") -> n.d. | Y35: =IF(INDEX($C35:$G35,1,aux!$AL$1)>0,(G35-INDEX($C35:$G35,1,aux!$AL$1))/INDEX($C35:$G35,1,aux!$AL$1),"n.d.") -> n.d. | AA35: =O35-INDEX($K35:$O35,1,aux!$AL$1) -> 0 | AB35: 0 | AC35: 0 | AD35: =+IF(INDEX($K35:$O35,1,aux!$AL$1)>0,(O35/INDEX($K35:$O35,1,aux!$AL$1))^(1/($O$3-INDEX($K$3:$O$3,1,aux!$AL$1)))-1,"n.d.") -> n.d. | AE35: =IF(INDEX($K35:$O35,1,aux!$AL$1)>0,(O35-INDEX($K35:$O35,1,aux!$AL$1))/INDEX($K35:$O35,1,aux!$AL$1),"n.d.") -> n.d.
A36: 53 | B36: Linho e cânhamo em bruto (NC 5301-5302) | C36: 270 | D36: 0 | E36: 0 | F36: 0 | G36: 0 | H36: 54 | I36: 0.02195300431 | J36: 0.005899189408 | K36: 0 | L36: 0 | M36: 0 | N36: 0 | O36: 0 | P36: 0 | Q36: 0 | R36: 0 | S36: -54 | U36: =G36-INDEX($C36:$G36,1,aux!$AL$1) -> -270 | V36: 1 | W36: =IF($U$53<>0,U36/$U$53, "n.d.") -> -0.0404736921 | X36: =+IF(INDEX($C36:$G36,1,aux!$AL$1)>0,(G36/INDEX($C36:$G36,1,aux!$AL$1))^(1/($G$3-INDEX($C$3:$G$3,1,aux!$AL$1)))-1,"n.d.") -> -1 | Y36: =IF(INDEX($C36:$G36,1,aux!$AL$1)>0,(G36-INDEX($C36:$G36,1,aux!$AL$1))/INDEX($C36:$G36,1,aux!$AL$1),"n.d.") -> -1 | AA36: =O36-INDEX($K36:$O36,1,aux!$AL$1) -> 0 | AB36: 0 | AC36: =IF($AA$53<>0,AA36/$AA$53, "n.d.") -> 0 | AD36: =+IF(INDEX($K36:$O36,1,aux!$AL$1)>0,(O36/INDEX($K36:$O36,1,aux!$AL$1))^(1/($O$3-INDEX($K$3:$O$3,1,aux!$AL$1)))-1,"n.d.") -> n.d. | AE36: =IF(INDEX($K36:$O36,1,aux!$AL$1)>0,(O36-INDEX($K36:$O36,1,aux!$AL$1))/INDEX($K36:$O36,1,aux!$AL$1),"n.d.") -> n.d.
A37: Subtotal Agrícola e Agroalimentar | C37: 270 | D37: 0 | E37: 0 | F37: 12029 | G37: 0 | H37: 2459.8 | I37: 1 | J37: 0.2687190019 | K37: 25349 | L37: 33060 | M37: 115814 | N37: 59493 | O37: 141235 | P37: 74990.2 | Q37: 1 | R37: 0.9226883022 | S37: 72530.4 | U37: =G37-INDEX($C37:$G37,1,aux!$AL$1) -> -270 | V37: 1 | W37: -0.0404736921 | X37: =+IF(INDEX($C37:$G37,1,aux!$AL$1)>0,(G37/INDEX($C37:$G37,1,aux!$AL$1))^(1/($G$3-INDEX($C$3:$G$3,1,aux!$AL$1)))-1,"n.d.") -> -1 | Y37: =IF(INDEX($C37:$G37,1,aux!$AL$1)>0,(G37-INDEX($C37:$G37,1,aux!$AL$1))/INDEX($C37:$G37,1,aux!$AL$1),"n.d.") -> -1 | AA37: =O37-INDEX($K37:$O37,1,aux!$AL$1) -> 115886 | AB37: 1 | AC37: 1.326245437 | AD37: =+IF(INDEX($K37:$O37,1,aux!$AL$1)>0,(O37/INDEX($K37:$O37,1,aux!$AL$1))^(1/($O$3-INDEX($K$3:$O$3,1,aux!$AL$1)))-1,"n.d.") -> 0.5363684343 | AE37: =IF(INDEX($K37:$O37,1,aux!$AL$1)>0,(O37-INDEX($K37:$O37,1,aux!$AL$1))/INDEX($K37:$O37,1,aux!$AL$1),"n.d.") -> 4.571620182
A38: 03 | B38: Peixes e crustáceos | C38: 0 | D38: 0 | E38: 0 | F38: 0 | G38: 0 | H38: 0 | I38: 0 | J38: 0 | K38: 0 | L38: 0 | M38: 0 | N38: 0 | O38: 0 | P38: 0 | Q38: 0 | R38: 0 | S38: 0 | U38: =G38-INDEX($C38:$G38,1,aux!$AL$1) -> 0 | V38: =IF($U$44<>0,U38/$U$44, "n.d.") -> 0 | W38: 0 | X38: =+IF(INDEX($C38:$G38,1,aux!$AL$1)>0,(G38/INDEX($C38:$G38,1,aux!$AL$1))^(1/($G$3-INDEX($C$3:$G$3,1,aux!$AL$1)))-1,"n.d.") -> n.d. | Y38: =IF(INDEX($C38:$G38,1,aux!$AL$1)>0,(G38-INDEX($C38:$G38,1,aux!$AL$1))/INDEX($C38:$G38,1,aux!$AL$1),"n.d.") -> n.d. | AA38: =O38-INDEX($K38:$O38,1,aux!$AL$1) -> 0 | AB38: =IF($AA$44<>0,AA38/$AA$44, "n.d.") -> n.d. | AC38: 0 | AD38: =+IF(INDEX($K38:$O38,1,aux!$AL$1)>0,(O38/INDEX($K38:$O38,1,aux!$AL$1))^(1/($O$3-INDEX($K$3:$O$3,1,aux!$AL$1)))-1,"n.d.") -> n.d. | AE38: =IF(INDEX($K38:$O38,1,aux!$AL$1)>0,(O38-INDEX($K38:$O38,1,aux!$AL$1))/INDEX($K38:$O38,1,aux!$AL$1),"n.d.") -> n.d.
A39: 05p | B39: Outros produtos de pescado (NC 0508, 051191) (p) | C39: 0 | D39: 0 | E39: 0 | F39: 0 | G39: 0 | H39: 0 | I39: 0 | J39: 0 | K39: 0 | L39: 0 | M39: 0 | N39: 0 | O39: 0 | P39: 0 | Q39: 0 | R39: 0 | S39: 0 | U39: =G39-INDEX($C39:$G39,1,aux!$AL$1) -> 0 | V39: 0 | W39: 0 | X39: =+IF(INDEX($C39:$G39,1,aux!$AL$1)>0,(G39/INDEX($C39:$G39,1,aux!$AL$1))^(1/($G$3-INDEX($C$3:$G$3,1,aux!$AL$1)))-1,"n.d.") -> n.d. | Y39: =IF(INDEX($C39:$G39,1,aux!$AL$1)>0,(G39-INDEX($C39:$G39,1,aux!$AL$1))/INDEX($C39:$G39,1,aux!$AL$1),"n.d.") -> n.d. | AA39: =O39-INDEX($K39:$O39,1,aux!$AL$1) -> 0 | AB39: n.d. | AC39: 0 | AD39: =+IF(INDEX($K39:$O39,1,aux!$AL$1)>0,(O39/INDEX($K39:$O39,1,aux!$AL$1))^(1/($O$3-INDEX($K$3:$O$3,1,aux!$AL$1)))-1,"n.d.") -> n.d. | AE39: =IF(INDEX($K39:$O39,1,aux!$AL$1)>0,(O39-INDEX($K39:$O39,1,aux!$AL$1))/INDEX($K39:$O39,1,aux!$AL$1),"n.d.") -> n.d.
A40: 16p | B40: Preparações e conservas de peixes ou crustáceos (NC 1604-05) (p) | C40: 0 | D40: 0 | E40: 0 | F40: 0 | G40: 0 | H40: 0 | I40: 0 | J40: 0 | K40: 0 | L40: 0 | M40: 0 | N40: 89 | O40: 0 | P40: 17.8 | Q40: 1 | R40: 0.0002190133081 | S40: 17.8 | U40: =G40-INDEX($C40:$G40,1,aux!$AL$1) -> 0 | V40: 0 | W40: 0 | X40: =+IF(INDEX($C40:$G40,1,aux!$AL$1)>0,(G40/INDEX($C40:$G40,1,aux!$AL$1))^(1/($G$3-INDEX($C$3:$G$3,1,aux!$AL$1)))-1,"n.d.") -> n.d. | Y40: =IF(INDEX($C40:$G40,1,aux!$AL$1)>0,(G40-INDEX($C40:$G40,1,aux!$AL$1))/INDEX($C40:$G40,1,aux!$AL$1),"n.d.") -> n.d. | AA40: =O40-INDEX($K40:$O40,1,aux!$AL$1) -> 0 | AB40: n.d. | AC40: 0 | AD40: =+IF(INDEX($K40:$O40,1,aux!$AL$1)>0,(O40/INDEX($K40:$O40,1,aux!$AL$1))^(1/($O$3-INDEX($K$3:$O$3,1,aux!$AL$1)))-1,"n.d.") -> n.d. | AE40: =IF(INDEX($K40:$O40,1,aux!$AL$1)>0,(O40-INDEX($K40:$O40,1,aux!$AL$1))/INDEX($K40:$O40,1,aux!$AL$1),"n.d.") -> n.d.
A41: 19p | B41: Massas recheadas com pescado (NC 19022010) (p) | C41: 0 | D41: 0 | E41: 0 | F41: 0 | G41: 0 | H41: 0 | I41: 0 | J41: 0 | K41: 0 | L41: 0 | M41: 0 | N41: 0 | O41: 0 | P41: 0 | Q41: 0 | R41: 0 | S41: 0 | U41: =G41-INDEX($C41:$G41,1,aux!$AL$1) -> 0 | V41: 0 | W41: 0 | X41: =+IF(INDEX($C41:$G41,1,aux!$AL$1)>0,(G41/INDEX($C41:$G41,1,aux!$AL$1))^(1/($G$3-INDEX($C$3:$G$3,1,aux!$AL$1)))-1,"n.d.") -> n.d. | Y41: =IF(INDEX($C41:$G41,1,aux!$AL$1)>0,(G41-INDEX($C41:$G41,1,aux!$AL$1))/INDEX($C41:$G41,1,aux!$AL$1),"n.d.") -> n.d. | AA41: =O41-INDEX($K41:$O41,1,aux!$AL$1) -> 0 | AB41: n.d. | AC41: 0 | AD41: =+IF(INDEX($K41:$O41,1,aux!$AL$1)>0,(O41/INDEX($K41:$O41,1,aux!$AL$1))^(1/($O$3-INDEX($K$3:$O$3,1,aux!$AL$1)))-1,"n.d.") -> n.d. | AE41: =IF(INDEX($K41:$O41,1,aux!$AL$1)>0,(O41-INDEX($K41:$O41,1,aux!$AL$1))/INDEX($K41:$O41,1,aux!$AL$1),"n.d.") -> n.d.
A42: 23p | B42: Farinhas de pescado (NC 230120) (p) | C42: 0 | D42: 0 | E42: 0 | F42: 0 | G42: 0 | H42: 0 | I42: 0 | J42: 0 | K42: 0 | L42: 0 | M42: 0 | N42: 0 | O42: 0 | P42: 0 | Q42: 0 | R42: 0 | S42: 0 | U42: =G42-INDEX($C42:$G42,1,aux!$AL$1) -> 0 | V42: 0 | W42: 0 | X42: =+IF(INDEX($C42:$G42,1,aux!$AL$1)>0,(G42/INDEX($C42:$G42,1,aux!$AL$1))^(1/($G$3-INDEX($C$3:$G$3,1,aux!$AL$1)))-1,"n.d.") -> n.d. | Y42: =IF(INDEX($C42:$G42,1,aux!$AL$1)>0,(G42-INDEX($C42:$G42,1,aux!$AL$1))/INDEX($C42:$G42,1,aux!$AL$1),"n.d.") -> n.d. | AA42: =O42-INDEX($K42:$O42,1,aux!$AL$1) -> 0 | AB42: n.d. | AC42: 0 | AD42: =+IF(INDEX($K42:$O42,1,aux!$AL$1)>0,(O42/INDEX($K42:$O42,1,aux!$AL$1))^(1/($O$3-INDEX($K$3:$O$3,1,aux!$AL$1)))-1,"n.d.") -> n.d. | AE42: =IF(INDEX($K42:$O42,1,aux!$AL$1)>0,(O42-INDEX($K42:$O42,1,aux!$AL$1))/INDEX($K42:$O42,1,aux!$AL$1),"n.d.") -> n.d.
A43: 25 | B43: Sal e cloreto de sódio puro; água do mar (NC 2501) | C43: 0 | D43: 0 | E43: 0 | F43: 27 | G43: 19 | H43: 9.2 | I43: 1 | J43: 0.001005047084 | K43: 0 | L43: 0 | M43: 0 | N43: 0 | O43: 0 | P43: 0 | Q43: 0 | R43: 0 | S43: -9.2 | U43: =G43-INDEX($C43:$G43,1,aux!$AL$1) -> 19 | V43: 1 | W43: 0.002848148703 | X43: =+IF(INDEX($C43:$G43,1,aux!$AL$1)>0,(G43/INDEX($C43:$G43,1,aux!$AL$1))^(1/($G$3-INDEX($C$3:$G$3,1,aux!$AL$1)))-1,"n.d.") -> n.d. | Y43: =IF(INDEX($C43:$G43,1,aux!$AL$1)>0,(G43-INDEX($C43:$G43,1,aux!$AL$1))/INDEX($C43:$G43,1,aux!$AL$1),"n.d.") -> n.d. | AA43: =O43-INDEX($K43:$O43,1,aux!$AL$1) -> 0 | AB43: n.d. | AC43: 0 | AD43: =+IF(INDEX($K43:$O43,1,aux!$AL$1)>0,(O43/INDEX($K43:$O43,1,aux!$AL$1))^(1/($O$3-INDEX($K$3:$O$3,1,aux!$AL$1)))-1,"n.d.") -> n.d. | AE43: =IF(INDEX($K43:$O43,1,aux!$AL$1)>0,(O43-INDEX($K43:$O43,1,aux!$AL$1))/INDEX($K43:$O43,1,aux!$AL$1),"n.d.") -> n.d.
A44: Subtotal Mar | C44: 0 | D44: 0 | E44: 0 | F44: 27 | G44: 19 | H44: 9.2 | I44: 1 | J44: 0.001005047084 | K44: 0 | L44: 0 | M44: 0 | N44: 89 | O44: 0 | P44: 17.8 | Q44: 1 | R44: 0.0002190133081 | S44: 8.6 | U44: =G44-INDEX($C44:$G44,1,aux!$AL$1) -> 19 | V44: 1 | W44: 0.002848148703 | X44: =+IF(INDEX($C44:$G44,1,aux!$AL$1)>0,(G44/INDEX($C44:$G44,1,aux!$AL$1))^(1/($G$3-INDEX($C$3:$G$3,1,aux!$AL$1)))-1,"n.d.") -> n.d. | Y44: =IF(INDEX($C44:$G44,1,aux!$AL$1)>0,(G44-INDEX($C44:$G44,1,aux!$AL$1))/INDEX($C44:$G44,1,aux!$AL$1),"n.d.") -> n.d. | AA44: =O44-INDEX($K44:$O44,1,aux!$AL$1) -> 0 | AB44: n.d. | AC44: 0 | AD44: =+IF(INDEX($K44:$O44,1,aux!$AL$1)>0,(O44/INDEX($K44:$O44,1,aux!$AL$1))^(1/($O$3-INDEX($K$3:$O$3,1,aux!$AL$1)))-1,"n.d.") -> n.d. | AE44: =IF(INDEX($K44:$O44,1,aux!$AL$1)>0,(O44-INDEX($K44:$O44,1,aux!$AL$1))/INDEX($K44:$O44,1,aux!$AL$1),"n.d.") -> n.d.
A45: 13f | B45: Gomas e resinas (NC 1301) (f) | C45: 0 | D45: 0 | E45: 172 | F45: 0 | G45: 0 | H45: 34.4 | I45: 0.005146002872 | J45: 0.003758002141 | K45: 0 | L45: 0 | M45: 0 | N45: 0 | O45: 0 | P45: 0 | Q45: 0 | R45: 0 | S45: -34.4 | U45: =G45-INDEX($C45:$G45,1,aux!$AL$1) -> 0 | V45: =IF($U$52<>0,U45/$U$52, "n.d.") -> 0 | W45: 0 | X45: =+IF(INDEX($C45:$G45,1,aux!$AL$1)>0,(G45/INDEX($C45:$G45,1,aux!$AL$1))^(1/($G$3-INDEX($C$3:$G$3,1,aux!$AL$1)))-1,"n.d.") -> n.d. | Y45: =IF(INDEX($C45:$G45,1,aux!$AL$1)>0,(G45-INDEX($C45:$G45,1,aux!$AL$1))/INDEX($C45:$G45,1,aux!$AL$1),"n.d.") -> n.d. | AA45: =O45-INDEX($K45:$O45,1,aux!$AL$1) -> 0 | AB45: =IF($AA$52<>0,AA45/$AA$52, "n.d.") -> 0 | AC45: 0 | AD45: =+IF(INDEX($K45:$O45,1,aux!$AL$1)>0,(O45/INDEX($K45:$O45,1,aux!$AL$1))^(1/($O$3-INDEX($K$3:$O$3,1,aux!$AL$1)))-1,"n.d.") -> n.d. | AE45: =IF(INDEX($K45:$O45,1,aux!$AL$1)>0,(O45-INDEX($K45:$O45,1,aux!$AL$1))/INDEX($K45:$O45,1,aux!$AL$1),"n.d.") -> n.d.
A46: 38f | B46: Tall oil, essências e colofónias (NC 3803,3805,3806) (f) | C46: 0 | D46: 0 | E46: 0 | F46: 0 | G46: 0 | H46: 0 | I46: 0 | J46: 0 | K46: 0 | L46: 0 | M46: 0 | N46: 0 | O46: 0 | P46: 0 | Q46: 0 | R46: 0 | S46: 0 | U46: =G46-INDEX($C46:$G46,1,aux!$AL$1) -> 0 | V46: 0 | W46: 0 | X46: =+IF(INDEX($C46:$G46,1,aux!$AL$1)>0,(G46/INDEX($C46:$G46,1,aux!$AL$1))^(1/($G$3-INDEX($C$3:$G$3,1,aux!$AL$1)))-1,"n.d.") -> n.d. | Y46: =IF(INDEX($C46:$G46,1,aux!$AL$1)>0,(G46-INDEX($C46:$G46,1,aux!$AL$1))/INDEX($C46:$G46,1,aux!$AL$1),"n.d.") -> n.d. | AA46: =O46-INDEX($K46:$O46,1,aux!$AL$1) -> 0 | AB46: 0 | AC46: 0 | AD46: =+IF(INDEX($K46:$O46,1,aux!$AL$1)>0,(O46/INDEX($K46:$O46,1,aux!$AL$1))^(1/($O$3-INDEX($K$3:$O$3,1,aux!$AL$1)))-1,"n.d.") -> n.d. | AE46: =IF(INDEX($K46:$O46,1,aux!$AL$1)>0,(O46-INDEX($K46:$O46,1,aux!$AL$1))/INDEX($K46:$O46,1,aux!$AL$1),"n.d.") -> n.d.
A47: 44 | B47: Madeira e suas obras | C47: 1416 | D47: 2647 | E47: 13131 | F47: 7131 | G47: 8503 | H47: 6565.6 | I47: 0.9821685017 | J47: 0.7172540366 | K47: 28542 | L47: 0 | M47: 0 | N47: 0 | O47: 0 | P47: 5708.4 | Q47: 0.9110699694 | R47: 0.07023682967 | S47: -857.2 | U47: =G47-INDEX($C47:$G47,1,aux!$AL$1) -> 7087 | V47: 1.023837041 | W47: 1.062359466 | X47: =+IF(INDEX($C47:$G47,1,aux!$AL$1)>0,(G47/INDEX($C47:$G47,1,aux!$AL$1))^(1/($G$3-INDEX($C$3:$G$3,1,aux!$AL$1)))-1,"n.d.") -> 0.5654068555 | Y47: =IF(INDEX($C47:$G47,1,aux!$AL$1)>0,(G47-INDEX($C47:$G47,1,aux!$AL$1))/INDEX($C47:$G47,1,aux!$AL$1),"n.d.") -> 5.004943503 | AA47: =O47-INDEX($K47:$O47,1,aux!$AL$1) -> -28542 | AB47: 1.001227769 | AC47: -0.3266459905 | AD47: =+IF(INDEX($K47:$O47,1,aux!$AL$1)>0,(O47/INDEX($K47:$O47,1,aux!$AL$1))^(1/($O$3-INDEX($K$3:$O$3,1,aux!$AL$1)))-1,"n.d.") -> -1 | AE47: =IF(INDEX($K47:$O47,1,aux!$AL$1)>0,(O47-INDEX($K47:$O47,1,aux!$AL$1))/INDEX($K47:$O47,1,aux!$AL$1),"n.d.") -> -1
A48: 45 | B48: Cortiça e suas obras | C48: 0 | D48: 0 | E48: 0 | F48: 0 | G48: 0 | H48: 0 | I48: 0 | J48: 0 | K48: 0 | L48: 2739 | M48: 0 | N48: 12 | O48: 35 | P48: 557.2 | Q48: 0.08893003064 | R48: 0.006855854792 | S48: 557.2 | U48: =G48-INDEX($C48:$G48,1,aux!$AL$1) -> 0 | V48: 0 | W48: 0 | X48: =+IF(INDEX($C48:$G48,1,aux!$AL$1)>0,(G48/INDEX($C48:$G48,1,aux!$AL$1))^(1/($G$3-INDEX($C$3:$G$3,1,aux!$AL$1)))-1,"n.d.") -> n.d. | Y48: =IF(INDEX($C48:$G48,1,aux!$AL$1)>0,(G48-INDEX($C48:$G48,1,aux!$AL$1))/INDEX($C48:$G48,1,aux!$AL$1),"n.d.") -> n.d. | AA48: =O48-INDEX($K48:$O48,1,aux!$AL$1) -> 35 | AB48: -0.001227768618 | AC48: 0.0004005539088 | AD48: =+IF(INDEX($K48:$O48,1,aux!$AL$1)>0,(O48/INDEX($K48:$O48,1,aux!$AL$1))^(1/($O$3-INDEX($K$3:$O$3,1,aux!$AL$1)))-1,"n.d.") -> n.d. | AE48: =IF(INDEX($K48:$O48,1,aux!$AL$1)>0,(O48-INDEX($K48:$O48,1,aux!$AL$1))/INDEX($K48:$O48,1,aux!$AL$1),"n.d.") -> n.d.
A49: 46 | B49: Obras de espartaria ou de cestaria | C49: 0 | D49: 0 | E49: 0 | F49: 45 | G49: 0 | H49: 9 | I49: 0.001346337961 | J49: 0.0009831982346 | K49: 0 | L49: 0 | M49: 0 | N49: 0 | O49: 0 | P49: 0 | Q49: 0 | R49: 0 | S49: -9 | U49: =G49-INDEX($C49:$G49,1,aux!$AL$1) -> 0 | V49: 0 | W49: 0 | X49: =+IF(INDEX($C49:$G49,1,aux!$AL$1)>0,(G49/INDEX($C49:$G49,1,aux!$AL$1))^(1/($G$3-INDEX($C$3:$G$3,1,aux!$AL$1)))-1,"n.d.") -> n.d. | Y49: =IF(INDEX($C49:$G49,1,aux!$AL$1)>0,(G49-INDEX($C49:$G49,1,aux!$AL$1))/INDEX($C49:$G49,1,aux!$AL$1),"n.d.") -> n.d. | AA49: =O49-INDEX($K49:$O49,1,aux!$AL$1) -> 0 | AB49: 0 | AC49: 0 | AD49: =+IF(INDEX($K49:$O49,1,aux!$AL$1)>0,(O49/INDEX($K49:$O49,1,aux!$AL$1))^(1/($O$3-INDEX($K$3:$O$3,1,aux!$AL$1)))-1,"n.d.") -> n.d. | AE49: =IF(INDEX($K49:$O49,1,aux!$AL$1)>0,(O49-INDEX($K49:$O49,1,aux!$AL$1))/INDEX($K49:$O49,1,aux!$AL$1),"n.d.") -> n.d.
A50: 47 | B50: Pastas de madeira | C50: 0 | D50: 0 | E50: 0 | F50: 0 | G50: 0 | H50: 0 | I50: 0 | J50: 0 | K50: 0 | L50: 0 | M50: 0 | N50: 0 | O50: 0 | P50: 0 | Q50: 0 | R50: 0 | S50: 0 | U50: =G50-INDEX($C50:$G50,1,aux!$AL$1) -> 0 | V50: 0 | W50: 0 | X50: =+IF(INDEX($C50:$G50,1,aux!$AL$1)>0,(G50/INDEX($C50:$G50,1,aux!$AL$1))^(1/($G$3-INDEX($C$3:$G$3,1,aux!$AL$1)))-1,"n.d.") -> n.d. | Y50: =IF(INDEX($C50:$G50,1,aux!$AL$1)>0,(G50-INDEX($C50:$G50,1,aux!$AL$1))/INDEX($C50:$G50,1,aux!$AL$1),"n.d.") -> n.d. | AA50: =O50-INDEX($K50:$O50,1,aux!$AL$1) -> 0 | AB50: 0 | AC50: 0 | AD50: =+IF(INDEX($K50:$O50,1,aux!$AL$1)>0,(O50/INDEX($K50:$O50,1,aux!$AL$1))^(1/($O$3-INDEX($K$3:$O$3,1,aux!$AL$1)))-1,"n.d.") -> n.d. | AE50: =IF(INDEX($K50:$O50,1,aux!$AL$1)>0,(O50-INDEX($K50:$O50,1,aux!$AL$1))/INDEX($K50:$O50,1,aux!$AL$1),"n.d.") -> n.d.
A51: 48 | B51: Papel e cartão | C51: 262 | D51: 7 | E51: 13 | F51: 0 | G51: 97 | H51: 75.8 | I51: 0.01133915749 | J51: 0.00828071402 | K51: 0 | L51: 0 | M51: 0 | N51: 0 | O51: 0 | P51: 0 | Q51: 0 | R51: 0 | S51: -75.8 | U51: =G51-INDEX($C51:$G51,1,aux!$AL$1) -> -165 | V51: -0.02383704132 | W51: -0.02473392295 | X51: =+IF(INDEX($C51:$G51,1,aux!$AL$1)>0,(G51/INDEX($C51:$G51,1,aux!$AL$1))^(1/($G$3-INDEX($C$3:$G$3,1,aux!$AL$1)))-1,"n.d.") -> -0.2199586761 | Y51: =IF(INDEX($C51:$G51,1,aux!$AL$1)>0,(G51-INDEX($C51:$G51,1,aux!$AL$1))/INDEX($C51:$G51,1,aux!$AL$1),"n.d.") -> -0.6297709924 | AA51: =O51-INDEX($K51:$O51,1,aux!$AL$1) -> 0 | AB51: 0 | AC51: 0 | AD51: =+IF(INDEX($K51:$O51,1,aux!$AL$1)>0,(O51/INDEX($K51:$O51,1,aux!$AL$1))^(1/($O$3-INDEX($K$3:$O$3,1,aux!$AL$1)))-1,"n.d.") -> n.d. | AE51: =IF(INDEX($K51:$O51,1,aux!$AL$1)>0,(O51-INDEX($K51:$O51,1,aux!$AL$1))/INDEX($K51:$O51,1,aux!$AL$1),"n.d.") -> n.d.
A52: Subtotal Florestas | C52: 1678 | D52: 2654 | E52: 13316 | F52: 7176 | G52: 8600 | H52: 6684.8 | I52: 1 | J52: 0.730275951 | K52: 28542 | L52: 2739 | M52: 0 | N52: 12 | O52: 35 | P52: 6265.6 | Q52: 1 | R52: 0.07709268446 | S52: -419.2 | U52: =G52-INDEX($C52:$G52,1,aux!$AL$1) -> 6922 | V52: 1 | W52: 1.037625543 | X52: =+IF(INDEX($C52:$G52,1,aux!$AL$1)>0,(G52/INDEX($C52:$G52,1,aux!$AL$1))^(1/($G$3-INDEX($C$3:$G$3,1,aux!$AL$1)))-1,"n.d.") -> 0.5046192841 | Y52: =IF(INDEX($C52:$G52,1,aux!$AL$1)>0,(G52-INDEX($C52:$G52,1,aux!$AL$1))/INDEX($C52:$G52,1,aux!$AL$1),"n.d.") -> 4.125148987 | AA52: =O52-INDEX($K52:$O52,1,aux!$AL$1) -> -28507 | AB52: 1 | AC52: -0.3262454365 | AD52: =+IF(INDEX($K52:$O52,1,aux!$AL$1)>0,(O52/INDEX($K52:$O52,1,aux!$AL$1))^(1/($O$3-INDEX($K$3:$O$3,1,aux!$AL$1)))-1,"n.d.") -> -0.8128689258 | AE52: =IF(INDEX($K52:$O52,1,aux!$AL$1)>0,(O52-INDEX($K52:$O52,1,aux!$AL$1))/INDEX($K52:$O52,1,aux!$AL$1),"n.d.") -> -0.9987737369
A53: TOTAL | C53: 1948 | D53: 2654 | E53: 13316 | F53: 19232 | G53: 8619 | H53: 9153.8 | J53: 1 | K53: 53891 | L53: 35799 | M53: 115814 | N53: 59594 | O53: 141270 | P53: 81273.6 | R53: 1 | S53: 72119.8 | U53: =G53-INDEX($C53:$G53,1,aux!$AL$1) -> 6671 | W53: 1 | X53: =+IF(INDEX($C53:$G53,1,aux!$AL$1)>0,(G53/INDEX($C53:$G53,1,aux!$AL$1))^(1/($G$3-INDEX($C$3:$G$3,1,aux!$AL$1)))-1,"n.d.") -> 0.4503305063 | Y53: =IF(INDEX($C53:$G53,1,aux!$AL$1)>0,(G53-INDEX($C53:$G53,1,aux!$AL$1))/INDEX($C53:$G53,1,aux!$AL$1),"n.d.") -> 3.424537988 | AA53: =O53-INDEX($K53:$O53,1,aux!$AL$1) -> 87379 | AC53: 1 | AD53: =+IF(INDEX($K53:$O53,1,aux!$AL$1)>0,(O53/INDEX($K53:$O53,1,aux!$AL$1))^(1/($O$3-INDEX($K$3:$O$3,1,aux!$AL$1)))-1,"n.d.") -> 0.2724286106 | AE53: =IF(INDEX($K53:$O53,1,aux!$AL$1)>0,(O53-INDEX($K53:$O53,1,aux!$AL$1))/INDEX($K53:$O53,1,aux!$AL$1),"n.d.") -> 1.621402461
B54: a - agrícola e agroalimentar; p - mar; f - florestas
A55: Fonte: GPP a partir de dados INE/Comércio Internacional (2020 provisórios; 2021 preliminares) | S55: 2023-01-23T14:01:56.680

Sheet 5_var
A1: ="Principais contributos por produto para a variação das trocas comerciais PT-Nepal_x000D_ no período " & INDEX('5'!K3:N3,1,aux!AL1) & "-2021 (NC 2 dígitos - valores em euros) Produtos agrícolas e agroalimentares, do mar e da floresta" -> Principais contributos por produto para a variação das trocas comerciais PT-Nepal no período 2017-2021 (NC 2 dígitos - valores em euros) Produtos agrícolas e agroalimentares, do mar e da floresta
E5: aumento das importações | J5: aumento das exportações
E17: redução das importações | J17: redução das exportações
A28: Fonte: GPP a partir de dados INE/Comércio Internacional (2020 provisórios; 2021 preliminares) | F28: a - agrícola e agroalimentar; p - mar; f - florestas | H28: ='3'!Y116 -> 2023-01-23T14:01:56.680
A29: Cód. NC | B29: Descritivo | C29: ="Variação das Importações " & INDEX('5'!K3:N3,1,aux!AL1) & "-"& '5'!O3 &"" -> Variação das Importações 2017-2021 | F29: Cód. NC | G29: Descritivo | H29: ="Variação das Exportações " & INDEX('5'!K3:N3,1,aux!AL1) & "-"& '5'!O3 &"" -> Variação das Exportações 2017-2021
C30: variação total em valor | D30: % do aumento/ redução total | H30: variação total em valor | I30: % do aumento/ redução total
A31: =IF(C31>0,aux!AU6,"") -> 44 | B31: =IF(C31>0,aux!AV6,"") -> Madeira e suas obras | C31: =IF(aux!AW6>0,aux!AW6,0) -> 7087 | D31: =IF(SUM($C$31:$C$41)<>0,C31/SUM($C$31:$C$41),0) -> 0.9973262032 | F31: =IF(H31>0,aux!AZ6,"") -> 21 | G31: =IF(H31>0,aux!BA6,"") -> Preparações alimentícias diversas | H31: =IF(aux!BB6>0,aux!BB6,0) -> 2197-06-11 | I31: =IF(SUM($H$31:$H$41)<>0,H31/SUM($H$31:$H$41),0) -> 0.7690309337
A32: =IF(C32>0,aux!AU7,"") -> 25 | B32: =IF(C32>0,aux!AV7,"") -> Sal e cloreto de sódio puro; água do mar (NC 2501) | C32: =IF(aux!AW7>0,aux!AW7,0) -> 19 | D32: =IF(SUM($C$31:$C$41)<>0,C32/SUM($C$31:$C$41),0) -> 0.002673796791 | F32: =IF(H32>0,aux!AZ7,"") -> 15 | G32: =IF(H32>0,aux!BA7,"") -> Gorduras e óleos animais ou vegetais | H32: =IF(aux!BB7>0,aux!BB7,0) -> 1989-03-27 | I32: =IF(SUM($H$31:$H$41)<>0,H32/SUM($H$31:$H$41),0) -> 0.2307213138
A33: =IF(C33>0,aux!AU8,"") ->  | B33: =IF(C33>0,aux!AV8,"") ->  | C33: =IF(aux!AW8>0,aux!AW8,0) -> 0 | D33: 0 | F33: =IF(H33>0,aux!AZ8,"") -> 45 | G33: =IF(H33>0,aux!BA8,"") -> Cortiça e suas obras | H33: =IF(aux!BB8>0,aux!BB8,0) -> 1900-02-04 | I33: 0.0002477525306
A34: =IF(C34>0,aux!AU9,"") ->  | B34: =IF(C34>0,aux!AV9,"") ->  | C34: =IF(aux!AW9>0,aux!AW9,0) -> 0 | D34: 0 | F34: =IF(H34>0,aux!AZ9,"") ->  | G34: =IF(H34>0,aux!BA9,"") ->  | H34: =IF(aux!BB9>0,aux!BB9,0) -> 00:00:00 | I34: 0
A35: =IF(C35>0,aux!AU10,"") ->  | B35: =IF(C35>0,aux!AV10,"") ->  | C35: =IF(aux!AW10>0,aux!AW10,0) -> 0 | D35: 0 | F35: =IF(H35>0,aux!AZ10,"") ->  | G35: =IF(H35>0,aux!BA10,"") ->  | H35: =IF(aux!BB10>0,aux!BB10,0) -> 00:00:00 | I35: 0
A36: =IF(C36>0,aux!AU11,"") ->  | B36: =IF(C36>0,aux!AV11,"") ->  | C36: =IF(aux!AW11>0,aux!AW11,0) -> 0 | D36: 0 | F36: =IF(H36>0,aux!AZ11,"") ->  | G36: =IF(H36>0,aux!BA11,"") ->  | H36: =IF(aux!BB11>0,aux!BB11,0) -> 00:00:00 | I36: 0
A37: =IF(C37>0,aux!AU12,"") ->  | B37: =IF(C37>0,aux!AV12,"") ->  | C37: =IF(aux!AW12>0,aux!AW12,0) -> 0 | D37: 0 | F37: =IF(H37>0,aux!AZ12,"") ->  | G37: =IF(H37>0,aux!BA12,"") ->  | H37: =IF(aux!BB12>0,aux!BB12,0) -> 00:00:00 | I37: 0
A38: =IF(C38>0,aux!AU13,"") ->  | B38: =IF(C38>0,aux!AV13,"") ->  | C38: =IF(aux!AW13>0,aux!AW13,0) -> 0 | D38: 0 | F38: =IF(H38>0,aux!AZ13,"") ->  | G38: =IF(H38>0,aux!BA13,"") ->  | H38: =IF(aux!BB13>0,aux!BB13,0) -> 00:00:00 | I38: 0
A39: =IF(C39>0,aux!AU14,"") ->  | B39: =IF(C39>0,aux!AV14,"") ->  | C39: =IF(aux!AW14>0,aux!AW14,0) -> 0 | D39: 0 | F39: =IF(H39>0,aux!AZ14,"") ->  | G39: =IF(H39>0,aux!BA14,"") ->  | H39: =IF(aux!BB14>0,aux!BB14,0) -> 00:00:00 | I39: 0
A40: =IF(C40>0,aux!AU15,"") ->  | B40: =IF(C40>0,aux!AV15,"") ->  | C40: =IF(aux!AW15>0,aux!AW15,0) -> 0 | D40: 0 | F40: =IF(H40>0,aux!AZ15,"") ->  | G40: =IF(H40>0,aux!BA15,"") ->  | H40: =IF(aux!BB15>0,aux!BB15,0) -> 00:00:00 | I40: 0
B41: Outros contributos para o aumento das importações | C41: =SUMIF(aux!AW16:AW51,">0") -> 0 | D41: 0 | G41: Outros contributos para o aumento das exportações | H41: =SUMIF(aux!BB16:BB51,">0") -> 00:00:00 | I41: 0
B42: Outros contributos para a redução das importações | C42: =SUMIF(aux!AW6:AW41,"<0") -> 0 | D42: =IF(SUM($C$42:$C$52)<>0,C42/SUM($C$42:$C$52),0) -> 0 | G42: Outros contributos para a redução das exportações | H42: =SUMIF(aux!BB6:BB41,"<0") -> 00:00:00 | I42: =IF(SUM($H$42:$H$52)<>0,H42/SUM($H$42:$H$52),0) -> 0
A43: =IF(C43<>0,aux!AU42,"") ->  | B43: =IF(C43<0,aux!AV42,"") ->  | C43: =IF(aux!AW42<0,aux!AW42,0) -> 0 | D43: =IF(SUM($C$42:$C$52)<>0,C43/SUM($C$42:$C$52),0) -> 0 | F43: =IF(H43<>0,aux!AZ42,"") ->  | G43: =IF(H43<>0,aux!BA42,"") ->  | H43: =IF(aux!BB42<0,aux!BB42,0) -> 00:00:00 | I43: =IF(SUM($H$42:$H$52)<>0,H43/SUM($H$42:$H$52),0) -> 0
A44: =IF(C44<>0,aux!AU43,"") ->  | B44: =IF(C44<0,aux!AV43,"") ->  | C44: =IF(aux!AW43<0,aux!AW43,0) -> 0 | D44: 0 | F44: =IF(H44<>0,aux!AZ43,"") ->  | G44: =IF(H44<>0,aux!BA43,"") ->  | H44: =IF(aux!BB43<0,aux!BB43,0) -> 00:00:00 | I44: 0
A45: =IF(C45<>0,aux!AU44,"") ->  | B45: =IF(C45<0,aux!AV44,"") ->  | C45: =IF(aux!AW44<0,aux!AW44,0) -> 0 | D45: 0 | F45: =IF(H45<>0,aux!AZ44,"") ->  | G45: =IF(H45<>0,aux!BA44,"") ->  | H45: =IF(aux!BB44<0,aux!BB44,0) -> 00:00:00 | I45: 0
A46: =IF(C46<>0,aux!AU45,"") ->  | B46: =IF(C46<0,aux!AV45,"") ->  | C46: =IF(aux!AW45<0,aux!AW45,0) -> 0 | D46: 0 | F46: =IF(H46<>0,aux!AZ45,"") ->  | G46: =IF(H46<>0,aux!BA45,"") ->  | H46: =IF(aux!BB45<0,aux!BB45,0) -> 00:00:00 | I46: 0
A47: =IF(C47<>0,aux!AU46,"") ->  | B47: =IF(C47<0,aux!AV46,"") ->  | C47: =IF(aux!AW46<0,aux!AW46,0) -> 0 | D47: 0 | F47: =IF(H47<>0,aux!AZ46,"") ->  | G47: =IF(H47<>0,aux!BA46,"") ->  | H47: =IF(aux!BB46<0,aux!BB46,0) -> 00:00:00 | I47: 0
A48: =IF(C48<>0,aux!AU47,"") ->  | B48: =IF(C48<0,aux!AV47,"") ->  | C48: =IF(aux!AW47<0,aux!AW47,0) -> 0 | D48: 0 | F48: =IF(H48<>0,aux!AZ47,"") ->  | G48: =IF(H48<>0,aux!BA47,"") ->  | H48: =IF(aux!BB47<0,aux!BB47,0) -> 00:00:00 | I48: 0
A49: =IF(C49<>0,aux!AU48,"") ->  | B49: =IF(C49<0,aux!AV48,"") ->  | C49: =IF(aux!AW48<0,aux!AW48,0) -> 0 | D49: 0 | F49: =IF(H49<>0,aux!AZ48,"") ->  | G49: =IF(H49<>0,aux!BA48,"") ->  | H49: =IF(aux!BB48<0,aux!BB48,0) -> 00:00:00 | I49: 0
A50: =IF(C50<>0,aux!AU49,"") ->  | B50: =IF(C50<0,aux!AV49,"") ->  | C50: =IF(aux!AW49<0,aux!AW49,0) -> 0 | D50: 0 | F50: =IF(H50<>0,aux!AZ49,"") ->  | G50: =IF(H50<>0,aux!BA49,"") ->  | H50: =IF(aux!BB49<0,aux!BB49,0) -> 00:00:00 | I50: 0
A51: =IF(C51<>0,aux!AU50,"") -> 48 | B51: =IF(C51<0,aux!AV50,"") -> Papel e cartão | C51: =IF(aux!AW50<0,aux!AW50,0) -> -165 | D51: 0.3793103448 | F51: =IF(H51<>0,aux!AZ50,"") -> 22 | G51: =IF(H51<>0,aux!BA50,"") -> Bebidas, líquidos alcoólicos e vinagres | H51: =IF(aux!BB50<0,aux!BB50,0) -> -25349 | I51: 0.4703753874
A52: =IF(C52<>0,aux!AU51,"") -> 53 | B52: =IF(C52<0,aux!AV51,"") -> Linho e cânhamo em bruto (NC 5301-5302) | C52: =IF(aux!AW51<0,aux!AW51,0) -> -270 | D52: 0.6206896552 | F52: =IF(H52<>0,aux!AZ51,"") -> 44 | G52: =IF(H52<>0,aux!BA51,"") -> Madeira e suas obras | H52: =IF(aux!BB51<0,aux!BB51,0) -> -28542 | I52: 0.5296246126
A53: TOTAL | C53: =SUM(C31:C52) -> 6671 | F53: TOTAL | H53: =SUM(H31:H52) -> 2139-03-26

Sheet 5A
A1: Trocas comerciais Portugal-Nepal 2017-2021 em euros (NC 4 dígitos) | G1: Produtos agrícolas e agroalimentares, do mar e da floresta
A2: Cód. NC | B2: Descritivo | C2: Importações | K2: Exportações | S2: Saldo quinquénio (exp-imp) | T2: Evolução das importações | U2: =+"Variação das Importações " & INDEX(K3:N3,1,aux!AL1) & "-"& '5'!O3 &"" -> Variação das Importações 2017-2021 | Z2: Evolução das exportações | AA2: ="Variação das Exportações " & INDEX(K3:N3,1,aux!AL1) & "-"& '5'!O3 &"" -> Variação das Exportações 2017-2021
C3: 2017 | D3: 2018 | E3: 2019 | F3: 2020 | G3: 2021 | H3: média quinquénio | I3: % Subtot | J3: % Total | K3: 2017 | L3: 2018 | M3: 2019 | N3: 2020 | O3: 2021 | P3: média quinquénio | Q3: % Subtot | R3: % Total | U3: variação total em valor | V3: % no subtotal de variação | W3: % no total de variação | X3: taxa de variação média anual | Y3: taxa de variação total | AA3: variação total em valor | AB3: % no subtotal de variação | AC3: % no total de variação | AD3: taxa de variação média anual | AE3: taxa de variação total | AX3: filtro
A4: 0101 | B4: Equídeos vivos | C4: 0 | D4: 0 | E4: 0 | F4: 0 | G4: 0 | H4: 0 | I4: 0 | J4: 0 | K4: 0 | L4: 0 | M4: 0 | N4: 0 | O4: 0 | P4: 0 | Q4: 0 | R4: 0 | S4: 0 | U4: =G4-INDEX($C4:$G4,1,aux!$AL$1) -> 0 | V4: =IF($U$236<>0,U4/$U$236, "n.d.") -> 0 | W4: =IF($U$320<>0,U4/$U$320, "n.d.") -> 0 | X4: =+IF(INDEX($C4:$G4,1,aux!$AL$1)>0,(G4/INDEX($C4:$G4,1,aux!$AL$1))^(1/($G$3-INDEX($C$3:$G$3,1,aux!$AL$1)))-1,"n.d.") -> n.d. | Y4: =IF(INDEX($C4:$G4,1,aux!$AL$1)>0,(G4-INDEX($C4:$G4,1,aux!$AL$1))/INDEX($C4:$G4,1,aux!$AL$1),"n.d.") -> n.d. | AA4: =O4-INDEX($K4:$O4,1,aux!$AL$1) -> 0 | AB4: =IF($AA$236<>0,AA4/$AA$236, "n.d.") -> 0 | AC4: =IF($AA$320<>0,AA4/$AA$320, "n.d.") -> 0 | AD4: =+IF(INDEX($K4:$O4,1,aux!$AL$1)>0,(O4/INDEX($K4:$O4,1,aux!$AL$1))^(1/($O$3-INDEX($K$3:$O$3,1,aux!$AL$1)))-1,"n.d.") -> n.d. | AE4: =IF(INDEX($K4:$O4,1,aux!$AL$1)>0,(O4-INDEX($K4:$O4,1,aux!$AL$1))/INDEX($K4:$O4,1,aux!$AL$1),"n.d.") -> n.d. | AX4: =+LEFT(A4,2) -> 01
A5: 0102 | B5: Bovinos vivos | C5: 0 | D5: 0 | E5: 0 | F5: 0 | G5: 0 | H5: 0 | I5: 0 | J5: 0 | K5: 0 | L5: 0 | M5: 0 | N5: 0 | O5: 0 | P5: 0 | Q5: 0 | R5: 0 | S5: 0 | U5: =G5-INDEX($C5:$G5,1,aux!$AL$1) -> 0 | V5: 0 | W5: 0 | X5: =+IF(INDEX($C5:$G5,1,aux!$AL$1)>0,(G5/INDEX($C5:$G5,1,aux!$AL$1))^(1/($G$3-INDEX($C$3:$G$3,1,aux!$AL$1)))-1,"n.d.") -> n.d. | Y5: =IF(INDEX($C5:$G5,1,aux!$AL$1)>0,(G5-INDEX($C5:$G5,1,aux!$AL$1))/INDEX($C5:$G5,1,aux!$AL$1),"n.d.") -> n.d. | AA5: =O5-INDEX($K5:$O5,1,aux!$AL$1) -> 0 | AB5: 0 | AC5: 0 | AD5: =+IF(INDEX($K5:$O5,1,aux!$AL$1)>0,(O5/INDEX($K5:$O5,1,aux!$AL$1))^(1/($O$3-INDEX($K$3:$O$3,1,aux!$AL$1)))-1,"n.d.") -> n.d. | AE5: =IF(INDEX($K5:$O5,1,aux!$AL$1)>0,(O5-INDEX($K5:$O5,1,aux!$AL$1))/INDEX($K5:$O5,1,aux!$AL$1),"n.d.") -> n.d. | AX5: =+LEFT(A5,2) -> 01
A6: 0103 | B6: Suínos vivos | C6: 0 | D6: 0 | E6: 0 | F6: 0 | G6: 0 | H6: 0 | I6: 0 | J6: 0 | K6: 0 | L6: 0 | M6: 0 | N6: 0 | O6: 0 | P6: 0 | Q6: 0 | R6: 0 | S6: 0 | U6: =G6-INDEX($C6:$G6,1,aux!$AL$1) -> 0 | V6: 0 | W6: 0 | X6: =+IF(INDEX($C6:$G6,1,aux!$AL$1)>0,(G6/INDEX($C6:$G6,1,aux!$AL$1))^(1/($G$3-INDEX($C$3:$G$3,1,aux!$AL$1)))-1,"n.d.") -> n.d. | Y6: =IF(INDEX($C6:$G6,1,aux!$AL$1)>0,(G6-INDEX($C6:$G6,1,aux!$AL$1))/INDEX($C6:$G6,1,aux!$AL$1),"n.d.") -> n.d. | AA6: =O6-INDEX($K6:$O6,1,aux!$AL$1) -> 0 | AB6: 0 | AC6: 0 | AD6: =+IF(INDEX($K6:$O6,1,aux!$AL$1)>0,(O6/INDEX($K6:$O6,1,aux!$AL$1))^(1/($O$3-INDEX($K$3:$O$3,1,aux!$AL$1)))-1,"n.d.") -> n.d. | AE6: =IF(INDEX($K6:$O6,1,aux!$AL$1)>0,(O6-INDEX($K6:$O6,1,aux!$AL$1))/INDEX($K6:$O6,1,aux!$AL$1),"n.d.") -> n.d. | AX6: 01
A7: 0104 | B7: Ovinos ou caprinos vivos | C7: 0 | D7: 0 | E7: 0 | F7: 0 | G7: 0 | H7: 0 | I7: 0 | J7: 0 | K7: 0 | L7: 0 | M7: 0 | N7: 0 | O7: 0 | P7: 0 | Q7: 0 | R7: 0 | S7: 0 | U7: =G7-INDEX($C7:$G7,1,aux!$AL$1) -> 0 | V7: 0 | W7: 0 | X7: =+IF(INDEX($C7:$G7,1,aux!$AL$1)>0,(G7/INDEX($C7:$G7,1,aux!$AL$1))^(1/($G$3-INDEX($C$3:$G$3,1,aux!$AL$1)))-1,"n.d.") -> n.d. | Y7: =IF(INDEX($C7:$G7,1,aux!$AL$1)>0,(G7-INDEX($C7:$G7,1,aux!$AL$1))/INDEX($C7:$G7,1,aux!$AL$1),"n.d.") -> n.d. | AA7: =O7-INDEX($K7:$O7,1,aux!$AL$1) -> 0 | AB7: 0 | AC7: 0 | AD7: =+IF(INDEX($K7:$O7,1,aux!$AL$1)>0,(O7/INDEX($K7:$O7,1,aux!$AL$1))^(1/($O$3-INDEX($K$3:$O$3,1,aux!$AL$1)))-1,"n.d.") -> n.d. | AE7: =IF(INDEX($K7:$O7,1,aux!$AL$1)>0,(O7-INDEX($K7:$O7,1,aux!$AL$1))/INDEX($K7:$O7,1,aux!$AL$1),"n.d.") -> n.d. | AX7: 01
A8: 0105 | B8: Aves de capoeira vivas | C8: 0 | D8: 0 | E8: 0 | F8: 0 | G8: 0 | H8: 0 | I8: 0 | J8: 0 | K8: 0 | L8: 0 | M8: 0 | N8: 0 | O8: 0 | P8: 0 | Q8: 0 | R8: 0 | S8: 0 | U8: =G8-INDEX($C8:$G8,1,aux!$AL$1) -> 0 | V8: 0 | W8: 0 | X8: =+IF(INDEX($C8:$G8,1,aux!$AL$1)>0,(G8/INDEX($C8:$G8,1,aux!$AL$1))^(1/($G$3-INDEX($C$3:$G$3,1,aux!$AL$1)))-1,"n.d.") -> n.d. | Y8: =IF(INDEX($C8:$G8,1,aux!$AL$1)>0,(G8-INDEX($C8:$G8,1,aux!$AL$1))/INDEX($C8:$G8,1,aux!$AL$1),"n.d.") -> n.d. | AA8: =O8-INDEX($K8:$O8,1,aux!$AL$1) -> 0 | AB8: 0 | AC8: 0 | AD8: =+IF(INDEX($K8:$O8,1,aux!$AL$1)>0,(O8/INDEX($K8:$O8,1,aux!$AL$1))^(1/($O$3-INDEX($K$3:$O$3,1,aux!$AL$1)))-1,"n.d.") -> n.d. | AE8: =IF(INDEX($K8:$O8,1,aux!$AL$1)>0,(O8-INDEX($K8:$O8,1,aux!$AL$1))/INDEX($K8:$O8,1,aux!$AL$1),"n.d.") -> n.d. | AX8: 01
A9: 0106 | B9: Outros animais vivos | C9: 0 | D9: 0 | E9: 0 | F9: 0 | G9: 0 | H9: 0 | I9: 0 | J9: 0 | K9: 0 | L9: 0 | M9: 0 | N9: 0 | O9: 0 | P9: 0 | Q9: 0 | R9: 0 | S9: 0 | U9: =G9-INDEX($C9:$G9,1,aux!$AL$1) -> 0 | V9: 0 | W9: 0 | X9: =+IF(INDEX($C9:$G9,1,aux!$AL$1)>0,(G9/INDEX($C9:$G9,1,aux!$AL$1))^(1/($G$3-INDEX($C$3:$G$3,1,aux!$AL$1)))-1,"n.d.") -> n.d. | Y9: =IF(INDEX($C9:$G9,1,aux!$AL$1)>0,(G9-INDEX($C9:$G9,1,aux!$AL$1))/INDEX($C9:$G9,1,aux!$AL$1),"n.d.") -> n.d. | AA9: =O9-INDEX($K9:$O9,1,aux!$AL$1) -> 0 | AB9: 0 | AC9: 0 | AD9: =+IF(INDEX($K9:$O9,1,aux!$AL$1)>0,(O9/INDEX($K9:$O9,1,aux!$AL$1))^(1/($O$3-INDEX($K$3:$O$3,1,aux!$AL$1)))-1,"n.d.") -> n.d. | AE9: =IF(INDEX($K9:$O9,1,aux!$AL$1)>0,(O9-INDEX($K9:$O9,1,aux!$AL$1))/INDEX($K9:$O9,1,aux!$AL$1),"n.d.") -> n.d. | AX9: 01
A10: 01SS | B10: Animais vivos | C10: 0 | D10: 0 | E10: 0 | F10: 0 | G10: 0 | H10: 0 | I10: 0 | J10: 0 | K10: 0 | L10: 0 | M10: 0 | N10: 0 | O10: 0 | P10: 0 | Q10: 0 | R10: 0 | S10: 0 | U10: =G10-INDEX($C10:$G10,1,aux!$AL$1) -> 0 | V10: 0 | W10: 0 | X10: =+IF(INDEX($C10:$G10,1,aux!$AL$1)>0,(G10/INDEX($C10:$G10,1,aux!$AL$1))^(1/($G$3-INDEX($C$3:$G$3,1,aux!$AL$1)))-1,"n.d.") -> n.d. | Y10: =IF(INDEX($C10:$G10,1,aux!$AL$1)>0,(G10-INDEX($C10:$G10,1,aux!$AL$1))/INDEX($C10:$G10,1,aux!$AL$1),"n.d.") -> n.d. | AA10: =O10-INDEX($K10:$O10,1,aux!$AL$1) -> 0 | AB10: 0 | AC10: 0 | AD10: =+IF(INDEX($K10:$O10,1,aux!$AL$1)>0,(O10/INDEX($K10:$O10,1,aux!$AL$1))^(1/($O$3-INDEX($K$3:$O$3,1,aux!$AL$1)))-1,"n.d.") -> n.d. | AE10: =IF(INDEX($K10:$O10,1,aux!$AL$1)>0,(O10-INDEX($K10:$O10,1,aux!$AL$1))/INDEX($K10:$O10,1,aux!$AL$1),"n.d.") -> n.d. | AX10: 01
A11: 0201 | B11: Carnes de bovino, frescas ou refrigeradas | C11: 0 | D11: 0 | E11: 0 | F11: 0 | G11: 0 | H11: 0 | I11: 0 | J11: 0 | K11: 0 | L11: 0 | M11: 0 | N11: 0 | O11: 0 | P11: 0 | Q11: 0 | R11: 0 | S11: 0 | U11: =G11-INDEX($C11:$G11,1,aux!$AL$1) -> 0 | V11: 0 | W11: 0 | X11: =+IF(INDEX($C11:$G11,1,aux!$AL$1)>0,(G11/INDEX($C11:$G11,1,aux!$AL$1))^(1/($G$3-INDEX($C$3:$G$3,1,aux!$AL$1)))-1,"n.d.") -> n.d. | Y11: =IF(INDEX($C11:$G11,1,aux!$AL$1)>0,(G11-INDEX($C11:$G11,1,aux!$AL$1))/INDEX($C11:$G11,1,aux!$AL$1),"n.d.") -> n.d. | AA11: =O11-INDEX($K11:$O11,1,aux!$AL$1) -> 0 | AB11: 0 | AC11: 0 | AD11: =+IF(INDEX($K11:$O11,1,aux!$AL$1)>0,(O11/INDEX($K11:$O11,1,aux!$AL$1))^(1/($O$3-INDEX($K$3:$O$3,1,aux!$AL$1)))-1,"n.d.") -> n.d. | AE11: =IF(INDEX($K11:$O11,1,aux!$AL$1)>0,(O11-INDEX($K11:$O11,1,aux!$AL$1))/INDEX($K11:$O11,1,aux!$AL$1),"n.d.") -> n.d. | AX11: 02
A12: 0202 | B12: Carnes de bovino, congeladas | C12: 0 | D12: 0 | E12: 0 | F12: 0 | G12: 0 | H12: 0 | I12: 0 | J12: 0 | K12: 0 | L12: 0 | M12: 0 | N12: 0 | O12: 0 | P12: 0 | Q12: 0 | R12: 0 | S12: 0 | U12: =G12-INDEX($C12:$G12,1,aux!$AL$1) -> 0 | V12: 0 | W12: 0 | X12: =+IF(INDEX($C12:$G12,1,aux!$AL$1)>0,(G12/INDEX($C12:$G12,1,aux!$AL$1))^(1/($G$3-INDEX($C$3:$G$3,1,aux!$AL$1)))-1,"n.d.") -> n.d. | Y12: =IF(INDEX($C12:$G12,1,aux!$AL$1)>0,(G12-INDEX($C12:$G12,1,aux!$AL$1))/INDEX($C12:$G12,1,aux!$AL$1),"n.d.") -> n.d. | AA12: =O12-INDEX($K12:$O12,1,aux!$AL$1) -> 0 | AB12: 0 | AC12: 0 | AD12: =+IF(INDEX($K12:$O12,1,aux!$AL$1)>0,(O12/INDEX($K12:$O12,1,aux!$AL$1))^(1/($O$3-INDEX($K$3:$O$3,1,aux!$AL$1)))-1,"n.d.") -> n.d. | AE12: =IF(INDEX($K12:$O12,1,aux!$AL$1)>0,(O12-INDEX($K12:$O12,1,aux!$AL$1))/INDEX($K12:$O12,1,aux!$AL$1),"n.d.") -> n.d. | AX12: 02
A13: 0203 | B13: Carnes de suíno | C13: 0 | D13: 0 | E13: 0 | F13: 0 | G13: 0 | H13: 0 | I13: 0 | J13: 0 | K13: 0 | L13: 0 | M13: 0 | N13: 0 | O13: 0 | P13: 0 | Q13: 0 | R13: 0 | S13: 0 | U13: =G13-INDEX($C13:$G13,1,aux!$AL$1) -> 0 | V13: 0 | W13: 0 | X13: =+IF(INDEX($C13:$G13,1,aux!$AL$1)>0,(G13/INDEX($C13:$G13,1,aux!$AL$1))^(1/($G$3-INDEX($C$3:$G$3,1,aux!$AL$1)))-1,"n.d.") -> n.d. | Y13: =IF(INDEX($C13:$G13,1,aux!$AL$1)>0,(G13-INDEX($C13:$G13,1,aux!$AL$1))/INDEX($C13:$G13,1,aux!$AL$1),"n.d.") -> n.d. | AA13: =O13-INDEX($K13:$O13,1,aux!$AL$1) -> 0 | AB13: 0 | AC13: 0 | AD13: =+IF(INDEX($K13:$O13,1,aux!$AL$1)>0,(O13/INDEX($K13:$O13,1,aux!$AL$1))^(1/($O$3-INDEX($K$3:$O$3,1,aux!$AL$1)))-1,"n.d.") -> n.d. | AE13: =IF(INDEX($K13:$O13,1,aux!$AL$1)>0,(O13-INDEX($K13:$O13,1,aux!$AL$1))/INDEX($K13:$O13,1,aux!$AL$1),"n.d.") -> n.d. | AX13: 02
A14: 0204 | B14: Carnes de ovino ou caprino | C14: 0 | D14: 0 | E14: 0 | F14: 0 | G14: 0 | H14: 0 | I14: 0 | J14: 0 | K14: 0 | L14: 0 | M14: 0 | N14: 0 | O14: 0 | P14: 0 | Q14: 0 | R14: 0 | S14: 0 | U14: =G14-INDEX($C14:$G14,1,aux!$AL$1) -> 0 | V14: 0 | W14: 0 | X14: =+IF(INDEX($C14:$G14,1,aux!$AL$1)>0,(G14/INDEX($C14:$G14,1,aux!$AL$1))^(1/($G$3-INDEX($C$3:$G$3,1,aux!$AL$1)))-1,"n.d.") -> n.d. | Y14: =IF(INDEX($C14:$G14,1,aux!$AL$1)>0,(G14-INDEX($C14:$G14,1,aux!$AL$1))/INDEX($C14:$G14,1,aux!$AL$1),"n.d.") -> n.d. | AA14: =O14-INDEX($K14:$O14,1,aux!$AL$1) -> 0 | AB14: 0 | AC14: 0 | AD14: =+IF(INDEX($K14:$O14,1,aux!$AL$1)>0,(O14/INDEX($K14:$O14,1,aux!$AL$1))^(1/($O$3-INDEX($K$3:$O$3,1,aux!$AL$1)))-1,"n.d.") -> n.d. | AE14: =IF(INDEX($K14:$O14,1,aux!$AL$1)>0,(O14-INDEX($K14:$O14,1,aux!$AL$1))/INDEX($K14:$O14,1,aux!$AL$1),"n.d.") -> n.d. | AX14: 02
A15: 0205 | B15: Carnes de equídeo | C15: 0 | D15: 0 | E15: 0 | F15: 0 | G15: 0 | H15: 0 | I15: 0 | J15: 0 | K15: 0 | L15: 0 | M15: 0 | N15: 0 | O15: 0 | P15: 0 | Q15: 0 | R15: 0 | S15: 0 | U15: =G15-INDEX($C15:$G15,1,aux!$AL$1) -> 0 | V15: 0 | W15: 0 | X15: =+IF(INDEX($C15:$G15,1,aux!$AL$1)>0,(G15/INDEX($C15:$G15,1,aux!$AL$1))^(1/($G$3-INDEX($C$3:$G$3,1,aux!$AL$1)))-1,"n.d.") -> n.d. | Y15: =IF(INDEX($C15:$G15,1,aux!$AL$1)>0,(G15-INDEX($C15:$G15,1,aux!$AL$1))/INDEX($C15:$G15,1,aux!$AL$1),"n.d.") -> n.d. | AA15: =O15-INDEX($K15:$O15,1,aux!$AL$1) -> 0 | AB15: 0 | AC15: 0 | AD15: =+IF(INDEX($K15:$O15,1,aux!$AL$1)>0,(O15/INDEX($K15:$O15,1,aux!$AL$1))^(1/($O$3-INDEX($K$3:$O$3,1,aux!$AL$1)))-1,"n.d.") -> n.d. | AE15: =IF(INDEX($K15:$O15,1,aux!$AL$1)>0,(O15-INDEX($K15:$O15,1,aux!$AL$1))/INDEX($K15:$O15,1,aux!$AL$1),"n.d.") -> n.d. | AX15: 02
A16: 0206 | B16: Miudezas de bovino, suíno, ovino, caprino,equídeo | C16: 0 | D16: 0 | E16: 0 | F16: 0 | G16: 0 | H16: 0 | I16: 0 | J16: 0 | K16: 0 | L16: 0 | M16: 0 | N16: 0 | O16: 0 | P16: 0 | Q16: 0 | R16: 0 | S16: 0 | U16: =G16-INDEX($C16:$G16,1,aux!$AL$1) -> 0 | V16: 0 | W16: 0 | X16: =+IF(INDEX($C16:$G16,1,aux!$AL$1)>0,(G16/INDEX($C16:$G16,1,aux!$AL$1))^(1/($G$3-INDEX($C$3:$G$3,1,aux!$AL$1)))-1,"n.d.") -> n.d. | Y16: =IF(INDEX($C16:$G16,1,aux!$AL$1)>0,(G16-INDEX($C16:$G16,1,aux!$AL$1))/INDEX($C16:$G16,1,aux!$AL$1),"n.d.") -> n.d. | AA16: =O16-INDEX($K16:$O16,1,aux!$AL$1) -> 0 | AB16: 0 | AC16: 0 | AD16: =+IF(INDEX($K16:$O16,1,aux!$AL$1)>0,(O16/INDEX($K16:$O16,1,aux!$AL$1))^(1/($O$3-INDEX($K$3:$O$3,1,aux!$AL$1)))-1,"n.d.") -> n.d. | AE16: =IF(INDEX($K16:$O16,1,aux!$AL$1)>0,(O16-INDEX($K16:$O16,1,aux!$AL$1))/INDEX($K16:$O16,1,aux!$AL$1),"n.d.") -> n.d. | AX16: 02
A17: 0207 | B17: Carnes e miudezas de aves de capoeira | C17: 0 | D17: 0 | E17: 0 | F17: 0 | G17: 0 | H17: 0 | I17: 0 | J17: 0 | K17: 0 | L17: 0 | M17: 0 | N17: 0 | O17: 0 | P17: 0 | Q17: 0 | R17: 0 | S17: 0 | U17: =G17-INDEX($C17:$G17,1,aux!$AL$1) -> 0 | V17: 0 | W17: 0 | X17: =+IF(INDEX($C17:$G17,1,aux!$AL$1)>0,(G17/INDEX($C17:$G17,1,aux!$AL$1))^(1/($G$3-INDEX($C$3:$G$3,1,aux!$AL$1)))-1,"n.d.") -> n.d. | Y17: =IF(INDEX($C17:$G17,1,aux!$AL$1)>0,(G17-INDEX($C17:$G17,1,aux!$AL$1))/INDEX($C17:$G17,1,aux!$AL$1),"n.d.") -> n.d. | AA17: =O17-INDEX($K17:$O17,1,aux!$AL$1) -> 0 | AB17: 0 | AC17: 0 | AD17: =+IF(INDEX($K17:$O17,1,aux!$AL$1)>0,(O17/INDEX($K17:$O17,1,aux!$AL$1))^(1/($O$3-INDEX($K$3:$O$3,1,aux!$AL$1)))-1,"n.d.") -> n.d. | AE17: =IF(INDEX($K17:$O17,1,aux!$AL$1)>0,(O17-INDEX($K17:$O17,1,aux!$AL$1))/INDEX($K17:$O17,1,aux!$AL$1),"n.d.") -> n.d. | AX17: 02
A18: 0208 | B18: Outras carnes e miudezas | C18: 0 | D18: 0 | E18: 0 | F18: 0 | G18: 0 | H18: 0 | I18: 0 | J18: 0 | K18: 0 | L18: 0 | M18: 0 | N18: 0 | O18: 0 | P18: 0 | Q18: 0 | R18: 0 | S18: 0 | U18: =G18-INDEX($C18:$G18,1,aux!$AL$1) -> 0 | V18: 0 | W18: 0 | X18: =+IF(INDEX($C18:$G18,1,aux!$AL$1)>0,(G18/INDEX($C18:$G18,1,aux!$AL$1))^(1/($G$3-INDEX($C$3:$G$3,1,aux!$AL$1)))-1,"n.d.") -> n.d. | Y18: =IF(INDEX($C18:$G18,1,aux!$AL$1)>0,(G18-INDEX($C18:$G18,1,aux!$AL$1))/INDEX($C18:$G18,1,aux!$AL$1),"n.d.") -> n.d. | AA18: =O18-INDEX($K18:$O18,1,aux!$AL$1) -> 0 | AB18: 0 | AC18: 0 | AD18: =+IF(INDEX($K18:$O18,1,aux!$AL$1)>0,(O18/INDEX($K18:$O18,1,aux!$AL$1))^(1/($O$3-INDEX($K$3:$O$3,1,aux!$AL$1)))-1,"n.d.") -> n.d. | AE18: =IF(INDEX($K18:$O18,1,aux!$AL$1)>0,(O18-INDEX($K18:$O18,1,aux!$AL$1))/INDEX($K18:$O18,1,aux!$AL$1),"n.d.") -> n.d. | AX18: 02
A19: 0209 | B19: Toucinho, gorduras de porco e de aves | C19: 0 | D19: 0 | E19: 0 | F19: 0 | G19: 0 | H19: 0 | I19: 0 | J19: 0 | K19: 0 | L19: 0 | M19: 0 | N19: 0 | O19: 0 | P19: 0 | Q19: 0 | R19: 0 | S19: 0 | U19: =G19-INDEX($C19:$G19,1,aux!$AL$1) -> 0 | V19: 0 | W19: 0 | X19: =+IF(INDEX($C19:$G19,1,aux!$AL$1)>0,(G19/INDEX($C19:$G19,1,aux!$AL$1))^(1/($G$3-INDEX($C$3:$G$3,1,aux!$AL$1)))-1,"n.d.") -> n.d. | Y19: =IF(INDEX($C19:$G19,1,aux!$AL$1)>0,(G19-INDEX($C19:$G19,1,aux!$AL$1))/INDEX($C19:$G19,1,aux!$AL$1),"n.d.") -> n.d. | AA19: =O19-INDEX($K19:$O19,1,aux!$AL$1) -> 0 | AB19: 0 | AC19: 0 | AD19: =+IF(INDEX($K19:$O19,1,aux!$AL$1)>0,(O19/INDEX($K19:$O19,1,aux!$AL$1))^(1/($O$3-INDEX($K$3:$O$3,1,aux!$AL$1)))-1,"n.d.") -> n.d. | AE19: =IF(INDEX($K19:$O19,1,aux!$AL$1)>0,(O19-INDEX($K19:$O19,1,aux!$AL$1))/INDEX($K19:$O19,1,aux!$AL$1),"n.d.") -> n.d. | AX19: 02
A20: 0210 | B20: Carnes e miudezas processadas; farinhas de carnes | C20: 0 | D20: 0 | E20: 0 | F20: 0 | G20: 0 | H20: 0 | I20: 0 | J20: 0 | K20: 0 | L20: 0 | M20: 0 | N20: 0 | O20: 0 | P20: 0 | Q20: 0 | R20: 0 | S20: 0 | U20: =G20-INDEX($C20:$G20,1,aux!$AL$1) -> 0 | V20: 0 | W20: 0 | X20: =+IF(INDEX($C20:$G20,1,aux!$AL$1)>0,(G20/INDEX($C20:$G20,1,aux!$AL$1))^(1/($G$3-INDEX($C$3:$G$3,1,aux!$AL$1)))-1,"n.d.") -> n.d. | Y20: =IF(INDEX($C20:$G20,1,aux!$AL$1)>0,(G20-INDEX($C20:$G20,1,aux!$AL$1))/INDEX($C20:$G20,1,aux!$AL$1),"n.d.") -> n.d. | AA20: =O20-INDEX($K20:$O20,1,aux!$AL$1) -> 0 | AB20: 0 | AC20: 0 | AD20: =+IF(INDEX($K20:$O20,1,aux!$AL$1)>0,(O20/INDEX($K20:$O20,1,aux!$AL$1))^(1/($O$3-INDEX($K$3:$O$3,1,aux!$AL$1)))-1,"n.d.") -> n.d. | AE20: =IF(INDEX($K20:$O20,1,aux!$AL$1)>0,(O20-INDEX($K20:$O20,1,aux!$AL$1))/INDEX($K20:$O20,1,aux!$AL$1),"n.d.") -> n.d. | AX20: 02
A21: 02SS | B21: Carnes e miudezas, comestíveis | C21: 0 | D21: 0 | E21: 0 | F21: 0 | G21: 0 | H21: 0 | I21: 0 | J21: 0 | K21: 0 | L21: 0 | M21: 0 | N21: 0 | O21: 0 | P21: 0 | Q21: 0 | R21: 0 | S21: 0 | U21: =G21-INDEX($C21:$G21,1,aux!$AL$1) -> 0 | V21: 0 | W21: 0 | X21: =+IF(INDEX($C21:$G21,1,aux!$AL$1)>0,(G21/INDEX($C21:$G21,1,aux!$AL$1))^(1/($G$3-INDEX($C$3:$G$3,1,aux!$AL$1)))-1,"n.d.") -> n.d. | Y21: =IF(INDEX($C21:$G21,1,aux!$AL$1)>0,(G21-INDEX($C21:$G21,1,aux!$AL$1))/INDEX($C21:$G21,1,aux!$AL$1),"n.d.") -> n.d. | AA21: =O21-INDEX($K21:$O21,1,aux!$AL$1) -> 0 | AB21: 0 | AC21: 0 | AD21: =+IF(INDEX($K21:$O21,1,aux!$AL$1)>0,(O21/INDEX($K21:$O21,1,aux!$AL$1))^(1/($O$3-INDEX($K$3:$O$3,1,aux!$AL$1)))-1,"n.d.") -> n.d. | AE21: =IF(INDEX($K21:$O21,1,aux!$AL$1)>0,(O21-INDEX($K21:$O21,1,aux!$AL$1))/INDEX($K21:$O21,1,aux!$AL$1),"n.d.") -> n.d. | AX21: 02
A22: 0401 | B22: Leite e nata, não concentrados | C22: 0 | D22: 0 | E22: 0 | F22: 0 | G22: 0 | H22: 0 | I22: 0 | J22: 0 | K22: 0 | L22: 0 | M22: 0 | N22: 0 | O22: 0 | P22: 0 | Q22: 0 | R22: 0 | S22: 0 | U22: =G22-INDEX($C22:$G22,1,aux!$AL$1) -> 0 | V22: 0 | W22: 0 | X22: =+IF(INDEX($C22:$G22,1,aux!$AL$1)>0,(G22/INDEX($C22:$G22,1,aux!$AL$1))^(1/($G$3-INDEX($C$3:$G$3,1,aux!$AL$1)))-1,"n.d.") -> n.d. | Y22: =IF(INDEX($C22:$G22,1,aux!$AL$1)>0,(G22-INDEX($C22:$G22,1,aux!$AL$1))/INDEX($C22:$G22,1,aux!$AL$1),"n.d.") -> n.d. | AA22: =O22-INDEX($K22:$O22,1,aux!$AL$1) -> 0 | AB22: 0 | AC22: 0 | AD22: =+IF(INDEX($K22:$O22,1,aux!$AL$1)>0,(O22/INDEX($K22:$O22,1,aux!$AL$1))^(1/($O$3-INDEX($K$3:$O$3,1,aux!$AL$1)))-1,"n.d.") -> n.d. | AE22: =IF(INDEX($K22:$O22,1,aux!$AL$1)>0,(O22-INDEX($K22:$O22,1,aux!$AL$1))/INDEX($K22:$O22,1,aux!$AL$1),"n.d.") -> n.d. | AX22: 04
A23: 0402 | B23: Leite e nata, concentrados | C23: 0 | D23: 0 | E23: 0 | F23: 0 | G23: 0 | H23: 0 | I23: 0 | J23: 0 | K23: 0 | L23: 0 | M23: 0 | N23: 0 | O23: 0 | P23: 0 | Q23: 0 | R23: 0 | S23: 0 | U23: =G23-INDEX($C23:$G23,1,aux!$AL$1) -> 0 | V23: 0 | W23: 0 | X23: =+IF(INDEX($C23:$G23,1,aux!$AL$1)>0,(G23/INDEX($C23:$G23,1,aux!$AL$1))^(1/($G$3-INDEX($C$3:$G$3,1,aux!$AL$1)))-1,"n.d.") -> n.d. | Y23: =IF(INDEX($C23:$G23,1,aux!$AL$1)>0,(G23-INDEX($C23:$G23,1,aux!$AL$1))/INDEX($C23:$G23,1,aux!$AL$1),"n.d.") -> n.d. | AA23: =O23-INDEX($K23:$O23,1,aux!$AL$1) -> 0 | AB23: 0 | AC23: 0 | AD23: =+IF(INDEX($K23:$O23,1,aux!$AL$1)>0,(O23/INDEX($K23:$O23,1,aux!$AL$1))^(1/($O$3-INDEX($K$3:$O$3,1,aux!$AL$1)))-1,"n.d.") -> n.d. | AE23: =IF(INDEX($K23:$O23,1,aux!$AL$1)>0,(O23-INDEX($K23:$O23,1,aux!$AL$1))/INDEX($K23:$O23,1,aux!$AL$1),"n.d.") -> n.d. | AX23: 04
A24: 0403 | B24: Leitelho, leite coalhado, iogurte, etc. | C24: 0 | D24: 0 | E24: 0 | F24: 0 | G24: 0 | H24: 0 | I24: 0 | J24: 0 | K24: 0 | L24: 0 | M24: 0 | N24: 0 | O24: 0 | P24: 0 | Q24: 0 | R24: 0 | S24: 0 | U24: =G24-INDEX($C24:$G24,1,aux!$AL$1) -> 0 | V24: 0 | W24: 0 | X24: =+IF(INDEX($C24:$G24,1,aux!$AL$1)>0,(G24/INDEX($C24:$G24,1,aux!$AL$1))^(1/($G$3-INDEX($C$3:$G$3,1,aux!$AL$1)))-1,"n.d.") -> n.d. | Y24: =IF(INDEX($C24:$G24,1,aux!$AL$1)>0,(G24-INDEX($C24:$G24,1,aux!$AL$1))/INDEX($C24:$G24,1,aux!$AL$1),"n.d.") -> n.d. | AA24: =O24-INDEX($K24:$O24,1,aux!$AL$1) -> 0 | AB24: 0 | AC24: 0 | AD24: =+IF(INDEX($K24:$O24,1,aux!$AL$1)>0,(O24/INDEX($K24:$O24,1,aux!$AL$1))^(1/($O$3-INDEX($K$3:$O$3,1,aux!$AL$1)))-1,"n.d.") -> n.d. | AE24: =IF(INDEX($K24:$O24,1,aux!$AL$1)>0,(O24-INDEX($K24:$O24,1,aux!$AL$1))/INDEX($K24:$O24,1,aux!$AL$1),"n.d.") -> n.d. | AX24: 04
A25: 0404 | B25: Soro de leite e outros produtos do leite | C25: 0 | D25: 0 | E25: 0 | F25: 0 | G25: 0 | H25: 0 | I25: 0 | J25: 0 | K25: 0 | L25: 0 | M25: 0 | N25: 0 | O25: 0 | P25: 0 | Q25: 0 | R25: 0 | S25: 0 | U25: =G25-INDEX($C25:$G25,1,aux!$AL$1) -> 0 | V25: 0 | W25: 0 | X25: =+IF(INDEX($C25:$G25,1,aux!$AL$1)>0,(G25/INDEX($C25:$G25,1,aux!$AL$1))^(1/($G$3-INDEX($C$3:$G$3,1,aux!$AL$1)))-1,"n.d.") -> n.d. | Y25: =IF(INDEX($C25:$G25,1,aux!$AL$1)>0,(G25-INDEX($C25:$G25,1,aux!$AL$1))/INDEX($C25:$G25,1,aux!$AL$1),"n.d.") -> n.d. | AA25: =O25-INDEX($K25:$O25,1,aux!$AL$1) -> 0 | AB25: 0 | AC25: 0 | AD25: =+IF(INDEX($K25:$O25,1,aux!$AL$1)>0,(O25/INDEX($K25:$O25,1,aux!$AL$1))^(1/($O$3-INDEX($K$3:$O$3,1,aux!$AL$1)))-1,"n.d.") -> n.d. | AE25: =IF(INDEX($K25:$O25,1,aux!$AL$1)>0,(O25-INDEX($K25:$O25,1,aux!$AL$1))/INDEX($K25:$O25,1,aux!$AL$1),"n.d.") -> n.d. | AX25: 04
A26: 0405 | B26: Manteiga | C26: 0 | D26: 0 | E26: 0 | F26: 0 | G26: 0 | H26: 0 | I26: 0 | J26: 0 | K26: 0 | L26: 0 | M26: 0 | N26: 0 | O26: 0 | P26: 0 | Q26: 0 | R26: 0 | S26: 0 | U26: =G26-INDEX($C26:$G26,1,aux!$AL$1) -> 0 | V26: 0 | W26: 0 | X26: =+IF(INDEX($C26:$G26,1,aux!$AL$1)>0,(G26/INDEX($C26:$G26,1,aux!$AL$1))^(1/($G$3-INDEX($C$3:$G$3,1,aux!$AL$1)))-1,"n.d.") -> n.d. | Y26: =IF(INDEX($C26:$G26,1,aux!$AL$1)>0,(G26-INDEX($C26:$G26,1,aux!$AL$1))/INDEX($C26:$G26,1,aux!$AL$1),"n.d.") -> n.d. | AA26: =O26-INDEX($K26:$O26,1,aux!$AL$1) -> 0 | AB26: 0 | AC26: 0 | AD26: =+IF(INDEX($K26:$O26,1,aux!$AL$1)>0,(O26/INDEX($K26:$O26,1,aux!$AL$1))^(1/($O$3-INDEX($K$3:$O$3,1,aux!$AL$1)))-1,"n.d.") -> n.d. | AE26: =IF(INDEX($K26:$O26,1,aux!$AL$1)>0,(O26-INDEX($K26:$O26,1,aux!$AL$1))/INDEX($K26:$O26,1,aux!$AL$1),"n.d.") -> n.d. | AX26: 04
A27: 0406 | B27: Queijos e requeijão | C27: 0 | D27: 0 | E27: 0 | F27: 0 | G27: 0 | H27: 0 | I27: 0 | J27: 0 | K27: 0 | L27: 0 | M27: 0 | N27: 0 | O27: 0 | P27: 0 | Q27: 0 | R27: 0 | S27: 0 | U27: =G27-INDEX($C27:$G27,1,aux!$AL$1) -> 0 | V27: 0 | W27: 0 | X27: =+IF(INDEX($C27:$G27,1,aux!$AL$1)>0,(G27/INDEX($C27:$G27,1,aux!$AL$1))^(1/($G$3-INDEX($C$3:$G$3,1,aux!$AL$1)))-1,"n.d.") -> n.d. | Y27: =IF(INDEX($C27:$G27,1,aux!$AL$1)>0,(G27-INDEX($C27:$G27,1,aux!$AL$1))/INDEX($C27:$G27,1,aux!$AL$1),"n.d.") -> n.d. | AA27: =O27-INDEX($K27:$O27,1,aux!$AL$1) -> 0 | AB27: 0 | AC27: 0 | AD27: =+IF(INDEX($K27:$O27,1,aux!$AL$1)>0,(O27/INDEX($K27:$O27,1,aux!$AL$1))^(1/($O$3-INDEX($K$3:$O$3,1,aux!$AL$1)))-1,"n.d.") -> n.d. | AE27: =IF(INDEX($K27:$O27,1,aux!$AL$1)>0,(O27-INDEX($K27:$O27,1,aux!$AL$1))/INDEX($K27:$O27,1,aux!$AL$1),"n.d.") -> n.d. | AX27: 04
A28: 0407 | B28: Ovos de aves, com cascas | C28: 0 | D28: 0 | E28: 0 | F28: 0 | G28: 0 | H28: 0 | I28: 0 | J28: 0 | K28: 0 | L28: 0 | M28: 0 | N28: 0 | O28: 0 | P28: 0 | Q28: 0 | R28: 0 | S28: 0 | U28: =G28-INDEX($C28:$G28,1,aux!$AL$1) -> 0 | V28: 0 | W28: 0 | X28: =+IF(INDEX($C28:$G28,1,aux!$AL$1)>0,(G28/INDEX($C28:$G28,1,aux!$AL$1))^(1/($G$3-INDEX($C$3:$G$3,1,aux!$AL$1)))-1,"n.d.") -> n.d. | Y28: =IF(INDEX($C28:$G28,1,aux!$AL$1)>0,(G28-INDEX($C28:$G28,1,aux!$AL$1))/INDEX($C28:$G28,1,aux!$AL$1),"n.d.") -> n.d. | AA28: =O28-INDEX($K28:$O28,1,aux!$AL$1) -> 0 | AB28: 0 | AC28: 0 | AD28: =+IF(INDEX($K28:$O28,1,aux!$AL$1)>0,(O28/INDEX($K28:$O28,1,aux!$AL$1))^(1/($O$3-INDEX($K$3:$O$3,1,aux!$AL$1)))-1,"n.d.") -> n.d. | AE28: =IF(INDEX($K28:$O28,1,aux!$AL$1)>0,(O28-INDEX($K28:$O28,1,aux!$AL$1))/INDEX($K28:$O28,1,aux!$AL$1),"n.d.") -> n.d. | AX28: 04
A29: 0408 | B29: Ovos de aves, sem casca | C29: 0 | D29: 0 | E29: 0 | F29: 0 | G29: 0 | H29: 0 | I29: 0 | J29: 0 | K29: 0 | L29: 0 | M29: 0 | N29: 0 | O29: 0 | P29: 0 | Q29: 0 | R29: 0 | S29: 0 | U29: =G29-INDEX($C29:$G29,1,aux!$AL$1) -> 0 | V29: 0 | W29: 0 | X29: =+IF(INDEX($C29:$G29,1,aux!$AL$1)>0,(G29/INDEX($C29:$G29,1,aux!$AL$1))^(1/($G$3-INDEX($C$3:$G$3,1,aux!$AL$1)))-1,"n.d.") -> n.d. | Y29: =IF(INDEX($C29:$G29,1,aux!$AL$1)>0,(G29-INDEX($C29:$G29,1,aux!$AL$1))/INDEX($C29:$G29,1,aux!$AL$1),"n.d.") -> n.d. | AA29: =O29-INDEX($K29:$O29,1,aux!$AL$1) -> 0 | AB29: 0 | AC29: 0 | AD29: =+IF(INDEX($K29:$O29,1,aux!$AL$1)>0,(O29/INDEX($K29:$O29,1,aux!$AL$1))^(1/($O$3-INDEX($K$3:$O$3,1,aux!$AL$1)))-1,"n.d.") -> n.d. | AE29: =IF(INDEX($K29:$O29,1,aux!$AL$1)>0,(O29-INDEX($K29:$O29,1,aux!$AL$1))/INDEX($K29:$O29,1,aux!$AL$1),"n.d.") -> n.d. | AX29: 04
A30: 0409 | B30: Mel natural | C30: 0 | D30: 0 | E30: 0 | F30: 0 | G30: 0 | H30: 0 | I30: 0 | J30: 0 | K30: 0 | L30: 0 | M30: 0 | N30: 0 | O30: 0 | P30: 0 | Q30: 0 | R30: 0 | S30: 0 | U30: =G30-INDEX($C30:$G30,1,aux!$AL$1) -> 0 | V30: 0 | W30: 0 | X30: =+IF(INDEX($C30:$G30,1,aux!$AL$1)>0,(G30/INDEX($C30:$G30,1,aux!$AL$1))^(1/($G$3-INDEX($C$3:$G$3,1,aux!$AL$1)))-1,"n.d.") -> n.d. | Y30: =IF(INDEX($C30:$G30,1,aux!$AL$1)>0,(G30-INDEX($C30:$G30,1,aux!$AL$1))/INDEX($C30:$G30,1,aux!$AL$1),"n.d.") -> n.d. | AA30: =O30-INDEX($K30:$O30,1,aux!$AL$1) -> 0 | AB30: 0 | AC30: 0 | AD30: =+IF(INDEX($K30:$O30,1,aux!$AL$1)>0,(O30/INDEX($K30:$O30,1,aux!$AL$1))^(1/($O$3-INDEX($K$3:$O$3,1,aux!$AL$1)))-1,"n.d.") -> n.d. | AE30: =IF(INDEX($K30:$O30,1,aux!$AL$1)>0,(O30-INDEX($K30:$O30,1,aux!$AL$1))/INDEX($K30:$O30,1,aux!$AL$1),"n.d.") -> n.d. | AX30: 04
A31: 0410 | B31: Outros produtos comestíveis de origem animal | C31: 0 | D31: 0 | E31: 0 | F31: 0 | G31: 0 | H31: 0 | I31: 0 | J31: 0 | K31: 0 | L31: 0 | M31: 0 | N31: 0 | O31: 0 | P31: 0 | Q31: 0 | R31: 0 | S31: 0 | U31: =G31-INDEX($C31:$G31,1,aux!$AL$1) -> 0 | V31: 0 | W31: 0 | X31: =+IF(INDEX($C31:$G31,1,aux!$AL$1)>0,(G31/INDEX($C31:$G31,1,aux!$AL$1))^(1/($G$3-INDEX($C$3:$G$3,1,aux!$AL$1)))-1,"n.d.") -> n.d. | Y31: =IF(INDEX($C31:$G31,1,aux!$AL$1)>0,(G31-INDEX($C31:$G31,1,aux!$AL$1))/INDEX($C31:$G31,1,aux!$AL$1),"n.d.") -> n.d. | AA31: =O31-INDEX($K31:$O31,1,aux!$AL$1) -> 0 | AB31: 0 | AC31: 0 | AD31: =+IF(INDEX($K31:$O31,1,aux!$AL$1)>0,(O31/INDEX($K31:$O31,1,aux!$AL$1))^(1/($O$3-INDEX($K$3:$O$3,1,aux!$AL$1)))-1,"n.d.") -> n.d. | AE31: =IF(INDEX($K31:$O31,1,aux!$AL$1)>0,(O31-INDEX($K31:$O31,1,aux!$AL$1))/INDEX($K31:$O31,1,aux!$AL$1),"n.d.") -> n.d. | AX31: 04
A32: 04SS | B32: Leite e lacticínios; ovos de aves; mel natural; etc. | C32: 0 | D32: 0 | E32: 0 | F32: 0 | G32: 0 | H32: 0 | I32: 0 | J32: 0 | K32: 0 | L32: 0 | M32: 0 | N32: 0 | O32: 0 | P32: 0 | Q32: 0 | R32: 0 | S32: 0 | U32: =G32-INDEX($C32:$G32,1,aux!$AL$1) -> 0 | V32: 0 | W32: 0 | X32: =+IF(INDEX($C32:$G32,1,aux!$AL$1)>0,(G32/INDEX($C32:$G32,1,aux!$AL$1))^(1/($G$3-INDEX($C$3:$G$3,1,aux!$AL$1)))-1,"n.d.") -> n.d. | Y32: =IF(INDEX($C32:$G32,1,aux!$AL$1)>0,(G32-INDEX($C32:$G32,1,aux!$AL$1))/INDEX($C32:$G32,1,aux!$AL$1),"n.d.") -> n.d. | AA32: =O32-INDEX($K32:$O32,1,aux!$AL$1) -> 0 | AB32: 0 | AC32: 0 | AD32: =+IF(INDEX($K32:$O32,1,aux!$AL$1)>0,(O32/INDEX($K32:$O32,1,aux!$AL$1))^(1/($O$3-INDEX($K$3:$O$3,1,aux!$AL$1)))-1,"n.d.") -> n.d. | AE32: =IF(INDEX($K32:$O32,1,aux!$AL$1)>0,(O32-INDEX($K32:$O32,1,aux!$AL$1))/INDEX($K32:$O32,1,aux!$AL$1),"n.d.") -> n.d. | AX32: 04
A33: 0501 | B33: Cabelos em bruto | C33: 0 | D33: 0 | E33: 0 | F33: 0 | G33: 0 | H33: 0 | I33: 0 | J33: 0 | K33: 0 | L33: 0 | M33: 0 | N33: 0 | O33: 0 | P33: 0 | Q33: 0 | R33: 0 | S33: 0 | U33: =G33-INDEX($C33:$G33,1,aux!$AL$1) -> 0 | V33: 0 | W33: 0 | X33: =+IF(INDEX($C33:$G33,1,aux!$AL$1)>0,(G33/INDEX($C33:$G33,1,aux!$AL$1))^(1/($G$3-INDEX($C$3:$G$3,1,aux!$AL$1)))-1,"n.d.") -> n.d. | Y33: =IF(INDEX($C33:$G33,1,aux!$AL$1)>0,(G33-INDEX($C33:$G33,1,aux!$AL$1))/INDEX($C33:$G33,1,aux!$AL$1),"n.d.") -> n.d. | AA33: =O33-INDEX($K33:$O33,1,aux!$AL$1) -> 0 | AB33: 0 | AC33: 0 | AD33: =+IF(INDEX($K33:$O33,1,aux!$AL$1)>0,(O33/INDEX($K33:$O33,1,aux!$AL$1))^(1/($O$3-INDEX($K$3:$O$3,1,aux!$AL$1)))-1,"n.d.") -> n.d. | AE33: =IF(INDEX($K33:$O33,1,aux!$AL$1)>0,(O33-INDEX($K33:$O33,1,aux!$AL$1))/INDEX($K33:$O33,1,aux!$AL$1),"n.d.") -> n.d. | AX33: 05
A34: 0502 | B34: Cerdas de porco ou de javali, etc. | C34: 0 | D34: 0 | E34: 0 | F34: 0 | G34: 0 | H34: 0 | I34: 0 | J34: 0 | K34: 0 | L34: 0 | M34: 0 | N34: 0 | O34: 0 | P34: 0 | Q34: 0 | R34: 0 | S34: 0 | U34: =G34-INDEX($C34:$G34,1,aux!$AL$1) -> 0 | V34: 0 | W34: 0 | X34: =+IF(INDEX($C34:$G34,1,aux!$AL$1)>0,(G34/INDEX($C34:$G34,1,aux!$AL$1))^(1/($G$3-INDEX($C$3:$G$3,1,aux!$AL$1)))-1,"n.d.") -> n.d. | Y34: =IF(INDEX($C34:$G34,1,aux!$AL$1)>0,(G34-INDEX($C34:$G34,1,aux!$AL$1))/INDEX($C34:$G34,1,aux!$AL$1),"n.d.") -> n.d. | AA34: =O34-INDEX($K34:$O34,1,aux!$AL$1) -> 0 | AB34: 0 | AC34: 0 | AD34: =+IF(INDEX($K34:$O34,1,aux!$AL$1)>0,(O34/INDEX($K34:$O34,1,aux!$AL$1))^(1/($O$3-INDEX($K$3:$O$3,1,aux!$AL$1)))-1,"n.d.") -> n.d. | AE34: =IF(INDEX($K34:$O34,1,aux!$AL$1)>0,(O34-INDEX($K34:$O34,1,aux!$AL$1))/INDEX($K34:$O34,1,aux!$AL$1),"n.d.") -> n.d. | AX34: 05
A35: 0504 | B35: Tripas de animais (excepto peixes) | C35: 0 | D35: 0 | E35: 0 | F35: 0 | G35: 0 | H35: 0 | I35: 0 | J35: 0 | K35: 0 | L35: 0 | M35: 0 | N35: 0 | O35: 0 | P35: 0 | Q35: 0 | R35: 0 | S35: 0 | U35: =G35-INDEX($C35:$G35,1,aux!$AL$1) -> 0 | V35: 0 | W35: 0 | X35: =+IF(INDEX($C35:$G35,1,aux!$AL$1)>0,(G35/INDEX($C35:$G35,1,aux!$AL$1))^(1/($G$3-INDEX($C$3:$G$3,1,aux!$AL$1)))-1,"n.d.") -> n.d. | Y35: =IF(INDEX($C35:$G35,1,aux!$AL$1)>0,(G35-INDEX($C35:$G35,1,aux!$AL$1))/INDEX($C35:$G35,1,aux!$AL$1),"n.d.") -> n.d. | AA35: =O35-INDEX($K35:$O35,1,aux!$AL$1) -> 0 | AB35: 0 | AC35: 0 | AD35: =+IF(INDEX($K35:$O35,1,aux!$AL$1)>0,(O35/INDEX($K35:$O35,1,aux!$AL$1))^(1/($O$3-INDEX($K$3:$O$3,1,aux!$AL$1)))-1,"n.d.") -> n.d. | AE35: =IF(INDEX($K35:$O35,1,aux!$AL$1)>0,(O35-INDEX($K35:$O35,1,aux!$AL$1))/INDEX($K35:$O35,1,aux!$AL$1),"n.d.") -> n.d. | AX35: 05
A36: 0505 | B36: Peles e outras partes de aves | C36: 0 | D36: 0 | E36: 0 | F36: 0 | G36: 0 | H36: 0 | I36: 0 | J36: 0 | K36: 0 | L36: 0 | M36: 0 | N36: 0 | O36: 0 | P36: 0 | Q36: 0 | R36: 0 | S36: 0 | U36: =G36-INDEX($C36:$G36,1,aux!$AL$1) -> 0 | V36: =IF($U$236<>0,U36/$U$236, "n.d.") -> 0 | W36: =IF($U$320<>0,U36/$U$320, "n.d.") -> 0 | X36: =+IF(INDEX($C36:$G36,1,aux!$AL$1)>0,(G36/INDEX($C36:$G36,1,aux!$AL$1))^(1/($G$3-INDEX($C$3:$G$3,1,aux!$AL$1)))-1,"n.d.") -> n.d. | Y36: =IF(INDEX($C36:$G36,1,aux!$AL$1)>0,(G36-INDEX($C36:$G36,1,aux!$AL$1))/INDEX($C36:$G36,1,aux!$AL$1),"n.d.") -> n.d. | AA36: =O36-INDEX($K36:$O36,1,aux!$AL$1) -> 0 | AB36: =IF($AA$236<>0,AA36/$AA$236, "n.d.") -> 0 | AC36: =IF($AA$320<>0,AA36/$AA$320, "n.d.") -> 0 | AD36: =+IF(INDEX($K36:$O36,1,aux!$AL$1)>0,(O36/INDEX($K36:$O36,1,aux!$AL$1))^(1/($O$3-INDEX($K$3:$O$3,1,aux!$AL$1)))-1,"n.d.") -> n.d. | AE36: =IF(INDEX($K36:$O36,1,aux!$AL$1)>0,(O36-INDEX($K36:$O36,1,aux!$AL$1))/INDEX($K36:$O36,1,aux!$AL$1),"n.d.") -> n.d. | AX36: 05
A37: 0506 | B37: Ossos e núcleos córneos, em bruto | C37: 0 | D37: 0 | E37: 0 | F37: 0 | G37: 0 | H37: 0 | I37: 0 | J37: 0 | K37: 0 | L37: 0 | M37: 0 | N37: 0 | O37: 0 | P37: 0 | Q37: 0 | R37: 0 | S37: 0 | U37: =G37-INDEX($C37:$G37,1,aux!$AL$1) -> 0 | V37: 0 | W37: 0 | X37: =+IF(INDEX($C37:$G37,1,aux!$AL$1)>0,(G37/INDEX($C37:$G37,1,aux!$AL$1))^(1/($G$3-INDEX($C$3:$G$3,1,aux!$AL$1)))-1,"n.d.") -> n.d. | Y37: =IF(INDEX($C37:$G37,1,aux!$AL$1)>0,(G37-INDEX($C37:$G37,1,aux!$AL$1))/INDEX($C37:$G37,1,aux!$AL$1),"n.d.") -> n.d. | AA37: =O37-INDEX($K37:$O37,1,aux!$AL$1) -> 0 | AB37: 0 | AC37: 0 | AD37: =+IF(INDEX($K37:$O37,1,aux!$AL$1)>0,(O37/INDEX($K37:$O37,1,aux!$AL$1))^(1/($O$3-INDEX($K$3:$O$3,1,aux!$AL$1)))-1,"n.d.") -> n.d. | AE37: =IF(INDEX($K37:$O37,1,aux!$AL$1)>0,(O37-INDEX($K37:$O37,1,aux!$AL$1))/INDEX($K37:$O37,1,aux!$AL$1),"n.d.") -> n.d. | AX37: 05
A38: 0507 | B38: Marfim, carapaças de tartaruga, etc. | C38: 0 | D38: 0 | E38: 0 | F38: 0 | G38: 0 | H38: 0 | I38: 0 | J38: 0 | K38: 0 | L38: 0 | M38: 0 | N38: 0 | O38: 0 | P38: 0 | Q38: 0 | R38: 0 | S38: 0 | U38: =G38-INDEX($C38:$G38,1,aux!$AL$1) -> 0 | V38: 0 | W38: 0 | X38: =+IF(INDEX($C38:$G38,1,aux!$AL$1)>0,(G38/INDEX($C38:$G38,1,aux!$AL$1))^(1/($G$3-INDEX($C$3:$G$3,1,aux!$AL$1)))-1,"n.d.") -> n.d. | Y38: =IF(INDEX($C38:$G38,1,aux!$AL$1)>0,(G38-INDEX($C38:$G38,1,aux!$AL$1))/INDEX($C38:$G38,1,aux!$AL$1),"n.d.") -> n.d. | AA38: =O38-INDEX($K38:$O38,1,aux!$AL$1) -> 0 | AB38: 0 | AC38: 0 | AD38: =+IF(INDEX($K38:$O38,1,aux!$AL$1)>0,(O38/INDEX($K38:$O38,1,aux!$AL$1))^(1/($O$3-INDEX($K$3:$O$3,1,aux!$AL$1)))-1,"n.d.") -> n.d. | AE38: =IF(INDEX($K38:$O38,1,aux!$AL$1)>0,(O38-INDEX($K38:$O38,1,aux!$AL$1))/INDEX($K38:$O38,1,aux!$AL$1),"n.d.") -> n.d. | AX38: 05
A39: 0510 | B39: Âmbar-cinzento, castóreo, algália e almíscar, etc. | C39: 0 | D39: 0 | E39: 0 | F39: 0 | G39: 0 | H39: 0 | I39: 0 | J39: 0 | K39: 0 | L39: 0 | M39: 0 | N39: 0 | O39: 0 | P39: 0 | Q39: 0 | R39: 0 | S39: 0 | U39: =G39-INDEX($C39:$G39,1,aux!$AL$1) -> 0 | V39: 0 | W39: 0 | X39: =+IF(INDEX($C39:$G39,1,aux!$AL$1)>0,(G39/INDEX($C39:$G39,1,aux!$AL$1))^(1/($G$3-INDEX($C$3:$G$3,1,aux!$AL$1)))-1,"n.d.") -> n.d. | Y39: =IF(INDEX($C39:$G39,1,aux!$AL$1)>0,(G39-INDEX($C39:$G39,1,aux!$AL$1))/INDEX($C39:$G39,1,aux!$AL$1),"n.d.") -> n.d. | AA39: =O39-INDEX($K39:$O39,1,aux!$AL$1) -> 0 | AB39: 0 | AC39: 0 | AD39: =+IF(INDEX($K39:$O39,1,aux!$AL$1)>0,(O39/INDEX($K39:$O39,1,aux!$AL$1))^(1/($O$3-INDEX($K$3:$O$3,1,aux!$AL$1)))-1,"n.d.") -> n.d. | AE39: =IF(INDEX($K39:$O39,1,aux!$AL$1)>0,(O39-INDEX($K39:$O39,1,aux!$AL$1))/INDEX($K39:$O39,1,aux!$AL$1),"n.d.") -> n.d. | AX39: =+LEFT(A39,2) -> 05
A40: 0511 | B40: Outros produtos de origem animal (exc. NC 0511 91) (a) | C40: 0 | D40: 0 | E40: 0 | F40: 0 | G40: 0 | H40: 0 | I40: 0 | J40: 0 | K40: 0 | L40: 0 | M40: 0 | N40: 0 | O40: 0 | P40: 0 | Q40: 0 | R40: 0 | S40: 0 | U40: =G40-INDEX($C40:$G40,1,aux!$AL$1) -> 0 | V40: 0 | W40: 0 | X40: =+IF(INDEX($C40:$G40,1,aux!$AL$1)>0,(G40/INDEX($C40:$G40,1,aux!$AL$1))^(1/($G$3-INDEX($C$3:$G$3,1,aux!$AL$1)))-1,"n.d.") -> n.d. | Y40: =IF(INDEX($C40:$G40,1,aux!$AL$1)>0,(G40-INDEX($C40:$G40,1,aux!$AL$1))/INDEX($C40:$G40,1,aux!$AL$1),"n.d.") -> n.d. | AA40: =O40-INDEX($K40:$O40,1,aux!$AL$1) -> 0 | AB40: 0 | AC40: 0 | AD40: =+IF(INDEX($K40:$O40,1,aux!$AL$1)>0,(O40/INDEX($K40:$O40,1,aux!$AL$1))^(1/($O$3-INDEX($K$3:$O$3,1,aux!$AL$1)))-1,"n.d.") -> n.d. | AE40: =IF(INDEX($K40:$O40,1,aux!$AL$1)>0,(O40-INDEX($K40:$O40,1,aux!$AL$1))/INDEX($K40:$O40,1,aux!$AL$1),"n.d.") -> n.d. | AX40: 05
A41: 05SS | B41: Outros produtos de origem animal | C41: 0 | D41: 0 | E41: 0 | F41: 0 | G41: 0 | H41: 0 | I41: 0 | J41: 0 | K41: 0 | L41: 0 | M41: 0 | N41: 0 | O41: 0 | P41: 0 | Q41: 0 | R41: 0 | S41: 0 | U41: =G41-INDEX($C41:$G41,1,aux!$AL$1) -> 0 | V41: 0 | W41: 0 | X41: =+IF(INDEX($C41:$G41,1,aux!$AL$1)>0,(G41/INDEX($C41:$G41,1,aux!$AL$1))^(1/($G$3-INDEX($C$3:$G$3,1,aux!$AL$1)))-1,"n.d.") -> n.d. | Y41: =IF(INDEX($C41:$G41,1,aux!$AL$1)>0,(G41-INDEX($C41:$G41,1,aux!$AL$1))/INDEX($C41:$G41,1,aux!$AL$1),"n.d.") -> n.d. | AA41: =O41-INDEX($K41:$O41,1,aux!$AL$1) -> 0 | AB41: 0 | AC41: 0 | AD41: =+IF(INDEX($K41:$O41,1,aux!$AL$1)>0,(O41/INDEX($K41:$O41,1,aux!$AL$1))^(1/($O$3-INDEX($K$3:$O$3,1,aux!$AL$1)))-1,"n.d.") -> n.d. | AE41: =IF(INDEX($K41:$O41,1,aux!$AL$1)>0,(O41-INDEX($K41:$O41,1,aux!$AL$1))/INDEX($K41:$O41,1,aux!$AL$1),"n.d.") -> n.d. | AX41: 05
A42: 0601 | B42: Bolbos, tubérculos, raízes, etc. | C42: 0 | D42: 0 | E42: 0 | F42: 0 | G42: 0 | H42: 0 | I42: 0 | J42: 0 | K42: 0 | L42: 0 | M42: 0 | N42: 0 | O42: 0 | P42: 0 | Q42: 0 | R42: 0 | S42: 0 | U42: =G42-INDEX($C42:$G42,1,aux!$AL$1) -> 0 | V42: 0 | W42: 0 | X42: =+IF(INDEX($C42:$G42,1,aux!$AL$1)>0,(G42/INDEX($C42:$G42,1,aux!$AL$1))^(1/($G$3-INDEX($C$3:$G$3,1,aux!$AL$1)))-1,"n.d.") -> n.d. | Y42: =IF(INDEX($C42:$G42,1,aux!$AL$1)>0,(G42-INDEX($C42:$G42,1,aux!$AL$1))/INDEX($C42:$G42,1,aux!$AL$1),"n.d.") -> n.d. | AA42: =O42-INDEX($K42:$O42,1,aux!$AL$1) -> 0 | AB42: 0 | AC42: 0 | AD42: =+IF(INDEX($K42:$O42,1,aux!$AL$1)>0,(O42/INDEX($K42:$O42,1,aux!$AL$1))^(1/($O$3-INDEX($K$3:$O$3,1,aux!$AL$1)))-1,"n.d.") -> n.d. | AE42: =IF(INDEX($K42:$O42,1,aux!$AL$1)>0,(O42-INDEX($K42:$O42,1,aux!$AL$1))/INDEX($K42:$O42,1,aux!$AL$1),"n.d.") -> n.d. | AX42: 06
A43: 0602 | B43: Plantas vivas | C43: 0 | D43: 0 | E43: 0 | F43: 0 | G43: 0 | H43: 0 | I43: 0 | J43: 0 | K43: 0 | L43: 0 | M43: 0 | N43: 0 | O43: 0 | P43: 0 | Q43: 0 | R43: 0 | S43: 0 | U43: =G43-INDEX($C43:$G43,1,aux!$AL$1) -> 0 | V43: 0 | W43: 0 | X43: =+IF(INDEX($C43:$G43,1,aux!$AL$1)>0,(G43/INDEX($C43:$G43,1,aux!$AL$1))^(1/($G$3-INDEX($C$3:$G$3,1,aux!$AL$1)))-1,"n.d.") -> n.d. | Y43: =IF(INDEX($C43:$G43,1,aux!$AL$1)>0,(G43-INDEX($C43:$G43,1,aux!$AL$1))/INDEX($C43:$G43,1,aux!$AL$1),"n.d.") -> n.d. | AA43: =O43-INDEX($K43:$O43,1,aux!$AL$1) -> 0 | AB43: 0 | AC43: 0 | AD43: =+IF(INDEX($K43:$O43,1,aux!$AL$1)>0,(O43/INDEX($K43:$O43,1,aux!$AL$1))^(1/($O$3-INDEX($K$3:$O$3,1,aux!$AL$1)))-1,"n.d.") -> n.d. | AE43: =IF(INDEX($K43:$O43,1,aux!$AL$1)>0,(O43-INDEX($K43:$O43,1,aux!$AL$1))/INDEX($K43:$O43,1,aux!$AL$1),"n.d.") -> n.d. | AX43: 06
A44: 0603 | B44: Flores e seus botões | C44: 0 | D44: 0 | E44: 0 | F44: 0 | G44: 0 | H44: 0 | I44: 0 | J44: 0 | K44: 0 | L44: 0 | M44: 0 | N44: 0 | O44: 0 | P44: 0 | Q44: 0 | R44: 0 | S44: 0 | U44: =G44-INDEX($C44:$G44,1,aux!$AL$1) -> 0 | V44: 0 | W44: 0 | X44: =+IF(INDEX($C44:$G44,1,aux!$AL$1)>0,(G44/INDEX($C44:$G44,1,aux!$AL$1))^(1/($G$3-INDEX($C$3:$G$3,1,aux!$AL$1)))-1,"n.d.") -> n.d. | Y44: =IF(INDEX($C44:$G44,1,aux!$AL$1)>0,(G44-INDEX($C44:$G44,1,aux!$AL$1))/INDEX($C44:$G44,1,aux!$AL$1),"n.d.") -> n.d. | AA44: =O44-INDEX($K44:$O44,1,aux!$AL$1) -> 0 | AB44: 0 | AC44: 0 | AD44: =+IF(INDEX($K44:$O44,1,aux!$AL$1)>0,(O44/INDEX($K44:$O44,1,aux!$AL$1))^(1/($O$3-INDEX($K$3:$O$3,1,aux!$AL$1)))-1,"n.d.") -> n.d. | AE44: =IF(INDEX($K44:$O44,1,aux!$AL$1)>0,(O44-INDEX($K44:$O44,1,aux!$AL$1))/INDEX($K44:$O44,1,aux!$AL$1),"n.d.") -> n.d. | AX44: 06
A45: 0604 | B45: Folhagem, folhas, ramos e outras partes de plantas | C45: 0 | D45: 0 | E45: 0 | F45: 0 | G45: 0 | H45: 0 | I45: 0 | J45: 0 | K45: 0 | L45: 0 | M45: 0 | N45: 0 | O45: 0 | P45: 0 | Q45: 0 | R45: 0 | S45: 0 | U45: =G45-INDEX($C45:$G45,1,aux!$AL$1) -> 0 | V45: 0 | W45: 0 | X45: =+IF(INDEX($C45:$G45,1,aux!$AL$1)>0,(G45/INDEX($C45:$G45,1,aux!$AL$1))^(1/($G$3-INDEX($C$3:$G$3,1,aux!$AL$1)))-1,"n.d.") -> n.d. | Y45: =IF(INDEX($C45:$G45,1,aux!$AL$1)>0,(G45-INDEX($C45:$G45,1,aux!$AL$1))/INDEX($C45:$G45,1,aux!$AL$1),"n.d.") -> n.d. | AA45: =O45-INDEX($K45:$O45,1,aux!$AL$1) -> 0 | AB45: 0 | AC45: 0 | AD45: =+IF(INDEX($K45:$O45,1,aux!$AL$1)>0,(O45/INDEX($K45:$O45,1,aux!$AL$1))^(1/($O$3-INDEX($K$3:$O$3,1,aux!$AL$1)))-1,"n.d.") -> n.d. | AE45: =IF(INDEX($K45:$O45,1,aux!$AL$1)>0,(O45-INDEX($K45:$O45,1,aux!$AL$1))/INDEX($K45:$O45,1,aux!$AL$1),"n.d.") -> n.d. | AX45: 06
A46: 06SS | B46: Plantas vivas e produtos de floricultura | C46: 0 | D46: 0 | E46: 0 | F46: 0 | G46: 0 | H46: 0 | I46: 0 | J46: 0 | K46: 0 | L46: 0 | M46: 0 | N46: 0 | O46: 0 | P46: 0 | Q46: 0 | R46: 0 | S46: 0 | U46: =G46-INDEX($C46:$G46,1,aux!$AL$1) -> 0 | V46: 0 | W46: 0 | X46: =+IF(INDEX($C46:$G46,1,aux!$AL$1)>0,(G46/INDEX($C46:$G46,1,aux!$AL$1))^(1/($G$3-INDEX($C$3:$G$3,1,aux!$AL$1)))-1,"n.d.") -> n.d. | Y46: =IF(INDEX($C46:$G46,1,aux!$AL$1)>0,(G46-INDEX($C46:$G46,1,aux!$AL$1))/INDEX($C46:$G46,1,aux!$AL$1),"n.d.") -> n.d. | AA46: =O46-INDEX($K46:$O46,1,aux!$AL$1) -> 0 | AB46: 0 | AC46: 0 | AD46: =+IF(INDEX($K46:$O46,1,aux!$AL$1)>0,(O46/INDEX($K46:$O46,1,aux!$AL$1))^(1/($O$3-INDEX($K$3:$O$3,1,aux!$AL$1)))-1,"n.d.") -> n.d. | AE46: =IF(INDEX($K46:$O46,1,aux!$AL$1)>0,(O46-INDEX($K46:$O46,1,aux!$AL$1))/INDEX($K46:$O46,1,aux!$AL$1),"n.d.") -> n.d. | AX46: 06
A47: 0701 | B47: Batatas, frescas ou refrigeradas | C47: 0 | D47: 0 | E47: 0 | F47: 0 | G47: 0 | H47: 0 | I47: 0 | J47: 0 | K47: 0 | L47: 0 | M47: 0 | N47: 0 | O47: 0 | P47: 0 | Q47: 0 | R47: 0 | S47: 0 | U47: =G47-INDEX($C47:$G47,1,aux!$AL$1) -> 0 | V47: 0 | W47: 0 | X47: =+IF(INDEX($C47:$G47,1,aux!$AL$1)>0,(G47/INDEX($C47:$G47,1,aux!$AL$1))^(1/($G$3-INDEX($C$3:$G$3,1,aux!$AL$1)))-1,"n.d.") -> n.d. | Y47: =IF(INDEX($C47:$G47,1,aux!$AL$1)>0,(G47-INDEX($C47:$G47,1,aux!$AL$1))/INDEX($C47:$G47,1,aux!$AL$1),"n.d.") -> n.d. | AA47: =O47-INDEX($K47:$O47,1,aux!$AL$1) -> 0 | AB47: 0 | AC47: 0 | AD47: =+IF(INDEX($K47:$O47,1,aux!$AL$1)>0,(O47/INDEX($K47:$O47,1,aux!$AL$1))^(1/($O$3-INDEX($K$3:$O$3,1,aux!$AL$1)))-1,"n.d.") -> n.d. | AE47: =IF(INDEX($K47:$O47,1,aux!$AL$1)>0,(O47-INDEX($K47:$O47,1,aux!$AL$1))/INDEX($K47:$O47,1,aux!$AL$1),"n.d.") -> n.d. | AX47: 07
A48: 0702 | B48: Tomates, frescos ou refrigerados | C48: 0 | D48: 0 | E48: 0 | F48: 0 | G48: 0 | H48: 0 | I48: 0 | J48: 0 | K48: 0 | L48: 0 | M48: 0 | N48: 0 | O48: 0 | P48: 0 | Q48: 0 | R48: 0 | S48: 0 | U48: =G48-INDEX($C48:$G48,1,aux!$AL$1) -> 0 | V48: 0 | W48: 0 | X48: =+IF(INDEX($C48:$G48,1,aux!$AL$1)>0,(G48/INDEX($C48:$G48,1,aux!$AL$1))^(1/($G$3-INDEX($C$3:$G$3,1,aux!$AL$1)))-1,"n.d.") -> n.d. | Y48: =IF(INDEX($C48:$G48,1,aux!$AL$1)>0,(G48-INDEX($C48:$G48,1,aux!$AL$1))/INDEX($C48:$G48,1,aux!$AL$1),"n.d.") -> n.d. | AA48: =O48-INDEX($K48:$O48,1,aux!$AL$1) -> 0 | AB48: 0 | AC48: 0 | AD48: =+IF(INDEX($K48:$O48,1,aux!$AL$1)>0,(O48/INDEX($K48:$O48,1,aux!$AL$1))^(1/($O$3-INDEX($K$3:$O$3,1,aux!$AL$1)))-1,"n.d.") -> n.d. | AE48: =IF(INDEX($K48:$O48,1,aux!$AL$1)>0,(O48-INDEX($K48:$O48,1,aux!$AL$1))/INDEX($K48:$O48,1,aux!$AL$1),"n.d.") -> n.d. | AX48: 07
A49: 0703 | B49: Cebolas, alhos, etc., frescos ou refrigerados | C49: 0 | D49: 0 | E49: 0 | F49: 0 | G49: 0 | H49: 0 | I49: 0 | J49: 0 | K49: 0 | L49: 0 | M49: 0 | N49: 0 | O49: 0 | P49: 0 | Q49: 0 | R49: 0 | S49: 0 | U49: =G49-INDEX($C49:$G49,1,aux!$AL$1) -> 0 | V49: 0 | W49: 0 | X49: =+IF(INDEX($C49:$G49,1,aux!$AL$1)>0,(G49/INDEX($C49:$G49,1,aux!$AL$1))^(1/($G$3-INDEX($C$3:$G$3,1,aux!$AL$1)))-1,"n.d.") -> n.d. | Y49: =IF(INDEX($C49:$G49,1,aux!$AL$1)>0,(G49-INDEX($C49:$G49,1,aux!$AL$1))/INDEX($C49:$G49,1,aux!$AL$1),"n.d.") -> n.d. | AA49: =O49-INDEX($K49:$O49,1,aux!$AL$1) -> 0 | AB49: 0 | AC49: 0 | AD49: =+IF(INDEX($K49:$O49,1,aux!$AL$1)>0,(O49/INDEX($K49:$O49,1,aux!$AL$1))^(1/($O$3-INDEX($K$3:$O$3,1,aux!$AL$1)))-1,"n.d.") -> n.d. | AE49: =IF(INDEX($K49:$O49,1,aux!$AL$1)>0,(O49-INDEX($K49:$O49,1,aux!$AL$1))/INDEX($K49:$O49,1,aux!$AL$1),"n.d.") -> n.d. | AX49: 07
A50: 0704 | B50: Couves, frescas ou refrigeradas | C50: 0 | D50: 0 | E50: 0 | F50: 0 | G50: 0 | H50: 0 | I50: 0 | J50: 0 | K50: 0 | L50: 0 | M50: 0 | N50: 0 | O50: 0 | P50: 0 | Q50: 0 | R50: 0 | S50: 0 | U50: =G50-INDEX($C50:$G50,1,aux!$AL$1) -> 0 | V50: 0 | W50: 0 | X50: =+IF(INDEX($C50:$G50,1,aux!$AL$1)>0,(G50/INDEX($C50:$G50,1,aux!$AL$1))^(1/($G$3-INDEX($C$3:$G$3,1,aux!$AL$1)))-1,"n.d.") -> n.d. | Y50: =IF(INDEX($C50:$G50,1,aux!$AL$1)>0,(G50-INDEX($C50:$G50,1,aux!$AL$1))/INDEX($C50:$G50,1,aux!$AL$1),"n.d.") -> n.d. | AA50: =O50-INDEX($K50:$O50,1,aux!$AL$1) -> 0 | AB50: 0 | AC50: 0 | AD50: =+IF(INDEX($K50:$O50,1,aux!$AL$1)>0,(O50/INDEX($K50:$O50,1,aux!$AL$1))^(1/($O$3-INDEX($K$3:$O$3,1,aux!$AL$1)))-1,"n.d.") -> n.d. | AE50: =IF(INDEX($K50:$O50,1,aux!$AL$1)>0,(O50-INDEX($K50:$O50,1,aux!$AL$1))/INDEX($K50:$O50,1,aux!$AL$1),"n.d.") -> n.d. | AX50: 07
A51: 0705 | B51: Alfaces, frescas ou refrigeradas | C51: 0 | D51: 0 | E51: 0 | F51: 0 | G51: 0 | H51: 0 | I51: 0 | J51: 0 | K51: 0 | L51: 0 | M51: 0 | N51: 0 | O51: 0 | P51: 0 | Q51: 0 | R51: 0 | S51: 0 | U51: =G51-INDEX($C51:$G51,1,aux!$AL$1) -> 0 | V51: 0 | W51: 0 | X51: =+IF(INDEX($C51:$G51,1,aux!$AL$1)>0,(G51/INDEX($C51:$G51,1,aux!$AL$1))^(1/($G$3-INDEX($C$3:$G$3,1,aux!$AL$1)))-1,"n.d.") -> n.d. | Y51: =IF(INDEX($C51:$G51,1,aux!$AL$1)>0,(G51-INDEX($C51:$G51,1,aux!$AL$1))/INDEX($C51:$G51,1,aux!$AL$1),"n.d.") -> n.d. | AA51: =O51-INDEX($K51:$O51,1,aux!$AL$1) -> 0 | AB51: 0 | AC51: 0 | AD51: =+IF(INDEX($K51:$O51,1,aux!$AL$1)>0,(O51/INDEX($K51:$O51,1,aux!$AL$1))^(1/($O$3-INDEX($K$3:$O$3,1,aux!$AL$1)))-1,"n.d.") -> n.d. | AE51: =IF(INDEX($K51:$O51,1,aux!$AL$1)>0,(O51-INDEX($K51:$O51,1,aux!$AL$1))/INDEX($K51:$O51,1,aux!$AL$1),"n.d.") -> n.d. | AX51: 07
A52: 0706 | B52: Cenouras, nabos, beterrabas, etc., frescos ou refrigerados | C52: 0 | D52: 0 | E52: 0 | F52: 0 | G52: 0 | H52: 0 | I52: 0 | J52: 0 | K52: 0 | L52: 0 | M52: 0 | N52: 0 | O52: 0 | P52: 0 | Q52: 0 | R52: 0 | S52: 0 | U52: =G52-INDEX($C52:$G52,1,aux!$AL$1) -> 0 | V52: 0 | W52: 0 | X52: =+IF(INDEX($C52:$G52,1,aux!$AL$1)>0,(G52/INDEX($C52:$G52,1,aux!$AL$1))^(1/($G$3-INDEX($C$3:$G$3,1,aux!$AL$1)))-1,"n.d.") -> n.d. | Y52: =IF(INDEX($C52:$G52,1,aux!$AL$1)>0,(G52-INDEX($C52:$G52,1,aux!$AL$1))/INDEX($C52:$G52,1,aux!$AL$1),"n.d.") -> n.d. | AA52: =O52-INDEX($K52:$O52,1,aux!$AL$1) -> 0 | AB52: 0 | AC52: 0 | AD52: =+IF(INDEX($K52:$O52,1,aux!$AL$1)>0,(O52/INDEX($K52:$O52,1,aux!$AL$1))^(1/($O$3-INDEX($K$3:$O$3,1,aux!$AL$1)))-1,"n.d.") -> n.d. | AE52: =IF(INDEX($K52:$O52,1,aux!$AL$1)>0,(O52-INDEX($K52:$O52,1,aux!$AL$1))/INDEX($K52:$O52,1,aux!$AL$1),"n.d.") -> n.d. | AX52: 07
A53: 0707 | B53: Pepinos e pepininhos, frescos ou refrigerados | C53: 0 | D53: 0 | E53: 0 | F53: 0 | G53: 0 | H53: 0 | I53: 0 | J53: 0 | K53: 0 | L53: 0 | M53: 0 | N53: 0 | O53: 0 | P53: 0 | Q53: 0 | R53: 0 | S53: 0 | U53: =G53-INDEX($C53:$G53,1,aux!$AL$1) -> 0 | V53: 0 | W53: 0 | X53: =+IF(INDEX($C53:$G53,1,aux!$AL$1)>0,(G53/INDEX($C53:$G53,1,aux!$AL$1))^(1/($G$3-INDEX($C$3:$G$3,1,aux!$AL$1)))-1,"n.d.") -> n.d. | Y53: =IF(INDEX($C53:$G53,1,aux!$AL$1)>0,(G53-INDEX($C53:$G53,1,aux!$AL$1))/INDEX($C53:$G53,1,aux!$AL$1),"n.d.") -> n.d. | AA53: =O53-INDEX($K53:$O53,1,aux!$AL$1) -> 0 | AB53: 0 | AC53: 0 | AD53: =+IF(INDEX($K53:$O53,1,aux!$AL$1)>0,(O53/INDEX($K53:$O53,1,aux!$AL$1))^(1/($O$3-INDEX($K$3:$O$3,1,aux!$AL$1)))-1,"n.d.") -> n.d. | AE53: =IF(INDEX($K53:$O53,1,aux!$AL$1)>0,(O53-INDEX($K53:$O53,1,aux!$AL$1))/INDEX($K53:$O53,1,aux!$AL$1),"n.d.") -> n.d. | AX53: 07
A54: 0708 | B54: Legumes de vagem, frescos ou refrigerados | C54: 0 | D54: 0 | E54: 0 | F54: 0 | G54: 0 | H54: 0 | I54: 0 | J54: 0 | K54: 0 | L54: 0 | M54: 0 | N54: 0 | O54: 0 | P54: 0 | Q54: 0 | R54: 0 | S54: 0 | U54: =G54-INDEX($C54:$G54,1,aux!$AL$1) -> 0 | V54: 0 | W54: 0 | X54: =+IF(INDEX($C54:$G54,1,aux!$AL$1)>0,(G54/INDEX($C54:$G54,1,aux!$AL$1))^(1/($G$3-INDEX($C$3:$G$3,1,aux!$AL$1)))-1,"n.d.") -> n.d. | Y54: =IF(INDEX($C54:$G54,1,aux!$AL$1)>0,(G54-INDEX($C54:$G54,1,aux!$AL$1))/INDEX($C54:$G54,1,aux!$AL$1),"n.d.") -> n.d. | AA54: =O54-INDEX($K54:$O54,1,aux!$AL$1) -> 0 | AB54: 0 | AC54: 0 | AD54: =+IF(INDEX($K54:$O54,1,aux!$AL$1)>0,(O54/INDEX($K54:$O54,1,aux!$AL$1))^(1/($O$3-INDEX($K$3:$O$3,1,aux!$AL$1)))-1,"n.d.") -> n.d. | AE54: =IF(INDEX($K54:$O54,1,aux!$AL$1)>0,(O54-INDEX($K54:$O54,1,aux!$AL$1))/INDEX($K54:$O54,1,aux!$AL$1),"n.d.") -> n.d. | AX54: 07
A55: 0709 | B55: Outros produtos hortícolas, frescos ou refrigerados | C55: 0 | D55: 0 | E55: 0 | F55: 0 | G55: 0 | H55: 0 | I55: 0 | J55: 0 | K55: 0 | L55: 0 | M55: 0 | N55: 0 | O55: 0 | P55: 0 | Q55: 0 | R55: 0 | S55: 0 | U55: =G55-INDEX($C55:$G55,1,aux!$AL$1) -> 0 | V55: 0 | W55: 0 | X55: =+IF(INDEX($C55:$G55,1,aux!$AL$1)>0,(G55/INDEX($C55:$G55,1,aux!$AL$1))^(1/($G$3-INDEX($C$3:$G$3,1,aux!$AL$1)))-1,"n.d.") -> n.d. | Y55: =IF(INDEX($C55:$G55,1,aux!$AL$1)>0,(G55-INDEX($C55:$G55,1,aux!$AL$1))/INDEX($C55:$G55,1,aux!$AL$1),"n.d.") -> n.d. | AA55: =O55-INDEX($K55:$O55,1,aux!$AL$1) -> 0 | AB55: 0 | AC55: 0 | AD55: =+IF(INDEX($K55:$O55,1,aux!$AL$1)>0,(O55/INDEX($K55:$O55,1,aux!$AL$1))^(1/($O$3-INDEX($K$3:$O$3,1,aux!$AL$1)))-1,"n.d.") -> n.d. | AE55: =IF(INDEX($K55:$O55,1,aux!$AL$1)>0,(O55-INDEX($K55:$O55,1,aux!$AL$1))/INDEX($K55:$O55,1,aux!$AL$1),"n.d.") -> n.d. | AX55: 07
A56: 0710 | B56: Produtos hortícolas congelados | C56: 0 | D56: 0 | E56: 0 | F56: 0 | G56: 0 | H56: 0 | I56: 0 | J56: 0 | K56: 0 | L56: 0 | M56: 0 | N56: 0 | O56: 0 | P56: 0 | Q56: 0 | R56: 0 | S56: 0 | U56: =G56-INDEX($C56:$G56,1,aux!$AL$1) -> 0 | V56: 0 | W56: 0 | X56: =+IF(INDEX($C56:$G56,1,aux!$AL$1)>0,(G56/INDEX($C56:$G56,1,aux!$AL$1))^(1/($G$3-INDEX($C$3:$G$3,1,aux!$AL$1)))-1,"n.d.") -> n.d. | Y56: =IF(INDEX($C56:$G56,1,aux!$AL$1)>0,(G56-INDEX($C56:$G56,1,aux!$AL$1))/INDEX($C56:$G56,1,aux!$AL$1),"n.d.") -> n.d. | AA56: =O56-INDEX($K56:$O56,1,aux!$AL$1) -> 0 | AB56: 0 | AC56: 0 | AD56: =+IF(INDEX($K56:$O56,1,aux!$AL$1)>0,(O56/INDEX($K56:$O56,1,aux!$AL$1))^(1/($O$3-INDEX($K$3:$O$3,1,aux!$AL$1)))-1,"n.d.") -> n.d. | AE56: =IF(INDEX($K56:$O56,1,aux!$AL$1)>0,(O56-INDEX($K56:$O56,1,aux!$AL$1))/INDEX($K56:$O56,1,aux!$AL$1),"n.d.") -> n.d. | AX56: 07
A57: 0711 | B57: Produtos hortícolas conservados transitoriamente | C57: 0 | D57: 0 | E57: 0 | F57: 0 | G57: 0 | H57: 0 | I57: 0 | J57: 0 | K57: 0 | L57: 0 | M57: 0 | N57: 0 | O57: 0 | P57: 0 | Q57: 0 | R57: 0 | S57: 0 | U57: =G57-INDEX($C57:$G57,1,aux!$AL$1) -> 0 | V57: 0 | W57: 0 | X57: =+IF(INDEX($C57:$G57,1,aux!$AL$1)>0,(G57/INDEX($C57:$G57,1,aux!$AL$1))^(1/($G$3-INDEX($C$3:$G$3,1,aux!$AL$1)))-1,"n.d.") -> n.d. | Y57: =IF(INDEX($C57:$G57,1,aux!$AL$1)>0,(G57-INDEX($C57:$G57,1,aux!$AL$1))/INDEX($C57:$G57,1,aux!$AL$1),"n.d.") -> n.d. | AA57: =O57-INDEX($K57:$O57,1,aux!$AL$1) -> 0 | AB57: 0 | AC57: 0 | AD57: =+IF(INDEX($K57:$O57,1,aux!$AL$1)>0,(O57/INDEX($K57:$O57,1,aux!$AL$1))^(1/($O$3-INDEX($K$3:$O$3,1,aux!$AL$1)))-1,"n.d.") -> n.d. | AE57: =IF(INDEX($K57:$O57,1,aux!$AL$1)>0,(O57-INDEX($K57:$O57,1,aux!$AL$1))/INDEX($K57:$O57,1,aux!$AL$1),"n.d.") -> n.d. | AX57: 07
A58: 0712 | B58: Produtos hortícolas secos | C58: 0 | D58: 0 | E58: 0 | F58: 0 | G58: 0 | H58: 0 | I58: 0 | J58: 0 | K58: 0 | L58: 0 | M58: 0 | N58: 0 | O58: 0 | P58: 0 | Q58: 0 | R58: 0 | S58: 0 | U58: =G58-INDEX($C58:$G58,1,aux!$AL$1) -> 0 | V58: 0 | W58: 0 | X58: =+IF(INDEX($C58:$G58,1,aux!$AL$1)>0,(G58/INDEX($C58:$G58,1,aux!$AL$1))^(1/($G$3-INDEX($C$3:$G$3,1,aux!$AL$1)))-1,"n.d.") -> n.d. | Y58: =IF(INDEX($C58:$G58,1,aux!$AL$1)>0,(G58-INDEX($C58:$G58,1,aux!$AL$1))/INDEX($C58:$G58,1,aux!$AL$1),"n.d.") -> n.d. | AA58: =O58-INDEX($K58:$O58,1,aux!$AL$1) -> 0 | AB58: 0 | AC58: 0 | AD58: =+IF(INDEX($K58:$O58,1,aux!$AL$1)>0,(O58/INDEX($K58:$O58,1,aux!$AL$1))^(1/($O$3-INDEX($K$3:$O$3,1,aux!$AL$1)))-1,"n.d.") -> n.d. | AE58: =IF(INDEX($K58:$O58,1,aux!$AL$1)>0,(O58-INDEX($K58:$O58,1,aux!$AL$1))/INDEX($K58:$O58,1,aux!$AL$1),"n.d.") -> n.d. | AX58: 07
A59: 0713 | B59: Legumes de vagem, secos, em grão | C59: 0 | D59: 0 | E59: 0 | F59: 1268 | G59: 0 | H59: 253.6 | I59: 0.1030978128 | J59: 0.02770434137 | K59: 0 | L59: 0 | M59: 0 | N59: 0 | O59: 0 | P59: 0 | Q59: 0 | R59: 0 | S59: -253.6 | U59: =G59-INDEX($C59:$G59,1,aux!$AL$1) -> 0 | V59: 0 | W59: 0 | X59: =+IF(INDEX($C59:$G59,1,aux!$AL$1)>0,(G59/INDEX($C59:$G59,1,aux!$AL$1))^(1/($G$3-INDEX($C$3:$G$3,1,aux!$AL$1)))-1,"n.d.") -> n.d. | Y59: =IF(INDEX($C59:$G59,1,aux!$AL$1)>0,(G59-INDEX($C59:$G59,1,aux!$AL$1))/INDEX($C59:$G59,1,aux!$AL$1),"n.d.") -> n.d. | AA59: =O59-INDEX($K59:$O59,1,aux!$AL$1) -> 0 | AB59: 0 | AC59: 0 | AD59: =+IF(INDEX($K59:$O59,1,aux!$AL$1)>0,(O59/INDEX($K59:$O59,1,aux!$AL$1))^(1/($O$3-INDEX($K$3:$O$3,1,aux!$AL$1)))-1,"n.d.") -> n.d. | AE59: =IF(INDEX($K59:$O59,1,aux!$AL$1)>0,(O59-INDEX($K59:$O59,1,aux!$AL$1))/INDEX($K59:$O59,1,aux!$AL$1),"n.d.") -> n.d. | AX59: 07
A60: 0714 | B60: Raízes de mandioca, de araruta, batata-doce, etc. | C60: 0 | D60: 0 | E60: 0 | F60: 0 | G60: 0 | H60: 0 | I60: 0 | J60: 0 | K60: 0 | L60: 0 | M60: 0 | N60: 0 | O60: 0 | P60: 0 | Q60: 0 | R60: 0 | S60: 0 | U60: =G60-INDEX($C60:$G60,1,aux!$AL$1) -> 0 | V60: 0 | W60: 0 | X60: =+IF(INDEX($C60:$G60,1,aux!$AL$1)>0,(G60/INDEX($C60:$G60,1,aux!$AL$1))^(1/($G$3-INDEX($C$3:$G$3,1,aux!$AL$1)))-1,"n.d.") -> n.d. | Y60: =IF(INDEX($C60:$G60,1,aux!$AL$1)>0,(G60-INDEX($C60:$G60,1,aux!$AL$1))/INDEX($C60:$G60,1,aux!$AL$1),"n.d.") -> n.d. | AA60: =O60-INDEX($K60:$O60,1,aux!$AL$1) -> 0 | AB60: 0 | AC60: 0 | AD60: =+IF(INDEX($K60:$O60,1,aux!$AL$1)>0,(O60/INDEX($K60:$O60,1,aux!$AL$1))^(1/($O$3-INDEX($K$3:$O$3,1,aux!$AL$1)))-1,"n.d.") -> n.d. | AE60: =IF(INDEX($K60:$O60,1,aux!$AL$1)>0,(O60-INDEX($K60:$O60,1,aux!$AL$1))/INDEX($K60:$O60,1,aux!$AL$1),"n.d.") -> n.d. | AX60: 07
A61: 07SS | B61: Produtos hortícolas, plantas, raízes e tubérculos, comestíveis | C61: 0 | D61: 0 | E61: 0 | F61: 0 | G61: 0 | H61: 0 | I61: 0 | J61: 0 | K61: 0 | L61: 0 | M61: 0 | N61: 0 | O61: 0 | P61: 0 | Q61: 0 | R61: 0 | S61: 0 | U61: =G61-INDEX($C61:$G61,1,aux!$AL$1) -> 0 | V61: 0 | W61: 0 | X61: =+IF(INDEX($C61:$G61,1,aux!$AL$1)>0,(G61/INDEX($C61:$G61,1,aux!$AL$1))^(1/($G$3-INDEX($C$3:$G$3,1,aux!$AL$1)))-1,"n.d.") -> n.d. | Y61: =IF(INDEX($C61:$G61,1,aux!$AL$1)>0,(G61-INDEX($C61:$G61,1,aux!$AL$1))/INDEX($C61:$G61,1,aux!$AL$1),"n.d.") -> n.d. | AA61: =O61-INDEX($K61:$O61,1,aux!$AL$1) -> 0 | AB61: 0 | AC61: 0 | AD61: =+IF(INDEX($K61:$O61,1,aux!$AL$1)>0,(O61/INDEX($K61:$O61,1,aux!$AL$1))^(1/($O$3-INDEX($K$3:$O$3,1,aux!$AL$1)))-1,"n.d.") -> n.d. | AE61: =IF(INDEX($K61:$O61,1,aux!$AL$1)>0,(O61-INDEX($K61:$O61,1,aux!$AL$1))/INDEX($K61:$O61,1,aux!$AL$1),"n.d.") -> n.d. | AX61: 07
A62: 0801 | B62: Cocos, castanhas do brasil e castanha de cajú | C62: 0 | D62: 0 | E62: 0 | F62: 0 | G62: 0 | H62: 0 | I62: 0 | J62: 0 | K62: 0 | L62: 0 | M62: 0 | N62: 0 | O62: 0 | P62: 0 | Q62: 0 | R62: 0 | S62: 0 | U62: =G62-INDEX($C62:$G62,1,aux!$AL$1) -> 0 | V62: 0 | W62: 0 | X62: =+IF(INDEX($C62:$G62,1,aux!$AL$1)>0,(G62/INDEX($C62:$G62,1,aux!$AL$1))^(1/($G$3-INDEX($C$3:$G$3,1,aux!$AL$1)))-1,"n.d.") -> n.d. | Y62: =IF(INDEX($C62:$G62,1,aux!$AL$1)>0,(G62-INDEX($C62:$G62,1,aux!$AL$1))/INDEX($C62:$G62,1,aux!$AL$1),"n.d.") -> n.d. | AA62: =O62-INDEX($K62:$O62,1,aux!$AL$1) -> 0 | AB62: 0 | AC62: 0 | AD62: =+IF(INDEX($K62:$O62,1,aux!$AL$1)>0,(O62/INDEX($K62:$O62,1,aux!$AL$1))^(1/($O$3-INDEX($K$3:$O$3,1,aux!$AL$1)))-1,"n.d.") -> n.d. | AE62: =IF(INDEX($K62:$O62,1,aux!$AL$1)>0,(O62-INDEX($K62:$O62,1,aux!$AL$1))/INDEX($K62:$O62,1,aux!$AL$1),"n.d.") -> n.d. | AX62: 08
A63: 0802 | B63: Frutas de casca rija | C63: 0 | D63: 0 | E63: 0 | F63: 0 | G63: 0 | H63: 0 | I63: 0 | J63: 0 | K63: 0 | L63: 0 | M63: 0 | N63: 0 | O63: 0 | P63: 0 | Q63: 0 | R63: 0 | S63: 0 | U63: =G63-INDEX($C63:$G63,1,aux!$AL$1) -> 0 | V63: 0 | W63: 0 | X63: =+IF(INDEX($C63:$G63,1,aux!$AL$1)>0,(G63/INDEX($C63:$G63,1,aux!$AL$1))^(1/($G$3-INDEX($C$3:$G$3,1,aux!$AL$1)))-1,"n.d.") -> n.d. | Y63: =IF(INDEX($C63:$G63,1,aux!$AL$1)>0,(G63-INDEX($C63:$G63,1,aux!$AL$1))/INDEX($C63:$G63,1,aux!$AL$1),"n.d.") -> n.d. | AA63: =O63-INDEX($K63:$O63,1,aux!$AL$1) -> 0 | AB63: 0 | AC63: 0 | AD63: =+IF(INDEX($K63:$O63,1,aux!$AL$1)>0,(O63/INDEX($K63:$O63,1,aux!$AL$1))^(1/($O$3-INDEX($K$3:$O$3,1,aux!$AL$1)))-1,"n.d.") -> n.d. | AE63: =IF(INDEX($K63:$O63,1,aux!$AL$1)>0,(O63-INDEX($K63:$O63,1,aux!$AL$1))/INDEX($K63:$O63,1,aux!$AL$1),"n.d.") -> n.d. | AX63: 08
A64: 0803 | B64: Bananas, frescas ou secas | C64: 0 | D64: 0 | E64: 0 | F64: 0 | G64: 0 | H64: 0 | I64: 0 | J64: 0 | K64: 0 | L64: 0 | M64: 0 | N64: 0 | O64: 0 | P64: 0 | Q64: 0 | R64: 0 | S64: 0 | U64: =G64-INDEX($C64:$G64,1,aux!$AL$1) -> 0 | V64: 0 | W64: 0 | X64: =+IF(INDEX($C64:$G64,1,aux!$AL$1)>0,(G64/INDEX($C64:$G64,1,aux!$AL$1))^(1/($G$3-INDEX($C$3:$G$3,1,aux!$AL$1)))-1,"n.d.") -> n.d. | Y64: =IF(INDEX($C64:$G64,1,aux!$AL$1)>0,(G64-INDEX($C64:$G64,1,aux!$AL$1))/INDEX($C64:$G64,1,aux!$AL$1),"n.d.") -> n.d. | AA64: =O64-INDEX($K64:$O64,1,aux!$AL$1) -> 0 | AB64: 0 | AC64: 0 | AD64: =+IF(INDEX($K64:$O64,1,aux!$AL$1)>0,(O64/INDEX($K64:$O64,1,aux!$AL$1))^(1/($O$3-INDEX($K$3:$O$3,1,aux!$AL$1)))-1,"n.d.") -> n.d. | AE64: =IF(INDEX($K64:$O64,1,aux!$AL$1)>0,(O64-INDEX($K64:$O64,1,aux!$AL$1))/INDEX($K64:$O64,1,aux!$AL$1),"n.d.") -> n.d. | AX64: 08
A65: 0804 | B65: Tâmaras, figos, ananases, abacates, goiabas, mangas | C65: 0 | D65: 0 | E65: 0 | F65: 0 | G65: 0 | H65: 0 | I65: 0 | J65: 0 | K65: 0 | L65: 0 | M65: 0 | N65: 0 | O65: 0 | P65: 0 | Q65: 0 | R65: 0 | S65: 0 | U65: =G65-INDEX($C65:$G65,1,aux!$AL$1) -> 0 | V65: 0 | W65: 0 | X65: =+IF(INDEX($C65:$G65,1,aux!$AL$1)>0,(G65/INDEX($C65:$G65,1,aux!$AL$1))^(1/($G$3-INDEX($C$3:$G$3,1,aux!$AL$1)))-1,"n.d.") -> n.d. | Y65: =IF(INDEX($C65:$G65,1,aux!$AL$1)>0,(G65-INDEX($C65:$G65,1,aux!$AL$1))/INDEX($C65:$G65,1,aux!$AL$1),"n.d.") -> n.d. | AA65: =O65-INDEX($K65:$O65,1,aux!$AL$1) -> 0 | AB65: 0 | AC65: 0 | AD65: =+IF(INDEX($K65:$O65,1,aux!$AL$1)>0,(O65/INDEX($K65:$O65,1,aux!$AL$1))^(1/($O$3-INDEX($K$3:$O$3,1,aux!$AL$1)))-1,"n.d.") -> n.d. | AE65: =IF(INDEX($K65:$O65,1,aux!$AL$1)>0,(O65-INDEX($K65:$O65,1,aux!$AL$1))/INDEX($K65:$O65,1,aux!$AL$1),"n.d.") -> n.d. | AX65: 08
A66: 0805 | B66: Citrinos, frescos ou secos | C66: 0 | D66: 0 | E66: 0 | F66: 0 | G66: 0 | H66: 0 | I66: 0 | J66: 0 | K66: 0 | L66: 0 | M66: 0 | N66: 0 | O66: 0 | P66: 0 | Q66: 0 | R66: 0 | S66: 0 | U66: =G66-INDEX($C66:$G66,1,aux!$AL$1) -> 0 | V66: 0 | W66: 0 | X66: =+IF(INDEX($C66:$G66,1,aux!$AL$1)>0,(G66/INDEX($C66:$G66,1,aux!$AL$1))^(1/($G$3-INDEX($C$3:$G$3,1,aux!$AL$1)))-1,"n.d.") -> n.d. | Y66: =IF(INDEX($C66:$G66,1,aux!$AL$1)>0,(G66-INDEX($C66:$G66,1,aux!$AL$1))/INDEX($C66:$G66,1,aux!$AL$1),"n.d.") -> n.d. | AA66: =O66-INDEX($K66:$O66,1,aux!$AL$1) -> 0 | AB66: 0 | AC66: 0 | AD66: =+IF(INDEX($K66:$O66,1,aux!$AL$1)>0,(O66/INDEX($K66:$O66,1,aux!$AL$1))^(1/($O$3-INDEX($K$3:$O$3,1,aux!$AL$1)))-1,"n.d.") -> n.d. | AE66: =IF(INDEX($K66:$O66,1,aux!$AL$1)>0,(O66-INDEX($K66:$O66,1,aux!$AL$1))/INDEX($K66:$O66,1,aux!$AL$1),"n.d.") -> n.d. | AX66: 08
A67: 0806 | B67: Uvas, frescas ou secas | C67: 0 | D67: 0 | E67: 0 | F67: 0 | G67: 0 | H67: 0 | I67: 0 | J67: 0 | K67: 0 | L67: 0 | M67: 0 | N67: 0 | O67: 0 | P67: 0 | Q67: 0 | R67: 0 | S67: 0 | U67: =G67-INDEX($C67:$G67,1,aux!$AL$1) -> 0 | V67: 0 | W67: 0 | X67: =+IF(INDEX($C67:$G67,1,aux!$AL$1)>0,(G67/INDEX($C67:$G67,1,aux!$AL$1))^(1/($G$3-INDEX($C$3:$G$3,1,aux!$AL$1)))-1,"n.d.") -> n.d. | Y67: =IF(INDEX($C67:$G67,1,aux!$AL$1)>0,(G67-INDEX($C67:$G67,1,aux!$AL$1))/INDEX($C67:$G67,1,aux!$AL$1),"n.d.") -> n.d. | AA67: =O67-INDEX($K67:$O67,1,aux!$AL$1) -> 0 | AB67: 0 | AC67: 0 | AD67: =+IF(INDEX($K67:$O67,1,aux!$AL$1)>0,(O67/INDEX($K67:$O67,1,aux!$AL$1))^(1/($O$3-INDEX($K$3:$O$3,1,aux!$AL$1)))-1,"n.d.") -> n.d. | AE67: =IF(INDEX($K67:$O67,1,aux!$AL$1)>0,(O67-INDEX($K67:$O67,1,aux!$AL$1))/INDEX($K67:$O67,1,aux!$AL$1),"n.d.") -> n.d. | AX67: 08
A68: 0807 | B68: Melões, melancias e papaia, frescos | C68: 0 | D68: 0 | E68: 0 | F68: 0 | G68: 0 | H68: 0 | I68: 0 | J68: 0 | K68: 0 | L68: 0 | M68: 0 | N68: 0 | O68: 0 | P68: 0 | Q68: 0 | R68: 0 | S68: 0 | U68: =G68-INDEX($C68:$G68,1,aux!$AL$1) -> 0 | V68: =IF($U$236<>0,U68/$U$236, "n.d.") -> 0 | W68: =IF($U$320<>0,U68/$U$320, "n.d.") -> 0 | X68: =+IF(INDEX($C68:$G68,1,aux!$AL$1)>0,(G68/INDEX($C68:$G68,1,aux!$AL$1))^(1/($G$3-INDEX($C$3:$G$3,1,aux!$AL$1)))-1,"n.d.") -> n.d. | Y68: =IF(INDEX($C68:$G68,1,aux!$AL$1)>0,(G68-INDEX($C68:$G68,1,aux!$AL$1))/INDEX($C68:$G68,1,aux!$AL$1),"n.d.") -> n.d. | AA68: =O68-INDEX($K68:$O68,1,aux!$AL$1) -> 0 | AB68: =IF($AA$236<>0,AA68/$AA$236, "n.d.") -> 0 | AC68: =IF($AA$320<>0,AA68/$AA$320, "n.d.") -> 0 | AD68: =+IF(INDEX($K68:$O68,1,aux!$AL$1)>0,(O68/INDEX($K68:$O68,1,aux!$AL$1))^(1/($O$3-INDEX($K$3:$O$3,1,aux!$AL$1)))-1,"n.d.") -> n.d. | AE68: =IF(INDEX($K68:$O68,1,aux!$AL$1)>0,(O68-INDEX($K68:$O68,1,aux!$AL$1))/INDEX($K68:$O68,1,aux!$AL$1),"n.d.") -> n.d. | AX68: 08
A69: 0808 | B69: Maçãs, peras e marmelos, frescos | C69: 0 | D69: 0 | E69: 0 | F69: 0 | G69: 0 | H69: 0 | I69: 0 | J69: 0 | K69: 0 | L69: 0 | M69: 0 | N69: 0 | O69: 0 | P69: 0 | Q69: 0 | R69: 0 | S69: 0 | U69: =G69-INDEX($C69:$G69,1,aux!$AL$1) -> 0 | V69: 0 | W69: 0 | X69: =+IF(INDEX($C69:$G69,1,aux!$AL$1)>0,(G69/INDEX($C69:$G69,1,aux!$AL$1))^(1/($G$3-INDEX($C$3:$G$3,1,aux!$AL$1)))-1,"n.d.") -> n.d. | Y69: =IF(INDEX($C69:$G69,1,aux!$AL$1)>0,(G69-INDEX($C69:$G69,1,aux!$AL$1))/INDEX($C69:$G69,1,aux!$AL$1),"n.d.") -> n.d. | AA69: =O69-INDEX($K69:$O69,1,aux!$AL$1) -> 0 | AB69: 0 | AC69: 0 | AD69: =+IF(INDEX($K69:$O69,1,aux!$AL$1)>0,(O69/INDEX($K69:$O69,1,aux!$AL$1))^(1/($O$3-INDEX($K$3:$O$3,1,aux!$AL$1)))-1,"n.d.") -> n.d. | AE69: =IF(INDEX($K69:$O69,1,aux!$AL$1)>0,(O69-INDEX($K69:$O69,1,aux!$AL$1))/INDEX($K69:$O69,1,aux!$AL$1),"n.d.") -> n.d. | AX69: 08
A70: 0809 | B70: Damascos, cerejas, pêssegos, etc., frescos | C70: 0 | D70: 0 | E70: 0 | F70: 0 | G70: 0 | H70: 0 | I70: 0 | J70: 0 | K70: 0 | L70: 0 | M70: 0 | N70: 0 | O70: 0 | P70: 0 | Q70: 0 | R70: 0 | S70: 0 | U70: =G70-INDEX($C70:$G70,1,aux!$AL$1) -> 0 | V70: 0 | W70: 0 | X70: =+IF(INDEX($C70:$G70,1,aux!$AL$1)>0,(G70/INDEX($C70:$G70,1,aux!$AL$1))^(1/($G$3-INDEX($C$3:$G$3,1,aux!$AL$1)))-1,"n.d.") -> n.d. | Y70: =IF(INDEX($C70:$G70,1,aux!$AL$1)>0,(G70-INDEX($C70:$G70,1,aux!$AL$1))/INDEX($C70:$G70,1,aux!$AL$1),"n.d.") -> n.d. | AA70: =O70-INDEX($K70:$O70,1,aux!$AL$1) -> 0 | AB70: 0 | AC70: 0 | AD70: =+IF(INDEX($K70:$O70,1,aux!$AL$1)>0,(O70/INDEX($K70:$O70,1,aux!$AL$1))^(1/($O$3-INDEX($K$3:$O$3,1,aux!$AL$1)))-1,"n.d.") -> n.d. | AE70: =IF(INDEX($K70:$O70,1,aux!$AL$1)>0,(O70-INDEX($K70:$O70,1,aux!$AL$1))/INDEX($K70:$O70,1,aux!$AL$1),"n.d.") -> n.d. | AX70: 08
A71: 0810 | B71: Outras frutas frescas | C71: 0 | D71: 0 | E71: 0 | F71: 0 | G71: 0 | H71: 0 | I71: 0 | J71: 0 | K71: 0 | L71: 0 | M71: 0 | N71: 0 | O71: 0 | P71: 0 | Q71: 0 | R71: 0 | S71: 0 | U71: =G71-INDEX($C71:$G71,1,aux!$AL$1) -> 0 | V71: 0 | W71: 0 | X71: =+IF(INDEX($C71:$G71,1,aux!$AL$1)>0,(G71/INDEX($C71:$G71,1,aux!$AL$1))^(1/($G$3-INDEX($C$3:$G$3,1,aux!$AL$1)))-1,"n.d.") -> n.d. | Y71: =IF(INDEX($C71:$G71,1,aux!$AL$1)>0,(G71-INDEX($C71:$G71,1,aux!$AL$1))/INDEX($C71:$G71,1,aux!$AL$1),"n.d.") -> n.d. | AA71: =O71-INDEX($K71:$O71,1,aux!$AL$1) -> 0 | AB71: 0 | AC71: 0 | AD71: =+IF(INDEX($K71:$O71,1,aux!$AL$1)>0,(O71/INDEX($K71:$O71,1,aux!$AL$1))^(1/($O$3-INDEX($K$3:$O$3,1,aux!$AL$1)))-1,"n.d.") -> n.d. | AE71: =IF(INDEX($K71:$O71,1,aux!$AL$1)>0,(O71-INDEX($K71:$O71,1,aux!$AL$1))/INDEX($K71:$O71,1,aux!$AL$1),"n.d.") -> n.d. | AX71: =+LEFT(A71,2) -> 08
A72: 0811 | B72: Frutas não cozidas ou cozidas em água ou vapor, congeladas | C72: 0 | D72: 0 | E72: 0 | F72: 0 | G72: 0 | H72: 0 | I72: 0 | J72: 0 | K72: 0 | L72: 0 | M72: 0 | N72: 0 | O72: 0 | P72: 0 | Q72: 0 | R72: 0 | S72: 0 | U72: =G72-INDEX($C72:$G72,1,aux!$AL$1) -> 0 | V72: 0 | W72: 0 | X72: =+IF(INDEX($C72:$G72,1,aux!$AL$1)>0,(G72/INDEX($C72:$G72,1,aux!$AL$1))^(1/($G$3-INDEX($C$3:$G$3,1,aux!$AL$1)))-1,"n.d.") -> n.d. | Y72: =IF(INDEX($C72:$G72,1,aux!$AL$1)>0,(G72-INDEX($C72:$G72,1,aux!$AL$1))/INDEX($C72:$G72,1,aux!$AL$1),"n.d.") -> n.d. | AA72: =O72-INDEX($K72:$O72,1,aux!$AL$1) -> 0 | AB72: 0 | AC72: 0 | AD72: =+IF(INDEX($K72:$O72,1,aux!$AL$1)>0,(O72/INDEX($K72:$O72,1,aux!$AL$1))^(1/($O$3-INDEX($K$3:$O$3,1,aux!$AL$1)))-1,"n.d.") -> n.d. | AE72: =IF(INDEX($K72:$O72,1,aux!$AL$1)>0,(O72-INDEX($K72:$O72,1,aux!$AL$1))/INDEX($K72:$O72,1,aux!$AL$1),"n.d.") -> n.d. | AX72: 08
A73: 0812 | B73: Frutas conservadas transitoriamente | C73: 0 | D73: 0 | E73: 0 | F73: 0 | G73: 0 | H73: 0 | I73: 0 | J73: 0 | K73: 0 | L73: 0 | M73: 0 | N73: 0 | O73: 0 | P73: 0 | Q73: 0 | R73: 0 | S73: 0 | U73: =G73-INDEX($C73:$G73,1,aux!$AL$1) -> 0 | V73: 0 | W73: 0 | X73: =+IF(INDEX($C73:$G73,1,aux!$AL$1)>0,(G73/INDEX($C73:$G73,1,aux!$AL$1))^(1/($G$3-INDEX($C$3:$G$3,1,aux!$AL$1)))-1,"n.d.") -> n.d. | Y73: =IF(INDEX($C73:$G73,1,aux!$AL$1)>0,(G73-INDEX($C73:$G73,1,aux!$AL$1))/INDEX($C73:$G73,1,aux!$AL$1),"n.d.") -> n.d. | AA73: =O73-INDEX($K73:$O73,1,aux!$AL$1) -> 0 | AB73: 0 | AC73: 0 | AD73: =+IF(INDEX($K73:$O73,1,aux!$AL$1)>0,(O73/INDEX($K73:$O73,1,aux!$AL$1))^(1/($O$3-INDEX($K$3:$O$3,1,aux!$AL$1)))-1,"n.d.") -> n.d. | AE73: =IF(INDEX($K73:$O73,1,aux!$AL$1)>0,(O73-INDEX($K73:$O73,1,aux!$AL$1))/INDEX($K73:$O73,1,aux!$AL$1),"n.d.") -> n.d. | AX73: 08
A74: 0813 | B74: Outras frutas secas | C74: 0 | D74: 0 | E74: 0 | F74: 0 | G74: 0 | H74: 0 | I74: 0 | J74: 0 | K74: 0 | L74: 0 | M74: 0 | N74: 0 | O74: 0 | P74: 0 | Q74: 0 | R74: 0 | S74: 0 | U74: =G74-INDEX($C74:$G74,1,aux!$AL$1) -> 0 | V74: 0 | W74: 0 | X74: =+IF(INDEX($C74:$G74,1,aux!$AL$1)>0,(G74/INDEX($C74:$G74,1,aux!$AL$1))^(1/($G$3-INDEX($C$3:$G$3,1,aux!$AL$1)))-1,"n.d.") -> n.d. | Y74: =IF(INDEX($C74:$G74,1,aux!$AL$1)>0,(G74-INDEX($C74:$G74,1,aux!$AL$1))/INDEX($C74:$G74,1,aux!$AL$1),"n.d.") -> n.d. | AA74: =O74-INDEX($K74:$O74,1,aux!$AL$1) -> 0 | AB74: 0 | AC74: 0 | AD74: =+IF(INDEX($K74:$O74,1,aux!$AL$1)>0,(O74/INDEX($K74:$O74,1,aux!$AL$1))^(1/($O$3-INDEX($K$3:$O$3,1,aux!$AL$1)))-1,"n.d.") -> n.d. | AE74: =IF(INDEX($K74:$O74,1,aux!$AL$1)>0,(O74-INDEX($K74:$O74,1,aux!$AL$1))/INDEX($K74:$O74,1,aux!$AL$1),"n.d.") -> n.d. | AX74: 08
A75: 0814 | B75: Cascas de citrinos, melões ou melancias | C75: 0 | D75: 0 | E75: 0 | F75: 0 | G75: 0 | H75: 0 | I75: 0 | J75: 0 | K75: 0 | L75: 0 | M75: 0 | N75: 0 | O75: 0 | P75: 0 | Q75: 0 | R75: 0 | S75: 0 | U75: =G75-INDEX($C75:$G75,1,aux!$AL$1) -> 0 | V75: 0 | W75: 0 | X75: =+IF(INDEX($C75:$G75,1,aux!$AL$1)>0,(G75/INDEX($C75:$G75,1,aux!$AL$1))^(1/($G$3-INDEX($C$3:$G$3,1,aux!$AL$1)))-1,"n.d.") -> n.d. | Y75: =IF(INDEX($C75:$G75,1,aux!$AL$1)>0,(G75-INDEX($C75:$G75,1,aux!$AL$1))/INDEX($C75:$G75,1,aux!$AL$1),"n.d.") -> n.d. | AA75: =O75-INDEX($K75:$O75,1,aux!$AL$1) -> 0 | AB75: 0 | AC75: 0 | AD75: =+IF(INDEX($K75:$O75,1,aux!$AL$1)>0,(O75/INDEX($K75:$O75,1,aux!$AL$1))^(1/($O$3-INDEX($K$3:$O$3,1,aux!$AL$1)))-1,"n.d.") -> n.d. | AE75: =IF(INDEX($K75:$O75,1,aux!$AL$1)>0,(O75-INDEX($K75:$O75,1,aux!$AL$1))/INDEX($K75:$O75,1,aux!$AL$1),"n.d.") -> n.d. | AX75: 08
A76: 08SS | B76: Frutas; cascas de citrinos e de melões | C76: 0 | D76: 0 | E76: 0 | F76: 0 | G76: 0 | H76: 0 | I76: 0 | J76: 0 | K76: 0 | L76: 0 | M76: 0 | N76: 0 | O76: 0 | P76: 0 | Q76: 0 | R76: 0 | S76: 0 | U76: =G76-INDEX($C76:$G76,1,aux!$AL$1) -> 0 | V76: 0 | W76: 0 | X76: =+IF(INDEX($C76:$G76,1,aux!$AL$1)>0,(G76/INDEX($C76:$G76,1,aux!$AL$1))^(1/($G$3-INDEX($C$3:$G$3,1,aux!$AL$1)))-1,"n.d.") -> n.d. | Y76: =IF(INDEX($C76:$G76,1,aux!$AL$1)>0,(G76-INDEX($C76:$G76,1,aux!$AL$1))/INDEX($C76:$G76,1,aux!$AL$1),"n.d.") -> n.d. | AA76: =O76-INDEX($K76:$O76,1,aux!$AL$1) -> 0 | AB76: 0 | AC76: 0 | AD76: =+IF(INDEX($K76:$O76,1,aux!$AL$1)>0,(O76/INDEX($K76:$O76,1,aux!$AL$1))^(1/($O$3-INDEX($K$3:$O$3,1,aux!$AL$1)))-1,"n.d.") -> n.d. | AE76: =IF(INDEX($K76:$O76,1,aux!$AL$1)>0,(O76-INDEX($K76:$O76,1,aux!$AL$1))/INDEX($K76:$O76,1,aux!$AL$1),"n.d.") -> n.d. | AX76: 08
A77: 0901 | B77: Café | C77: 0 | D77: 0 | E77: 0 | F77: 0 | G77: 0 | H77: 0 | I77: 0 | J77: 0 | K77: 0 | L77: 0 | M77: 0 | N77: 0 | O77: 0 | P77: 0 | Q77: 0 | R77: 0 | S77: 0 | U77: =G77-INDEX($C77:$G77,1,aux!$AL$1) -> 0 | V77: 0 | W77: 0 | X77: =+IF(INDEX($C77:$G77,1,aux!$AL$1)>0,(G77/INDEX($C77:$G77,1,aux!$AL$1))^(1/($G$3-INDEX($C$3:$G$3,1,aux!$AL$1)))-1,"n.d.") -> n.d. | Y77: =IF(INDEX($C77:$G77,1,aux!$AL$1)>0,(G77-INDEX($C77:$G77,1,aux!$AL$1))/INDEX($C77:$G77,1,aux!$AL$1),"n.d.") -> n.d. | AA77: =O77-INDEX($K77:$O77,1,aux!$AL$1) -> 0 | AB77: 0 | AC77: 0 | AD77: =+IF(INDEX($K77:$O77,1,aux!$AL$1)>0,(O77/INDEX($K77:$O77,1,aux!$AL$1))^(1/($O$3-INDEX($K$3:$O$3,1,aux!$AL$1)))-1,"n.d.") -> n.d. | AE77: =IF(INDEX($K77:$O77,1,aux!$AL$1)>0,(O77-INDEX($K77:$O77,1,aux!$AL$1))/INDEX($K77:$O77,1,aux!$AL$1),"n.d.") -> n.d. | AX77: 09
A78: 0902 | B78: Chá | C78: 0 | D78: 0 | E78: 0 | F78: 2209 | G78: 0 | H78: 441.8 | I78: 0.1796080982 | J78: 0.04826410889 | K78: 0 | L78: 0 | M78: 0 | N78: 0 | O78: 0 | P78: 0 | Q78: 0 | R78: 0 | S78: -441.8 | U78: =G78-INDEX($C78:$G78,1,aux!$AL$1) -> 0 | V78: 0 | W78: 0 | X78: =+IF(INDEX($C78:$G78,1,aux!$AL$1)>0,(G78/INDEX($C78:$G78,1,aux!$AL$1))^(1/($G$3-INDEX($C$3:$G$3,1,aux!$AL$1)))-1,"n.d.") -> n.d. | Y78: =IF(INDEX($C78:$G78,1,aux!$AL$1)>0,(G78-INDEX($C78:$G78,1,aux!$AL$1))/INDEX($C78:$G78,1,aux!$AL$1),"n.d.") -> n.d. | AA78: =O78-INDEX($K78:$O78,1,aux!$AL$1) -> 0 | AB78: 0 | AC78: 0 | AD78: =+IF(INDEX($K78:$O78,1,aux!$AL$1)>0,(O78/INDEX($K78:$O78,1,aux!$AL$1))^(1/($O$3-INDEX($K$3:$O$3,1,aux!$AL$1)))-1,"n.d.") -> n.d. | AE78: =IF(INDEX($K78:$O78,1,aux!$AL$1)>0,(O78-INDEX($K78:$O78,1,aux!$AL$1))/INDEX($K78:$O78,1,aux!$AL$1),"n.d.") -> n.d. | AX78: 09
A79: 0903 | B79: Mate | C79: 0 | D79: 0 | E79: 0 | F79: 0 | G79: 0 | H79: 0 | I79: 0 | J79: 0 | K79: 0 | L79: 0 | M79: 0 | N79: 0 | O79: 0 | P79: 0 | Q79: 0 | R79: 0 | S79: 0 | U79: =G79-INDEX($C79:$G79,1,aux!$AL$1) -> 0 | V79: 0 | W79: 0 | X79: =+IF(INDEX($C79:$G79,1,aux!$AL$1)>0,(G79/INDEX($C79:$G79,1,aux!$AL$1))^(1/($G$3-INDEX($C$3:$G$3,1,aux!$AL$1)))-1,"n.d.") -> n.d. | Y79: =IF(INDEX($C79:$G79,1,aux!$AL$1)>0,(G79-INDEX($C79:$G79,1,aux!$AL$1))/INDEX($C79:$G79,1,aux!$AL$1),"n.d.") -> n.d. | AA79: =O79-INDEX($K79:$O79,1,aux!$AL$1) -> 0 | AB79: 0 | AC79: 0 | AD79: =+IF(INDEX($K79:$O79,1,aux!$AL$1)>0,(O79/INDEX($K79:$O79,1,aux!$AL$1))^(1/($O$3-INDEX($K$3:$O$3,1,aux!$AL$1)))-1,"n.d.") -> n.d. | AE79: =IF(INDEX($K79:$O79,1,aux!$AL$1)>0,(O79-INDEX($K79:$O79,1,aux!$AL$1))/INDEX($K79:$O79,1,aux!$AL$1),"n.d.") -> n.d. | AX79: 09
A80: 0904 | B80: Pimenta | C80: 0 | D80: 0 | E80: 0 | F80: 1531 | G80: 0 | H80: 306.2 | I80: 0.1244816652 | J80: 0.03345058883 | K80: 0 | L80: 0 | M80: 0 | N80: 0 | O80: 0 | P80: 0 | Q80: 0 | R80: 0 | S80: -306.2 | U80: =G80-INDEX($C80:$G80,1,aux!$AL$1) -> 0 | V80: 0 | W80: 0 | X80: =+IF(INDEX($C80:$G80,1,aux!$AL$1)>0,(G80/INDEX($C80:$G80,1,aux!$AL$1))^(1/($G$3-INDEX($C$3:$G$3,1,aux!$AL$1)))-1,"n.d.") -> n.d. | Y80: =IF(INDEX($C80:$G80,1,aux!$AL$1)>0,(G80-INDEX($C80:$G80,1,aux!$AL$1))/INDEX($C80:$G80,1,aux!$AL$1),"n.d.") -> n.d. | AA80: =O80-INDEX($K80:$O80,1,aux!$AL$1) -> 0 | AB80: 0 | AC80: 0 | AD80: =+IF(INDEX($K80:$O80,1,aux!$AL$1)>0,(O80/INDEX($K80:$O80,1,aux!$AL$1))^(1/($O$3-INDEX($K$3:$O$3,1,aux!$AL$1)))-1,"n.d.") -> n.d. | AE80: =IF(INDEX($K80:$O80,1,aux!$AL$1)>0,(O80-INDEX($K80:$O80,1,aux!$AL$1))/INDEX($K80:$O80,1,aux!$AL$1),"n.d.") -> n.d. | AX80: 09
A81: 0905 | B81: Baunilha | C81: 0 | D81: 0 | E81: 0 | F81: 0 | G81: 0 | H81: 0 | I81: 0 | J81: 0 | K81: 0 | L81: 0 | M81: 0 | N81: 0 | O81: 0 | P81: 0 | Q81: 0 | R81: 0 | S81: 0 | U81: =G81-INDEX($C81:$G81,1,aux!$AL$1) -> 0 | V81: 0 | W81: 0 | X81: =+IF(INDEX($C81:$G81,1,aux!$AL$1)>0,(G81/INDEX($C81:$G81,1,aux!$AL$1))^(1/($G$3-INDEX($C$3:$G$3,1,aux!$AL$1)))-1,"n.d.") -> n.d. | Y81: =IF(INDEX($C81:$G81,1,aux!$AL$1)>0,(G81-INDEX($C81:$G81,1,aux!$AL$1))/INDEX($C81:$G81,1,aux!$AL$1),"n.d.") -> n.d. | AA81: =O81-INDEX($K81:$O81,1,aux!$AL$1) -> 0 | AB81: 0 | AC81: 0 | AD81: =+IF(INDEX($K81:$O81,1,aux!$AL$1)>0,(O81/INDEX($K81:$O81,1,aux!$AL$1))^(1/($O$3-INDEX($K$3:$O$3,1,aux!$AL$1)))-1,"n.d.") -> n.d. | AE81: =IF(INDEX($K81:$O81,1,aux!$AL$1)>0,(O81-INDEX($K81:$O81,1,aux!$AL$1))/INDEX($K81:$O81,1,aux!$AL$1),"n.d.") -> n.d. | AX81: 09
A82: 0906 | B82: Canela | C82: 0 | D82: 0 | E82: 0 | F82: 0 | G82: 0 | H82: 0 | I82: 0 | J82: 0 | K82: 0 | L82: 0 | M82: 0 | N82: 0 | O82: 0 | P82: 0 | Q82: 0 | R82: 0 | S82: 0 | U82: =G82-INDEX($C82:$G82,1,aux!$AL$1) -> 0 | V82: 0 | W82: 0 | X82: =+IF(INDEX($C82:$G82,1,aux!$AL$1)>0,(G82/INDEX($C82:$G82,1,aux!$AL$1))^(1/($G$3-INDEX($C$3:$G$3,1,aux!$AL$1)))-1,"n.d.") -> n.d. | Y82: =IF(INDEX($C82:$G82,1,aux!$AL$1)>0,(G82-INDEX($C82:$G82,1,aux!$AL$1))/INDEX($C82:$G82,1,aux!$AL$1),"n.d.") -> n.d. | AA82: =O82-INDEX($K82:$O82,1,aux!$AL$1) -> 0 | AB82: 0 | AC82: 0 | AD82: =+IF(INDEX($K82:$O82,1,aux!$AL$1)>0,(O82/INDEX($K82:$O82,1,aux!$AL$1))^(1/($O$3-INDEX($K$3:$O$3,1,aux!$AL$1)))-1,"n.d.") -> n.d. | AE82: =IF(INDEX($K82:$O82,1,aux!$AL$1)>0,(O82-INDEX($K82:$O82,1,aux!$AL$1))/INDEX($K82:$O82,1,aux!$AL$1),"n.d.") -> n.d. | AX82: 09
A83: 0907 | B83: Cravo-da-índia | C83: 0 | D83: 0 | E83: 0 | F83: 0 | G83: 0 | H83: 0 | I83: 0 | J83: 0 | K83: 0 | L83: 0 | M83: 0 | N83: 0 | O83: 0 | P83: 0 | Q83: 0 | R83: 0 | S83: 0 | U83: =G83-INDEX($C83:$G83,1,aux!$AL$1) -> 0 | V83: 0 | W83: 0 | X83: =+IF(INDEX($C83:$G83,1,aux!$AL$1)>0,(G83/INDEX($C83:$G83,1,aux!$AL$1))^(1/($G$3-INDEX($C$3:$G$3,1,aux!$AL$1)))-1,"n.d.") -> n.d. | Y83: =IF(INDEX($C83:$G83,1,aux!$AL$1)>0,(G83-INDEX($C83:$G83,1,aux!$AL$1))/INDEX($C83:$G83,1,aux!$AL$1),"n.d.") -> n.d. | AA83: =O83-INDEX($K83:$O83,1,aux!$AL$1) -> 0 | AB83: 0 | AC83: 0 | AD83: =+IF(INDEX($K83:$O83,1,aux!$AL$1)>0,(O83/INDEX($K83:$O83,1,aux!$AL$1))^(1/($O$3-INDEX($K$3:$O$3,1,aux!$AL$1)))-1,"n.d.") -> n.d. | AE83: =IF(INDEX($K83:$O83,1,aux!$AL$1)>0,(O83-INDEX($K83:$O83,1,aux!$AL$1))/INDEX($K83:$O83,1,aux!$AL$1),"n.d.") -> n.d. | AX83: 09
A84: 0908 | B84: Noz-moscada, etc. | C84: 0 | D84: 0 | E84: 0 | F84: 0 | G84: 0 | H84: 0 | I84: 0 | J84: 0 | K84: 0 | L84: 0 | M84: 0 | N84: 0 | O84: 0 | P84: 0 | Q84: 0 | R84: 0 | S84: 0 | U84: =G84-INDEX($C84:$G84,1,aux!$AL$1) -> 0 | V84: 0 | W84: 0 | X84: =+IF(INDEX($C84:$G84,1,aux!$AL$1)>0,(G84/INDEX($C84:$G84,1,aux!$AL$1))^(1/($G$3-INDEX($C$3:$G$3,1,aux!$AL$1)))-1,"n.d.") -> n.d. | Y84: =IF(INDEX($C84:$G84,1,aux!$AL$1)>0,(G84-INDEX($C84:$G84,1,aux!$AL$1))/INDEX($C84:$G84,1,aux!$AL$1),"n.d.") -> n.d. | AA84: =O84-INDEX($K84:$O84,1,aux!$AL$1) -> 0 | AB84: 0 | AC84: 0 | AD84: =+IF(INDEX($K84:$O84,1,aux!$AL$1)>0,(O84/INDEX($K84:$O84,1,aux!$AL$1))^(1/($O$3-INDEX($K$3:$O$3,1,aux!$AL$1)))-1,"n.d.") -> n.d. | AE84: =IF(INDEX($K84:$O84,1,aux!$AL$1)>0,(O84-INDEX($K84:$O84,1,aux!$AL$1))/INDEX($K84:$O84,1,aux!$AL$1),"n.d.") -> n.d. | AX84: 09
A85: 0909 | B85: Sementes de anis, funcho, etc. | C85: 0 | D85: 0 | E85: 0 | F85: 0 | G85: 0 | H85: 0 | I85: 0 | J85: 0 | K85: 0 | L85: 0 | M85: 0 | N85: 0 | O85: 0 | P85: 0 | Q85: 0 | R85: 0 | S85: 0 | U85: =G85-INDEX($C85:$G85,1,aux!$AL$1) -> 0 | V85: 0 | W85: 0 | X85: =+IF(INDEX($C85:$G85,1,aux!$AL$1)>0,(G85/INDEX($C85:$G85,1,aux!$AL$1))^(1/($G$3-INDEX($C$3:$G$3,1,aux!$AL$1)))-1,"n.d.") -> n.d. | Y85: =IF(INDEX($C85:$G85,1,aux!$AL$1)>0,(G85-INDEX($C85:$G85,1,aux!$AL$1))/INDEX($C85:$G85,1,aux!$AL$1),"n.d.") -> n.d. | AA85: =O85-INDEX($K85:$O85,1,aux!$AL$1) -> 0 | AB85: 0 | AC85: 0 | AD85: =+IF(INDEX($K85:$O85,1,aux!$AL$1)>0,(O85/INDEX($K85:$O85,1,aux!$AL$1))^(1/($O$3-INDEX($K$3:$O$3,1,aux!$AL$1)))-1,"n.d.") -> n.d. | AE85: =IF(INDEX($K85:$O85,1,aux!$AL$1)>0,(O85-INDEX($K85:$O85,1,aux!$AL$1))/INDEX($K85:$O85,1,aux!$AL$1),"n.d.") -> n.d. | AX85: 09
A86: 0910 | B86: Gengibre, açafrão, tomilho, louro, etc. | C86: 0 | D86: 0 | E86: 0 | F86: 2457 | G86: 0 | H86: 491.4 | I86: 0.1997723392 | J86: 0.05368262361 | K86: 0 | L86: 0 | M86: 0 | N86: 0 | O86: 0 | P86: 0 | Q86: 0 | R86: 0 | S86: -491.4 | U86: =G86-INDEX($C86:$G86,1,aux!$AL$1) -> 0 | V86: 0 | W86: 0 | X86: =+IF(INDEX($C86:$G86,1,aux!$AL$1)>0,(G86/INDEX($C86:$G86,1,aux!$AL$1))^(1/($G$3-INDEX($C$3:$G$3,1,aux!$AL$1)))-1,"n.d.") -> n.d. | Y86: =IF(INDEX($C86:$G86,1,aux!$AL$1)>0,(G86-INDEX($C86:$G86,1,aux!$AL$1))/INDEX($C86:$G86,1,aux!$AL$1),"n.d.") -> n.d. | AA86: =O86-INDEX($K86:$O86,1,aux!$AL$1) -> 0 | AB86: 0 | AC86: 0 | AD86: =+IF(INDEX($K86:$O86,1,aux!$AL$1)>0,(O86/INDEX($K86:$O86,1,aux!$AL$1))^(1/($O$3-INDEX($K$3:$O$3,1,aux!$AL$1)))-1,"n.d.") -> n.d. | AE86: =IF(INDEX($K86:$O86,1,aux!$AL$1)>0,(O86-INDEX($K86:$O86,1,aux!$AL$1))/INDEX($K86:$O86,1,aux!$AL$1),"n.d.") -> n.d. | AX86: 09
A87: 09SS | B87: Café, chá, mate e especiarias | C87: 0 | D87: 0 | E87: 0 | F87: 0 | G87: 0 | H87: 0 | I87: 0 | J87: 0 | K87: 0 | L87: 0 | M87: 0 | N87: 0 | O87: 0 | P87: 0 | Q87: 0 | R87: 0 | S87: 0 | U87: =G87-INDEX($C87:$G87,1,aux!$AL$1) -> 0 | V87: 0 | W87: 0 | X87: =+IF(INDEX($C87:$G87,1,aux!$AL$1)>0,(G87/INDEX($C87:$G87,1,aux!$AL$1))^(1/($G$3-INDEX($C$3:$G$3,1,aux!$AL$1)))-1,"n.d.") -> n.d. | Y87: =IF(INDEX($C87:$G87,1,aux!$AL$1)>0,(G87-INDEX($C87:$G87,1,aux!$AL$1))/INDEX($C87:$G87,1,aux!$AL$1),"n.d.") -> n.d. | AA87: =O87-INDEX($K87:$O87,1,aux!$AL$1) -> 0 | AB87: 0 | AC87: 0 | AD87: =+IF(INDEX($K87:$O87,1,aux!$AL$1)>0,(O87/INDEX($K87:$O87,1,aux!$AL$1))^(1/($O$3-INDEX($K$3:$O$3,1,aux!$AL$1)))-1,"n.d.") -> n.d. | AE87: =IF(INDEX($K87:$O87,1,aux!$AL$1)>0,(O87-INDEX($K87:$O87,1,aux!$AL$1))/INDEX($K87:$O87,1,aux!$AL$1),"n.d.") -> n.d. | AX87: 09
A88: 1001 | B88: Trigo e mistura trigo/centeio | C88: 0 | D88: 0 | E88: 0 | F88: 0 | G88: 0 | H88: 0 | I88: 0 | J88: 0 | K88: 0 | L88: 0 | M88: 0 | N88: 0 | O88: 0 | P88: 0 | Q88: 0 | R88: 0 | S88: 0 | U88: =G88-INDEX($C88:$G88,1,aux!$AL$1) -> 0 | V88: 0 | W88: 0 | X88: =+IF(INDEX($C88:$G88,1,aux!$AL$1)>0,(G88/INDEX($C88:$G88,1,aux!$AL$1))^(1/($G$3-INDEX($C$3:$G$3,1,aux!$AL$1)))-1,"n.d.") -> n.d. | Y88: =IF(INDEX($C88:$G88,1,aux!$AL$1)>0,(G88-INDEX($C88:$G88,1,aux!$AL$1))/INDEX($C88:$G88,1,aux!$AL$1),"n.d.") -> n.d. | AA88: =O88-INDEX($K88:$O88,1,aux!$AL$1) -> 0 | AB88: 0 | AC88: 0 | AD88: =+IF(INDEX($K88:$O88,1,aux!$AL$1)>0,(O88/INDEX($K88:$O88,1,aux!$AL$1))^(1/($O$3-INDEX($K$3:$O$3,1,aux!$AL$1)))-1,"n.d.") -> n.d. | AE88: =IF(INDEX($K88:$O88,1,aux!$AL$1)>0,(O88-INDEX($K88:$O88,1,aux!$AL$1))/INDEX($K88:$O88,1,aux!$AL$1),"n.d.") -> n.d. | AX88: 10
A89: 1002 | B89: Centeio | C89: 0 | D89: 0 | E89: 0 | F89: 0 | G89: 0 | H89: 0 | I89: 0 | J89: 0 | K89: 0 | L89: 0 | M89: 0 | N89: 0 | O89: 0 | P89: 0 | Q89: 0 | R89: 0 | S89: 0 | U89: =G89-INDEX($C89:$G89,1,aux!$AL$1) -> 0 | V89: 0 | W89: 0 | X89: =+IF(INDEX($C89:$G89,1,aux!$AL$1)>0,(G89/INDEX($C89:$G89,1,aux!$AL$1))^(1/($G$3-INDEX($C$3:$G$3,1,aux!$AL$1)))-1,"n.d.") -> n.d. | Y89: =IF(INDEX($C89:$G89,1,aux!$AL$1)>0,(G89-INDEX($C89:$G89,1,aux!$AL$1))/INDEX($C89:$G89,1,aux!$AL$1),"n.d.") -> n.d. | AA89: =O89-INDEX($K89:$O89,1,aux!$AL$1) -> 0 | AB89: 0 | AC89: 0 | AD89: =+IF(INDEX($K89:$O89,1,aux!$AL$1)>0,(O89/INDEX($K89:$O89,1,aux!$AL$1))^(1/($O$3-INDEX($K$3:$O$3,1,aux!$AL$1)))-1,"n.d.") -> n.d. | AE89: =IF(INDEX($K89:$O89,1,aux!$AL$1)>0,(O89-INDEX($K89:$O89,1,aux!$AL$1))/INDEX($K89:$O89,1,aux!$AL$1),"n.d.") -> n.d. | AX89: 10
A90: 1003 | B90: Cevada | C90: 0 | D90: 0 | E90: 0 | F90: 0 | G90: 0 | H90: 0 | I90: 0 | J90: 0 | K90: 0 | L90: 0 | M90: 0 | N90: 0 | O90: 0 | P90: 0 | Q90: 0 | R90: 0 | S90: 0 | U90: =G90-INDEX($C90:$G90,1,aux!$AL$1) -> 0 | V90: 0 | W90: 0 | X90: =+IF(INDEX($C90:$G90,1,aux!$AL$1)>0,(G90/INDEX($C90:$G90,1,aux!$AL$1))^(1/($G$3-INDEX($C$3:$G$3,1,aux!$AL$1)))-1,"n.d.") -> n.d. | Y90: =IF(INDEX($C90:$G90,1,aux!$AL$1)>0,(G90-INDEX($C90:$G90,1,aux!$AL$1))/INDEX($C90:$G90,1,aux!$AL$1),"n.d.") -> n.d. | AA90: =O90-INDEX($K90:$O90,1,aux!$AL$1) -> 0 | AB90: 0 | AC90: 0 | AD90: =+IF(INDEX($K90:$O90,1,aux!$AL$1)>0,(O90/INDEX($K90:$O90,1,aux!$AL$1))^(1/($O$3-INDEX($K$3:$O$3,1,aux!$AL$1)))-1,"n.d.") -> n.d. | AE90: =IF(INDEX($K90:$O90,1,aux!$AL$1)>0,(O90-INDEX($K90:$O90,1,aux!$AL$1))/INDEX($K90:$O90,1,aux!$AL$1),"n.d.") -> n.d. | AX90: 10
A91: 1004 | B91: Aveia | C91: 0 | D91: 0 | E91: 0 | F91: 0 | G91: 0 | H91: 0 | I91: 0 | J91: 0 | K91: 0 | L91: 0 | M91: 0 | N91: 0 | O91: 0 | P91: 0 | Q91: 0 | R91: 0 | S91: 0 | U91: =G91-INDEX($C91:$G91,1,aux!$AL$1) -> 0 | V91: 0 | W91: 0 | X91: =+IF(INDEX($C91:$G91,1,aux!$AL$1)>0,(G91/INDEX($C91:$G91,1,aux!$AL$1))^(1/($G$3-INDEX($C$3:$G$3,1,aux!$AL$1)))-1,"n.d.") -> n.d. | Y91: =IF(INDEX($C91:$G91,1,aux!$AL$1)>0,(G91-INDEX($C91:$G91,1,aux!$AL$1))/INDEX($C91:$G91,1,aux!$AL$1),"n.d.") -> n.d. | AA91: =O91-INDEX($K91:$O91,1,aux!$AL$1) -> 0 | AB91: 0 | AC91: 0 | AD91: =+IF(INDEX($K91:$O91,1,aux!$AL$1)>0,(O91/INDEX($K91:$O91,1,aux!$AL$1))^(1/($O$3-INDEX($K$3:$O$3,1,aux!$AL$1)))-1,"n.d.") -> n.d. | AE91: =IF(INDEX($K91:$O91,1,aux!$AL$1)>0,(O91-INDEX($K91:$O91,1,aux!$AL$1))/INDEX($K91:$O91,1,aux!$AL$1),"n.d.") -> n.d. | AX91: 10
A92: 1005 | B92: Milho | C92: 0 | D92: 0 | E92: 0 | F92: 0 | G92: 0 | H92: 0 | I92: 0 | J92: 0 | K92: 0 | L92: 0 | M92: 0 | N92: 0 | O92: 0 | P92: 0 | Q92: 0 | R92: 0 | S92: 0 | U92: =G92-INDEX($C92:$G92,1,aux!$AL$1) -> 0 | V92: 0 | W92: 0 | X92: =+IF(INDEX($C92:$G92,1,aux!$AL$1)>0,(G92/INDEX($C92:$G92,1,aux!$AL$1))^(1/($G$3-INDEX($C$3:$G$3,1,aux!$AL$1)))-1,"n.d.") -> n.d. | Y92: =IF(INDEX($C92:$G92,1,aux!$AL$1)>0,(G92-INDEX($C92:$G92,1,aux!$AL$1))/INDEX($C92:$G92,1,aux!$AL$1),"n.d.") -> n.d. | AA92: =O92-INDEX($K92:$O92,1,aux!$AL$1) -> 0 | AB92: 0 | AC92: 0 | AD92: =+IF(INDEX($K92:$O92,1,aux!$AL$1)>0,(O92/INDEX($K92:$O92,1,aux!$AL$1))^(1/($O$3-INDEX($K$3:$O$3,1,aux!$AL$1)))-1,"n.d.") -> n.d. | AE92: =IF(INDEX($K92:$O92,1,aux!$AL$1)>0,(O92-INDEX($K92:$O92,1,aux!$AL$1))/INDEX($K92:$O92,1,aux!$AL$1),"n.d.") -> n.d. | AX92: 10
A93: 1006 | B93: Arroz | C93: 0 | D93: 0 | E93: 0 | F93: 0 | G93: 0 | H93: 0 | I93: 0 | J93: 0 | K93: 0 | L93: 0 | M93: 0 | N93: 0 | O93: 0 | P93: 0 | Q93: 0 | R93: 0 | S93: 0 | U93: =G93-INDEX($C93:$G93,1,aux!$AL$1) -> 0 | V93: 0 | W93: 0 | X93: =+IF(INDEX($C93:$G93,1,aux!$AL$1)>0,(G93/INDEX($C93:$G93,1,aux!$AL$1))^(1/($G$3-INDEX($C$3:$G$3,1,aux!$AL$1)))-1,"n.d.") -> n.d. | Y93: =IF(INDEX($C93:$G93,1,aux!$AL$1)>0,(G93-INDEX($C93:$G93,1,aux!$AL$1))/INDEX($C93:$G93,1,aux!$AL$1),"n.d.") -> n.d. | AA93: =O93-INDEX($K93:$O93,1,aux!$AL$1) -> 0 | AB93: 0 | AC93: 0 | AD93: =+IF(INDEX($K93:$O93,1,aux!$AL$1)>0,(O93/INDEX($K93:$O93,1,aux!$AL$1))^(1/($O$3-INDEX($K$3:$O$3,1,aux!$AL$1)))-1,"n.d.") -> n.d. | AE93: =IF(INDEX($K93:$O93,1,aux!$AL$1)>0,(O93-INDEX($K93:$O93,1,aux!$AL$1))/INDEX($K93:$O93,1,aux!$AL$1),"n.d.") -> n.d. | AX93: 10
A94: 1007 | B94: Sorgo de grão | C94: 0 | D94: 0 | E94: 0 | F94: 0 | G94: 0 | H94: 0 | I94: 0 | J94: 0 | K94: 0 | L94: 0 | M94: 0 | N94: 0 | O94: 0 | P94: 0 | Q94: 0 | R94: 0 | S94: 0 | U94: =G94-INDEX($C94:$G94,1,aux!$AL$1) -> 0 | V94: 0 | W94: 0 | X94: =+IF(INDEX($C94:$G94,1,aux!$AL$1)>0,(G94/INDEX($C94:$G94,1,aux!$AL$1))^(1/($G$3-INDEX($C$3:$G$3,1,aux!$AL$1)))-1,"n.d.") -> n.d. | Y94: =IF(INDEX($C94:$G94,1,aux!$AL$1)>0,(G94-INDEX($C94:$G94,1,aux!$AL$1))/INDEX($C94:$G94,1,aux!$AL$1),"n.d.") -> n.d. | AA94: =O94-INDEX($K94:$O94,1,aux!$AL$1) -> 0 | AB94: 0 | AC94: 0 | AD94: =+IF(INDEX($K94:$O94,1,aux!$AL$1)>0,(O94/INDEX($K94:$O94,1,aux!$AL$1))^(1/($O$3-INDEX($K$3:$O$3,1,aux!$AL$1)))-1,"n.d.") -> n.d. | AE94: =IF(INDEX($K94:$O94,1,aux!$AL$1)>0,(O94-INDEX($K94:$O94,1,aux!$AL$1))/INDEX($K94:$O94,1,aux!$AL$1),"n.d.") -> n.d. | AX94: 10
A95: 1008 | B95: Trigo mourisco, painço e outros cereais | C95: 0 | D95: 0 | E95: 0 | F95: 0 | G95: 0 | H95: 0 | I95: 0 | J95: 0 | K95: 0 | L95: 0 | M95: 0 | N95: 0 | O95: 0 | P95: 0 | Q95: 0 | R95: 0 | S95: 0 | U95: =G95-INDEX($C95:$G95,1,aux!$AL$1) -> 0 | V95: 0 | W95: 0 | X95: =+IF(INDEX($C95:$G95,1,aux!$AL$1)>0,(G95/INDEX($C95:$G95,1,aux!$AL$1))^(1/($G$3-INDEX($C$3:$G$3,1,aux!$AL$1)))-1,"n.d.") -> n.d. | Y95: =IF(INDEX($C95:$G95,1,aux!$AL$1)>0,(G95-INDEX($C95:$G95,1,aux!$AL$1))/INDEX($C95:$G95,1,aux!$AL$1),"n.d.") -> n.d. | AA95: =O95-INDEX($K95:$O95,1,aux!$AL$1) -> 0 | AB95: 0 | AC95: 0 | AD95: =+IF(INDEX($K95:$O95,1,aux!$AL$1)>0,(O95/INDEX($K95:$O95,1,aux!$AL$1))^(1/($O$3-INDEX($K$3:$O$3,1,aux!$AL$1)))-1,"n.d.") -> n.d. | AE95: =IF(INDEX($K95:$O95,1,aux!$AL$1)>0,(O95-INDEX($K95:$O95,1,aux!$AL$1))/INDEX($K95:$O95,1,aux!$AL$1),"n.d.") -> n.d. | AX95: 10
A96: 10SS | B96: Cereais | C96: 0 | D96: 0 | E96: 0 | F96: 0 | G96: 0 | H96: 0 | I96: 0 | J96: 0 | K96: 0 | L96: 0 | M96: 0 | N96: 0 | O96: 0 | P96: 0 | Q96: 0 | R96: 0 | S96: 0 | U96: =G96-INDEX($C96:$G96,1,aux!$AL$1) -> 0 | V96: 0 | W96: 0 | X96: =+IF(INDEX($C96:$G96,1,aux!$AL$1)>0,(G96/INDEX($C96:$G96,1,aux!$AL$1))^(1/($G$3-INDEX($C$3:$G$3,1,aux!$AL$1)))-1,"n.d.") -> n.d. | Y96: =IF(INDEX($C96:$G96,1,aux!$AL$1)>0,(G96-INDEX($C96:$G96,1,aux!$AL$1))/INDEX($C96:$G96,1,aux!$AL$1),"n.d.") -> n.d. | AA96: =O96-INDEX($K96:$O96,1,aux!$AL$1) -> 0 | AB96: 0 | AC96: 0 | AD96: =+IF(INDEX($K96:$O96,1,aux!$AL$1)>0,(O96/INDEX($K96:$O96,1,aux!$AL$1))^(1/($O$3-INDEX($K$3:$O$3,1,aux!$AL$1)))-1,"n.d.") -> n.d. | AE96: =IF(INDEX($K96:$O96,1,aux!$AL$1)>0,(O96-INDEX($K96:$O96,1,aux!$AL$1))/INDEX($K96:$O96,1,aux!$AL$1),"n.d.") -> n.d. | AX96: 10
A97: 1101 | B97: Farinhas de trigo ou trigo/centeio | C97: 0 | D97: 0 | E97: 0 | F97: 300 | G97: 0 | H97: 60 | I97: 0.02439222701 | J97: 0.006554654897 | K97: 0 | L97: 0 | M97: 0 | N97: 0 | O97: 0 | P97: 0 | Q97: 0 | R97: 0 | S97: -60 | U97: =G97-INDEX($C97:$G97,1,aux!$AL$1) -> 0 | V97: 0 | W97: 0 | X97: =+IF(INDEX($C97:$G97,1,aux!$AL$1)>0,(G97/INDEX($C97:$G97,1,aux!$AL$1))^(1/($G$3-INDEX($C$3:$G$3,1,aux!$AL$1)))-1,"n.d.") -> n.d. | Y97: =IF(INDEX($C97:$G97,1,aux!$AL$1)>0,(G97-INDEX($C97:$G97,1,aux!$AL$1))/INDEX($C97:$G97,1,aux!$AL$1),"n.d.") -> n.d. | AA97: =O97-INDEX($K97:$O97,1,aux!$AL$1) -> 0 | AB97: 0 | AC97: 0 | AD97: =+IF(INDEX($K97:$O97,1,aux!$AL$1)>0,(O97/INDEX($K97:$O97,1,aux!$AL$1))^(1/($O$3-INDEX($K$3:$O$3,1,aux!$AL$1)))-1,"n.d.") -> n.d. | AE97: =IF(INDEX($K97:$O97,1,aux!$AL$1)>0,(O97-INDEX($K97:$O97,1,aux!$AL$1))/INDEX($K97:$O97,1,aux!$AL$1),"n.d.") -> n.d. | AX97: 11
A98: 1102 | B98: Outras farinhas de cereais | C98: 0 | D98: 0 | E98: 0 | F98: 561 | G98: 0 | H98: 112.2 | I98: 0.04561346451 | J98: 0.01225720466 | K98: 0 | L98: 0 | M98: 0 | N98: 0 | O98: 0 | P98: 0 | Q98: 0 | R98: 0 | S98: -112.2 | U98: =G98-INDEX($C98:$G98,1,aux!$AL$1) -> 0 | V98: 0 | W98: 0 | X98: =+IF(INDEX($C98:$G98,1,aux!$AL$1)>0,(G98/INDEX($C98:$G98,1,aux!$AL$1))^(1/($G$3-INDEX($C$3:$G$3,1,aux!$AL$1)))-1,"n.d.") -> n.d. | Y98: =IF(INDEX($C98:$G98,1,aux!$AL$1)>0,(G98-INDEX($C98:$G98,1,aux!$AL$1))/INDEX($C98:$G98,1,aux!$AL$1),"n.d.") -> n.d. | AA98: =O98-INDEX($K98:$O98,1,aux!$AL$1) -> 0 | AB98: 0 | AC98: 0 | AD98: =+IF(INDEX($K98:$O98,1,aux!$AL$1)>0,(O98/INDEX($K98:$O98,1,aux!$AL$1))^(1/($O$3-INDEX($K$3:$O$3,1,aux!$AL$1)))-1,"n.d.") -> n.d. | AE98: =IF(INDEX($K98:$O98,1,aux!$AL$1)>0,(O98-INDEX($K98:$O98,1,aux!$AL$1))/INDEX($K98:$O98,1,aux!$AL$1),"n.d.") -> n.d. | AX98: 11
A99: 1103 | B99: Grumos, sêmolas, etc. de cereais | C99: 0 | D99: 0 | E99: 0 | F99: 0 | G99: 0 | H99: 0 | I99: 0 | J99: 0 | K99: 0 | L99: 0 | M99: 0 | N99: 0 | O99: 0 | P99: 0 | Q99: 0 | R99: 0 | S99: 0 | U99: =G99-INDEX($C99:$G99,1,aux!$AL$1) -> 0 | V99: 0 | W99: 0 | X99: =+IF(INDEX($C99:$G99,1,aux!$AL$1)>0,(G99/INDEX($C99:$G99,1,aux!$AL$1))^(1/($G$3-INDEX($C$3:$G$3,1,aux!$AL$1)))-1,"n.d.") -> n.d. | Y99: =IF(INDEX($C99:$G99,1,aux!$AL$1)>0,(G99-INDEX($C99:$G99,1,aux!$AL$1))/INDEX($C99:$G99,1,aux!$AL$1),"n.d.") -> n.d. | AA99: =O99-INDEX($K99:$O99,1,aux!$AL$1) -> 0 | AB99: 0 | AC99: 0 | AD99: =+IF(INDEX($K99:$O99,1,aux!$AL$1)>0,(O99/INDEX($K99:$O99,1,aux!$AL$1))^(1/($O$3-INDEX($K$3:$O$3,1,aux!$AL$1)))-1,"n.d.") -> n.d. | AE99: =IF(INDEX($K99:$O99,1,aux!$AL$1)>0,(O99-INDEX($K99:$O99,1,aux!$AL$1))/INDEX($K99:$O99,1,aux!$AL$1),"n.d.") -> n.d. | AX99: 11
A100: 1104 | B100: Grãos de cereais processados | C100: 0 | D100: 0 | E100: 0 | F100: 0 | G100: 0 | H100: 0 | I100: 0 | J100: 0 | K100: 0 | L100: 0 | M100: 0 | N100: 0 | O100: 0 | P100: 0 | Q100: 0 | R100: 0 | S100: 0 | U100: =G100-INDEX($C100:$G100,1,aux!$AL$1) -> 0 | V100: =IF($U$236<>0,U100/$U$236, "n.d.") -> 0 | W100: =IF($U$320<>0,U100/$U$320, "n.d.") -> 0 | X100: =+IF(INDEX($C100:$G100,1,aux!$AL$1)>0,(G100/INDEX($C100:$G100,1,aux!$AL$1))^(1/($G$3-INDEX($C$3:$G$3,1,aux!$AL$1)))-1,"n.d.") -> n.d. | Y100: =IF(INDEX($C100:$G100,1,aux!$AL$1)>0,(G100-INDEX($C100:$G100,1,aux!$AL$1))/INDEX($C100:$G100,1,aux!$AL$1),"n.d.") -> n.d. | AA100: =O100-INDEX($K100:$O100,1,aux!$AL$1) -> 0 | AB100: =IF($AA$236<>0,AA100/$AA$236, "n.d.") -> 0 | AC100: =IF($AA$320<>0,AA100/$AA$320, "n.d.") -> 0 | AD100: =+IF(INDEX($K100:$O100,1,aux!$AL$1)>0,(O100/INDEX($K100:$O100,1,aux!$AL$1))^(1/($O$3-INDEX($K$3:$O$3,1,aux!$AL$1)))-1,"n.d.") -> n.d. | AE100: =IF(INDEX($K100:$O100,1,aux!$AL$1)>0,(O100-INDEX($K100:$O100,1,aux!$AL$1))/INDEX($K100:$O100,1,aux!$AL$1),"n.d.") -> n.d. | AX100: 11
A101: 1105 | B101: Farinha, sêmola, etc. de batata | C101: 0 | D101: 0 | E101: 0 | F101: 0 | G101: 0 | H101: 0 | I101: 0 | J101: 0 | K101: 0 | L101: 0 | M101: 0 | N101: 0 | O101: 0 | P101: 0 | Q101: 0 | R101: 0 | S101: 0 | U101: =G101-INDEX($C101:$G101,1,aux!$AL$1) -> 0 | V101: 0 | W101: 0 | X101: =+IF(INDEX($C101:$G101,1,aux!$AL$1)>0,(G101/INDEX($C101:$G101,1,aux!$AL$1))^(1/($G$3-INDEX($C$3:$G$3,1,aux!$AL$1)))-1,"n.d.") -> n.d. | Y101: =IF(INDEX($C101:$G101,1,aux!$AL$1)>0,(G101-INDEX($C101:$G101,1,aux!$AL$1))/INDEX($C101:$G101,1,aux!$AL$1),"n.d.") -> n.d. | AA101: =O101-INDEX($K101:$O101,1,aux!$AL$1) -> 0 | AB101: 0 | AC101: 0 | AD101: =+IF(INDEX($K101:$O101,1,aux!$AL$1)>0,(O101/INDEX($K101:$O101,1,aux!$AL$1))^(1/($O$3-INDEX($K$3:$O$3,1,aux!$AL$1)))-1,"n.d.") -> n.d. | AE101: =IF(INDEX($K101:$O101,1,aux!$AL$1)>0,(O101-INDEX($K101:$O101,1,aux!$AL$1))/INDEX($K101:$O101,1,aux!$AL$1),"n.d.") -> n.d. | AX101: 11
A102: 1106 | B102: Farinhas, etc. de leguminosas e outros tubérculos | C102: 0 | D102: 0 | E102: 0 | F102: 0 | G102: 0 | H102: 0 | I102: 0 | J102: 0 | K102: 0 | L102: 0 | M102: 0 | N102: 0 | O102: 0 | P102: 0 | Q102: 0 | R102: 0 | S102: 0 | U102: =G102-INDEX($C102:$G102,1,aux!$AL$1) -> 0 | V102: 0 | W102: 0 | X102: =+IF(INDEX($C102:$G102,1,aux!$AL$1)>0,(G102/INDEX($C102:$G102,1,aux!$AL$1))^(1/($G$3-INDEX($C$3:$G$3,1,aux!$AL$1)))-1,"n.d.") -> n.d. | Y102: =IF(INDEX($C102:$G102,1,aux!$AL$1)>0,(G102-INDEX($C102:$G102,1,aux!$AL$1))/INDEX($C102:$G102,1,aux!$AL$1),"n.d.") -> n.d. | AA102: =O102-INDEX($K102:$O102,1,aux!$AL$1) -> 0 | AB102: 0 | AC102: 0 | AD102: =+IF(INDEX($K102:$O102,1,aux!$AL$1)>0,(O102/INDEX($K102:$O102,1,aux!$AL$1))^(1/($O$3-INDEX($K$3:$O$3,1,aux!$AL$1)))-1,"n.d.") -> n.d. | AE102: =IF(INDEX($K102:$O102,1,aux!$AL$1)>0,(O102-INDEX($K102:$O102,1,aux!$AL$1))/INDEX($K102:$O102,1,aux!$AL$1),"n.d.") -> n.d. | AX102: 11
A103: 1107 | B103: Malte, mesmo torrado | C103: 0 | D103: 0 | E103: 0 | F103: 0 | G103: 0 | H103: 0 | I103: 0 | J103: 0 | K103: 0 | L103: 0 | M103: 0 | N103: 0 | O103: 0 | P103: 0 | Q103: 0 | R103: 0 | S103: 0 | U103: =G103-INDEX($C103:$G103,1,aux!$AL$1) -> 0 | V103: 0 | W103: 0 | X103: =+IF(INDEX($C103:$G103,1,aux!$AL$1)>0,(G103/INDEX($C103:$G103,1,aux!$AL$1))^(1/($G$3-INDEX($C$3:$G$3,1,aux!$AL$1)))-1,"n.d.") -> n.d. | Y103: =IF(INDEX($C103:$G103,1,aux!$AL$1)>0,(G103-INDEX($C103:$G103,1,aux!$AL$1))/INDEX($C103:$G103,1,aux!$AL$1),"n.d.") -> n.d. | AA103: =O103-INDEX($K103:$O103,1,aux!$AL$1) -> 0 | AB103: 0 | AC103: 0 | AD103: =+IF(INDEX($K103:$O103,1,aux!$AL$1)>0,(O103/INDEX($K103:$O103,1,aux!$AL$1))^(1/($O$3-INDEX($K$3:$O$3,1,aux!$AL$1)))-1,"n.d.") -> n.d. | AE103: =IF(INDEX($K103:$O103,1,aux!$AL$1)>0,(O103-INDEX($K103:$O103,1,aux!$AL$1))/INDEX($K103:$O103,1,aux!$AL$1),"n.d.") -> n.d. | AX103: =+LEFT(A103,2) -> 11
A104: 1108 | B104: Amidos e féculas; inulina | C104: 0 | D104: 0 | E104: 0 | F104: 0 | G104: 0 | H104: 0 | I104: 0 | J104: 0 | K104: 0 | L104: 0 | M104: 0 | N104: 0 | O104: 0 | P104: 0 | Q104: 0 | R104: 0 | S104: 0 | U104: =G104-INDEX($C104:$G104,1,aux!$AL$1) -> 0 | V104: 0 | W104: 0 | X104: =+IF(INDEX($C104:$G104,1,aux!$AL$1)>0,(G104/INDEX($C104:$G104,1,aux!$AL$1))^(1/($G$3-INDEX($C$3:$G$3,1,aux!$AL$1)))-1,"n.d.") -> n.d. | Y104: =IF(INDEX($C104:$G104,1,aux!$AL$1)>0,(G104-INDEX($C104:$G104,1,aux!$AL$1))/INDEX($C104:$G104,1,aux!$AL$1),"n.d.") -> n.d. | AA104: =O104-INDEX($K104:$O104,1,aux!$AL$1) -> 0 | AB104: 0 | AC104: 0 | AD104: =+IF(INDEX($K104:$O104,1,aux!$AL$1)>0,(O104/INDEX($K104:$O104,1,aux!$AL$1))^(1/($O$3-INDEX($K$3:$O$3,1,aux!$AL$1)))-1,"n.d.") -> n.d. | AE104: =IF(INDEX($K104:$O104,1,aux!$AL$1)>0,(O104-INDEX($K104:$O104,1,aux!$AL$1))/INDEX($K104:$O104,1,aux!$AL$1),"n.d.") -> n.d. | AX104: 11
A105: 1109 | B105: Glúten de trigo, mesmo seco | C105: 0 | D105: 0 | E105: 0 | F105: 0 | G105: 0 | H105: 0 | I105: 0 | J105: 0 | K105: 0 | L105: 0 | M105: 0 | N105: 0 | O105: 0 | P105: 0 | Q105: 0 | R105: 0 | S105: 0 | U105: =G105-INDEX($C105:$G105,1,aux!$AL$1) -> 0 | V105: 0 | W105: 0 | X105: =+IF(INDEX($C105:$G105,1,aux!$AL$1)>0,(G105/INDEX($C105:$G105,1,aux!$AL$1))^(1/($G$3-INDEX($C$3:$G$3,1,aux!$AL$1)))-1,"n.d.") -> n.d. | Y105: =IF(INDEX($C105:$G105,1,aux!$AL$1)>0,(G105-INDEX($C105:$G105,1,aux!$AL$1))/INDEX($C105:$G105,1,aux!$AL$1),"n.d.") -> n.d. | AA105: =O105-INDEX($K105:$O105,1,aux!$AL$1) -> 0 | AB105: 0 | AC105: 0 | AD105: =+IF(INDEX($K105:$O105,1,aux!$AL$1)>0,(O105/INDEX($K105:$O105,1,aux!$AL$1))^(1/($O$3-INDEX($K$3:$O$3,1,aux!$AL$1)))-1,"n.d.") -> n.d. | AE105: =IF(INDEX($K105:$O105,1,aux!$AL$1)>0,(O105-INDEX($K105:$O105,1,aux!$AL$1))/INDEX($K105:$O105,1,aux!$AL$1),"n.d.") -> n.d. | AX105: 11
A106: 11SS | B106: Produtos da indústria de moagem e outros | C106: 0 | D106: 0 | E106: 0 | F106: 0 | G106: 0 | H106: 0 | I106: 0 | J106: 0 | K106: 0 | L106: 0 | M106: 0 | N106: 0 | O106: 0 | P106: 0 | Q106: 0 | R106: 0 | S106: 0 | U106: =G106-INDEX($C106:$G106,1,aux!$AL$1) -> 0 | V106: 0 | W106: 0 | X106: =+IF(INDEX($C106:$G106,1,aux!$AL$1)>0,(G106/INDEX($C106:$G106,1,aux!$AL$1))^(1/($G$3-INDEX($C$3:$G$3,1,aux!$AL$1)))-1,"n.d.") -> n.d. | Y106: =IF(INDEX($C106:$G106,1,aux!$AL$1)>0,(G106-INDEX($C106:$G106,1,aux!$AL$1))/INDEX($C106:$G106,1,aux!$AL$1),"n.d.") -> n.d. | AA106: =O106-INDEX($K106:$O106,1,aux!$AL$1) -> 0 | AB106: 0 | AC106: 0 | AD106: =+IF(INDEX($K106:$O106,1,aux!$AL$1)>0,(O106/INDEX($K106:$O106,1,aux!$AL$1))^(1/($O$3-INDEX($K$3:$O$3,1,aux!$AL$1)))-1,"n.d.") -> n.d. | AE106: =IF(INDEX($K106:$O106,1,aux!$AL$1)>0,(O106-INDEX($K106:$O106,1,aux!$AL$1))/INDEX($K106:$O106,1,aux!$AL$1),"n.d.") -> n.d. | AX106: 11
A107: 1201 | B107: Soja, mesmo triturada | C107: 0 | D107: 0 | E107: 0 | F107: 316 | G107: 0 | H107: 63.2 | I107: 0.02569314578 | J107: 0.006904236492 | K107: 0 | L107: 0 | M107: 0 | N107: 0 | O107: 0 | P107: 0 | Q107: 0 | R107: 0 | S107: -63.2 | U107: =G107-INDEX($C107:$G107,1,aux!$AL$1) -> 0 | V107: 0 | W107: 0 | X107: =+IF(INDEX($C107:$G107,1,aux!$AL$1)>0,(G107/INDEX($C107:$G107,1,aux!$AL$1))^(1/($G$3-INDEX($C$3:$G$3,1,aux!$AL$1)))-1,"n.d.") -> n.d. | Y107: =IF(INDEX($C107:$G107,1,aux!$AL$1)>0,(G107-INDEX($C107:$G107,1,aux!$AL$1))/INDEX($C107:$G107,1,aux!$AL$1),"n.d.") -> n.d. | AA107: =O107-INDEX($K107:$O107,1,aux!$AL$1) -> 0 | AB107: 0 | AC107: 0 | AD107: =+IF(INDEX($K107:$O107,1,aux!$AL$1)>0,(O107/INDEX($K107:$O107,1,aux!$AL$1))^(1/($O$3-INDEX($K$3:$O$3,1,aux!$AL$1)))-1,"n.d.") -> n.d. | AE107: =IF(INDEX($K107:$O107,1,aux!$AL$1)>0,(O107-INDEX($K107:$O107,1,aux!$AL$1))/INDEX($K107:$O107,1,aux!$AL$1),"n.d.") -> n.d. | AX107: 12
A108: 1202 | B108: Amendoins não torrados | C108: 0 | D108: 0 | E108: 0 | F108: 0 | G108: 0 | H108: 0 | I108: 0 | J108: 0 | K108: 0 | L108: 0 | M108: 0 | N108: 0 | O108: 0 | P108: 0 | Q108: 0 | R108: 0 | S108: 0 | U108: =G108-INDEX($C108:$G108,1,aux!$AL$1) -> 0 | V108: 0 | W108: 0 | X108: =+IF(INDEX($C108:$G108,1,aux!$AL$1)>0,(G108/INDEX($C108:$G108,1,aux!$AL$1))^(1/($G$3-INDEX($C$3:$G$3,1,aux!$AL$1)))-1,"n.d.") -> n.d. | Y108: =IF(INDEX($C108:$G108,1,aux!$AL$1)>0,(G108-INDEX($C108:$G108,1,aux!$AL$1))/INDEX($C108:$G108,1,aux!$AL$1),"n.d.") -> n.d. | AA108: =O108-INDEX($K108:$O108,1,aux!$AL$1) -> 0 | AB108: 0 | AC108: 0 | AD108: =+IF(INDEX($K108:$O108,1,aux!$AL$1)>0,(O108/INDEX($K108:$O108,1,aux!$AL$1))^(1/($O$3-INDEX($K$3:$O$3,1,aux!$AL$1)))-1,"n.d.") -> n.d. | AE108: =IF(INDEX($K108:$O108,1,aux!$AL$1)>0,(O108-INDEX($K108:$O108,1,aux!$AL$1))/INDEX($K108:$O108,1,aux!$AL$1),"n.d.") -> n.d. | AX108: 12
A109: 1203 | B109: Copra | C109: 0 | D109: 0 | E109: 0 | F109: 0 | G109: 0 | H109: 0 | I109: 0 | J109: 0 | K109: 0 | L109: 0 | M109: 0 | N109: 0 | O109: 0 | P109: 0 | Q109: 0 | R109: 0 | S109: 0 | U109: =G109-INDEX($C109:$G109,1,aux!$AL$1) -> 0 | V109: 0 | W109: 0 | X109: =+IF(INDEX($C109:$G109,1,aux!$AL$1)>0,(G109/INDEX($C109:$G109,1,aux!$AL$1))^(1/($G$3-INDEX($C$3:$G$3,1,aux!$AL$1)))-1,"n.d.") -> n.d. | Y109: =IF(INDEX($C109:$G109,1,aux!$AL$1)>0,(G109-INDEX($C109:$G109,1,aux!$AL$1))/INDEX($C109:$G109,1,aux!$AL$1),"n.d.") -> n.d. | AA109: =O109-INDEX($K109:$O109,1,aux!$AL$1) -> 0 | AB109: 0 | AC109: 0 | AD109: =+IF(INDEX($K109:$O109,1,aux!$AL$1)>0,(O109/INDEX($K109:$O109,1,aux!$AL$1))^(1/($O$3-INDEX($K$3:$O$3,1,aux!$AL$1)))-1,"n.d.") -> n.d. | AE109: =IF(INDEX($K109:$O109,1,aux!$AL$1)>0,(O109-INDEX($K109:$O109,1,aux!$AL$1))/INDEX($K109:$O109,1,aux!$AL$1),"n.d.") -> n.d. | AX109: 12
A110: 1204 | B110: Sementes de linho (linhaça) | C110: 0 | D110: 0 | E110: 0 | F110: 0 | G110: 0 | H110: 0 | I110: 0 | J110: 0 | K110: 0 | L110: 0 | M110: 0 | N110: 0 | O110: 0 | P110: 0 | Q110: 0 | R110: 0 | S110: 0 | U110: =G110-INDEX($C110:$G110,1,aux!$AL$1) -> 0 | V110: 0 | W110: 0 | X110: =+IF(INDEX($C110:$G110,1,aux!$AL$1)>0,(G110/INDEX($C110:$G110,1,aux!$AL$1))^(1/($G$3-INDEX($C$3:$G$3,1,aux!$AL$1)))-1,"n.d.") -> n.d. | Y110: =IF(INDEX($C110:$G110,1,aux!$AL$1)>0,(G110-INDEX($C110:$G110,1,aux!$AL$1))/INDEX($C110:$G110,1,aux!$AL$1),"n.d.") -> n.d. | AA110: =O110-INDEX($K110:$O110,1,aux!$AL$1) -> 0 | AB110: 0 | AC110: 0 | AD110: =+IF(INDEX($K110:$O110,1,aux!$AL$1)>0,(O110/INDEX($K110:$O110,1,aux!$AL$1))^(1/($O$3-INDEX($K$3:$O$3,1,aux!$AL$1)))-1,"n.d.") -> n.d. | AE110: =IF(INDEX($K110:$O110,1,aux!$AL$1)>0,(O110-INDEX($K110:$O110,1,aux!$AL$1))/INDEX($K110:$O110,1,aux!$AL$1),"n.d.") -> n.d. | AX110: 12
A111: 1205 | B111: Sementes de nabo silvestre ou de colza | C111: 0 | D111: 0 | E111: 0 | F111: 0 | G111: 0 | H111: 0 | I111: 0 | J111: 0 | K111: 0 | L111: 0 | M111: 0 | N111: 0 | O111: 0 | P111: 0 | Q111: 0 | R111: 0 | S111: 0 | U111: =G111-INDEX($C111:$G111,1,aux!$AL$1) -> 0 | V111: 0 | W111: 0 | X111: =+IF(INDEX($C111:$G111,1,aux!$AL$1)>0,(G111/INDEX($C111:$G111,1,aux!$AL$1))^(1/($G$3-INDEX($C$3:$G$3,1,aux!$AL$1)))-1,"n.d.") -> n.d. | Y111: =IF(INDEX($C111:$G111,1,aux!$AL$1)>0,(G111-INDEX($C111:$G111,1,aux!$AL$1))/INDEX($C111:$G111,1,aux!$AL$1),"n.d.") -> n.d. | AA111: =O111-INDEX($K111:$O111,1,aux!$AL$1) -> 0 | AB111: 0 | AC111: 0 | AD111: =+IF(INDEX($K111:$O111,1,aux!$AL$1)>0,(O111/INDEX($K111:$O111,1,aux!$AL$1))^(1/($O$3-INDEX($K$3:$O$3,1,aux!$AL$1)))-1,"n.d.") -> n.d. | AE111: =IF(INDEX($K111:$O111,1,aux!$AL$1)>0,(O111-INDEX($K111:$O111,1,aux!$AL$1))/INDEX($K111:$O111,1,aux!$AL$1),"n.d.") -> n.d. | AX111: 12
A112: 1206 | B112: Sementes de girassol | C112: 0 | D112: 0 | E112: 0 | F112: 0 | G112: 0 | H112: 0 | I112: 0 | J112: 0 | K112: 0 | L112: 0 | M112: 0 | N112: 0 | O112: 0 | P112: 0 | Q112: 0 | R112: 0 | S112: 0 | U112: =G112-INDEX($C112:$G112,1,aux!$AL$1) -> 0 | V112: 0 | W112: 0 | X112: =+IF(INDEX($C112:$G112,1,aux!$AL$1)>0,(G112/INDEX($C112:$G112,1,aux!$AL$1))^(1/($G$3-INDEX($C$3:$G$3,1,aux!$AL$1)))-1,"n.d.") -> n.d. | Y112: =IF(INDEX($C112:$G112,1,aux!$AL$1)>0,(G112-INDEX($C112:$G112,1,aux!$AL$1))/INDEX($C112:$G112,1,aux!$AL$1),"n.d.") -> n.d. | AA112: =O112-INDEX($K112:$O112,1,aux!$AL$1) -> 0 | AB112: 0 | AC112: 0 | AD112: =+IF(INDEX($K112:$O112,1,aux!$AL$1)>0,(O112/INDEX($K112:$O112,1,aux!$AL$1))^(1/($O$3-INDEX($K$3:$O$3,1,aux!$AL$1)))-1,"n.d.") -> n.d. | AE112: =IF(INDEX($K112:$O112,1,aux!$AL$1)>0,(O112-INDEX($K112:$O112,1,aux!$AL$1))/INDEX($K112:$O112,1,aux!$AL$1),"n.d.") -> n.d. | AX112: 12
A113: 1207 | B113: Sementes e frutos oleaginosos | C113: 0 | D113: 0 | E113: 0 | F113: 0 | G113: 0 | H113: 0 | I113: 0 | J113: 0 | K113: 0 | L113: 0 | M113: 0 | N113: 0 | O113: 0 | P113: 0 | Q113: 0 | R113: 0 | S113: 0 | U113: =G113-INDEX($C113:$G113,1,aux!$AL$1) -> 0 | V113: 0 | W113: 0 | X113: =+IF(INDEX($C113:$G113,1,aux!$AL$1)>0,(G113/INDEX($C113:$G113,1,aux!$AL$1))^(1/($G$3-INDEX($C$3:$G$3,1,aux!$AL$1)))-1,"n.d.") -> n.d. | Y113: =IF(INDEX($C113:$G113,1,aux!$AL$1)>0,(G113-INDEX($C113:$G113,1,aux!$AL$1))/INDEX($C113:$G113,1,aux!$AL$1),"n.d.") -> n.d. | AA113: =O113-INDEX($K113:$O113,1,aux!$AL$1) -> 0 | AB113: 0 | AC113: 0 | AD113: =+IF(INDEX($K113:$O113,1,aux!$AL$1)>0,(O113/INDEX($K113:$O113,1,aux!$AL$1))^(1/($O$3-INDEX($K$3:$O$3,1,aux!$AL$1)))-1,"n.d.") -> n.d. | AE113: =IF(INDEX($K113:$O113,1,aux!$AL$1)>0,(O113-INDEX($K113:$O113,1,aux!$AL$1))/INDEX($K113:$O113,1,aux!$AL$1),"n.d.") -> n.d. | AX113: 12
A114: 1208 | B114: Farinhas de sementes oleaginosas | C114: 0 | D114: 0 | E114: 0 | F114: 0 | G114: 0 | H114: 0 | I114: 0 | J114: 0 | K114: 0 | L114: 0 | M114: 0 | N114: 0 | O114: 0 | P114: 0 | Q114: 0 | R114: 0 | S114: 0 | U114: =G114-INDEX($C114:$G114,1,aux!$AL$1) -> 0 | V114: 0 | W114: 0 | X114: =+IF(INDEX($C114:$G114,1,aux!$AL$1)>0,(G114/INDEX($C114:$G114,1,aux!$AL$1))^(1/($G$3-INDEX($C$3:$G$3,1,aux!$AL$1)))-1,"n.d.") -> n.d. | Y114: =IF(INDEX($C114:$G114,1,aux!$AL$1)>0,(G114-INDEX($C114:$G114,1,aux!$AL$1))/INDEX($C114:$G114,1,aux!$AL$1),"n.d.") -> n.d. | AA114: =O114-INDEX($K114:$O114,1,aux!$AL$1) -> 0 | AB114: 0 | AC114: 0 | AD114: =+IF(INDEX($K114:$O114,1,aux!$AL$1)>0,(O114/INDEX($K114:$O114,1,aux!$AL$1))^(1/($O$3-INDEX($K$3:$O$3,1,aux!$AL$1)))-1,"n.d.") -> n.d. | AE114: =IF(INDEX($K114:$O114,1,aux!$AL$1)>0,(O114-INDEX($K114:$O114,1,aux!$AL$1))/INDEX($K114:$O114,1,aux!$AL$1),"n.d.") -> n.d. | AX114: 12
A115: 1209 | B115: Sementes, frutos e esporos para sementeira | C115: 0 | D115: 0 | E115: 0 | F115: 0 | G115: 0 | H115: 0 | I115: 0 | J115: 0 | K115: 0 | L115: 0 | M115: 0 | N115: 0 | O115: 0 | P115: 0 | Q115: 0 | R115: 0 | S115: 0 | U115: =G115-INDEX($C115:$G115,1,aux!$AL$1) -> 0 | V115: 0 | W115: 0 | X115: =+IF(INDEX($C115:$G115,1,aux!$AL$1)>0,(G115/INDEX($C115:$G115,1,aux!$AL$1))^(1/($G$3-INDEX($C$3:$G$3,1,aux!$AL$1)))-1,"n.d.") -> n.d. | Y115: =IF(INDEX($C115:$G115,1,aux!$AL$1)>0,(G115-INDEX($C115:$G115,1,aux!$AL$1))/INDEX($C115:$G115,1,aux!$AL$1),"n.d.") -> n.d. | AA115: =O115-INDEX($K115:$O115,1,aux!$AL$1) -> 0 | AB115: 0 | AC115: 0 | AD115: =+IF(INDEX($K115:$O115,1,aux!$AL$1)>0,(O115/INDEX($K115:$O115,1,aux!$AL$1))^(1/($O$3-INDEX($K$3:$O$3,1,aux!$AL$1)))-1,"n.d.") -> n.d. | AE115: =IF(INDEX($K115:$O115,1,aux!$AL$1)>0,(O115-INDEX($K115:$O115,1,aux!$AL$1))/INDEX($K115:$O115,1,aux!$AL$1),"n.d.") -> n.d. | AX115: 12
A116: 1210 | B116: Cones de lúpulo, frescos ou secos | C116: 0 | D116: 0 | E116: 0 | F116: 0 | G116: 0 | H116: 0 | I116: 0 | J116: 0 | K116: 0 | L116: 0 | M116: 0 | N116: 0 | O116: 0 | P116: 0 | Q116: 0 | R116: 0 | S116: 0 | U116: =G116-INDEX($C116:$G116,1,aux!$AL$1) -> 0 | V116: 0 | W116: 0 | X116: =+IF(INDEX($C116:$G116,1,aux!$AL$1)>0,(G116/INDEX($C116:$G116,1,aux!$AL$1))^(1/($G$3-INDEX($C$3:$G$3,1,aux!$AL$1)))-1,"n.d.") -> n.d. | Y116: =IF(INDEX($C116:$G116,1,aux!$AL$1)>0,(G116-INDEX($C116:$G116,1,aux!$AL$1))/INDEX($C116:$G116,1,aux!$AL$1),"n.d.") -> n.d. | AA116: =O116-INDEX($K116:$O116,1,aux!$AL$1) -> 0 | AB116: 0 | AC116: 0 | AD116: =+IF(INDEX($K116:$O116,1,aux!$AL$1)>0,(O116/INDEX($K116:$O116,1,aux!$AL$1))^(1/($O$3-INDEX($K$3:$O$3,1,aux!$AL$1)))-1,"n.d.") -> n.d. | AE116: =IF(INDEX($K116:$O116,1,aux!$AL$1)>0,(O116-INDEX($K116:$O116,1,aux!$AL$1))/INDEX($K116:$O116,1,aux!$AL$1),"n.d.") -> n.d. | AX116: 12
A117: 1211 | B117: Plantas, partes de plantas para usos não alimentares | C117: 0 | D117: 0 | E117: 0 | F117: 0 | G117: 0 | H117: 0 | I117: 0 | J117: 0 | K117: 0 | L117: 0 | M117: 0 | N117: 0 | O117: 0 | P117: 0 | Q117: 0 | R117: 0 | S117: 0 | U117: =G117-INDEX($C117:$G117,1,aux!$AL$1) -> 0 | V117: 0 | W117: 0 | X117: =+IF(INDEX($C117:$G117,1,aux!$AL$1)>0,(G117/INDEX($C117:$G117,1,aux!$AL$1))^(1/($G$3-INDEX($C$3:$G$3,1,aux!$AL$1)))-1,"n.d.") -> n.d. | Y117: =IF(INDEX($C117:$G117,1,aux!$AL$1)>0,(G117-INDEX($C117:$G117,1,aux!$AL$1))/INDEX($C117:$G117,1,aux!$AL$1),"n.d.") -> n.d. | AA117: =O117-INDEX($K117:$O117,1,aux!$AL$1) -> 0 | AB117: 0 | AC117: 0 | AD117: =+IF(INDEX($K117:$O117,1,aux!$AL$1)>0,(O117/INDEX($K117:$O117,1,aux!$AL$1))^(1/($O$3-INDEX($K$3:$O$3,1,aux!$AL$1)))-1,"n.d.") -> n.d. | AE117: =IF(INDEX($K117:$O117,1,aux!$AL$1)>0,(O117-INDEX($K117:$O117,1,aux!$AL$1))/INDEX($K117:$O117,1,aux!$AL$1),"n.d.") -> n.d. | AX117: 12
A118: 1212 | B118: Alfarroba, algas, beterraba sacarina, etc. | C118: 0 | D118: 0 | E118: 0 | F118: 0 | G118: 0 | H118: 0 | I118: 0 | J118: 0 | K118: 0 | L118: 0 | M118: 0 | N118: 0 | O118: 0 | P118: 0 | Q118: 0 | R118: 0 | S118: 0 | U118: =G118-INDEX($C118:$G118,1,aux!$AL$1) -> 0 | V118: 0 | W118: 0 | X118: =+IF(INDEX($C118:$G118,1,aux!$AL$1)>0,(G118/INDEX($C118:$G118,1,aux!$AL$1))^(1/($G$3-INDEX($C$3:$G$3,1,aux!$AL$1)))-1,"n.d.") -> n.d. | Y118: =IF(INDEX($C118:$G118,1,aux!$AL$1)>0,(G118-INDEX($C118:$G118,1,aux!$AL$1))/INDEX($C118:$G118,1,aux!$AL$1),"n.d.") -> n.d. | AA118: =O118-INDEX($K118:$O118,1,aux!$AL$1) -> 0 | AB118: 0 | AC118: 0 | AD118: =+IF(INDEX($K118:$O118,1,aux!$AL$1)>0,(O118/INDEX($K118:$O118,1,aux!$AL$1))^(1/($O$3-INDEX($K$3:$O$3,1,aux!$AL$1)))-1,"n.d.") -> n.d. | AE118: =IF(INDEX($K118:$O118,1,aux!$AL$1)>0,(O118-INDEX($K118:$O118,1,aux!$AL$1))/INDEX($K118:$O118,1,aux!$AL$1),"n.d.") -> n.d. | AX118: 12
A119: 1213 | B119: Palhas e cascas de cereais | C119: 0 | D119: 0 | E119: 0 | F119: 0 | G119: 0 | H119: 0 | I119: 0 | J119: 0 | K119: 0 | L119: 0 | M119: 0 | N119: 0 | O119: 0 | P119: 0 | Q119: 0 | R119: 0 | S119: 0 | U119: =G119-INDEX($C119:$G119,1,aux!$AL$1) -> 0 | V119: 0 | W119: 0 | X119: =+IF(INDEX($C119:$G119,1,aux!$AL$1)>0,(G119/INDEX($C119:$G119,1,aux!$AL$1))^(1/($G$3-INDEX($C$3:$G$3,1,aux!$AL$1)))-1,"n.d.") -> n.d. | Y119: =IF(INDEX($C119:$G119,1,aux!$AL$1)>0,(G119-INDEX($C119:$G119,1,aux!$AL$1))/INDEX($C119:$G119,1,aux!$AL$1),"n.d.") -> n.d. | AA119: =O119-INDEX($K119:$O119,1,aux!$AL$1) -> 0 | AB119: 0 | AC119: 0 | AD119: =+IF(INDEX($K119:$O119,1,aux!$AL$1)>0,(O119/INDEX($K119:$O119,1,aux!$AL$1))^(1/($O$3-INDEX($K$3:$O$3,1,aux!$AL$1)))-1,"n.d.") -> n.d. | AE119: =IF(INDEX($K119:$O119,1,aux!$AL$1)>0,(O119-INDEX($K119:$O119,1,aux!$AL$1))/INDEX($K119:$O119,1,aux!$AL$1),"n.d.") -> n.d. | AX119: 12
A120: 1214 | B120: Rutabagas e outros produtos forrageiros | C120: 0 | D120: 0 | E120: 0 | F120: 0 | G120: 0 | H120: 0 | I120: 0 | J120: 0 | K120: 0 | L120: 0 | M120: 0 | N120: 0 | O120: 0 | P120: 0 | Q120: 0 | R120: 0 | S120: 0 | U120: =G120-INDEX($C120:$G120,1,aux!$AL$1) -> 0 | V120: 0 | W120: 0 | X120: =+IF(INDEX($C120:$G120,1,aux!$AL$1)>0,(G120/INDEX($C120:$G120,1,aux!$AL$1))^(1/($G$3-INDEX($C$3:$G$3,1,aux!$AL$1)))-1,"n.d.") -> n.d. | Y120: =IF(INDEX($C120:$G120,1,aux!$AL$1)>0,(G120-INDEX($C120:$G120,1,aux!$AL$1))/INDEX($C120:$G120,1,aux!$AL$1),"n.d.") -> n.d. | AA120: =O120-INDEX($K120:$O120,1,aux!$AL$1) -> 0 | AB120: 0 | AC120: 0 | AD120: =+IF(INDEX($K120:$O120,1,aux!$AL$1)>0,(O120/INDEX($K120:$O120,1,aux!$AL$1))^(1/($O$3-INDEX($K$3:$O$3,1,aux!$AL$1)))-1,"n.d.") -> n.d. | AE120: =IF(INDEX($K120:$O120,1,aux!$AL$1)>0,(O120-INDEX($K120:$O120,1,aux!$AL$1))/INDEX($K120:$O120,1,aux!$AL$1),"n.d.") -> n.d. | AX120: 12
A121: 12SS | B121: Sementes e frutos oleaginosos, etc. | C121: 0 | D121: 0 | E121: 0 | F121: 0 | G121: 0 | H121: 0 | I121: 0 | J121: 0 | K121: 0 | L121: 0 | M121: 0 | N121: 0 | O121: 0 | P121: 0 | Q121: 0 | R121: 0 | S121: 0 | U121: =G121-INDEX($C121:$G121,1,aux!$AL$1) -> 0 | V121: 0 | W121: 0 | X121: =+IF(INDEX($C121:$G121,1,aux!$AL$1)>0,(G121/INDEX($C121:$G121,1,aux!$AL$1))^(1/($G$3-INDEX($C$3:$G$3,1,aux!$AL$1)))-1,"n.d.") -> n.d. | Y121: =IF(INDEX($C121:$G121,1,aux!$AL$1)>0,(G121-INDEX($C121:$G121,1,aux!$AL$1))/INDEX($C121:$G121,1,aux!$AL$1),"n.d.") -> n.d. | AA121: =O121-INDEX($K121:$O121,1,aux!$AL$1) -> 0 | AB121: 0 | AC121: 0 | AD121: =+IF(INDEX($K121:$O121,1,aux!$AL$1)>0,(O121/INDEX($K121:$O121,1,aux!$AL$1))^(1/($O$3-INDEX($K$3:$O$3,1,aux!$AL$1)))-1,"n.d.") -> n.d. | AE121: =IF(INDEX($K121:$O121,1,aux!$AL$1)>0,(O121-INDEX($K121:$O121,1,aux!$AL$1))/INDEX($K121:$O121,1,aux!$AL$1),"n.d.") -> n.d. | AX121: 12
A122: 1302 | B122: Sucos e extratos vegetais, etc. | C122: 0 | D122: 0 | E122: 0 | F122: 0 | G122: 0 | H122: 0 | I122: 0 | J122: 0 | K122: 0 | L122: 0 | M122: 0 | N122: 0 | O122: 0 | P122: 0 | Q122: 0 | R122: 0 | S122: 0 | U122: =G122-INDEX($C122:$G122,1,aux!$AL$1) -> 0 | V122: 0 | W122: 0 | X122: =+IF(INDEX($C122:$G122,1,aux!$AL$1)>0,(G122/INDEX($C122:$G122,1,aux!$AL$1))^(1/($G$3-INDEX($C$3:$G$3,1,aux!$AL$1)))-1,"n.d.") -> n.d. | Y122: =IF(INDEX($C122:$G122,1,aux!$AL$1)>0,(G122-INDEX($C122:$G122,1,aux!$AL$1))/INDEX($C122:$G122,1,aux!$AL$1),"n.d.") -> n.d. | AA122: =O122-INDEX($K122:$O122,1,aux!$AL$1) -> 0 | AB122: 0 | AC122: 0 | AD122: =+IF(INDEX($K122:$O122,1,aux!$AL$1)>0,(O122/INDEX($K122:$O122,1,aux!$AL$1))^(1/($O$3-INDEX($K$3:$O$3,1,aux!$AL$1)))-1,"n.d.") -> n.d. | AE122: =IF(INDEX($K122:$O122,1,aux!$AL$1)>0,(O122-INDEX($K122:$O122,1,aux!$AL$1))/INDEX($K122:$O122,1,aux!$AL$1),"n.d.") -> n.d. | AX122: 13
A123: 13SS | B123: Gomas, resinas e outros sucos e extratos vegetais | C123: 0 | D123: 0 | E123: 0 | F123: 0 | G123: 0 | H123: 0 | I123: 0 | J123: 0 | K123: 0 | L123: 0 | M123: 0 | N123: 0 | O123: 0 | P123: 0 | Q123: 0 | R123: 0 | S123: 0 | U123: =G123-INDEX($C123:$G123,1,aux!$AL$1) -> 0 | V123: 0 | W123: 0 | X123: =+IF(INDEX($C123:$G123,1,aux!$AL$1)>0,(G123/INDEX($C123:$G123,1,aux!$AL$1))^(1/($G$3-INDEX($C$3:$G$3,1,aux!$AL$1)))-1,"n.d.") -> n.d. | Y123: =IF(INDEX($C123:$G123,1,aux!$AL$1)>0,(G123-INDEX($C123:$G123,1,aux!$AL$1))/INDEX($C123:$G123,1,aux!$AL$1),"n.d.") -> n.d. | AA123: =O123-INDEX($K123:$O123,1,aux!$AL$1) -> 0 | AB123: 0 | AC123: 0 | AD123: =+IF(INDEX($K123:$O123,1,aux!$AL$1)>0,(O123/INDEX($K123:$O123,1,aux!$AL$1))^(1/($O$3-INDEX($K$3:$O$3,1,aux!$AL$1)))-1,"n.d.") -> n.d. | AE123: =IF(INDEX($K123:$O123,1,aux!$AL$1)>0,(O123-INDEX($K123:$O123,1,aux!$AL$1))/INDEX($K123:$O123,1,aux!$AL$1),"n.d.") -> n.d. | AX123: 13
A124: 1401 | B124: Matérias vegetais utilizadas em cestaria | C124: 0 | D124: 0 | E124: 0 | F124: 0 | G124: 0 | H124: 0 | I124: 0 | J124: 0 | K124: 0 | L124: 0 | M124: 0 | N124: 0 | O124: 0 | P124: 0 | Q124: 0 | R124: 0 | S124: 0 | U124: =G124-INDEX($C124:$G124,1,aux!$AL$1) -> 0 | V124: 0 | W124: 0 | X124: =+IF(INDEX($C124:$G124,1,aux!$AL$1)>0,(G124/INDEX($C124:$G124,1,aux!$AL$1))^(1/($G$3-INDEX($C$3:$G$3,1,aux!$AL$1)))-1,"n.d.") -> n.d. | Y124: =IF(INDEX($C124:$G124,1,aux!$AL$1)>0,(G124-INDEX($C124:$G124,1,aux!$AL$1))/INDEX($C124:$G124,1,aux!$AL$1),"n.d.") -> n.d. | AA124: =O124-INDEX($K124:$O124,1,aux!$AL$1) -> 0 | AB124: 0 | AC124: 0 | AD124: =+IF(INDEX($K124:$O124,1,aux!$AL$1)>0,(O124/INDEX($K124:$O124,1,aux!$AL$1))^(1/($O$3-INDEX($K$3:$O$3,1,aux!$AL$1)))-1,"n.d.") -> n.d. | AE124: =IF(INDEX($K124:$O124,1,aux!$AL$1)>0,(O124-INDEX($K124:$O124,1,aux!$AL$1))/INDEX($K124:$O124,1,aux!$AL$1),"n.d.") -> n.d. | AX124: 14
A125: 1404 | B125: Outros produtos vegetais | C125: 0 | D125: 0 | E125: 0 | F125: 0 | G125: 0 | H125: 0 | I125: 0 | J125: 0 | K125: 0 | L125: 0 | M125: 0 | N125: 0 | O125: 0 | P125: 0 | Q125: 0 | R125: 0 | S125: 0 | U125: =G125-INDEX($C125:$G125,1,aux!$AL$1) -> 0 | V125: 0 | W125: 0 | X125: =+IF(INDEX($C125:$G125,1,aux!$AL$1)>0,(G125/INDEX($C125:$G125,1,aux!$AL$1))^(1/($G$3-INDEX($C$3:$G$3,1,aux!$AL$1)))-1,"n.d.") -> n.d. | Y125: =IF(INDEX($C125:$G125,1,aux!$AL$1)>0,(G125-INDEX($C125:$G125,1,aux!$AL$1))/INDEX($C125:$G125,1,aux!$AL$1),"n.d.") -> n.d. | AA125: =O125-INDEX($K125:$O125,1,aux!$AL$1) -> 0 | AB125: 0 | AC125: 0 | AD125: =+IF(INDEX($K125:$O125,1,aux!$AL$1)>0,(O125/INDEX($K125:$O125,1,aux!$AL$1))^(1/($O$3-INDEX($K$3:$O$3,1,aux!$AL$1)))-1,"n.d.") -> n.d. | AE125: =IF(INDEX($K125:$O125,1,aux!$AL$1)>0,(O125-INDEX($K125:$O125,1,aux!$AL$1))/INDEX($K125:$O125,1,aux!$AL$1),"n.d.") -> n.d. | AX125: 14
A126: 14SS | B126: Matérias para entrançar e outros | C126: 0 | D126: 0 | E126: 0 | F126: 0 | G126: 0 | H126: 0 | I126: 0 | J126: 0 | K126: 0 | L126: 0 | M126: 0 | N126: 0 | O126: 0 | P126: 0 | Q126: 0 | R126: 0 | S126: 0 | U126: =G126-INDEX($C126:$G126,1,aux!$AL$1) -> 0 | V126: 0 | W126: 0 | X126: =+IF(INDEX($C126:$G126,1,aux!$AL$1)>0,(G126/INDEX($C126:$G126,1,aux!$AL$1))^(1/($G$3-INDEX($C$3:$G$3,1,aux!$AL$1)))-1,"n.d.") -> n.d. | Y126: =IF(INDEX($C126:$G126,1,aux!$AL$1)>0,(G126-INDEX($C126:$G126,1,aux!$AL$1))/INDEX($C126:$G126,1,aux!$AL$1),"n.d.") -> n.d. | AA126: =O126-INDEX($K126:$O126,1,aux!$AL$1) -> 0 | AB126: 0 | AC126: 0 | AD126: =+IF(INDEX($K126:$O126,1,aux!$AL$1)>0,(O126/INDEX($K126:$O126,1,aux!$AL$1))^(1/($O$3-INDEX($K$3:$O$3,1,aux!$AL$1)))-1,"n.d.") -> n.d. | AE126: =IF(INDEX($K126:$O126,1,aux!$AL$1)>0,(O126-INDEX($K126:$O126,1,aux!$AL$1))/INDEX($K126:$O126,1,aux!$AL$1),"n.d.") -> n.d. | AX126: 14
A127: 1501 | B127: Gorduras de suínos e aves | C127: 0 | D127: 0 | E127: 0 | F127: 0 | G127: 0 | H127: 0 | I127: 0 | J127: 0 | K127: 0 | L127: 0 | M127: 0 | N127: 0 | O127: 0 | P127: 0 | Q127: 0 | R127: 0 | S127: 0 | U127: =G127-INDEX($C127:$G127,1,aux!$AL$1) -> 0 | V127: 0 | W127: 0 | X127: =+IF(INDEX($C127:$G127,1,aux!$AL$1)>0,(G127/INDEX($C127:$G127,1,aux!$AL$1))^(1/($G$3-INDEX($C$3:$G$3,1,aux!$AL$1)))-1,"n.d.") -> n.d. | Y127: =IF(INDEX($C127:$G127,1,aux!$AL$1)>0,(G127-INDEX($C127:$G127,1,aux!$AL$1))/INDEX($C127:$G127,1,aux!$AL$1),"n.d.") -> n.d. | AA127: =O127-INDEX($K127:$O127,1,aux!$AL$1) -> 0 | AB127: 0 | AC127: 0 | AD127: =+IF(INDEX($K127:$O127,1,aux!$AL$1)>0,(O127/INDEX($K127:$O127,1,aux!$AL$1))^(1/($O$3-INDEX($K$3:$O$3,1,aux!$AL$1)))-1,"n.d.") -> n.d. | AE127: =IF(INDEX($K127:$O127,1,aux!$AL$1)>0,(O127-INDEX($K127:$O127,1,aux!$AL$1))/INDEX($K127:$O127,1,aux!$AL$1),"n.d.") -> n.d. | AX127: 15
A128: 1502 | B128: Gorduras de bovinos, ovinos ou caprinos | C128: 0 | D128: 0 | E128: 0 | F128: 0 | G128: 0 | H128: 0 | I128: 0 | J128: 0 | K128: 0 | L128: 0 | M128: 0 | N128: 0 | O128: 0 | P128: 0 | Q128: 0 | R128: 0 | S128: 0 | U128: =G128-INDEX($C128:$G128,1,aux!$AL$1) -> 0 | V128: 0 | W128: 0 | X128: =+IF(INDEX($C128:$G128,1,aux!$AL$1)>0,(G128/INDEX($C128:$G128,1,aux!$AL$1))^(1/($G$3-INDEX($C$3:$G$3,1,aux!$AL$1)))-1,"n.d.") -> n.d. | Y128: =IF(INDEX($C128:$G128,1,aux!$AL$1)>0,(G128-INDEX($C128:$G128,1,aux!$AL$1))/INDEX($C128:$G128,1,aux!$AL$1),"n.d.") -> n.d. | AA128: =O128-INDEX($K128:$O128,1,aux!$AL$1) -> 0 | AB128: 0 | AC128: 0 | AD128: =+IF(INDEX($K128:$O128,1,aux!$AL$1)>0,(O128/INDEX($K128:$O128,1,aux!$AL$1))^(1/($O$3-INDEX($K$3:$O$3,1,aux!$AL$1)))-1,"n.d.") -> n.d. | AE128: =IF(INDEX($K128:$O128,1,aux!$AL$1)>0,(O128-INDEX($K128:$O128,1,aux!$AL$1))/INDEX($K128:$O128,1,aux!$AL$1),"n.d.") -> n.d. | AX128: 15
A129: 1503 | B129: Estearina solar, óleo de banha de porco, etc. | C129: 0 | D129: 0 | E129: 0 | F129: 0 | G129: 0 | H129: 0 | I129: 0 | J129: 0 | K129: 0 | L129: 0 | M129: 0 | N129: 0 | O129: 0 | P129: 0 | Q129: 0 | R129: 0 | S129: 0 | U129: =G129-INDEX($C129:$G129,1,aux!$AL$1) -> 0 | V129: 0 | W129: 0 | X129: =+IF(INDEX($C129:$G129,1,aux!$AL$1)>0,(G129/INDEX($C129:$G129,1,aux!$AL$1))^(1/($G$3-INDEX($C$3:$G$3,1,aux!$AL$1)))-1,"n.d.") -> n.d. | Y129: =IF(INDEX($C129:$G129,1,aux!$AL$1)>0,(G129-INDEX($C129:$G129,1,aux!$AL$1))/INDEX($C129:$G129,1,aux!$AL$1),"n.d.") -> n.d. | AA129: =O129-INDEX($K129:$O129,1,aux!$AL$1) -> 0 | AB129: 0 | AC129: 0 | AD129: =+IF(INDEX($K129:$O129,1,aux!$AL$1)>0,(O129/INDEX($K129:$O129,1,aux!$AL$1))^(1/($O$3-INDEX($K$3:$O$3,1,aux!$AL$1)))-1,"n.d.") -> n.d. | AE129: =IF(INDEX($K129:$O129,1,aux!$AL$1)>0,(O129-INDEX($K129:$O129,1,aux!$AL$1))/INDEX($K129:$O129,1,aux!$AL$1),"n.d.") -> n.d. | AX129: 15
A130: 1504 | B130: Gorduras e óleos de peixes,etc. | C130: 0 | D130: 0 | E130: 0 | F130: 0 | G130: 0 | H130: 0 | I130: 0 | J130: 0 | K130: 0 | L130: 0 | M130: 0 | N130: 0 | O130: 0 | P130: 0 | Q130: 0 | R130: 0 | S130: 0 | U130: =G130-INDEX($C130:$G130,1,aux!$AL$1) -> 0 | V130: 0 | W130: 0 | X130: =+IF(INDEX($C130:$G130,1,aux!$AL$1)>0,(G130/INDEX($C130:$G130,1,aux!$AL$1))^(1/($G$3-INDEX($C$3:$G$3,1,aux!$AL$1)))-1,"n.d.") -> n.d. | Y130: =IF(INDEX($C130:$G130,1,aux!$AL$1)>0,(G130-INDEX($C130:$G130,1,aux!$AL$1))/INDEX($C130:$G130,1,aux!$AL$1),"n.d.") -> n.d. | AA130: =O130-INDEX($K130:$O130,1,aux!$AL$1) -> 0 | AB130: 0 | AC130: 0 | AD130: =+IF(INDEX($K130:$O130,1,aux!$AL$1)>0,(O130/INDEX($K130:$O130,1,aux!$AL$1))^(1/($O$3-INDEX($K$3:$O$3,1,aux!$AL$1)))-1,"n.d.") -> n.d. | AE130: =IF(INDEX($K130:$O130,1,aux!$AL$1)>0,(O130-INDEX($K130:$O130,1,aux!$AL$1))/INDEX($K130:$O130,1,aux!$AL$1),"n.d.") -> n.d. | AX130: 15
A131: 1505 | B131: Suarda e derivados, incluindo lanolina | C131: 0 | D131: 0 | E131: 0 | F131: 0 | G131: 0 | H131: 0 | I131: 0 | J131: 0 | K131: 0 | L131: 0 | M131: 0 | N131: 0 | O131: 0 | P131: 0 | Q131: 0 | R131: 0 | S131: 0 | U131: =G131-INDEX($C131:$G131,1,aux!$AL$1) -> 0 | V131: 0 | W131: 0 | X131: =+IF(INDEX($C131:$G131,1,aux!$AL$1)>0,(G131/INDEX($C131:$G131,1,aux!$AL$1))^(1/($G$3-INDEX($C$3:$G$3,1,aux!$AL$1)))-1,"n.d.") -> n.d. | Y131: =IF(INDEX($C131:$G131,1,aux!$AL$1)>0,(G131-INDEX($C131:$G131,1,aux!$AL$1))/INDEX($C131:$G131,1,aux!$AL$1),"n.d.") -> n.d. | AA131: =O131-INDEX($K131:$O131,1,aux!$AL$1) -> 0 | AB131: 0 | AC131: 0 | AD131: =+IF(INDEX($K131:$O131,1,aux!$AL$1)>0,(O131/INDEX($K131:$O131,1,aux!$AL$1))^(1/($O$3-INDEX($K$3:$O$3,1,aux!$AL$1)))-1,"n.d.") -> n.d. | AE131: =IF(INDEX($K131:$O131,1,aux!$AL$1)>0,(O131-INDEX($K131:$O131,1,aux!$AL$1))/INDEX($K131:$O131,1,aux!$AL$1),"n.d.") -> n.d. | AX131: 15
A132: 1506 | B132: Outras gorduras e óleos animais e suas frações | C132: 0 | D132: 0 | E132: 0 | F132: 0 | G132: 0 | H132: 0 | I132: 0 | J132: 0 | K132: 0 | L132: 0 | M132: 0 | N132: 0 | O132: 0 | P132: 0 | Q132: 0 | R132: 0 | S132: 0 | U132: =G132-INDEX($C132:$G132,1,aux!$AL$1) -> 0 | V132: =IF($U$236<>0,U132/$U$236, "n.d.") -> 0 | W132: =IF($U$320<>0,U132/$U$320, "n.d.") -> 0 | X132: =+IF(INDEX($C132:$G132,1,aux!$AL$1)>0,(G132/INDEX($C132:$G132,1,aux!$AL$1))^(1/($G$3-INDEX($C$3:$G$3,1,aux!$AL$1)))-1,"n.d.") -> n.d. | Y132: =IF(INDEX($C132:$G132,1,aux!$AL$1)>0,(G132-INDEX($C132:$G132,1,aux!$AL$1))/INDEX($C132:$G132,1,aux!$AL$1),"n.d.") -> n.d. | AA132: =O132-INDEX($K132:$O132,1,aux!$AL$1) -> 0 | AB132: =IF($AA$236<>0,AA132/$AA$236, "n.d.") -> 0 | AC132: =IF($AA$320<>0,AA132/$AA$320, "n.d.") -> 0 | AD132: =+IF(INDEX($K132:$O132,1,aux!$AL$1)>0,(O132/INDEX($K132:$O132,1,aux!$AL$1))^(1/($O$3-INDEX($K$3:$O$3,1,aux!$AL$1)))-1,"n.d.") -> n.d. | AE132: =IF(INDEX($K132:$O132,1,aux!$AL$1)>0,(O132-INDEX($K132:$O132,1,aux!$AL$1))/INDEX($K132:$O132,1,aux!$AL$1),"n.d.") -> n.d. | AX132: 15
A133: 1507 | B133: Óleo de soja e suas frações | C133: 0 | D133: 0 | E133: 0 | F133: 0 | G133: 0 | H133: 0 | I133: 0 | J133: 0 | K133: 0 | L133: 0 | M133: 0 | N133: 0 | O133: 0 | P133: 0 | Q133: 0 | R133: 0 | S133: 0 | U133: =G133-INDEX($C133:$G133,1,aux!$AL$1) -> 0 | V133: 0 | W133: 0 | X133: =+IF(INDEX($C133:$G133,1,aux!$AL$1)>0,(G133/INDEX($C133:$G133,1,aux!$AL$1))^(1/($G$3-INDEX($C$3:$G$3,1,aux!$AL$1)))-1,"n.d.") -> n.d. | Y133: =IF(INDEX($C133:$G133,1,aux!$AL$1)>0,(G133-INDEX($C133:$G133,1,aux!$AL$1))/INDEX($C133:$G133,1,aux!$AL$1),"n.d.") -> n.d. | AA133: =O133-INDEX($K133:$O133,1,aux!$AL$1) -> 0 | AB133: 0 | AC133: 0 | AD133: =+IF(INDEX($K133:$O133,1,aux!$AL$1)>0,(O133/INDEX($K133:$O133,1,aux!$AL$1))^(1/($O$3-INDEX($K$3:$O$3,1,aux!$AL$1)))-1,"n.d.") -> n.d. | AE133: =IF(INDEX($K133:$O133,1,aux!$AL$1)>0,(O133-INDEX($K133:$O133,1,aux!$AL$1))/INDEX($K133:$O133,1,aux!$AL$1),"n.d.") -> n.d. | AX133: 15
A134: 1508 | B134: Óleo de amendoim e suas frações | C134: 0 | D134: 0 | E134: 0 | F134: 0 | G134: 0 | H134: 0 | I134: 0 | J134: 0 | K134: 0 | L134: 0 | M134: 0 | N134: 0 | O134: 0 | P134: 0 | Q134: 0 | R134: 0 | S134: 0 | U134: =G134-INDEX($C134:$G134,1,aux!$AL$1) -> 0 | V134: 0 | W134: 0 | X134: =+IF(INDEX($C134:$G134,1,aux!$AL$1)>0,(G134/INDEX($C134:$G134,1,aux!$AL$1))^(1/($G$3-INDEX($C$3:$G$3,1,aux!$AL$1)))-1,"n.d.") -> n.d. | Y134: =IF(INDEX($C134:$G134,1,aux!$AL$1)>0,(G134-INDEX($C134:$G134,1,aux!$AL$1))/INDEX($C134:$G134,1,aux!$AL$1),"n.d.") -> n.d. | AA134: =O134-INDEX($K134:$O134,1,aux!$AL$1) -> 0 | AB134: 0 | AC134: 0 | AD134: =+IF(INDEX($K134:$O134,1,aux!$AL$1)>0,(O134/INDEX($K134:$O134,1,aux!$AL$1))^(1/($O$3-INDEX($K$3:$O$3,1,aux!$AL$1)))-1,"n.d.") -> n.d. | AE134: =IF(INDEX($K134:$O134,1,aux!$AL$1)>0,(O134-INDEX($K134:$O134,1,aux!$AL$1))/INDEX($K134:$O134,1,aux!$AL$1),"n.d.") -> n.d. | AX134: 15
A135: 1509 | B135: Azeite (processos mecânicos ou físicos) | C135: 0 | D135: 0 | E135: 0 | F135: 0 | G135: 0 | H135: 0 | I135: 0 | J135: 0 | K135: 0 | L135: 0 | M135: 8598 | N135: 10767 | O135: 19142 | P135: 7701.4 | Q135: 0.1026987526 | R135: 0.09475893771 | S135: 7701.4 | U135: =G135-INDEX($C135:$G135,1,aux!$AL$1) -> 0 | V135: 0 | W135: 0 | X135: =+IF(INDEX($C135:$G135,1,aux!$AL$1)>0,(G135/INDEX($C135:$G135,1,aux!$AL$1))^(1/($G$3-INDEX($C$3:$G$3,1,aux!$AL$1)))-1,"n.d.") -> n.d. | Y135: =IF(INDEX($C135:$G135,1,aux!$AL$1)>0,(G135-INDEX($C135:$G135,1,aux!$AL$1))/INDEX($C135:$G135,1,aux!$AL$1),"n.d.") -> n.d. | AA135: =O135-INDEX($K135:$O135,1,aux!$AL$1) -> 19142 | AB135: 0.165179573 | AC135: 0.2190686549 | AD135: =+IF(INDEX($K135:$O135,1,aux!$AL$1)>0,(O135/INDEX($K135:$O135,1,aux!$AL$1))^(1/($O$3-INDEX($K$3:$O$3,1,aux!$AL$1)))-1,"n.d.") -> n.d. | AE135: =IF(INDEX($K135:$O135,1,aux!$AL$1)>0,(O135-INDEX($K135:$O135,1,aux!$AL$1))/INDEX($K135:$O135,1,aux!$AL$1),"n.d.") -> n.d. | AX135: =+LEFT(A135,2) -> 15
A136: 1510 | B136: Óleos de azeitonas obtidos por outros processos | C136: 0 | D136: 0 | E136: 0 | F136: 0 | G136: 0 | H136: 0 | I136: 0 | J136: 0 | K136: 0 | L136: 0 | M136: 29876 | N136: 15695 | O136: 13452 | P136: 11804.6 | Q136: 0.1574152356 | R136: 0.1452451965 | S136: 11804.6 | U136: =G136-INDEX($C136:$G136,1,aux!$AL$1) -> 0 | V136: 0 | W136: 0 | X136: =+IF(INDEX($C136:$G136,1,aux!$AL$1)>0,(G136/INDEX($C136:$G136,1,aux!$AL$1))^(1/($G$3-INDEX($C$3:$G$3,1,aux!$AL$1)))-1,"n.d.") -> n.d. | Y136: =IF(INDEX($C136:$G136,1,aux!$AL$1)>0,(G136-INDEX($C136:$G136,1,aux!$AL$1))/INDEX($C136:$G136,1,aux!$AL$1),"n.d.") -> n.d. | AA136: =O136-INDEX($K136:$O136,1,aux!$AL$1) -> 13452 | AB136: 0.1160795955 | AC136: 0.1539500338 | AD136: =+IF(INDEX($K136:$O136,1,aux!$AL$1)>0,(O136/INDEX($K136:$O136,1,aux!$AL$1))^(1/($O$3-INDEX($K$3:$O$3,1,aux!$AL$1)))-1,"n.d.") -> n.d. | AE136: =IF(INDEX($K136:$O136,1,aux!$AL$1)>0,(O136-INDEX($K136:$O136,1,aux!$AL$1))/INDEX($K136:$O136,1,aux!$AL$1),"n.d.") -> n.d. | AX136: 15
A137: 1511 | B137: Óleo de palma e suas frações | C137: 0 | D137: 0 | E137: 0 | F137: 0 | G137: 0 | H137: 0 | I137: 0 | J137: 0 | K137: 0 | L137: 0 | M137: 0 | N137: 0 | O137: 0 | P137: 0 | Q137: 0 | R137: 0 | S137: 0 | U137: =G137-INDEX($C137:$G137,1,aux!$AL$1) -> 0 | V137: 0 | W137: 0 | X137: =+IF(INDEX($C137:$G137,1,aux!$AL$1)>0,(G137/INDEX($C137:$G137,1,aux!$AL$1))^(1/($G$3-INDEX($C$3:$G$3,1,aux!$AL$1)))-1,"n.d.") -> n.d. | Y137: =IF(INDEX($C137:$G137,1,aux!$AL$1)>0,(G137-INDEX($C137:$G137,1,aux!$AL$1))/INDEX($C137:$G137,1,aux!$AL$1),"n.d.") -> n.d. | AA137: =O137-INDEX($K137:$O137,1,aux!$AL$1) -> 0 | AB137: 0 | AC137: 0 | AD137: =+IF(INDEX($K137:$O137,1,aux!$AL$1)>0,(O137/INDEX($K137:$O137,1,aux!$AL$1))^(1/($O$3-INDEX($K$3:$O$3,1,aux!$AL$1)))-1,"n.d.") -> n.d. | AE137: =IF(INDEX($K137:$O137,1,aux!$AL$1)>0,(O137-INDEX($K137:$O137,1,aux!$AL$1))/INDEX($K137:$O137,1,aux!$AL$1),"n.d.") -> n.d. | AX137: 15
A138: 1512 | B138: Óleos de girassol, cártamo ou algodão | C138: 0 | D138: 0 | E138: 0 | F138: 0 | G138: 0 | H138: 0 | I138: 0 | J138: 0 | K138: 0 | L138: 0 | M138: 0 | N138: 0 | O138: 0 | P138: 0 | Q138: 0 | R138: 0 | S138: 0 | U138: =G138-INDEX($C138:$G138,1,aux!$AL$1) -> 0 | V138: 0 | W138: 0 | X138: =+IF(INDEX($C138:$G138,1,aux!$AL$1)>0,(G138/INDEX($C138:$G138,1,aux!$AL$1))^(1/($G$3-INDEX($C$3:$G$3,1,aux!$AL$1)))-1,"n.d.") -> n.d. | Y138: =IF(INDEX($C138:$G138,1,aux!$AL$1)>0,(G138-INDEX($C138:$G138,1,aux!$AL$1))/INDEX($C138:$G138,1,aux!$AL$1),"n.d.") -> n.d. | AA138: =O138-INDEX($K138:$O138,1,aux!$AL$1) -> 0 | AB138: 0 | AC138: 0 | AD138: =+IF(INDEX($K138:$O138,1,aux!$AL$1)>0,(O138/INDEX($K138:$O138,1,aux!$AL$1))^(1/($O$3-INDEX($K$3:$O$3,1,aux!$AL$1)))-1,"n.d.") -> n.d. | AE138: =IF(INDEX($K138:$O138,1,aux!$AL$1)>0,(O138-INDEX($K138:$O138,1,aux!$AL$1))/INDEX($K138:$O138,1,aux!$AL$1),"n.d.") -> n.d. | AX138: 15
A139: 1513 | B139: Óleos de coco, amêndoa de palmiste, etc. | C139: 0 | D139: 0 | E139: 0 | F139: 0 | G139: 0 | H139: 0 | I139: 0 | J139: 0 | K139: 0 | L139: 0 | M139: 0 | N139: 0 | O139: 0 | P139: 0 | Q139: 0 | R139: 0 | S139: 0 | U139: =G139-INDEX($C139:$G139,1,aux!$AL$1) -> 0 | V139: 0 | W139: 0 | X139: =+IF(INDEX($C139:$G139,1,aux!$AL$1)>0,(G139/INDEX($C139:$G139,1,aux!$AL$1))^(1/($G$3-INDEX($C$3:$G$3,1,aux!$AL$1)))-1,"n.d.") -> n.d. | Y139: =IF(INDEX($C139:$G139,1,aux!$AL$1)>0,(G139-INDEX($C139:$G139,1,aux!$AL$1))/INDEX($C139:$G139,1,aux!$AL$1),"n.d.") -> n.d. | AA139: =O139-INDEX($K139:$O139,1,aux!$AL$1) -> 0 | AB139: 0 | AC139: 0 | AD139: =+IF(INDEX($K139:$O139,1,aux!$AL$1)>0,(O139/INDEX($K139:$O139,1,aux!$AL$1))^(1/($O$3-INDEX($K$3:$O$3,1,aux!$AL$1)))-1,"n.d.") -> n.d. | AE139: =IF(INDEX($K139:$O139,1,aux!$AL$1)>0,(O139-INDEX($K139:$O139,1,aux!$AL$1))/INDEX($K139:$O139,1,aux!$AL$1),"n.d.") -> n.d. | AX139: 15
A140: 1514 | B140: Óleos de nabo silvestre, colza ou mostarda | C140: 0 | D140: 0 | E140: 0 | F140: 0 | G140: 0 | H140: 0 | I140: 0 | J140: 0 | K140: 0 | L140: 0 | M140: 0 | N140: 0 | O140: 0 | P140: 0 | Q140: 0 | R140: 0 | S140: 0 | U140: =G140-INDEX($C140:$G140,1,aux!$AL$1) -> 0 | V140: 0 | W140: 0 | X140: =+IF(INDEX($C140:$G140,1,aux!$AL$1)>0,(G140/INDEX($C140:$G140,1,aux!$AL$1))^(1/($G$3-INDEX($C$3:$G$3,1,aux!$AL$1)))-1,"n.d.") -> n.d. | Y140: =IF(INDEX($C140:$G140,1,aux!$AL$1)>0,(G140-INDEX($C140:$G140,1,aux!$AL$1))/INDEX($C140:$G140,1,aux!$AL$1),"n.d.") -> n.d. | AA140: =O140-INDEX($K140:$O140,1,aux!$AL$1) -> 0 | AB140: 0 | AC140: 0 | AD140: =+IF(INDEX($K140:$O140,1,aux!$AL$1)>0,(O140/INDEX($K140:$O140,1,aux!$AL$1))^(1/($O$3-INDEX($K$3:$O$3,1,aux!$AL$1)))-1,"n.d.") -> n.d. | AE140: =IF(INDEX($K140:$O140,1,aux!$AL$1)>0,(O140-INDEX($K140:$O140,1,aux!$AL$1))/INDEX($K140:$O140,1,aux!$AL$1),"n.d.") -> n.d. | AX140: 15
